Workbook

Sheet LDC Info
AA3: Algoma Power Inc.
AA4: Atikokan Hydro Inc.
AA5: Attawapiskat Power Corporation
AA6: Bluewater Power Distribution Corporation
AA7: Brant County Power Inc.
AA8: Brantford Power Inc.
AA9: Burlington Hydro Inc.
AA10: Cambridge and North Dumfries Hydro Inc.
AA11: Canadian Niagara Power Inc.
AA12: Centre Wellington Hydro Ltd.
AA13: Chapleau Public Utilities Corporation
D14: Utility Name | E14: Halton Hills Hydro Inc. | AA14: COLLUS PowerStream Corp.
AA15: Cooperative Hydro Embrun Inc.
D16: Assigned EB Number | E16: EB-2015-0074 | AA16: E.L.K. Energy Inc.
AA17: Enersource Hydro Mississauga Inc.
D18: Name of Contact and Title | E18: David J. Smelsky, Chief Financial Officer | AA18: Entegrus Powerlines Inc.
AA19: EnWin Utilities Ltd.
D20: Phone Number | E20: 519-853-3700 extension 208 | AA20: Erie Thames Powerlines Corporation
AA21: Espanola Regional Hydro Distribution Corporation
D22: Email Address | E22: dsmelsky@haltonhillshydro.com | AA22: Essex Powerlines Corporation
AA23: Festival Hydro Inc.
D24: Test Year | E24: 2016 | AA24: Fort Albany Power Corporation
AA25: Fort Frances Power Corporation
D26: Bridge Year | E26: =IF(ISBLANK(E24), "", E24-1) -> 2015 | AA26: Greater Sudbury Hydro Inc.
AA27: Grimsby Power Inc.
D28: Last Rebasing Year | E28: 2012 | AA28: Guelph Hydro Electric Systems Inc.
AA29: Haldimand County Hydro Inc.
A30: Identify the accounting standard used for the test year | AA30: Halton Hills Hydro Inc.
E31: MIFRS | AA31: Hearst Power Distribution Company Limited
AA32: Horizon Utilities Corporation
A33: Did you update your depreciation and capitalization policies? | AA33: Hydro 2000 Inc.
E34: Yes | AA34: Hydro Hawkesbury Inc.
AA35: Hydro One Brampton Networks Inc.
A36: When did you update your depreciation and capitalization policies? | AA36: Hydro One Networks Inc.
E37: 2001-01-01 | F37: 2012 | AA37: Hydro One Remote Communities Inc.
AA38: Hydro Ottawa Limited
A39: Identify the year that the applicant has adopted or is expected to adopt IFRS for financial reporting purposes | AA39: Innpower Corporation
E40: 2015 or Later | AA40: Kashechewan Power Corporation
AA41: Kenora Hydro Electric Corporation Ltd.
AA42: Kingston Hydro Corporation
A43: Are you applying for cost recovery for the test and/or future year(s) for Green Energy initiatives? | AA43: Kitchener-Wilmot Hydro Inc.
E44: No | AA44: Lakefront Utilities Inc.
AA45: Lakeland Power Distribution Ltd.
A46: ="Is " & E14 & " an embedded distributor?" -> Is Halton Hills Hydro Inc. an embedded distributor? | E46: Yes | AA46: London Hydro Inc.
AA47: Midland Power Utility Corporation
AA48: Milton Hydro Distribution Inc.
B49: Notes | AA49: Newmarket-Tay Power Distribution Ltd.
AA50: Niagara Peninsula Energy Inc.
C51: Pale green cells represent input cells. | AA51: Niagara-on-the-Lake Hydro Inc.
AA52: Norfolk Power Distribution Inc.
C53: Pale blue cells represent drop-down lists. The applicant should select the appropriate item from the drop-down list. | AA53: North Bay Hydro Distribution Limited
AA54: Northern Ontario Wires Inc.
C55: White cells contain fixed values, automatically generated values or formulae. | AA55: Oakville Hydro Electricity Distribution Inc.
AA56: Orangeville Hydro Limited
AA57: Orillia Power Distribution Corporation
AA58: Oshawa PUC Networks Inc.
AA59: Ottawa River Power Corporation
AA60: Peterborough Distribution Incorporated
AA61: PowerStream Inc.
AA62: PUC Distribution Inc.
AA63: Renfrew Hydro Inc.
AA64: Rideau St. Lawrence Distribution Inc.
AA65: Sioux Lookout Hydro Inc.
AA66: St. Thomas Energy Inc.
AA67: Thunder Bay Hydro Electricity Distribution Inc.
AA68: Tillsonburg Hydro Inc.
AA69: Toronto Hydro-Electric System Limited
AA70: Veridian Connections Inc.
AA71: Wasaga Distribution Inc.
AA72: Waterloo North Hydro Inc.
AA73: Welland Hydro-Electric System Corp.
AA74: Wellington North Power Inc.
AA75: West Coast Huron Energy Inc.
AA76: Westario Power Inc.
AA77: Whitby Hydro Electric Corporation
AA78: Woodstock Hydro Services Inc.

Sheet HHHI Appendix Summary
B4: OEB Chapter 2 Appendix Reference | C4: Description | D4: Complete or Not Applicable (N/A) | E4: Notes and explanation if N/A
B5: App.2-AA | C5: Capital Projects Table | D5: Complete | E5: Exhibit 2, Tab 2, Schedule 2, Table 2-43
B6: App.2-AB | C6: Capital Expenditures | D6: Complete
B7: App. 2-AC | C7: Customer Engagement Worksheet | D7: Complete
B8: App.2-BA | C8: Fixed Asset Continuity Schedule | D8: Complete | E8: 2012 Actual to 2016 Test Year
B9: App.2-BB | C9: Service Life Comparison | D9: N/A | E9: Completed in 2012 COS. Re produce in Exhibit 4, Appendix of this application
B10: App.2-CA | C10: 2012 Depreciation and Amortization Expense (Old CGAAP) | D10: Complete
B11: App.2-CB | C11: 2012 Depreciation and Amortization Expense (New CGAAP) | D11: Complete
B12: App.2-CC | C12: 2013 Depreciation and Amortization Expense (New CGAAP) | D12: Complete
B13: App.2-CD | C13: 2014 Depreciation and Amortization Expense (MIFRS) | D13: Complete
B14: App.2-CE | C14: 2015 Depreciation and Amortization Expense (MIFRS) | D14: Complete
B15: App.2-CF | C15: 2015 Depreciation and Amortization Expense (MIFRS) | D15: Complete
B16: App.2-CG | C16: 2013 Depreciation and Amortization Expense (Old CGAAP) | D16: N/A | E16: HHHI made capitalization and depreciation expense accounting policy changes under CGAAP effective January 1, 2012 and has adopted IFRS for financial reporting purposes effective January 1, 2015. EB 2011-0271
B17: App.2-CH | C17: 2013 Depreciation and Amortization Expense (New CGAAP) | D17: N/A | E17: HHHI made capitalization and depreciation expense accounting policy changes under CGAAP effective January 1, 2012 and has adopted IFRS for financial reporting purposes effective January 1, 2015. EB 2011-0271
B18: App.2-CI | C18: 2014 Depreciation and Amortization Expense (MIFRS) | D18: N/A | E18: HHHI made capitalization and depreciation expense accounting policy changes under CGAAP effective January 1, 2012 and has adopted IFRS for financial reporting purposes effective January 1, 2015. EB 2011-0271
B19: App.2-CJ | C19: 2015 Depreciation and Amortization Expense (MIFRS) | D19: N/A | E19: HHHI made capitalization and depreciation expense accounting policy changes under CGAAP effective January 1, 2012 and has adopted IFRS for financial reporting purposes effective January 1, 2015. EB 2011-0271
B20: App.2-CK | C20: 2016 Depreciation and Amortization Expense (MIFRS) | D20: N/A | E20: HHHI made capitalization and depreciation expense accounting policy changes under CGAAP effective January 1, 2012 and has adopted IFRS for financial reporting purposes effective January 1, 2015. EB 2011-0271
B21: App.2-D | C21: Overhead Expenses | D21: Complete
B22: App.2-EA | C22: Account 1575 PP&E Deferral Account (2015 IFRS Adopters) | D22: Complete
B23: App.2-EB | C23: Account 1576 - Accounting Changes Under CGAAP (2012 Changes) | D23: Complete
B24: App.2-EC | C24: Account 1576 - Accounting Changes Under CGAAP (2013 Changes) | D24: N/A | E24: HHHI adopted MIFRS in 2012
B25: App.2-FA | C25: Renewable Generation Connection Investment Summary | D25: Complete | E25: No information to report
B26: App.2-FB | C26: Calculation of Renewable Generation Connection Direct Benefits/Provincial Amount Renewable Enabling Improvement Investments | D26: Complete | E26: No information to report
B27: App.2-FC | C27: Calculation of Renewable Generation Connection Direct Benefits/Provincial Amount Renewable Expansion Investments | D27: Complete | E27: No information to report
B28: App.2-G | C28: Service Reliability Indicators | D28: Complete
B29: App.2-H | C29: Other Operating Revenue | D29: Complete
B30: App.2-I | C30: Load Forecast CDM Adjustment Workform | D30: Complete
B31: App.2-IA | C31: Actual and Forecast Load and Customer Data | D31: Complete
B32: App.2-JA | C32: OM&A Summary Analysis | D32: Complete
B33: App.2-JB | C33: Recoverable OM&A Cost Driver Table | D33: Complete
B34: App.2-JC | C34: OM&A Programs Table | D34: Not Available | E34: OM&A by Programs not available
B35: App.2-K | C35: Employee Costs | D35: Complete
B36: App.2-L | C36: Recoverable OM&A Cost per Customer and per FTE | D36: Complete
B37: App.2-M | C37: Regulatory Costs Schedule | D37: Complete
B38: App.2-N | C38: Shared Services and Corporate Cost Allocation | D38: Complete
B39: App.2-OA | C39: Capital Structure and Cost of Capital | D39: Complete
B40: App.2-OB | C40: Debt Instruments | D40: Complete
B41: App.2-P | C41: Cost Allocation | D41: Complete
B42: App.2-PA | C42: New Rate Design Policy For Residential Customers | D42: Complete
B43: App.2-Q | C43: Cost of Serving Embedded Distributor(s) | D43: Complete
B44: App.2-R | C44: Loss Factors | D44: Complete
B45: App.2-S | C45: Stranded Meter Treatment | D45: Complete
B46: App.2-TA | C46: Account 1592, PILs and Tax Variances | D46: Not Available | E46: Information not available
B47: App.2-TB | C47: Account 1592, HST-OVAT Input Tax Credits | D47: N/A | E47: Not applicable as it was dealt with in 2012 COS
B48: App.2-U | C48: One-Time Incremental IFRS Transition Costs | D48: Complete
B49: App.2-V | C49: Revenue Reconciliation | D49: Complete
B50: App.2-W | C50: Bill Impacts | D50: Complete | E50: The bill impacts as calculated are not correct due to formulaic errors in the spreadsheet
B51: App.2-Y | C51: Transition to MIFRS Summary Impact | D51: Complete
B52: App. 2-Z | C52: Tariff Schedule | D52: Complete

Sheet Index
A15: 1 | B15: LDC Information Sheet | G15: 28 | H15: App.2-G: Service Reliability Indicators
A16: 2 | B16: Index | G16: 29 | H16: App.2-H: Other Operating Revenue
A17: 3 | B17: Cost of Service Application Flowchart | G17: 30 | H17: App.2-I: Load Forecast CDM Adjustment Workform
A18: 4 | B18: List of Key References | G18: 31 | H18: App.2-IA: Actual and Forecast Load and Customer Data
A19: 5 | B19: App.2-AA: Capital Projects Table | G19: 32 | H19: App.2-JA: OM&A Summary Analysis
A20: 6 | B20: App.2-AB: Capital Expenditures | G20: 33 | H20: App.2-JB: Recoverable OM&A Cost Driver Table
A21: 7 | B21: App. 2-AC: Customer Engagement Worksheet | G21: 34 | H21: App.2-JC: OM&A Programs Table
A22: 8 | B22: App.2-B: General Accounting Instructions | G22: 35 | H22: App.2-K: Employee Costs
A23: 9 | B23: App.2-BA: Fixed Asset Continuity Schedule | G23: 36 | H23: App.2-L: Recoverable OM&A Cost per Customer and per FTE
A24: 10 | B24: Appendix 2-BB: Service Life Comparison | G24: 37 | H24: App.2-M: Regulatory Costs Schedule
A25: 11 | B25: App.2-CA: 2012 Depreciation and Amortization Expense (Old CGAAP) | G25: 38 | H25: App.2-N: Shared Servcies and Corporate Cost Allocation
A26: 12 | B26: App.2-CB: 2012 Depreciation and Amortization Expense (New CGAAP) | G26: 39 | H26: App.2-OA: Capital Structure and Cost of Capital
A27: 13 | B27: App.2-CC: 2013 Depreciation and Amortization Expense (New CGAAP) | G27: 40 | H27: App.2-OB: Debt Instruments
A28: 14 | B28: App.2-CD: 2014 Depreciation and Amortization Expense (MIFRS) | G28: 41 | H28: App.2-P: Cost Allocation
A29: 15 | B29: App.2-CE: 2015 Depreciation and Amortization Expense (MIFRS) | G29: 42 | H29: App.2-PA: New Rate Design Policy For Residential Customers
A30: 16 | B30: App.2-CF: 2015 Depreciation and Amortization Expense (MIFRS) | G30: 43 | H30: App.2-Q: Cost of Serving Embedded Distributor(s)
A31: 17 | B31: App.2-CG: 2013 Depreciation and Amortization Expense (Old CGAAP) | G31: 44 | H31: App.2-R: Loss Factors
A32: 18 | B32: App.2-CH: 2013 Depreciation and Amortization Expense (New CGAAP) | G32: 45 | H32: App.2-S: Stranded Meter Treatment
A33: 19 | B33: App.2-CI: 2014 Depreciation and Amortization Expense (MIFRS) | G33: 46 | H33: App.2-TA: Account 1592, PILs and Tax Variances
A34: 20 | B34: App.2-CJ: 2015 Depreciation and Amortization Expense (MIFRS) | G34: 47 | H34: App.2-TB: Account 1592, HST-OVAT Input Tax Credits
A35: 21 | B35: App.2-CK: 2016 Depreciation and Amortization Expense (MIFRS) | G35: 48 | H35: App.2-U: One-Time Incremental IFRS Transition Costs
A36: 22 | B36: App.2-D: Overhead Expenses | G36: 49 | H36: App.2-V: Revenue Reconciliation
A37: 23 | B37: App.2-EA: Account 1575 PP&E Deferral Account (2015 IFRS Adopters) | G37: 50 | H37: App.2-W: Bill Impacts
A38: 24 | B38: App.2-EB: Account 1576 - Accounting Changes Under CGAAP (2012 Changes) | G38: 51 | H38: App.2-Y: Transition to MIFRS Summary Impact
A39: 25 | B39: App.2-EC: Account 1576 - Accounting Changes Under CGAAP (2013 Changes) | G39: 52 | H39: App. 2-Z: Tariff Schedule
A40: 26 | B40: App.2-FA: Renewable Generation Connection Investment Summary
A41: 27 | B41: App.2-FB: Calculation of Renewable Generation Connection Direct Benefits/Provincial Amount: Renewable Enabling Improvement Investments
A42: 28 | B42: App.2-FC: Calculation of Renewable Generation Connection Direct Benefits/Provincial Amount: Renewable Expansion Investments

Sheet COS Flowchart
B4: Cost of Service Rate Application Schematic
B6: The Cost of Service Rate Application Schematic is a flowchart appended to Chapter 2 of the Filing Requirements as a guide for the components of an application and how demand and costs interrelate to derive the revenue requirement and then how the revenue requirement is allocated between classes and through fixed/variable splits to derive rates that will be compensatory for the annual revenue requirement, based on the the forecasted demand. There is no form to be filled out; therefore, this Schedule is not required to be filed.

Sheet List of Key References
B3: List of Key References
A5: A list of key references for understanding the Filing Requirements has been embedded in the document below. To access the list of references and associated hyperlinks double-click the icon below.

Sheet App.2-AA_Capital Projects
G1: File Number: | H1: =EBNUMBER -> EB-2015-0074
G2: Exhibit:
G3: Tab:
G4: Schedule:
G5: Page:
G7: Date:
A9: Appendix 2-AA
A10: Capital Projects Table
A13: Projects | B13: =C13-1 -> 2011 | C13: =D13-1 -> 2012 | D13: =E13-1 -> 2013 | E13: =BridgeYear - 1 -> 2014 | F13: =BridgeYear & " Bridge Year" -> 2015 Bridge Year | G13: =TestYear & " Test Year" -> 2016 Test Year
A14: Reporting Basis | C14: CGAAP | D14: CGAAP | E14: CGAAP | F14: MIFRS | G14: MIFRS
A15: Project Name #1
A21: Sub-Total | B21: =SUM(B16:B20) -> 0 | C21: 0 | D21: 0 | E21: 0 | F21: 0 | G21: 0
A22: Project Name #2
A28: Sub-Total | B28: =SUM(B23:B27) -> 0 | C28: 0 | D28: 0 | E28: 0 | F28: 0 | G28: 0
A29: Project Name #3
A35: Sub-Total | B35: =SUM(B30:B34) -> 0 | C35: 0 | D35: 0 | E35: 0 | F35: 0 | G35: 0
A36: Project Name #4
A42: Sub-Total | B42: =SUM(B37:B41) -> 0 | C42: 0 | D42: 0 | E42: 0 | F42: 0 | G42: 0
A43: Miscellaneous
A44: Total | B44: =SUMPRODUCT(--($A15:$A43="Sub-Total"), B$15:B$43)+B43 -> 0 | C44: 0 | D44: 0 | E44: 0 | F44: 0 | G44: 0
A45: Less Renewable Generation Facility Assets and Other Non-Rate-Regulated Utility Assets (input as negative)
A46: Total | B46: =B44+B45 -> 0 | C46: 0 | D46: 0 | E46: 0 | F46: 0 | G46: 0
A48: Notes:
A50: 1 Please provide a breakdown of the major components of each capital project undertaken in each year. Please ensure that all projects below the materiality threshold are included in the miscellaneous line. Add more projects as required.
A51: 2 The applicant should group projects appropriately and avoid presentations that result in classification of significant components of the capital budget in the miscellaneous category.

Sheet App.2-AB_Capital Expenditures
S1: File Number: | U1: =EBNUMBER -> EB-2015-0074
S2: Exhibit:
S3: Tab:
S4: Schedule:
S5: Page:
S7: Date:
A9: Appendix 2-AB
A10: Table 2 - Capital Expenditure Summary from Chapter 5 Consolidated Distribution System Plan Filing Requirements
A12: First year of Forecast Period: | B12: =TestYear -> 2016
A13: CATEGORY | B13: Historical Period (previous plan1 & actual) | Q13: Forecast Period (planned)
B14: =E14-1 -> 2011 | E14: =H14-1 -> 2012 | H14: =K14-1 -> 2013 | K14: =N14-1 -> 2014 | N14: =Q14-1 -> 2015 | Q14: =B12 -> 2016 | R14: =Q14+1 -> 2017 | S14: =R14+1 -> 2018 | T14: 2019 | U14: 2020
B15: Plan | C15: Actual | D15: Var | E15: Plan | F15: Actual | G15: Var | H15: Plan | I15: Actual | J15: Var | K15: Plan | L15: Actual | M15: Var | N15: Plan | O15: Actual2 | P15: Var
B16: $ '000 | D16: % | E16: $ '000 | G16: % | H16: $ '000 | J16: % | K16: $ '000 | M16: % | N16: $ '000 | P16: % | Q16: $ '000
A17: System Access | B17: N/A | C17: 1182087 | D17: =IF(ISERROR((C17-B17)/B17),"--",(C17-B17)/B17) -> -- | E17: N/A | F17: 5251191 | G17: =IF(ISERROR((F17-E17)/E17),"--",(F17-E17)/E17) -> -- | H17: N/A | I17: 1867987 | J17: =IF(ISERROR((I17-H17)/H17),"--",(I17-H17)/H17) -> -- | K17: N/A | L17: 2680732 | M17: =IF(ISERROR((L17-K17)/K17),"--",(L17-K17)/K17) -> -- | N17: 1578189 | P17: =IF(ISERROR((O17-N17)/N17),"--",(O17-N17)/N17) -> -1 | Q17: 1339885 | R17: 290760 | S17: 1589978 | T17: 256040 | U17: 256410
A18: System Renewal | B18: N/A | C18: 2316186 | D18: =IF(ISERROR((C18-B18)/B18),"--",(C18-B18)/B18) -> -- | E18: N/A | F18: 2560260 | G18: =IF(ISERROR((F18-E18)/E18),"--",(F18-E18)/E18) -> -- | H18: N/A | I18: 1584398 | J18: =IF(ISERROR((I18-H18)/H18),"--",(I18-H18)/H18) -> -- | K18: N/A | L18: 2362906 | M18: =IF(ISERROR((L18-K18)/K18),"--",(L18-K18)/K18) -> -- | N18: 1870124 | P18: =IF(ISERROR((O18-N18)/N18),"--",(O18-N18)/N18) -> -1 | Q18: 3790671 | R18: 4226861 | S18: 2818292 | T18: 4220233 | U18: 5464607
A19: System Service | B19: N/A | C19: 757210 | D19: -- | E19: N/A | F19: 1192256 | G19: -- | H19: N/A | I19: 1777792 | J19: -- | K19: N/A | L19: 1975057 | M19: -- | N19: 3485366 | P19: -1 | Q19: 2302791 | R19: 1854882 | S19: 3535241 | T19: 4567366 | U19: 1856986
A20: General Plant | B20: N/A | C20: 865557 | D20: -- | E20: N/A | F20: 1210052 | G20: -- | H20: N/A | I20: 420040 | J20: -- | K20: N/A | L20: 1272141 | M20: -- | N20: 784136 | P20: -1 | Q20: 777613 | R20: 479416 | S20: 421000 | T20: 425000 | U20: 374000
A21: TOTAL EXPENDITURE | B21: =SUM(B17:B20) -> 0 | C21: =SUM(C17:C20) -> 5121040 | D21: -- | E21: 0 | F21: 10213759 | G21: -- | H21: 0 | I21: 5650217 | J21: -- | K21: 0 | L21: 8290836 | M21: -- | N21: 7717815 | O21: 0 | P21: -1 | Q21: 8210960 | R21: 6851919 | S21: 8364511 | T21: 9468639 | U21: =SUM(U17:U20) -> 7952003
A22: System O&M | C22: 1215158 | D22: -- | F22: 2703576 | G22: -- | I22: 1543011 | J22: -- | L22: 1406841 | M22: -- | N22: 1850667 | P22: -1
A24: Notes to the Table:
A25: 1. Historical “previous plan” data is not required unless a plan has previously been filed
A26: 2. Indicate the number of months of 'actual' data included in the last year of the Historical Period (normally a 'bridge' year):
A28: Explanatory Notes on Variances (complete only if applicable)
A29: Notes on shifts in forecast vs. historical budgets by category
A32: Notes on year over year Plan vs. Actual variances for Total Expenditures
A35: Notes on Plan vs. Actual variance trends for individual expenditure categories

Sheet App. 2-AC_Customer Engagement
B1: File Number: | C1: =EBNUMBER -> EB-2015-0074
B2: Exhibit:
B3: Tab:
B4: Schedule:
B5: Page:
B7: Date:
A9: Appendix 2-AC
A10: Customer Engagement Activities Summary
A12: Provide a list of customer engagement activities | B12: Provide a list of customer needs and preferences identified through each engagement activity | C12: Actions taken to respond to identified needs and preferences. If no action was taken, explain why.
A13: 4900 Walk in customers per year | B13: 1,Bill Payment, account setup, general inquiries, technical service layout requests and payment | C13: Continue to maintain a front office open to the public to service customers who prefer a face to face interaction and who are paying their bills in person.
A14: 24,483 Customer phone calls in 2014 | B14: 1, Bill Payment, Account Setup, general inquiries, outage information | C14: Implementing an IVR system to provide additional options and information for custoemrs
A15: 1517 Written Requests for Information in 2014 | B15: 1, Account history, requests to set up pre-authorized payment and equal billing 2. Requests received by e-mail, letter or webform | C15: Continue to respond quickly to written inquiries as per our historical SQI's. Continue to offer a variety of ways for customers to contact our office.
A16: Tree Trimming Customer Meeting January 2015 | B16: 1, Provide customers with an understanding of our tree trimming program, impacts on their trees, why and how we trim and tree trimming schedule 2.Most customers were happy that we would be trimming their trees to reduce outages | C16: Discussed specific trees with customers, provide door knockers in advance of trimming in their area
A17: Social Media Updates | B17: 1. Power outage updates 2. Energy Conservation information 3. Updates on programmes and services we offer 4. Safety information 5. Community event information | C17: Currently 20% of our customers follow us on social media. Continue to grow our base of followers through continueing to post timely relevant information. Continuing to enhace outage information provided online.
A18: Website updates | B18: 1. Power outage updates 2. Halton Hills Hydro news and events 3. energy conservation information 4. Safety information 5. updated rate information 6. Access to customers billing, payment and energy use information | C18: Continuing to improve power outage information posted online. Continue to update website and maintain AODA compliance.
A19: 4205 Locates performed in 2014 | B19: 1. Performing locates is a safety and legal requirement | C19: Continue to provide locating services for customers
A20: 170 Technical Service layouts in 2014 | B20: 1. Service upgrades, new services, changes or relocations of existing services 2. Residential or commercial customers | C20: New estimating software installed in 2014 speeds up the estimating process and assists engineering in providing excellent responses to Technical Service requests.
A21: Participation in Community Events such as Fall Fairs, Canada Day, Christmas Parade, Farmers markets | B21: 1. Participation in approximately 20 community events annually 2. Providing customers with an opportunity to meet utility representatives in person 3. Answer customer inquiries 4. Promote CDM programs and other utility initiatives 5. Maintain a strong community presence | C21: Community events are staffed by Halton Hills Hydro employees, providing a face to the utility. In 2015, HHH held its second Community Open House. Attendance was double the first event, with over 200 people. The utility continues to support community events and maintain a strong position as a community leader.
A22: Customer Satisfaction Survey (2014 & every 2 years) | B22: 1. Benchmarking Halton Hills Hydro compared to other Ontario LDCs 2. Understanding customers perceptions and concerns | C22: 90% of customers are very or fairly satisfied. Continue to improve customer experience. Overall A rating for performance. Ongoing training for customer care staff and all staff to ensure customer expectations are met. Learn from survey results and focus improving scores with each successive survey. Continue to survey customers every two years to continuously guage performance improvements.
A23: Bill messages and inserts | B23: 1. Onbill messaging and bill inserts to update customers on rates, provide OEB updates, CDM information, payment information | C23: Bill inserts are also available on our website for customers who receive electronic bills.
A24: 4770 Appointments Scheduled in 2014 | B24: 1. Meet with customers for site visits or other customer requested meetings | C24: Ensure we continue to meet appointments on time.
A25: 2015 Customer engagement survey for COS - 426 telephone respondents | B25: 1. Understand customer preferences & priorities with respect to capital & operating spending 2. Understand customers perceptions re power outages | C25: Details of survey attached as Appendix J of the Distribution System Plan
A26: 2015 Customer engagement survey for COS - 930 online respondents | B26: 1. Understand customer preferences & priorities with respect to capital & operating spending 2. Understand customers perceptions re power outages | C26: Details of survey attached as Appendix J of the Distribution System Plan
A27: 2015 Business Customer Focus Group - 7 customers participated | B27: 1. Understand customer preferences & priorities with respect to capital & operating spending 2. Understand customers perceptions re power outages | C27: Customers were surprised to learn that only 10-15% of their bill goes to HHH. Details of survey attached as Appendix J of the Distribution System Plan
A28: 2015 Residential Customer Focus Group - 20 customers participated | B28: 1. Understand customer preferences & priorities with respect to capital & operating spending 2. Understand customers perceptions re power outages | C28: Customers were surprised to learn that only20% of their bill goes to HHH. Details of survey attached as Appendix J of the Distribution System Plan
A29: 2015 Community Open House - approximately 200 customers attended - double the attendance of first open house in 2012 | B29: 1. Information about Halton Hills Hydro services and programs 2. Energy conservation information 3. Community presence - an opportunity for customers to see our facility, meet our staff, understand who we are and our role in the community | C29: Continue to host open house events every few years, continue to maintain a strong community presence
A30: School Safety Programs | B30: 1. Visit local schools to teach electricity safety and energy conservation | C30: Continue with this program
A33: Note: Use "ALT-ENTER" to go to the next line within a cell

Sheet App.2-B_Acct Instructions
A1: General Instructions to MIFRS Appendices
A2: Types of Schedules to File
A4: The purpose of this tab is to provide general instructions. The specific instructions to each appendix are listed in footnotes of each appendix.
A6: The typical applicant is expected to have made capitalization and depreciation policy changes under CGAAP as permitted by the Board on January 1, 2012 or mandated by the Board by January 1, 2013, and adopted IFRS for reporting purposes on January 1, 2015 (transition date January 1, 2014). In general, applicants under the two scenarios should provide the following information in the appendices:
E9: Accounting Policy Changes in 2012 and Adopted IFRS in 2015 | F9: Accounting Policy Changes in 2013 and Adopted IFRS in 2015
E10: (Date of Transition to IFRS 2014)
A11: Information to be filed in 2016 CoS Application | B11: 2016 | C11: Test | E11: MIFRS | F11: MIFRS
B12: 2015 | C12: Bridge | E12: MIFRS | F12: MIFRS
B13: 2014 | C13: Historical | E13: MIFRS and Revised CGAAP* | F13: MIFRS and Revised CGAAP*
B14: 2013 | C14: Historical | E14: Revised CGAAP | F14: CGAAP and Revised CGAAP
B15: 2012 | C15: Historical | E15: CGAAP and Revised CGAAP | F15: CGAAP
B16: 2011 and Prior | C16: Historical | E16: CGAAP | F16: CGAAP
A18: 1) For the year that the applicant implemented changes to its capitalization and depreciation policies (2012 or 2013), the applicant must file two appendices, one before and one after the policy changes.
A21: 2) For the transition year (2014), the applicant may file two appendices, one under Revised CGAAP and one under MIFRS, depending on the materiality of impacts. See the specific instructions under each appendix below for further details.
A26: Appendix 2-BA - Fixed Asset Schedule
A28: Applicants are to provide Appendix 2-BA in accordance with the years and corresponding accounting standards noted in the above table to provide a year over year continuity in fixed assets.
A29: *For the transition year (2014), the applicant should file two appendices, one under Revised CGAAP and one under MIFRS if the change between Revised CGAAP and MIFRS is material. If the change from the accounting standards is not material, the applicant may choose to only provide one appendix under MIFRS. However, the applicant must also indicate the fixed asset net book value balance under Revised CGAAP, the total dollar value of the change and explain why it is not material.
A33: Regulatory Gross Assets of Property, Plant and Equipment
A35: For an applicant that adopted IFRS on January 1, 2015 for financial reporting purposes, the applicant must establish the continuity of historic cost by using the December 31, 2013 regulatory gross assets of property, plant and equipment as the opening January 1, 2014 regulatory gross assets. The applicant must provide schedules (including Appendix 2-BA, Fixed Asset Continuity Schedule) which must identify the following details to substantiate the continuity of historic cost for regulatory purposes:
A38: · December 31, 2013 regulatory gross assets of property, plant and equipment, by asset class; and
A39: · January 1, 2014 regulatory gross assets of property, plant and equipment, by asset class.
A41: Accumulated Depreciation
A43: For an applicant that adopted IFRS on January 1, 2015 for financial reporting purposes, the applicant must establish the continuity of historic cost by using the December 31, 2013 regulatory accumulated depreciation as the opening January 1, 2014 regulatory accumulated depreciation. The applicant must provide schedules (including Appendix 2-BA, Fixed Asset Continuity Schedule) which must identify the following details to substantiate the continuity of historic cost for regulatory purposes:
A46: · December 31, 2013 regulatory accumulated depreciation, by asset class; and
A47: · January 1, 2014 regulatory accumulated depreciation, by asset class.
A49: Appendix 2-C - Depreciation and Amortization
A51: Applicants are to provide Appendix 2-C starting in the year capitalization and depreciation policy changes were implemented in accordance with the years and corresponding accounting standards listed in the above table.
A52: If an applicant changed capitalization and depreciation policies effective January 1, 2012 and adopted IFRS for reporting purposes effective January 1, 2015, the applicant must complete Appendix 2-CA to 2-CF (inclusive).
A53: If an applicant changed capitalization and depreciation policies effective January 1, 2013 and adopted IFRS for reporting purposes effective January 1, 2015, the applicant must complete Appendix 2-CG to 2-CK (inclusive).
A54: *Depreciation accounting policy changes were mandated by the Board by January 1, 2013. These accounting changes should be implemented consistent with the Board’s regulatory accounting policies as set out for MIFRS as contained in the Report of the Board, Transition to International Financial Reporting Standards (EB-2008-0408), the Depreciation Study for Use by Electricity Distributors (EB-2010-0178) and the Revised 2012 Accounting Procedures Handbook for Electricity Distributors. In general, no further changes to an applicant's depreciation policy (i.e. assets' service lives) are expected after the Board mandated changes by January 1, 2013. The set of Appendix CA to CK assumes this to be the case. If the applicant has made any changes to its depreciation policy subsequent to the Board mandated changes, applicants must identify the change, explain the nature of the change, the reason for the change, quantify the impact of the change, and quantify the depreciation expense before and after the change.
A57: Appendix 2-E - Account 1575, IFRS-CGAAP Transitional PP&E Amounts (2-EA), Account 1576, Accounting Changes Under CGAAP (2-EB, 2-EC)
A59: If an applicant changed capitalization and depreciation policies effective January 1, 2012 and adopted IFRS for reporting purposes effective January 1, 2015, the applicant must complete Appendix 2-EA and 2-EB. If the applicant did not make any further PP&E accounting policy changes beyond the capitalization and depreciation policy changes as permitted by the Board on January 1, 2012 (i.e. no further changes made on transition to IFRS), the applicant must indicate this and does not need to complete Appendix 2-EA.
A61: If an applicant changed capitalization and depreciation policies effective January 1, 2013 and adopted IFRS for reporting purposes effective January 1, 2015, the applicant must complete Appendix 2-EA and 2-EC. If the applicant did not make any further PP&E accounting policy changes beyond the capitalization and depreciation policy changes as mandated by the Board by January 1, 2013 (i.e. no further changes made on transition to IFRS), the applicant must indicate this and does not need to complete Appendix 2-EA.
A63: Please refer to section 2.12.4 and 2.12.5 of the Filing Requirements for further details.
A65: Appendix 2-YA - Summary of Impacts to Revenue Requirement from Transition to MIFRS
A67: For applicants adopting MIFRS, the applicants must provide a summary of the dollar impacts of MIFRS to each component of the revenue requirement (e.g. rate base, operating costs, etc), including the overall impact on the proposed revenue requirement. Accordingly, the applicants must identify financial differences and resulting revenue requirement impacts arising from the adoption of MIFRS as compared to CGAAP prior to capitalization and depreciation policy changes.

Sheet App.2-BA_Fixed Asset Cont
L1: File Number: | M1: =EBNUMBER -> EB-2015-0074
L2: Exhibit:
L3: Tab:
L4: Schedule:
L5: Page:
L7: Date:
A9: Appendix 2-BA
A10: Fixed Asset Continuity Schedule 1
E12: Accounting Standard | F12: CGAAP
E13: Year | F13: 2012
D15: Cost | I15: Accumulated Depreciation
A16: CCA Class 2 | B16: OEB Account 3 | C16: Description 3 | D16: Opening Balance | E16: Additions 4 | F16: Disposals | G16: Closing Balance | I16: Opening Balance | J16: Additions | K16: Disposals | L16: Closing Balance | M16: Net Book Value
A17: 12 | B17: 1611 | C17: Computer Software (Formally known as Account 1925) | D17: 1236063 | E17: 190042 | G17: =D17+E17+F17 -> 1426105 | I17: -1108834.62 | J17: -237177.52 | L17: =I17+J17+K17 -> -1346012.14 | M17: =G17+L17 -> 80092.86
A18: CEC | B18: 1612 | C18: Land Rights (Formally known as Account 1906) | D18: 4738 | G18: =D18+E18+F18 -> 4738 | I18: 0 | J18: 0 | L18: =I18+J18+K18 -> 0 | M18: =G18+L18 -> 4738
A19: N/A | B19: 1805 | C19: Land | D19: 591591 | E19: -250 | G19: =D19+E19+F19 -> 591341 | I19: 0 | J19: 0 | L19: =I19+J19+K19 -> 0 | M19: =G19+L19 -> 591341
A20: 47 | B20: 1808 | C20: Buildings | G20: =D20+E20+F20 -> 0 | L20: =I20+J20+K20 -> 0 | M20: =G20+L20 -> 0
A21: 13 | B21: 1810 | C21: Leasehold Improvements | G21: 0 | I21: 0 | J21: 0 | L21: 0 | M21: 0
A22: 47 | B22: 1815 | C22: Transformer Station Equipment >50 kV | G22: 0 | I22: 0 | J22: 0 | L22: 0 | M22: 0
A23: 47 | B23: 1820 | C23: Distribution Station Equipment <50 kV | D23: 5145637 | E23: 567968 | G23: 5713605 | I23: -1117450.68 | J23: -88876.97877 | L23: -1206327.659 | M23: 4507277.341
A24: 47 | B24: 1825 | C24: Storage Battery Equipment | G24: 0 | I24: 0 | J24: 0 | L24: 0 | M24: 0
A25: 47 | B25: 1830 | C25: Poles, Towers & Fixtures | D25: 17179058 | E25: 1896201 | G25: 19075259 | I25: -12881791 | J25: -230102.7507 | L25: -13111893.75 | M25: 5963365.249
A26: 47 | B26: 1835 | C26: Overhead Conductors & Devices | D26: 6240894 | E26: 688861 | G26: 6929755 | I26: -761222 | J26: -170996.5833 | L26: -932218.5833 | M26: 5997536.417
A27: 47 | B27: 1840 | C27: Underground Conduit | D27: 970548 | E27: 107128 | G27: 1077676 | I27: -98675.6458 | J27: -20487.76912 | L27: -119163.4149 | M27: 958512.5851
A28: 47 | B28: 1845 | C28: Underground Conductors & Devices | D28: 5875827 | E28: 648566 | G28: 6524393 | I28: -607731 | J28: -217241.3311 | L28: -824972.3311 | M28: 5699420.669
A29: 47 | B29: 1850 | C29: Line Transformers | D29: 7238728 | E29: 799001 | G29: 8037729 | I29: -790428 | J29: -221002.1238 | L29: -1011430.124 | M29: 7026298.876
A30: 47 | B30: 1855 | C30: Services (Overhead & Underground) | D30: 2730647 | E30: 301405 | G30: 3032052 | I30: -418500 | J30: 0 | L30: -418500 | M30: 2613552
A31: 47 | B31: 1860 | C31: Meters | D31: 1179057 | E31: 3790635 | G31: 4969692 | I31: -76329.25 | J31: -391135.78 | L31: -467465.03 | M31: 4502226.97
A32: 47 | B32: 1860 | C32: Meters (Smart Meters) | G32: 0 | L32: 0 | M32: 0
A33: N/A | B33: 1905 | C33: Land | G33: 0 | I33: 0 | J33: 0 | L33: 0 | M33: 0
A34: 47 | B34: 1908 | C34: Buildings & Fixtures | D34: 3233684 | E34: 356930 | G34: 3590614 | I34: -672969.8707 | J34: -82159.86512 | L34: -755129.7358 | M34: 2835484.264
A35: 13 | B35: 1910 | C35: Leasehold Improvements | G35: 0 | I35: 0 | J35: 0 | L35: 0 | M35: 0
A36: 8 | B36: 1915 | C36: Office Furniture & Equipment (10 years) | D36: 384354 | E36: 42424 | G36: 426778 | I36: -255489 | J36: -10289.90333 | L36: -265778.9033 | M36: 160999.0967
A37: 8 | B37: 1915 | C37: Office Furniture & Equipment (5 years) | G37: 0 | L37: 0 | M37: 0
A38: 10 | B38: 1920 | C38: Computer Equipment - Hardware | D38: 1086223 | E38: 266567 | G38: 1352790 | I38: -1025029.237 | J38: -242838.92 | L38: -1267868.157 | M38: 84921.843
A39: 45 | B39: 1920 | C39: Computer Equip.-Hardware(Post Mar. 22/04) | G39: 0 | L39: 0 | M39: 0
A40: 45.1 | B40: 1920 | C40: Computer Equip.-Hardware(Post Mar. 19/07) | G40: 0 | L40: 0 | M40: 0
A41: 10 | B41: 1930 | C41: Transportation Equipment | D41: 2485912 | E41: 274392 | G41: 2760304 | I41: -1481219.495 | J41: -184230.6262 | L41: -1665450.122 | M41: 1094853.878
A42: 8 | B42: 1935 | C42: Stores Equipment | D42: 53152 | E42: 5867 | G42: 59019 | I42: -52043.13 | J42: 0 | L42: -52043.13 | M42: 6975.87
A43: 8 | B43: 1940 | C43: Tools, Shop & Garage Equipment | D43: 584699 | E43: 64538 | G43: 649237 | I43: -350102 | J43: -52039.65208 | L43: -402141.6521 | M43: 247095.3479
A44: 8 | B44: 1945 | C44: Measurement & Testing Equipment | G44: 0 | I44: 0 | J44: 0 | L44: 0 | M44: 0
A45: 8 | B45: 1950 | C45: Power Operated Equipment | G45: 0 | I45: 0 | J45: 0 | L45: 0 | M45: 0
A46: 8 | B46: 1955 | C46: Communications Equipment | G46: 0 | I46: -6507 | J46: -51625.331 | L46: -58132.331 | M46: -58132.331
A47: 8 | B47: 1955 | C47: Communication Equipment (Smart Meters) | G47: 0 | L47: 0 | M47: 0
A48: 8 | B48: 1960 | C48: Miscellaneous Equipment | G48: 0 | I48: 0 | J48: 0 | L48: 0 | M48: 0
A49: 47 | B49: 1970 | C49: Load Management Controls Customer Premises | D49: 570108 | E49: 62928 | G49: 633036 | I49: -298141.02 | J49: 0 | L49: -298141.02 | M49: 334894.98
A50: 47 | B50: 1975 | C50: Load Management Controls Utility Premises | G50: 0 | I50: 0 | J50: 0 | L50: 0 | M50: 0
A51: 47 | B51: 1980 | C51: System Supervisor Equipment | D51: 1009299 | E51: 111405 | G51: 1120704 | I51: -425242.32 | J51: 0 | L51: -425242.32 | M51: 695461.68
A52: 47 | B52: 1985 | C52: Miscellaneous Fixed Assets | G52: 0 | I52: 0 | J52: 0 | L52: 0 | M52: 0
A53: 47 | B53: 1990 | C53: Other Tangible Property | G53: 0 | I53: 0 | J53: 0 | L53: 0 | M53: 0
A54: 47 | B54: 1995 | C54: Contributions & Grants | D54: -6385598 | E54: 39153 | G54: -6346445 | I54: 1268001.72 | J54: 128903.1993 | L54: 1396904.919 | M54: -4949540.081
A55: 47 | B55: 2440 | C55: Deferred Revenue5
G56: 0 | L56: 0 | M56: 0
C57: Sub-Total | D57: =SUM(D17:D56) -> 51414621 | E57: =SUM(E17:E56) -> 10213761 | F57: =SUM(F17:F56) -> 0 | G57: =SUM(G17:G56) -> 61628382 | I57: =SUM(I17:I56) -> -21159703.55 | J57: =SUM(J17:J56) -> -2071301.935 | K57: =SUM(K17:K56) -> 0 | L57: =SUM(L17:L56) -> -23231005.48 | M57: =SUM(M17:M56) -> 38397376.52
C58: Less Socialized Renewable Energy Generation Investments (input as negative) | G58: =D58+E58+F58 -> 0 | L58: =I58+J58+K58 -> 0 | M58: =G58+L58 -> 0
C59: Less Other Non Rate-Regulated Utility Assets (input as negative) | G59: 0 | L59: 0 | M59: 0
C60: Total PP&E | D60: =SUM(D57:D59) -> 51414621 | E60: =SUM(E57:E59) -> 10213761 | F60: 0 | G60: 61628382 | I60: =SUM(I57:I59) -> -21159703.55 | J60: -2071301.935 | K60: 0 | L60: -23231005.48 | M60: 38397376.52
C61: Depreciation Expense adj. from gain or loss on the retirement of assets (pool of like assets), if applicable6
C62: Total | J62: =J60+J61 -> -2071301.935
I64: Less: Fully Allocated Depreciation
A65: 10 | C65: Transportation | I65: Transportation
A66: 8 | C66: Stores Equipment | I66: Stores Equipment
I67: Net Depreciation | K67: =J62-K65-K66 -> -2071301.935
E69: Accounting Standard | F69: CGAAP
E70: Year | F70: 2013
D72: Cost | I72: Accumulated Depreciation
A73: CCA Class 2 | B73: OEB Account 3 | C73: Description 3 | D73: Opening Balance | E73: Additions 4 | F73: Disposals | G73: Closing Balance | I73: Opening Balance | J73: Additions | K73: Disposals | L73: Closing Balance | M73: Net Book Value
A74: 12 | B74: 1611 | C74: Computer Software (Formally known as Account 1925) | D74: 1426105 | E74: 156819.3 | G74: =D74+E74+F74 -> 1582924.3 | I74: -1346012.14 | J74: -179414.745 | L74: =I74+J74+K74 -> -1525426.885 | M74: =G74+L74 -> 57497.415
A75: CEC | B75: 1612 | C75: Land Rights (Formally known as Account 1906) | D75: 4738.32 | E75: 0 | G75: =D75+E75+F75 -> 4738.32 | I75: 0 | J75: 0 | L75: =I75+J75+K75 -> 0 | M75: =G75+L75 -> 4738.32
A76: N/A | B76: 1805 | C76: Land | D76: 591340.8 | E76: 250.25 | G76: =D76+E76+F76 -> 591591.05 | I76: 0 | J76: 0 | L76: =I76+J76+K76 -> 0 | M76: =G76+L76 -> 591591.05
A77: 47 | B77: 1808 | C77: Buildings | D77: 0 | G77: =D77+E77+F77 -> 0 | I77: 0 | L77: =I77+J77+K77 -> 0 | M77: =G77+L77 -> 0
A78: 13 | B78: 1810 | C78: Leasehold Improvements | D78: 0 | E78: 0 | G78: 0 | I78: 0 | J78: 0 | L78: 0 | M78: 0
A79: 47 | B79: 1815 | C79: Transformer Station Equipment >50 kV | D79: 0 | E79: 0 | G79: 0 | I79: 0 | J79: 0 | L79: 0 | M79: 0
A80: 47 | B80: 1820 | C80: Distribution Station Equipment <50 kV | D80: 5713605.806 | E80: 0 | G80: 5713605.806 | I80: -1206327.659 | J80: -91164.51359 | L80: -1297492.172 | M80: 4416113.633
A81: 47 | B81: 1825 | C81: Storage Battery Equipment | D81: 0 | E81: 0 | G81: 0 | I81: 0 | J81: 0 | L81: 0 | M81: 0
A82: 47 | B82: 1830 | C82: Poles, Towers & Fixtures | D82: 19075258.74 | E82: 3191692.97 | G82: 22266951.71 | I82: -13111893.75 | J82: -293106.5031 | L82: -13405000.25 | M82: 8861951.455
A83: 47 | B83: 1835 | C83: Overhead Conductors & Devices | D83: 6929754.911 | E83: 1079884.78 | G83: 8009639.691 | I83: -932218.5833 | J83: -187414.5231 | L83: -1119633.106 | M83: 6890006.584
A84: 47 | B84: 1840 | C84: Underground Conduit | D84: 1077675.586 | E84: 73112.16 | G84: 1150787.746 | I84: -119163.4149 | J84: -21654.96832 | L84: -140818.3832 | M84: 1009969.362
A85: 47 | B85: 1845 | C85: Underground Conductors & Devices | D85: 6524392.773 | E85: 619153.56 | G85: 7143546.333 | I85: -824972.3311 | J85: -246926.4738 | L85: -1071898.805 | M85: 6071647.528
A86: 47 | B86: 1850 | C86: Line Transformers | D86: 8037728.587 | E86: 694252.5 | G86: 8731981.087 | I86: -1011430.124 | J86: -232733.909 | L86: -1244164.033 | M86: 7487817.054
A87: 47 | B87: 1855 | C87: Services (Overhead & Underground) | D87: 3032052.146 | E87: 22488.7 | G87: 3054540.846 | I87: -418500 | J87: 0 | L87: -418500 | M87: 2636040.846
A88: 47 | B88: 1860 | C88: Meters | D88: 4969691.777 | E88: 339265.01 | G88: 5308956.787 | I88: -467465.03 | J88: -159420.7377 | L88: -626885.7677 | M88: 4682071.02
A89: 47 | B89: 1860 | C89: Meters (Smart Meters) | D89: 0 | G89: 0 | I89: 0 | L89: 0 | M89: 0
A90: N/A | B90: 1905 | C90: Land | D90: 0 | E90: 0 | G90: 0 | I90: 0 | J90: 0 | L90: 0 | M90: 0
A91: 47 | B91: 1908 | C91: Buildings & Fixtures | D91: 3590613.955 | E91: 0 | G91: 3590613.955 | I91: -755129.7358 | J91: -82317.13048 | L91: -837446.8663 | M91: 2753167.088
A92: 13 | B92: 1910 | C92: Leasehold Improvements | D92: 0 | E92: 0 | G92: 0 | I92: 0 | J92: 0 | L92: 0 | M92: 0
A93: 8 | B93: 1915 | C93: Office Furniture & Equipment (10 years) | D93: 426778.4876 | E93: 3137.08 | G93: 429915.5676 | I93: -265778.9033 | J93: -12405.76333 | L93: -278184.6667 | M93: 151730.9009
A94: 8 | B94: 1915 | C94: Office Furniture & Equipment (5 years) | D94: 0 | G94: 0 | I94: 0 | L94: 0 | M94: 0
A95: 10 | B95: 1920 | C95: Computer Equipment - Hardware | D95: 1352790.132 | E95: 144237.24 | G95: 1497027.372 | I95: -1267868.157 | J95: -115155.4133 | L95: -1383023.57 | M95: 114003.8022
A96: 45 | B96: 1920 | C96: Computer Equip.-Hardware(Post Mar. 22/04) | D96: 0 | G96: 0 | I96: 0 | L96: 0 | M96: 0
A97: 45.1 | B97: 1920 | C97: Computer Equip.-Hardware(Post Mar. 19/07) | D97: 0 | G97: 0 | I97: 0 | L97: 0 | M97: 0
A98: 10 | B98: 1930 | C98: Transportation Equipment | D98: 2760303.666 | E98: 67746.47 | G98: 2828050.136 | I98: -1665450.122 | J98: -159508.9242 | L98: -1824959.046 | M98: 1003091.091
A99: 8 | B99: 1935 | C99: Stores Equipment | D99: 59018.38933 | E99: 0 | G99: 59018.38933 | I99: -52043.13 | J99: 0 | L99: -52043.13 | M99: 6975.259333
A100: 8 | B100: 1940 | C100: Tools, Shop & Garage Equipment | D100: 649237.3706 | E100: 48101.36 | G100: 697338.7306 | I100: -402141.6521 | J100: -54524.29308 | L100: -456665.9452 | M100: 240672.7855
A101: 8 | B101: 1945 | C101: Measurement & Testing Equipment | D101: 0 | E101: 0 | G101: 0 | I101: 0 | J101: 0 | L101: 0 | M101: 0
A102: 8 | B102: 1950 | C102: Power Operated Equipment | D102: 0 | E102: 0 | G102: 0 | I102: 0 | J102: 0 | L102: 0 | M102: 0
A103: 8 | B103: 1955 | C103: Communications Equipment | D103: 0 | E103: 0 | G103: 0 | I103: -58132.331 | J103: -4634.452 | L103: -62766.783 | M103: -62766.783
A104: 8 | B104: 1955 | C104: Communication Equipment (Smart Meters) | D104: 0 | G104: 0 | I104: 0 | L104: 0 | M104: 0
A105: 8 | B105: 1960 | C105: Miscellaneous Equipment | D105: 0 | E105: 0 | G105: 0 | I105: 0 | J105: 0 | L105: 0 | M105: 0
A106: 47 | B106: 1970 | C106: Load Management Controls Customer Premises | D106: 633035.4919 | E106: 101159.63 | G106: 734195.1219 | I106: -298141.02 | J106: 0 | L106: -298141.02 | M106: 436054.1019
A107: 47 | B107: 1975 | C107: Load Management Controls Utility Premises | D107: 0 | E107: 0 | G107: 0 | I107: 0 | J107: 0 | L107: 0 | M107: 0
A108: 47 | B108: 1980 | C108: System Supervisor Equipment | D108: 1120703.89 | E108: 16538.46 | G108: 1137242.35 | I108: -425242.32 | J108: -47810.9565 | L108: -473053.2765 | M108: 664189.0733
A109: 47 | B109: 1985 | C109: Miscellaneous Fixed Assets | D109: 0 | E109: 0 | G109: 0 | I109: 0 | J109: 0 | L109: 0 | M109: 0
A110: 47 | B110: 1990 | C110: Other Tangible Property | D110: 0 | E110: 0 | G110: 0 | I110: 0 | J110: 0 | L110: 0 | M110: 0
A111: 47 | B111: 1995 | C111: Contributions & Grants | D111: -6346444.51 | E111: -907622.53 | G111: -7254067.04 | I111: 1396904.919 | J111: 165679.7513 | L111: 1562584.67 | M111: -5691482.37
A112: 47 | B112: 2440 | C112: Deferred Revenue5 | D112: 0 | I112: 0
D113: 0 | G113: =D113+E113+F113 -> 0 | I113: 0 | L113: =I113+J113+K113 -> 0 | M113: =G113+L113 -> 0
C114: Sub-Total | D114: =SUM(D74:D113) -> 61628381.32 | E114: =SUM(E74:E113) -> 5650216.94 | F114: =SUM(F74:F113) -> 0 | G114: =SUM(G74:G113) -> 67278598.26 | I114: =SUM(I74:I113) -> -23231005.48 | J114: =SUM(J74:J113) -> -1722513.555 | K114: =SUM(K74:K113) -> 0 | L114: =SUM(L74:L113) -> -24953519.04 | M114: =SUM(M74:M113) -> 42325079.22
C115: Less Socialized Renewable Energy Generation Investments (input as negative) | G115: =D115+E115+F115 -> 0 | L115: =I115+J115+K115 -> 0 | M115: =G115+L115 -> 0
C116: Less Other Non Rate-Regulated Utility Assets (input as negative) | G116: 0 | L116: 0 | M116: 0
C117: Total PP&E | D117: =SUM(D114:D116) -> 61628381.32 | E117: =SUM(E114:E116) -> 5650216.94 | F117: 0 | G117: 67278598.26 | I117: =SUM(I114:I116) -> -23231005.48 | J117: -1722513.555 | K117: 0 | L117: -24953519.04 | M117: 42325079.22
C118: Depreciation Expense adj. from gain or loss on the retirement of assets (pool of like assets), if applicable6
C119: Total | J119: =J117+J118 -> -1722513.555
I121: Less: Fully Allocated Depreciation
A122: 10 | C122: Transportation | I122: Transportation
A123: 8 | C123: Stores Equipment | I123: Stores Equipment
I124: Net Depreciation | K124: =J119-K122-K123 -> -1722513.555
E126: Accounting Standard | F126: CGAAP
E127: Year | F127: 2014
D129: Cost | I129: Accumulated Depreciation
A130: CCA Class 2 | B130: OEB Account 3 | C130: Description 3 | D130: Opening Balance | E130: Additions 4 | F130: Disposals | G130: Closing Balance | I130: Opening Balance | J130: Additions | K130: Disposals | L130: Closing Balance | M130: Net Book Value
A131: 12 | B131: 1611 | C131: Computer Software (Formally known as Account 1925) | D131: 1582924.3 | E131: 772756 | G131: =D131+E131+F131 -> 2355680.3 | I131: -1525426.885 | J131: -232947.86 | L131: =I131+J131+K131 -> -1758374.745 | M131: =G131+L131 -> 597305.555
A132: CEC | B132: 1612 | C132: Land Rights (Formally known as Account 1906) | D132: 4738.32 | E132: 0 | G132: =D132+E132+F132 -> 4738.32 | I132: 0 | J132: 0 | L132: =I132+J132+K132 -> 0 | M132: =G132+L132 -> 4738.32
A133: N/A | B133: 1805 | C133: Land | D133: 591591.05 | E133: 0 | G133: =D133+E133+F133 -> 591591.05 | I133: 0 | J133: 0 | L133: =I133+J133+K133 -> 0 | M133: =G133+L133 -> 591591.05
A134: 47 | B134: 1808 | C134: Buildings | D134: 0 | G134: =D134+E134+F134 -> 0 | I134: 0 | L134: =I134+J134+K134 -> 0 | M134: =G134+L134 -> 0
A135: 13 | B135: 1810 | C135: Leasehold Improvements | D135: 0 | E135: 0 | G135: 0 | I135: 0 | J135: 0 | L135: 0 | M135: 0
A136: 47 | B136: 1815 | C136: Transformer Station Equipment >50 kV | D136: 0 | E136: 0 | G136: 0 | I136: 0 | J136: 0 | L136: 0 | M136: 0
A137: 47 | B137: 1820 | C137: Distribution Station Equipment <50 kV | D137: 5713605.806 | E137: 40421.88 | G137: 5754027.686 | I137: -1297492.172 | J137: -78714.48 | L137: -1376206.652 | M137: 4377821.033
A138: 47 | B138: 1825 | C138: Storage Battery Equipment | D138: 0 | E138: 0 | G138: 0 | I138: 0 | J138: 0 | L138: 0 | M138: 0
A139: 47 | B139: 1830 | C139: Poles, Towers & Fixtures | D139: 22266951.71 | E139: 4605229 | G139: 26872180.71 | I139: -13405000.25 | J139: -370687.64 | L139: -13775687.89 | M139: 13096492.82
A140: 47 | B140: 1835 | C140: Overhead Conductors & Devices | D140: 8009639.691 | E140: 688985.09 | G140: 8698624.781 | I140: -1119633.106 | J140: -200127.96 | L140: -1319761.066 | M140: 7378863.714
A141: 47 | B141: 1840 | C141: Underground Conduit | D141: 1150787.746 | E141: 40463.1 | G141: 1191250.846 | I141: -140818.3832 | J141: -22917.69 | L141: -163736.0732 | M141: 1027514.772
A142: 47 | B142: 1845 | C142: Underground Conductors & Devices | D142: 7143546.333 | E142: 1048666.59 | G142: 8192212.923 | I142: -1071898.805 | J142: -266116.21 | L142: -1338015.015 | M142: 6854197.908
A143: 47 | B143: 1850 | C143: Line Transformers | D143: 8731981.087 | E143: 1703293.9 | G143: 10435274.99 | I143: -1244164.033 | J143: -238025.81 | L143: -1482189.843 | M143: 8953085.144
A144: 47 | B144: 1855 | C144: Services (Overhead & Underground) | D144: 3054540.846 | E144: 0 | G144: 3054540.846 | I144: -418500 | J144: 0 | L144: -418500 | M144: 2636040.846
A145: 47 | B145: 1860 | C145: Meters | D145: 5308956.787 | E145: 81418.51 | G145: 5390375.297 | I145: -626885.7677 | J145: -167243.02 | L145: -794128.7877 | M145: 4596246.51
A146: 47 | B146: 1860 | C146: Meters (Smart Meters) | D146: 0 | G146: 0 | I146: 0 | L146: 0 | M146: 0
A147: N/A | B147: 1905 | C147: Land | D147: 0 | E147: 0 | G147: 0 | I147: 0 | J147: 0 | L147: 0 | M147: 0
A148: 47 | B148: 1908 | C148: Buildings & Fixtures | D148: 3590613.955 | E148: 43441.68 | G148: 3634055.635 | I148: -837446.8663 | J148: -80997.57 | L148: -918444.4363 | M148: 2715611.198
A149: 13 | B149: 1910 | C149: Leasehold Improvements | D149: 0 | E149: 0 | G149: 0 | I149: 0 | J149: 0 | L149: 0 | M149: 0
A150: 8 | B150: 1915 | C150: Office Furniture & Equipment (10 years) | D150: 429915.5676 | E150: 1040 | G150: 430955.5676 | I150: -278184.6667 | J150: -40381.34 | L150: -318566.0067 | M150: 112389.5609
A151: 8 | B151: 1915 | C151: Office Furniture & Equipment (5 years) | D151: 0 | G151: 0 | I151: 0 | L151: 0 | M151: 0
A152: 10 | B152: 1920 | C152: Computer Equipment - Hardware | D152: 1497027.372 | E152: 46161.92 | G152: 1543189.292 | I152: -1383023.57 | J152: -35621.47 | L152: -1418645.04 | M152: 124544.2522
A153: 45 | B153: 1920 | C153: Computer Equip.-Hardware(Post Mar. 22/04) | D153: 0 | G153: 0 | I153: 0 | L153: 0 | M153: 0
A154: 45.1 | B154: 1920 | C154: Computer Equip.-Hardware(Post Mar. 19/07) | D154: 0 | G154: 0 | I154: 0 | L154: 0 | M154: 0
A155: 10 | B155: 1930 | C155: Transportation Equipment | D155: 2828050.136 | E155: 385210.61 | G155: 3213260.746 | I155: -1824959.046 | J155: -131338.93 | L155: -1956297.976 | M155: 1256962.771
A156: 8 | B156: 1935 | C156: Stores Equipment | D156: 59018.38933 | E156: 0 | G156: 59018.38933 | I156: -52043.13 | J156: 0 | L156: -52043.13 | M156: 6975.259333
A157: 8 | B157: 1940 | C157: Tools, Shop & Garage Equipment | D157: 697338.7306 | E157: 23530.07 | G157: 720868.8006 | I157: -456665.9452 | J157: -37616.41 | L157: -494282.3552 | M157: 226586.4455
A158: 8 | B158: 1945 | C158: Measurement & Testing Equipment | D158: 0 | E158: 0 | G158: 0 | I158: 0 | J158: 0 | L158: 0 | M158: 0
A159: 8 | B159: 1950 | C159: Power Operated Equipment | D159: 0 | E159: 0 | G159: 0 | I159: 0 | J159: 0 | L159: 0 | M159: 0
A160: 8 | B160: 1955 | C160: Communications Equipment | D160: 0 | E160: 2477.19 | G160: 2477.19 | I160: -62766.783 | J160: -2575.87 | L160: -65342.653 | M160: -62865.463
A161: 8 | B161: 1955 | C161: Communication Equipment (Smart Meters) | D161: 0 | G161: 0 | I161: 0 | L161: 0 | M161: 0
A162: 8 | B162: 1960 | C162: Miscellaneous Equipment | D162: 0 | E162: 0 | G162: 0 | I162: 0 | J162: 0 | L162: 0 | M162: 0
A163: 47 | B163: 1970 | C163: Load Management Controls Customer Premises | D163: 734195.1219 | E163: 0 | G163: 734195.1219 | I163: -298141.02 | J163: 0 | L163: -298141.02 | M163: 436054.1019
A164: 47 | B164: 1975 | C164: Load Management Controls Utility Premises | D164: 0 | E164: 0 | G164: 0 | I164: 0 | J164: 0 | L164: 0 | M164: 0
A165: 47 | B165: 1980 | C165: System Supervisor Equipment | D165: 1137242.35 | E165: 2806.23 | G165: 1140048.58 | I165: -473053.2765 | J165: -45158.33 | L165: -518211.6065 | M165: 621836.9733
A166: 47 | B166: 1985 | C166: Miscellaneous Fixed Assets | D166: 0 | E166: 0 | G166: 0 | I166: 0 | J166: 0 | L166: 0 | M166: 0
A167: 47 | B167: 1990 | C167: Other Tangible Property | D167: 0 | E167: 0 | G167: 0 | I167: 0 | J167: 0 | L167: 0 | M167: 0
A168: 47 | B168: 1995 | C168: Contributions & Grants | D168: -7254067.04 | E168: -1195066 | G168: -8449133.04 | I168: 1562584.67 | J168: 190487.28 | L168: 1753071.95 | M168: -6696061.09
A169: 47 | B169: 2440 | C169: Deferred Revenue5 | D169: 0 | I169: 0
D170: 0 | G170: =D170+E170+F170 -> 0 | I170: 0 | L170: =I170+J170+K170 -> 0 | M170: =G170+L170 -> 0
C171: Sub-Total | D171: =SUM(D131:D170) -> 67278598.26 | E171: =SUM(E131:E170) -> 8290835.77 | F171: =SUM(F131:F170) -> 0 | G171: =SUM(G131:G170) -> 75569434.03 | I171: =SUM(I131:I170) -> -24953519.04 | J171: =SUM(J131:J170) -> -1759983.31 | K171: =SUM(K131:K170) -> 0 | L171: =SUM(L131:L170) -> -26713502.35 | M171: =SUM(M131:M170) -> 48855931.68
C172: Less Socialized Renewable Energy Generation Investments (input as negative) | G172: =D172+E172+F172 -> 0 | L172: =I172+J172+K172 -> 0 | M172: =G172+L172 -> 0
C173: Less Other Non Rate-Regulated Utility Assets (input as negative) | G173: 0 | L173: 0 | M173: 0
C174: Total PP&E | D174: =SUM(D171:D173) -> 67278598.26 | E174: =SUM(E171:E173) -> 8290835.77 | F174: 0 | G174: 75569434.03 | I174: =SUM(I171:I173) -> -24953519.04 | J174: -1759983.31 | K174: 0 | L174: -26713502.35 | M174: 48855931.68
C175: Depreciation Expense adj. from gain or loss on the retirement of assets (pool of like assets), if applicable6
C176: Total | J176: =J174+J175 -> -1759983.31
I178: Less: Fully Allocated Depreciation
A179: 10 | C179: Transportation | I179: Transportation
A180: 8 | C180: Stores Equipment | I180: Stores Equipment
I181: Net Depreciation | K181: =J176-K179-K180 -> -1759983.31
E183: Accounting Standard | F183: MIFRS
E184: Year | F184: 2015 - Bridge Year
D186: Cost | I186: Accumulated Depreciation
A187: CCA Class 2 | B187: OEB Account 3 | C187: Description 3 | D187: Opening Balance | E187: Additions 4 | F187: Disposals | G187: Closing Balance | I187: Opening Balance | J187: Additions | K187: Disposals | L187: Closing Balance | M187: Net Book Value
A188: 12 | B188: 1611 | C188: Computer Software (Formally known as Account 1925) | D188: 2355680.3 | E188: 85500 | G188: =D188+E188+F188 -> 2441180.3 | I188: -1758374.745 | J188: -648404.49 | L188: =I188+J188+K188 -> -2406779.235 | M188: =G188+L188 -> 34401.065
A189: CEC | B189: 1612 | C189: Land Rights (Formally known as Account 1906) | D189: 4738.32 | E189: 0 | G189: =D189+E189+F189 -> 4738.32 | I189: 0 | J189: 0 | L189: =I189+J189+K189 -> 0 | M189: =G189+L189 -> 4738.32
A190: N/A | B190: 1805 | C190: Land | D190: 591591.05 | E190: 933000 | G190: =D190+E190+F190 -> 1524591.05 | I190: 0 | J190: 0 | L190: =I190+J190+K190 -> 0 | M190: =G190+L190 -> 1524591.05
A191: 47 | B191: 1808 | C191: Buildings | D191: 0 | G191: =D191+E191+F191 -> 0 | I191: 0 | L191: =I191+J191+K191 -> 0 | M191: =G191+L191 -> 0
A192: 13 | B192: 1810 | C192: Leasehold Improvements | D192: 0 | E192: 0 | G192: 0 | I192: 0 | J192: 0 | L192: 0 | M192: 0
A193: 47 | B193: 1815 | C193: Transformer Station Equipment >50 kV | D193: 0 | E193: 0 | G193: 0 | I193: 0 | J193: 0 | L193: 0 | M193: 0
A194: 47 | B194: 1820 | C194: Distribution Station Equipment <50 kV | D194: 5754027.686 | E194: 267445.08 | G194: 6021472.766 | I194: -1376206.652 | J194: -61227.7265 | L194: -1437434.379 | M194: 4584038.387
A195: 47 | B195: 1825 | C195: Storage Battery Equipment | D195: 0 | E195: 0 | G195: 0 | I195: 0 | J195: 0 | L195: 0 | M195: 0
A196: 47 | B196: 1830 | C196: Poles, Towers & Fixtures | D196: 26872180.71 | E196: 2877676 | G196: 29749856.71 | I196: -13775687.89 | J196: -419333.2848 | L196: -14195021.18 | M196: 15554835.53
A197: 47 | B197: 1835 | C197: Overhead Conductors & Devices | D197: 8698624.781 | E197: 1223235 | G197: 9921859.781 | I197: -1319761.066 | J197: -210006.1891 | L197: -1529767.256 | M197: 8392092.525
A198: 47 | B198: 1840 | C198: Underground Conduit | D198: 1191250.846 | E198: 364390 | G198: 1555640.846 | I198: -163736.0732 | J198: -24713.8596 | L198: -188449.9328 | M198: 1367190.913
A199: 47 | B199: 1845 | C199: Underground Conductors & Devices | D199: 8192212.923 | E199: 498591 | G199: 8690803.923 | I199: -1338015.015 | J199: -286513.0041 | L199: -1624528.019 | M199: 7066275.904
A200: 47 | B200: 1850 | C200: Line Transformers | D200: 10435274.99 | E200: 794064 | G200: 11229338.99 | I200: -1482189.843 | J200: -256704.4805 | L200: -1738894.323 | M200: 9490444.664
A201: 47 | B201: 1855 | C201: Services (Overhead & Underground) | D201: 3054540.846 | E201: 342263 | G201: 3396803.846 | I201: -418500 | J201: -4278.2875 | L201: -422778.2875 | M201: 2974025.558
A202: 47 | B202: 1860 | C202: Meters | D202: 5390375.297 | E202: 343186 | G202: 5733561.297 | I202: -794128.7877 | J202: -154834.6175 | L202: -948963.4052 | M202: 4784597.892
A203: 47 | B203: 1860 | C203: Meters (Smart Meters) | D203: 0 | G203: 0 | I203: 0 | L203: 0 | M203: 0
A204: N/A | B204: 1905 | C204: Land | D204: 0 | E204: 0 | G204: 0 | I204: 0 | J204: 0 | L204: 0 | M204: 0
A205: 47 | B205: 1908 | C205: Buildings & Fixtures | D205: 3634055.635 | E205: 150000 | G205: 3784055.635 | I205: -918444.4363 | J205: -65813.22643 | L205: -984257.6627 | M205: 2799797.972
A206: 13 | B206: 1910 | C206: Leasehold Improvements | D206: 0 | E206: 0 | G206: 0 | I206: 0 | J206: 0 | L206: 0 | M206: 0
A207: 8 | B207: 1915 | C207: Office Furniture & Equipment (10 years) | D207: 430955.5676 | E207: 51136 | G207: 482091.5676 | I207: -318566.0067 | J207: -30331.524 | L207: -348897.5307 | M207: 133194.0369
A208: 8 | B208: 1915 | C208: Office Furniture & Equipment (5 years) | D208: 0 | G208: 0 | I208: 0 | L208: 0 | M208: 0
A209: 10 | B209: 1920 | C209: Computer Equipment - Hardware | D209: 1543189.292 | E209: 121500 | G209: 1664689.292 | I209: -1418645.04 | J209: -178182.41 | L209: -1596827.45 | M209: 67861.84216
A210: 45 | B210: 1920 | C210: Computer Equip.-Hardware(Post Mar. 22/04) | D210: 0 | G210: 0 | I210: 0 | L210: 0 | M210: 0
A211: 45.1 | B211: 1920 | C211: Computer Equip.-Hardware(Post Mar. 19/07) | D211: 0 | G211: 0 | I211: 0 | L211: 0 | M211: 0
A212: 10 | B212: 1930 | C212: Transportation Equipment | D212: 3213260.746 | E212: 329000 | G212: 3542260.746 | I212: -1956297.976 | J212: -153829.8925 | L212: -2110127.868 | M212: 1432132.878
A213: 8 | B213: 1935 | C213: Stores Equipment | D213: 59018.38933 | E213: 0 | G213: 59018.38933 | I213: -52043.13 | J213: 0 | L213: -52043.13 | M213: 6975.259333
... 85 more rows

Sheet Appendix 2-BB Service Life
M1: File Number: | O1: EB-2015-0074
M2: Exhibit:
M3: Tab:
M4: Schedule:
M5: Page:
M7: Date:
A9: Appendix 2-BB
A10: Service Life Comparison
A11: Table F-1 from Kinetrics Report1
C15: Asset Details | F15: Useful Life | J15: USoA Account Number | K15: USoA Account Description | L15: Current | N15: Proposed | P15: Outside Range of Min, Max TUL?
A16: Parent* | B16: # | C16: Category| Component | Type | F16: MIN UL | G16: TUL | H16: MAX UL | L16: Years | M16: Rate | N16: Years | O16: Rate | P16: Below Min TUL | Q16: Above Max TUL
A17: OH | B17: 1 | C17: Fully Dressed Wood Poles | D17: Overall | F17: 35 | G17: 45 | H17: 75 | M17: =IF(ISERROR(1/L17), "", 1/L17) ->  | O17: =IF(ISERROR(1/N17), "", 1/N17) ->  | P17: =IF(ISBLANK(N17),"",IF(N17<F17,"Yes","No")) ->  | Q17: =IF(ISBLANK(N17),"",IF(N17>H17,"Yes","No")) -> 
D18: Cross Arm | E18: Wood | F18: 20 | G18: 40 | H18: 55 | M18: =IF(ISERROR(1/L18), "", 1/L18) ->  | O18: =IF(ISERROR(1/N18), "", 1/N18) ->  | P18: =IF(ISBLANK(N18),"",IF(N18<F18,"Yes","No")) ->  | Q18: =IF(ISBLANK(N18),"",IF(N18>H18,"Yes","No")) -> 
E19: Steel | F19: 30 | G19: 70 | H19: 95
B20: 2 | C20: Fully Dressed Concrete Poles | D20: Overall | F20: 50 | G20: 60 | H20: 80
D21: Cross Arm | E21: Wood | F21: 20 | G21: 40 | H21: 55
E22: Steel | F22: 30 | G22: 70 | H22: 95
B23: 3 | C23: Fully Dressed Steel Poles | D23: Overall | F23: 60 | G23: 60 | H23: 80
D24: Cross Arm | E24: Wood | F24: 20 | G24: 40 | H24: 55
E25: Steel | F25: 30 | G25: 70 | H25: 95
B26: 4 | C26: OH Line Switch | F26: 30 | G26: 45 | H26: 55
B27: 5 | C27: OH Line Switch Motor | F27: 15 | G27: 25 | H27: 25
B28: 6 | C28: OH Line Switch RTU | F28: 15 | G28: 20 | H28: 20
B29: 7 | C29: OH Integral Switches | F29: 35 | G29: 45 | H29: 60
B30: 8 | C30: OH Conductors | F30: 50 | G30: 60 | H30: 75
B31: 9 | C31: OH Transformers & Voltage Regulators | F31: 30 | G31: 40 | H31: 60
B32: 10 | C32: OH Shunt Capacitor Banks | F32: 25 | G32: 30 | H32: 40
B33: 11 | C33: Reclosers | F33: 25 | G33: 40 | H33: 55
A34: TS & MS | B34: 12 | C34: Power Transformers | D34: Overall | F34: 30 | G34: 45 | H34: 60
D35: Bushing | F35: 10 | G35: 20 | H35: 30
D36: Tap Changer | F36: 20 | G36: 30 | H36: 60
B37: 13 | C37: Station Service Transformer | F37: 30 | G37: 45 | H37: 55
B38: 14 | C38: Station Grounding Transformer | F38: 30 | G38: 40 | H38: 40
B39: 15 | C39: Station DC System | D39: Overall | F39: 10 | G39: 20 | H39: 30
D40: Battery Bank | F40: 10 | G40: 15 | H40: 15
D41: Charger | F41: 20 | G41: 20 | H41: 30
B42: 16 | C42: Station Metal Clad Switchgear | D42: Overall | F42: 30 | G42: 40 | H42: 60
D43: Removable Breaker | F43: 25 | G43: 40 | H43: 60
B44: 17 | C44: Station Independent Breakers | F44: 35 | G44: 45 | H44: 65
B45: 18 | C45: Station Switch | F45: 30 | G45: 50 | H45: 60
B46: 19 | C46: Electromechanical Relays | F46: 25 | G46: 35 | H46: 50
B47: 20 | C47: Solid State Relays | F47: 10 | G47: 30 | H47: 45
B48: 21 | C48: Digital & Numeric Relays | F48: 15 | G48: 20 | H48: 20
B49: 22 | C49: Rigid Busbars | F49: 30 | G49: 55 | H49: 60
B50: 23 | C50: Steel Structure | F50: 35 | G50: 50 | H50: 90
A51: UG | B51: 24 | C51: Primary Paper Insulated Lead Covered (PILC) Cables | F51: 60 | G51: 65 | H51: 75
B52: 25 | C52: Primary Ethylene-Propylene Rubber (EPR) Cables | F52: 20 | G52: 25 | H52: 25
B53: 26 | C53: Primary Non-Tree Retardant (TR) Cross Linked Polyethylene (XLPE) Cables Direct Buried | F53: 20 | G53: 25 | H53: 30
B54: 27 | C54: Primary Non-TR XLPE Cables in Duct | F54: 20 | G54: 25 | H54: 30
B55: 30 | C55: Secondary PILC Cables | F55: 70 | G55: 75 | H55: 80
B56: 31 | C56: Secondary Cables Direct Buried | F56: 25 | G56: 35 | H56: 40
B57: 32 | C57: Secondary Cables in Duct | F57: 35 | G57: 40 | H57: 60
B58: 33 | C58: Network Tranformers | D58: Overall | F58: 20 | G58: 35 | H58: 50
D59: Protector | F59: 20 | G59: 35 | H59: 40
B60: 34 | C60: Pad-Mounted Transformers | F60: 25 | G60: 40 | H60: 45
B61: 35 | C61: Submersible/Vault Transformers | F61: 25 | G61: 35 | H61: 45
B62: 36 | C62: UG Foundation | F62: 35 | G62: 55 | H62: 70
B63: 37 | C63: UG Vaults | D63: Overall | F63: 40 | G63: 60 | H63: 80
D64: Roof | F64: 20 | G64: 30 | H64: 45
B65: 38 | C65: UG Vault Switches | F65: 20 | G65: 35 | H65: 50
B66: 39 | C66: Pad-Mounted Switchgear | F66: 20 | G66: 30 | H66: 45
B67: 40 | C67: Ducts | F67: 30 | G67: 50 | H67: 85
B68: 41 | C68: Concrete Encased Duct Banks | F68: 35 | G68: 55 | H68: 80
B69: 42 | C69: Cable Chambers | F69: 50 | G69: 60 | H69: 80
A70: S | B70: 43 | C70: Remote SCADA | F70: 15 | G70: 20 | H70: 30
A73: Table F-2 from Kinetrics Report1
C75: Asset Details | F75: Useful Life Range | J75: USoA Account Number | K75: USoA Account Description | L75: Current | N75: Proposed | P75: Outside Range of Min, Max TUL?
B76: # | C76: Category| Component | Type | L76: Years | M76: Rate | N76: Years | O76: Rate | P76: Below Min Range | Q76: Above Max Range
B77: 1 | C77: Office Equipment | F77: 5 | G77: 15 | M77: =IF(ISERROR(1/L77), "", 1/L77) ->  | O77: =IF(ISERROR(1/N77), "", 1/N77) ->  | P77: =IF(ISBLANK(N77),"",IF(N77<F77,"Yes","No")) ->  | Q77: =IF(ISBLANK(N77),"",IF(N77>G77,"Yes","No")) -> 
B78: 2 | C78: Vehicles | D78: Trucks & Buckets | F78: 5 | G78: 15 | M78: =IF(ISERROR(1/L78), "", 1/L78) ->  | O78: =IF(ISERROR(1/N78), "", 1/N78) ->  | P78: =IF(ISBLANK(N78),"",IF(N78<F78,"Yes","No")) ->  | Q78: =IF(ISBLANK(N78),"",IF(N78>G78,"Yes","No")) -> 
D79: Trailers | F79: 5 | G79: 20
D80: Vans | F80: 5 | G80: 10
B81: 3 | C81: Administrative Buildings | F81: 50 | G81: 75
B82: 4 | C82: Leasehold Improvements | F82: Lease dependent
B83: 5 | C83: Station Buildings | D83: Station Buildings | F83: 50 | G83: 75
D84: Parking | F84: 25 | G84: 30
D85: Fence | F85: 25 | G85: 60
D86: Roof | F86: 20 | G86: 30
B87: 6 | C87: Computer Equipment | D87: Hardware | F87: 3 | G87: 5
D88: Software | F88: 2 | G88: 5
B89: 7 | C89: Equipment | D89: Power Operated | F89: 5 | G89: 10
D90: Stores | F90: 5 | G90: 10
D91: Tools, Shop, Garage Equipment | F91: 5 | G91: 10
D92: Measurement & Testing Equipment | F92: 5 | G92: 10
B93: 8 | C93: Communication | D93: Towers | F93: 60 | G93: 70
D94: Wireless | F94: 2 | G94: 10
B95: 9 | C95: Residential Energy Meters | F95: 25 | G95: 35
B96: 10 | C96: Industrial/Commercial Energy Meters | F96: 25 | G96: 35
B97: 11 | C97: Wholesale Energy Meters | F97: 15 | G97: 30
B98: 12 | C98: Current & Potential Transformer (CT & PT) | F98: 35 | G98: 50
B99: 13 | C99: Smart Meters | F99: 5 | G99: 15
B100: 14 | C100: Repeaters - Smart Metering | F100: 10 | G100: 15
B101: 15 | C101: Data Collectors - Smart Metering | F101: 15 | G101: 20
A104: * TS & MS = Transformer and Municipal Stations UG = Underground Systems S = Monitoring and Control Systems
A106: Note 1: | B106: Tables F-1 and F-2 above are to be used as a reference in order to complete columns J, K, L and N.
B107: See pages 17-19 of Kinetrics Report

Sheet App.2-CA_OldCGAAP_DepExp_2012
K1: File Number: | L1: =EBNUMBER -> EB-2015-0074
K2: Exhibit:
K3: Tab:
K4: Schedule:
K5: Page:
K7: Date:
A9: Appendix 2-CA
A10: Depreciation and Amortization Expense
B11: Assumes the applicant made capitalization and depreciation expense accounting policy changes under CGAAP effective January 1, 2012 and has adopted IFRS for financial reporting purposes effective January 1, 2015.
C13: Year | D13: 2012 | E13: Former CGAAP
A15: Account | B15: Description | C15: Opening Regulatory Gross PP&E as at Jan 1, 2012 | D15: Less Fully Depreciated | E15: Net for Depreciation | F15: Additions | G15: Total for Depreciation 1 | H15: Years | I15: Depreciation Rate | J15: Depreciation Expense | K15: 2012 Depreciation Expense per Appendix 2-BA Fixed Assets, Column J (l) | L15: Variance 2
C16: (a) | D16: (b) | E16: (c) | F16: (d) | G16: (e) = (c) + ½ x (d) | H16: (f) | I16: (g) = 1 / (f) | J16: (h) = (e) / (f) | L16: (m) = (h) - (l)
A17: 1611 | B17: Computer Software (Formally known as Account 1925) | C17: 1236063 | E17: =C17-D17 -> 1236063 | F17: 190042 | G17: =E17+0.5*F17 -> 1331084 | H17: 2 | I17: =IF(H17=0,0,1/H17) -> 0.5 | J17: =IF(H17=0,0,G17/H17) -> 665542 | K17: 237178 | L17: =IF(ISERROR(+J17-K17), 0, +J17-K17) -> 428364
A18: 1612 | B18: Land Rights (Formally known as Account 1906) | C18: 4738 | E18: =C18-D18 -> 4738 | F18: 0 | G18: =E18+0.5*F18 -> 4738 | I18: 0 | J18: 0 | K18: $ - | L18: 0
A19: 1805 | B19: Land | C19: 591591 | E19: 591591 | F19: -250 | G19: 591466 | I19: 0 | J19: 0 | K19: $ - | L19: 0
A20: 1808 | B20: Buildings | C20: 3233684 | E20: 3233684 | F20: 356930 | G20: 3412149 | H20: 42 | I20: 0.02380952381 | J20: 81241.64286 | K20: 82160 | L20: -918.3571429
A21: 1810 | B21: Leasehold Improvements | C21: 0 | E21: 0 | F21: 0 | G21: 0 | I21: 0 | J21: 0 | K21: $ - | L21: 0
A22: 1815 | B22: Transformer Station Equipment >50 kV | C22: 0 | E22: 0 | F22: 0 | G22: 0 | I22: 0 | J22: 0 | K22: $ - | L22: 0
A23: 1820 | B23: Distribution Station Equipment <50 kV | C23: 5145637 | E23: 5145637 | F23: 567968 | G23: 5429621 | H23: 20 | I23: 0.05 | J23: 271481.05 | K23: 88877 | L23: 182604.05
A24: 1825 | B24: Storage Battery Equipment | C24: 0 | E24: 0 | F24: 0 | G24: 0 | I24: 0 | J24: 0 | K24: 0 | L24: 0
A25: 1830 | B25: Poles, Towers & Fixtures | C25: 17179058 | E25: 17179058 | F25: 1896201 | G25: 18127158.5 | H25: 50 | I25: 0.02 | J25: 362543.17 | K25: 230103 | L25: 132440.17
A26: 1835 | B26: Overhead Conductors & Devices | C26: 6240894 | E26: 6240894 | F26: 688861 | G26: 6585324.5 | H26: 50 | I26: 0.02 | J26: 131706.49 | K26: 170997 | L26: -39290.51
A27: 1840 | B27: Underground Conduit | C27: 970548 | E27: 970548 | F27: 107128 | G27: 1024112 | H27: 50 | I27: 0.02 | J27: 20482.24 | K27: 20488 | L27: -5.76
A28: 1845 | B28: Underground Conductors & Devices | C28: 5875827 | E28: 5875827 | F28: 648566 | G28: 6200110 | H28: 35 | I28: 0.02857142857 | J28: 177146 | K28: 217241 | L28: -40095
A29: 1850 | B29: Line Transformers | C29: 7238728 | E29: 7238728 | F29: 799001 | G29: 7638228.5 | H29: 35 | I29: 0.02857142857 | J29: 218235.1 | K29: 221002 | L29: -2766.9
A30: 1855 | B30: Services (Overhead & Underground) | C30: 2730647 | E30: 2730647 | F30: 301405 | G30: 2881349.5 | H30: 50 | I30: 0.02 | J30: 57626.99 | K30: 0 | L30: 57626.99
A31: 1860 | B31: Meters | C31: 0 | E31: 0 | F31: 0 | G31: 0 | I31: 0 | J31: 0 | K31: 0 | L31: 0
A32: 1860 | B32: Meters (Smart Meters) | C32: 1179057 | E32: 1179057 | F32: 3790635 | G32: 3074374.5 | H32: 15 | I32: 0.06666666667 | J32: 204958.3 | K32: 391136 | L32: -186177.7
A33: 1905 | B33: Land | C33: 0 | E33: 0 | F33: 0 | G33: 0 | I33: 0 | J33: 0 | K33: 0 | L33: 0
A34: 1908 | B34: Buildings & Fixtures | C34: 0 | E34: 0 | F34: 0 | G34: 0 | H34: 42 | I34: 0.02380952381 | J34: 0 | K34: 0 | L34: 0
A35: 1910 | B35: Leasehold Improvements | C35: 0 | E35: 0 | F35: 0 | G35: 0 | I35: 0 | J35: 0 | K35: 0 | L35: 0
A36: 1915 | B36: Office Furniture & Equipment (10 years) | C36: 0 | E36: 0 | F36: 0 | G36: 0 | I36: 0 | J36: 0 | K36: 0 | L36: 0
A37: 1915 | B37: Office Furniture & Equipment (5 years) | C37: 384354 | E37: 384354 | F37: 42424 | G37: 405566 | H37: 5 | I37: 0.2 | J37: 81113.2 | K37: 10290 | L37: 70823.2
A38: 1920 | B38: Computer Equipment - Hardware | C38: 1086223 | E38: 1086223 | F38: 266567 | G38: 1219506.5 | H38: 3 | I38: 0.3333333333 | J38: 406502.1667 | K38: 242839 | L38: 163663.1667
A39: 1920 | B39: Computer Equip.-Hardware(Post Mar. 22/04) | C39: 0 | E39: 0 | F39: 0 | G39: 0 | I39: 0 | J39: 0 | K39: 0 | L39: 0
A40: 1920 | B40: Computer Equip.-Hardware(Post Mar. 19/07) | C40: 0 | E40: 0 | F40: 0 | G40: 0 | I40: 0 | J40: 0 | K40: 0 | L40: 0
A41: 1930 | B41: Transportation Equipment | C41: 2485912 | E41: 2485912 | F41: 274392 | G41: 2623108 | H41: 12 | I41: 0.08333333333 | J41: 218592.3333 | K41: 184231 | L41: 34361.33333
A42: 1935 | B42: Stores Equipment | C42: 53152 | E42: 53152 | F42: 5867 | G42: 56085.5 | H42: 10 | I42: 0.1 | J42: 5608.55 | K42: 0 | L42: 5608.55
A43: 1940 | B43: Tools, Shop & Garage Equipment | C43: 584699 | E43: 584699 | F43: 64538 | G43: 616968 | H43: 10 | I43: 0.1 | J43: 61696.8 | K43: 52040 | L43: 9656.8
A44: 1945 | B44: Measurement & Testing Equipment | C44: 0 | E44: 0 | F44: 0 | G44: 0 | I44: 0 | J44: 0 | K44: 0 | L44: 0
A45: 1950 | B45: Power Operated Equipment | C45: 0 | E45: 0 | F45: 0 | G45: 0 | I45: 0 | J45: 0 | K45: 0 | L45: 0
A46: 1955 | B46: Communications Equipment | C46: 0 | E46: 0 | F46: 0 | G46: 0 | H46: 10 | I46: 0.1 | J46: 0 | K46: 51625 | L46: -51625
A47: 1955 | B47: Communication Equipment (Smart Meters) | C47: 0 | E47: 0 | F47: 0 | G47: 0 | I47: 0 | J47: 0 | K47: 0 | L47: 0
A48: 1960 | B48: Miscellaneous Equipment | C48: 0 | E48: 0 | F48: 0 | G48: 0 | I48: 0 | J48: 0 | K48: 0 | L48: 0
A49: 1970 | B49: Load Management Controls Customer Premises | C49: 570108 | E49: 570108 | F49: 62928 | G49: 601572 | H49: 10 | I49: 0.1 | J49: 60157.2 | K49: 0 | L49: 60157.2
A50: 1975 | B50: Load Management Controls Utility Premises | C50: 0 | E50: 0 | F50: 0 | G50: 0 | I50: 0 | J50: 0 | K50: 0 | L50: 0
A51: 1980 | B51: System Supervisor Equipment | C51: 1009299 | E51: 1009299 | F51: 111405 | G51: 1065001.5 | H51: 20 | I51: 0.05 | J51: 53250.075 | K51: 0 | L51: 53250.075
A52: 1985 | B52: Miscellaneous Fixed Assets | C52: 0 | E52: 0 | F52: 0 | G52: 0 | I52: 0 | J52: 0 | K52: 0 | L52: 0
A53: 1990 | B53: Other Tangible Property | C53: 0 | E53: 0 | F53: 0 | G53: 0 | I53: 0 | J53: 0 | K53: 0 | L53: 0
A54: 1995 | B54: Contributions & Grants | C54: -6385598 | E54: -6385598 | F54: 39153 | G54: -6366021.5 | H54: 50 | I54: 0.02 | J54: -127320.43 | K54: -128903 | L54: 1582.57
B55: Total | C55: =SUM(C17:C54) -> 51414621 | D55: =SUM(D17:D54) -> 0 | E55: =SUM(E17:E54) -> 51414621 | F55: =SUM(F17:F54) -> 10213761 | G55: =SUM(G17:G54) -> 56521501.5 | J55: =SUM(J17:J54) -> 2950562.878 | K55: =SUM(K17:K54) -> 2071304 | L55: =SUM(L17:L54) -> 879258.8779
A57: Notes:
A59: 1 | B59: Board policy of the "half-year" rule - the applicant must ensure that additions in the year attract a half-year depreciation expense in the first year. Deviations from this standard practice must be supported in the application.
A60: 2 | B60: The applicant must provide an explanation of material variances in evidence.
A62: General | B62: Applicants must provide a breakdown of depreciation and amortization expense in the above format for all relevant accounts. Asset Retirement Obligations (AROs), depreciation and accretion expense should be disclosed separately consistent with the Notes of historical Audited Financial Statements.

Sheet App.2-CB_NewCGAAP_DepExp_2012
N1: File Number: | O1: =EBNUMBER -> EB-2015-0074
N2: Exhibit:
N3: Tab:
N4: Schedule:
N5: Page:
N7: Date:
A9: Appendix 2-CB
A10: Depreciation and Amortization Expense
A11: Assumes the applicant made capitalization and depreciation expense accounting policy changes under CGAAP effective January 1, 2012 and has adopted IFRS for financial reporting purposes effective January 1, 2015.
C13: Year | D13: 2012 | E13: Revised CGAAP
A15: Account | B15: Description | C15: Opening NBV as at Jan 1, 2012 5 | D15: Additions | E15: Average Remaining Life of Opening NBV 4 | F15: Years (new additions only) 3 | G15: Depreciation Rate on New Additions | H15: Depreciation Expense on Opening NBV | I15: Depreciation Expense on Additions 1 | J15: 2012 Depreciation Expense | K15: 2012 Depreciation Expense per Appendix 2-BA Fixed Assets, Column J (l) | L15: Variance 2 | M15: Depreciation Expense on 2012 Full Year Additions | N15: Less Depreciation Expense on Assets Fully Depreciated during the year (o) | O15: 2012 Full Year Depreciation 6
C16: (a) | D16: (d) | E16: (i) | F16: (f) | G16: (g) = 1 / (f) | H16: (j) = (a) / (i) | I16: (h)=((d)*0.5)/(f) | J16: (k) = (j) + (h) | L16: (m) = (k) - (l) | M16: (n) = (d)/(f) | O16: (p) = (j) + (n) - (o)
A17: 1611 | B17: Computer Software (Formally known as Account 1925) | C17: 1236063 | D17: 190042 | E17: 0 | F17: 2 | G17: =IF(F17=0,0,1/F17) -> 0.5 | H17: =IF(E17=0,0,+C17/E17) -> 0 | I17: =IF(F17=0,0,+(D17*0.5)/F17) -> 47510.5 | J17: =IF(ISERROR(+H17+I17), 0, +H17+I17) -> 47510.5 | K17: 237178 | L17: =IF(ISERROR(+J17-K17), 0, +J17-K17) -> -189667.5 | M17: =IF(F17=0,0,+(D17)/F17) -> 95021 | O17: =IF(ISERROR(+M17+H17-N17), 0, +M17+H17-N17) -> 95021
A18: 1612 | B18: Land Rights (Formally known as Account 1906) | C18: 4738 | D18: 0 | G18: 0 | H18: 0 | I18: 0 | J18: 0 | K18: 0 | L18: 0 | M18: 0 | O18: =IF(ISERROR(+M18+H18-N18), 0, +M18+H18-N18) -> 0
A19: 1805 | B19: Land | C19: 591591 | D19: -250 | G19: 0 | H19: 0 | I19: 0 | J19: 0 | K19: 0 | L19: 0 | M19: 0 | O19: 0
A20: 1808 | B20: Buildings | C20: 3233684 | D20: 356930 | F20: 42 | G20: 0.02380952381 | H20: 0 | I20: 4249.166667 | J20: 4249.166667 | K20: 82160 | L20: -77910.83333 | M20: 8498.333333 | O20: 8498.333333
A21: 1810 | B21: Leasehold Improvements | C21: 0 | D21: 0 | G21: 0 | H21: 0 | I21: 0 | J21: 0 | K21: 0 | L21: 0 | M21: 0 | O21: 0
A22: 1815 | B22: Transformer Station Equipment >50 kV | C22: 0 | D22: 0 | G22: 0 | H22: 0 | I22: 0 | J22: 0 | K22: 0 | L22: 0 | M22: 0 | O22: 0
A23: 1820 | B23: Distribution Station Equipment <50 kV | C23: 5145637 | D23: 567968 | F23: 20 | G23: 0.05 | H23: 0 | I23: 14199.2 | J23: 14199.2 | K23: 88877 | L23: -74677.8 | M23: 28398.4 | O23: 28398.4
A24: 1825 | B24: Storage Battery Equipment | C24: 0 | D24: 0 | G24: 0 | H24: 0 | I24: 0 | J24: 0 | K24: 0 | L24: 0 | M24: 0 | O24: 0
A25: 1830 | B25: Poles, Towers & Fixtures | C25: 17179058 | D25: 1896201 | F25: 50 | G25: 0.02 | H25: 0 | I25: 18962.01 | J25: 18962.01 | K25: 230103 | L25: -211140.99 | M25: 37924.02 | O25: 37924.02
A26: 1835 | B26: Overhead Conductors & Devices | C26: 6240894 | D26: 688861 | F26: 50 | G26: 0.02 | H26: 0 | I26: 6888.61 | J26: 6888.61 | K26: 170997 | L26: -164108.39 | M26: 13777.22 | O26: 13777.22
A27: 1840 | B27: Underground Conduit | C27: 970548 | D27: 107128 | F27: 50 | G27: 0.02 | H27: 0 | I27: 1071.28 | J27: 1071.28 | K27: 20488 | L27: -19416.72 | M27: 2142.56 | O27: 2142.56
A28: 1845 | B28: Underground Conductors & Devices | C28: 5875827 | D28: 648566 | F28: 35 | G28: 0.02857142857 | H28: 0 | I28: 9265.228571 | J28: 9265.228571 | K28: 217241 | L28: -207975.7714 | M28: 18530.45714 | O28: 18530.45714
A29: 1850 | B29: Line Transformers | C29: 7238728 | D29: 799001 | F29: 35 | G29: 0.02857142857 | H29: 0 | I29: 11414.3 | J29: 11414.3 | K29: 221002 | L29: -209587.7 | M29: 22828.6 | O29: 22828.6
A30: 1855 | B30: Services (Overhead & Underground) | C30: 2730647 | D30: 301405 | F30: 50 | G30: 0.02 | H30: 0 | I30: 3014.05 | J30: 3014.05 | K30: 0 | L30: 3014.05 | M30: 6028.1 | O30: 6028.1
A31: 1860 | B31: Meters | C31: 0 | D31: 0 | G31: 0 | H31: 0 | I31: 0 | J31: 0 | K31: 0 | L31: 0 | M31: 0 | O31: 0
A32: 1860 | B32: Meters (Smart Meters) | C32: 1179057 | D32: 3790635 | F32: 15 | G32: 0.06666666667 | H32: 0 | I32: 126354.5 | J32: 126354.5 | K32: 391136 | L32: -264781.5 | M32: 252709 | O32: 252709
A33: 1905 | B33: Land | C33: 0 | D33: 0 | G33: 0 | H33: 0 | I33: 0 | J33: 0 | K33: 0 | L33: 0 | M33: 0 | O33: 0
A34: 1908 | B34: Buildings & Fixtures | C34: 0 | D34: 0 | E34: 0 | F34: 42 | G34: 0.02380952381 | H34: 0 | I34: 0 | J34: 0 | K34: 0 | L34: 0 | M34: =IF(F34=0,0,+(D34)/F34) -> 0 | O34: 0
A35: 1910 | B35: Leasehold Improvements | C35: 0 | D35: 0 | G35: 0 | H35: 0 | I35: 0 | J35: 0 | K35: 0 | L35: 0 | M35: 0 | O35: 0
A36: 1915 | B36: Office Furniture & Equipment (10 years) | C36: 0 | D36: 0 | G36: 0 | H36: 0 | I36: 0 | J36: 0 | K36: 0 | L36: 0 | M36: 0 | O36: 0
A37: 1915 | B37: Office Furniture & Equipment (5 years) | C37: 384354 | D37: 42424 | F37: 5 | G37: 0.2 | H37: 0 | I37: 4242.4 | J37: 4242.4 | K37: 10290 | L37: -6047.6 | M37: 8484.8 | O37: 8484.8
A38: 1920 | B38: Computer Equipment - Hardware | C38: 1086223 | D38: 266567 | F38: 3 | G38: 0.3333333333 | H38: 0 | I38: 44427.83333 | J38: 44427.83333 | K38: 242839 | L38: -198411.1667 | M38: 88855.66667 | O38: 88855.66667
A39: 1920 | B39: Computer Equip.-Hardware(Post Mar. 22/04) | C39: 0 | D39: 0 | G39: 0 | H39: 0 | I39: 0 | J39: 0 | K39: 0 | L39: 0 | M39: 0 | O39: 0
A40: 1920 | B40: Computer Equip.-Hardware(Post Mar. 19/07) | C40: 0 | D40: 0 | G40: 0 | H40: 0 | I40: 0 | J40: 0 | K40: 0 | L40: 0 | M40: 0 | O40: 0
A41: 1930 | B41: Transportation Equipment | C41: 2485912 | D41: 274392 | F41: 12 | G41: 0.08333333333 | H41: 0 | I41: 11433 | J41: 11433 | K41: 184231 | L41: -172798 | M41: 22866 | O41: 22866
A42: 1935 | B42: Stores Equipment | C42: 53152 | D42: 5867 | F42: 10 | G42: 0.1 | H42: 0 | I42: 293.35 | J42: 293.35 | K42: 0 | L42: 293.35 | M42: 586.7 | O42: 586.7
A43: 1940 | B43: Tools, Shop & Garage Equipment | C43: 584699 | D43: 64538 | F43: 10 | G43: 0.1 | H43: 0 | I43: 3226.9 | J43: 3226.9 | K43: 52040 | L43: -48813.1 | M43: 6453.8 | O43: 6453.8
A44: 1945 | B44: Measurement & Testing Equipment | C44: 0 | D44: 0 | G44: 0 | H44: 0 | I44: 0 | J44: 0 | K44: 0 | L44: 0 | M44: 0 | O44: 0
A45: 1950 | B45: Power Operated Equipment | C45: 0 | D45: 0 | G45: 0 | H45: 0 | I45: 0 | J45: 0 | K45: 0 | L45: 0 | M45: 0 | O45: 0
A46: 1955 | B46: Communications Equipment | C46: 0 | D46: 0 | E46: 0 | F46: 10 | G46: 0.1 | H46: 0 | I46: 0 | J46: 0 | K46: 51625 | L46: -51625 | M46: 0 | O46: 0
A47: 1955 | B47: Communication Equipment (Smart Meters) | C47: 0 | D47: 0 | G47: 0 | H47: 0 | I47: 0 | J47: 0 | K47: 0 | L47: 0 | M47: 0 | O47: 0
A48: 1960 | B48: Miscellaneous Equipment | C48: 0 | D48: 0 | G48: 0 | H48: 0 | I48: 0 | J48: 0 | K48: 0 | L48: 0 | M48: 0 | O48: 0
A49: 1970 | B49: Load Management Controls Customer Premises | C49: 570108 | D49: 62928 | F49: 10 | G49: 0.1 | H49: 0 | I49: 3146.4 | J49: 3146.4 | K49: 0 | L49: 3146.4 | M49: 6292.8 | O49: 6292.8
A50: 1975 | B50: Load Management Controls Utility Premises | C50: 0 | D50: 0 | G50: 0 | H50: 0 | I50: 0 | J50: 0 | K50: 0 | L50: 0 | M50: 0 | O50: 0
A51: 1980 | B51: System Supervisor Equipment | C51: 1009299 | D51: 111405 | F51: 20 | G51: 0.05 | H51: 0 | I51: 2785.125 | J51: 2785.125 | K51: 0 | L51: 2785.125 | M51: 5570.25 | O51: 5570.25
A52: 1985 | B52: Miscellaneous Fixed Assets | C52: 0 | D52: 0 | G52: 0 | H52: 0 | I52: 0 | J52: 0 | K52: 0 | L52: 0 | M52: 0 | O52: 0
A53: 1990 | B53: Other Tangible Property | C53: 0 | D53: 0 | G53: 0 | H53: 0 | I53: 0 | J53: 0 | K53: 0 | L53: 0 | M53: 0 | O53: 0
A54: 1995 | B54: Contributions & Grants | C54: -6385598 | D54: 39153 | F54: 50 | G54: 0.02 | H54: 0 | I54: 391.53 | J54: 391.53 | K54: -128903 | L54: 129294.53 | M54: 783.06 | O54: 783.06
B55: Total | C55: =SUM(C17:C54) -> 51414621 | D55: =SUM(D17:D54) -> 10213761 | H55: =SUM(H17:H54) -> 0 | I55: 312875.3836 | J55: 312875.3836 | K55: 2071304 | L55: -1758428.616 | M55: 625750.7671 | N55: 0 | O55: 625750.7671
A57: Notes:
A59: 1 | B59: Board policy of the "half-year" rule - the applicant must ensure that additions in the year attract a half-year depreciation expense in the first year. Deviations from this standard practice must be supported in the application.
A60: 2 | B60: The applicant must provide an explanation of material variances in evidence.
A61: 3 | B61: The applicant should ensure that the years for new additions of assets are the asset useful lives determined by management in accordance with the Board's regulatory accounting policies. The capitalization and depreciation expense accounting changes should be implemented consistent with the Board’s regulatory accounting policies as set out for modified IFRS as contained in the Report of the Board, Transition to International Financial Reporting Standards, EB-2008-0408, the Kinectrics Report, and the Revised 2012 Accounting Procedures Handbook for Electricity Distributors (“APH”).
A62: 4 | B62: A recalculation should be performed to determine the average remaining life of opening balance of assets (i.e. excluding 2012 additions) under the change in policies under CGAAP. For example, Asset A had a useful life of 20 years under CGAAP without the change in policies. On January 1, 2012, the effective date of the changes in policies, Asset A was 3 years depreciated. As a result, Asset A would have a remaining service life of 17 years (20 years less 3 years) as of January 1, 2012. Due to making the change in policies under CGAAP, management re-assessed the asset useful lives and concluded that the revised useful life of Asset A is now 30 years. Therefore, the average remaining useful life of the opening balance of Asset A is determined to be 27 years (30 years less 3 years) under the revised CGAAP as of January 1, 2012.
A63: 5 | B63: NBV must exclude assets still on the books but which have been fully amortized or depreciated.
A64: 6 | B64: This column refers to the calculated full year depreciation but excludes the depreciation expense on assets fully depreciated during the year. This column is used for the purpose of calculating depreciation expense in the following year on the next worksheet.
A66: General: | B66: Applicants must provide a breakdown of depreciation and amortization expense in the above format for all relevant accounts. Asset Retirement Obligations (AROs), depreciation and accretion expense should be disclosed separately consistent with the Notes of historical Audited Financial Statements.

Sheet App.2-CC_NewCGAAP_DepExp_2013
J1: File Number: | K1: =EBNUMBER -> EB-2015-0074
J2: Exhibit:
J3: Tab:
J4: Schedule:
J5: Page:
J7: Date:
A9: Appendix 2-CC
A10: Depreciation and Amortization Expense
A11: Assumes the applicant made capitalization and depreciation expense accounting policy changes under CGAAP effective January 1, 2012 and has adopted IFRS for financial reporting purposes effective January 1, 2015.
C13: 2013 | D13: Revised CGAAP
A15: Account | B15: Description | C15: Additions | D15: Years (new additions only) | E15: Depreciation Rate on New Additions | F15: 2013 Depreciation Expense 1 | G15: 2013 Depreciation Expense per Apppendix 2-BA Fixed Assets, Column J (l) | H15: Variance 2 | I15: Depreciation Expense on 2013 Full Year Additions | J15: Less Depreciation Expense on Assets Fully Depreciated during the year (o) | K15: 2013 Full Year Depreciation 3
C16: (d) | D16: (f) | E16: (g) = 1 / (f) | F16: (h)=2012 Full Year Deprecation + ((d)*0.5)/(f) | H16: (m) = (h) - (l) | I16: (n)=((d))/(f) | K16: (p) = 2012 Full Year Depreciation + (n) - (o)
A17: 1611 | B17: Computer Software (Formally known as Account 1925) | C17: 156819 | D17: 2 | E17: =IF(D17=0,0,1/D17) -> 0.5 | F17: =IF(D17=0,+'App.2-CB_NewCGAAP_DepExp_2012'!O17,+'App.2-CB_NewCGAAP_DepExp_2012'!O17+((C17*0.5)/D17)) -> 134225.75 | G17: 179415 | H17: =IF(ISERROR(+F17-G17), 0, +F17-G17) -> -45189.25 | I17: =IF(D17=0,0,+(C17)/D17) -> 78409.5 | K17: =IF(ISERROR(+I17+'App.2-CB_NewCGAAP_DepExp_2012'!O17-J17), 0, +I17+'App.2-CB_NewCGAAP_DepExp_2012'!O17-J17) -> 173430.5
A18: 1612 | B18: Land Rights (Formally known as Account 1906) | C18: 0 | E18: 0 | F18: =IF(D18=0,+'App.2-CB_NewCGAAP_DepExp_2012'!O18,+'App.2-CB_NewCGAAP_DepExp_2012'!O18+((C18*0.5)/D18)) -> 0 | G18: 0 | H18: 0 | I18: 0 | K18: =IF(ISERROR(+I18+'App.2-CB_NewCGAAP_DepExp_2012'!O18-J18), 0, +I18+'App.2-CB_NewCGAAP_DepExp_2012'!O18-J18) -> 0
A19: 1805 | B19: Land | C19: 250 | E19: 0 | F19: =IF(D19=0,+'App.2-CB_NewCGAAP_DepExp_2012'!O19,+'App.2-CB_NewCGAAP_DepExp_2012'!O19+((C19*0.5)/D19)) -> 0 | G19: 0 | H19: 0 | I19: 0 | K19: =IF(ISERROR(+I19+'App.2-CB_NewCGAAP_DepExp_2012'!O19-J19), 0, +I19+'App.2-CB_NewCGAAP_DepExp_2012'!O19-J19) -> 0
A20: 1808 | B20: Buildings | C20: 0 | D20: 42 | E20: 0.02380952381 | F20: =IF(D20=0,+'App.2-CB_NewCGAAP_DepExp_2012'!O20,+'App.2-CB_NewCGAAP_DepExp_2012'!O20+((C20*0.5)/D20)) -> 8498.333333 | G20: 82317 | H20: -73818.66667 | I20: 0 | K20: =IF(ISERROR(+I20+'App.2-CB_NewCGAAP_DepExp_2012'!O20-J20), 0, +I20+'App.2-CB_NewCGAAP_DepExp_2012'!O20-J20) -> 8498.333333
A21: 1810 | B21: Leasehold Improvements | C21: 0 | E21: 0 | F21: =IF(D21=0,+'App.2-CB_NewCGAAP_DepExp_2012'!O21,+'App.2-CB_NewCGAAP_DepExp_2012'!O21+((C21*0.5)/D21)) -> 0 | G21: 0 | H21: 0 | I21: 0 | K21: =IF(ISERROR(+I21+'App.2-CB_NewCGAAP_DepExp_2012'!O21-J21), 0, +I21+'App.2-CB_NewCGAAP_DepExp_2012'!O21-J21) -> 0
A22: 1815 | B22: Transformer Station Equipment >50 kV | C22: 0 | E22: 0 | F22: =IF(D22=0,+'App.2-CB_NewCGAAP_DepExp_2012'!O22,+'App.2-CB_NewCGAAP_DepExp_2012'!O22+((C22*0.5)/D22)) -> 0 | G22: 0 | H22: 0 | I22: 0 | K22: =IF(ISERROR(+I22+'App.2-CB_NewCGAAP_DepExp_2012'!O22-J22), 0, +I22+'App.2-CB_NewCGAAP_DepExp_2012'!O22-J22) -> 0
A23: 1820 | B23: Distribution Station Equipment <50 kV | C23: 0 | D23: 20 | E23: 0.05 | F23: =IF(D23=0,+'App.2-CB_NewCGAAP_DepExp_2012'!O23,+'App.2-CB_NewCGAAP_DepExp_2012'!O23+((C23*0.5)/D23)) -> 28398.4 | G23: 91165 | H23: -62766.6 | I23: 0 | K23: =IF(ISERROR(+I23+'App.2-CB_NewCGAAP_DepExp_2012'!O23-J23), 0, +I23+'App.2-CB_NewCGAAP_DepExp_2012'!O23-J23) -> 28398.4
A24: 1825 | B24: Storage Battery Equipment | C24: 0 | E24: 0 | F24: =IF(D24=0,+'App.2-CB_NewCGAAP_DepExp_2012'!O24,+'App.2-CB_NewCGAAP_DepExp_2012'!O24+((C24*0.5)/D24)) -> 0 | G24: 0 | H24: 0 | I24: 0 | K24: =IF(ISERROR(+I24+'App.2-CB_NewCGAAP_DepExp_2012'!O24-J24), 0, +I24+'App.2-CB_NewCGAAP_DepExp_2012'!O24-J24) -> 0
A25: 1830 | B25: Poles, Towers & Fixtures | C25: 3191693 | D25: 50 | E25: 0.02 | F25: 642476 | G25: 293107 | H25: 349369 | I25: 63833.86 | K25: 674393
A26: 1835 | B26: Overhead Conductors & Devices | C26: 1079885 | D26: 50 | E26: 0.02 | F26: =IF(D26=0,+'App.2-CB_NewCGAAP_DepExp_2012'!O26,+'App.2-CB_NewCGAAP_DepExp_2012'!O26+((C26*0.5)/D26)) -> 24576.07 | G26: 187415 | H26: -162838.93 | I26: 21597.7 | K26: =IF(ISERROR(+I26+'App.2-CB_NewCGAAP_DepExp_2012'!O26-J26), 0, +I26+'App.2-CB_NewCGAAP_DepExp_2012'!O26-J26) -> 35374.92
A27: 1840 | B27: Underground Conduit | C27: 73112 | D27: 50 | E27: 0.02 | F27: =IF(D27=0,+'App.2-CB_NewCGAAP_DepExp_2012'!O27,+'App.2-CB_NewCGAAP_DepExp_2012'!O27+((C27*0.5)/D27)) -> 2873.68 | G27: 21655 | H27: -18781.32 | I27: 1462.24 | K27: =IF(ISERROR(+I27+'App.2-CB_NewCGAAP_DepExp_2012'!O27-J27), 0, +I27+'App.2-CB_NewCGAAP_DepExp_2012'!O27-J27) -> 3604.8
A28: 1845 | B28: Underground Conductors & Devices | C28: 619154 | D28: 35 | E28: 0.02857142857 | F28: =IF(D28=0,+'App.2-CB_NewCGAAP_DepExp_2012'!O28,+'App.2-CB_NewCGAAP_DepExp_2012'!O28+((C28*0.5)/D28)) -> 27375.51429 | G28: 246926 | H28: -219550.4857 | I28: 17690.11429 | K28: =IF(ISERROR(+I28+'App.2-CB_NewCGAAP_DepExp_2012'!O28-J28), 0, +I28+'App.2-CB_NewCGAAP_DepExp_2012'!O28-J28) -> 36220.57143
A29: 1850 | B29: Line Transformers | C29: 694253 | D29: 35 | E29: 0.02857142857 | F29: =IF(D29=0,+'App.2-CB_NewCGAAP_DepExp_2012'!O29,+'App.2-CB_NewCGAAP_DepExp_2012'!O29+((C29*0.5)/D29)) -> 32746.5 | G29: 232734 | H29: -199987.5 | I29: 19835.8 | K29: =IF(ISERROR(+I29+'App.2-CB_NewCGAAP_DepExp_2012'!O29-J29), 0, +I29+'App.2-CB_NewCGAAP_DepExp_2012'!O29-J29) -> 42664.4
A30: 1855 | B30: Services (Overhead & Underground) | C30: 22489 | D30: 50 | E30: 0.02 | F30: =IF(D30=0,+'App.2-CB_NewCGAAP_DepExp_2012'!O30,+'App.2-CB_NewCGAAP_DepExp_2012'!O30+((C30*0.5)/D30)) -> 6252.99 | G30: 0 | H30: 6252.99 | I30: 449.78 | K30: =IF(ISERROR(+I30+'App.2-CB_NewCGAAP_DepExp_2012'!O30-J30), 0, +I30+'App.2-CB_NewCGAAP_DepExp_2012'!O30-J30) -> 6477.88
A31: 1860 | B31: Meters | E31: 0 | F31: =IF(D31=0,+'App.2-CB_NewCGAAP_DepExp_2012'!O31,+'App.2-CB_NewCGAAP_DepExp_2012'!O31+((C31*0.5)/D31)) -> 0 | H31: 0 | I31: 0 | K31: =IF(ISERROR(+I31+'App.2-CB_NewCGAAP_DepExp_2012'!O31-J31), 0, +I31+'App.2-CB_NewCGAAP_DepExp_2012'!O31-J31) -> 0
A32: 1860 | B32: Meters (Smart Meters) | C32: 339265 | D32: 15 | E32: 0.06666666667 | F32: =IF(D32=0,+'App.2-CB_NewCGAAP_DepExp_2012'!O32,+'App.2-CB_NewCGAAP_DepExp_2012'!O32+((C32*0.5)/D32)) -> 264017.8333 | G32: 159421 | H32: 104596.8333 | I32: 22617.66667 | K32: =IF(ISERROR(+I32+'App.2-CB_NewCGAAP_DepExp_2012'!O32-J32), 0, +I32+'App.2-CB_NewCGAAP_DepExp_2012'!O32-J32) -> 275326.6667
A33: 1905 | B33: Land | C33: 0 | E33: 0 | F33: =IF(D33=0,+'App.2-CB_NewCGAAP_DepExp_2012'!O33,+'App.2-CB_NewCGAAP_DepExp_2012'!O33+((C33*0.5)/D33)) -> 0 | G33: 0 | H33: 0 | I33: 0 | K33: =IF(ISERROR(+I33+'App.2-CB_NewCGAAP_DepExp_2012'!O33-J33), 0, +I33+'App.2-CB_NewCGAAP_DepExp_2012'!O33-J33) -> 0
A34: 1908 | B34: Buildings & Fixtures | C34: 0 | D34: 42 | E34: 0.02380952381 | F34: =IF(D34=0,+'App.2-CB_NewCGAAP_DepExp_2012'!O34,+'App.2-CB_NewCGAAP_DepExp_2012'!O34+((C34*0.5)/D34)) -> 0 | G34: 0 | H34: 0 | I34: 0 | K34: =IF(ISERROR(+I34+'App.2-CB_NewCGAAP_DepExp_2012'!O34-J34), 0, +I34+'App.2-CB_NewCGAAP_DepExp_2012'!O34-J34) -> 0
A35: 1910 | B35: Leasehold Improvements | C35: 0 | E35: 0 | F35: =IF(D35=0,+'App.2-CB_NewCGAAP_DepExp_2012'!O35,+'App.2-CB_NewCGAAP_DepExp_2012'!O35+((C35*0.5)/D35)) -> 0 | G35: 0 | H35: 0 | I35: 0 | K35: =IF(ISERROR(+I35+'App.2-CB_NewCGAAP_DepExp_2012'!O35-J35), 0, +I35+'App.2-CB_NewCGAAP_DepExp_2012'!O35-J35) -> 0
A36: 1915 | B36: Office Furniture & Equipment (10 years) | C36: 0 | E36: 0 | F36: =IF(D36=0,+'App.2-CB_NewCGAAP_DepExp_2012'!O36,+'App.2-CB_NewCGAAP_DepExp_2012'!O36+((C36*0.5)/D36)) -> 0 | G36: 0 | H36: 0 | I36: 0 | K36: =IF(ISERROR(+I36+'App.2-CB_NewCGAAP_DepExp_2012'!O36-J36), 0, +I36+'App.2-CB_NewCGAAP_DepExp_2012'!O36-J36) -> 0
A37: 1915 | B37: Office Furniture & Equipment (5 years) | C37: 3137 | D37: 5 | E37: 0.2 | F37: =IF(D37=0,+'App.2-CB_NewCGAAP_DepExp_2012'!O37,+'App.2-CB_NewCGAAP_DepExp_2012'!O37+((C37*0.5)/D37)) -> 8798.5 | G37: 12406 | H37: -3607.5 | I37: 627.4 | K37: =IF(ISERROR(+I37+'App.2-CB_NewCGAAP_DepExp_2012'!O37-J37), 0, +I37+'App.2-CB_NewCGAAP_DepExp_2012'!O37-J37) -> 9112.2
A38: 1920 | B38: Computer Equipment - Hardware | C38: 144237 | D38: 3 | E38: 0.3333333333 | F38: =IF(D38=0,+'App.2-CB_NewCGAAP_DepExp_2012'!O38,+'App.2-CB_NewCGAAP_DepExp_2012'!O38+((C38*0.5)/D38)) -> 112895.1667 | G38: 115155 | H38: -2259.833333 | I38: 48079 | K38: =IF(ISERROR(+I38+'App.2-CB_NewCGAAP_DepExp_2012'!O38-J38), 0, +I38+'App.2-CB_NewCGAAP_DepExp_2012'!O38-J38) -> 136934.6667
A39: 1920 | B39: Computer Equip.-Hardware(Post Mar. 22/04) | C39: 0 | E39: 0 | F39: =IF(D39=0,+'App.2-CB_NewCGAAP_DepExp_2012'!O39,+'App.2-CB_NewCGAAP_DepExp_2012'!O39+((C39*0.5)/D39)) -> 0 | G39: 0 | H39: 0 | I39: 0 | K39: =IF(ISERROR(+I39+'App.2-CB_NewCGAAP_DepExp_2012'!O39-J39), 0, +I39+'App.2-CB_NewCGAAP_DepExp_2012'!O39-J39) -> 0
A40: 1920 | B40: Computer Equip.-Hardware(Post Mar. 19/07) | C40: 0 | E40: 0 | F40: =IF(D40=0,+'App.2-CB_NewCGAAP_DepExp_2012'!O40,+'App.2-CB_NewCGAAP_DepExp_2012'!O40+((C40*0.5)/D40)) -> 0 | G40: 0 | H40: 0 | I40: 0 | K40: =IF(ISERROR(+I40+'App.2-CB_NewCGAAP_DepExp_2012'!O40-J40), 0, +I40+'App.2-CB_NewCGAAP_DepExp_2012'!O40-J40) -> 0
A41: 1930 | B41: Transportation Equipment | C41: 67746 | D41: 12 | E41: 0.08333333333 | F41: 37122 | G41: 159509 | H41: -122387 | I41: 5645.5 | K41: 39944
A42: 1935 | B42: Stores Equipment | C42: 0 | D42: 10 | E42: 0.1 | F42: =IF(D42=0,+'App.2-CB_NewCGAAP_DepExp_2012'!O42,+'App.2-CB_NewCGAAP_DepExp_2012'!O42+((C42*0.5)/D42)) -> 586.7 | G42: 0 | H42: 586.7 | I42: 0 | K42: =IF(ISERROR(+I42+'App.2-CB_NewCGAAP_DepExp_2012'!O42-J42), 0, +I42+'App.2-CB_NewCGAAP_DepExp_2012'!O42-J42) -> 586.7
A43: 1940 | B43: Tools, Shop & Garage Equipment | C43: 48101 | D43: 10 | E43: 0.1 | F43: =IF(D43=0,+'App.2-CB_NewCGAAP_DepExp_2012'!O43,+'App.2-CB_NewCGAAP_DepExp_2012'!O43+((C43*0.5)/D43)) -> 8858.85 | G43: 54524 | H43: -45665.15 | I43: 4810.1 | K43: =IF(ISERROR(+I43+'App.2-CB_NewCGAAP_DepExp_2012'!O43-J43), 0, +I43+'App.2-CB_NewCGAAP_DepExp_2012'!O43-J43) -> 11263.9
A44: 1945 | B44: Measurement & Testing Equipment | C44: 0 | E44: 0 | F44: =IF(D44=0,+'App.2-CB_NewCGAAP_DepExp_2012'!O44,+'App.2-CB_NewCGAAP_DepExp_2012'!O44+((C44*0.5)/D44)) -> 0 | G44: 0 | H44: 0 | I44: 0 | K44: =IF(ISERROR(+I44+'App.2-CB_NewCGAAP_DepExp_2012'!O44-J44), 0, +I44+'App.2-CB_NewCGAAP_DepExp_2012'!O44-J44) -> 0
A45: 1950 | B45: Power Operated Equipment | C45: 0 | E45: 0 | F45: =IF(D45=0,+'App.2-CB_NewCGAAP_DepExp_2012'!O45,+'App.2-CB_NewCGAAP_DepExp_2012'!O45+((C45*0.5)/D45)) -> 0 | G45: 0 | H45: 0 | I45: 0 | K45: =IF(ISERROR(+I45+'App.2-CB_NewCGAAP_DepExp_2012'!O45-J45), 0, +I45+'App.2-CB_NewCGAAP_DepExp_2012'!O45-J45) -> 0
A46: 1955 | B46: Communications Equipment | C46: 0 | D46: 10 | E46: 0.1 | F46: =IF(D46=0,+'App.2-CB_NewCGAAP_DepExp_2012'!O46,+'App.2-CB_NewCGAAP_DepExp_2012'!O46+((C46*0.5)/D46)) -> 0 | G46: 4634 | H46: -4634 | I46: 0 | K46: =IF(ISERROR(+I46+'App.2-CB_NewCGAAP_DepExp_2012'!O46-J46), 0, +I46+'App.2-CB_NewCGAAP_DepExp_2012'!O46-J46) -> 0
A47: 1955 | B47: Communication Equipment (Smart Meters) | C47: 0 | E47: 0 | F47: =IF(D47=0,+'App.2-CB_NewCGAAP_DepExp_2012'!O47,+'App.2-CB_NewCGAAP_DepExp_2012'!O47+((C47*0.5)/D47)) -> 0 | G47: 0 | H47: 0 | I47: 0 | K47: =IF(ISERROR(+I47+'App.2-CB_NewCGAAP_DepExp_2012'!O47-J47), 0, +I47+'App.2-CB_NewCGAAP_DepExp_2012'!O47-J47) -> 0
A48: 1960 | B48: Miscellaneous Equipment | C48: 0 | E48: 0 | F48: =IF(D48=0,+'App.2-CB_NewCGAAP_DepExp_2012'!O48,+'App.2-CB_NewCGAAP_DepExp_2012'!O48+((C48*0.5)/D48)) -> 0 | G48: 0 | H48: 0 | I48: 0 | K48: =IF(ISERROR(+I48+'App.2-CB_NewCGAAP_DepExp_2012'!O48-J48), 0, +I48+'App.2-CB_NewCGAAP_DepExp_2012'!O48-J48) -> 0
A49: 1970 | B49: Load Management Controls Customer Premises | C49: 101160 | D49: 10 | E49: 0.1 | F49: =IF(D49=0,+'App.2-CB_NewCGAAP_DepExp_2012'!O49,+'App.2-CB_NewCGAAP_DepExp_2012'!O49+((C49*0.5)/D49)) -> 11350.8 | G49: 0 | H49: 11350.8 | I49: 10116 | K49: =IF(ISERROR(+I49+'App.2-CB_NewCGAAP_DepExp_2012'!O49-J49), 0, +I49+'App.2-CB_NewCGAAP_DepExp_2012'!O49-J49) -> 16408.8
A50: 1975 | B50: Load Management Controls Utility Premises | C50: 0 | E50: 0 | F50: =IF(D50=0,+'App.2-CB_NewCGAAP_DepExp_2012'!O50,+'App.2-CB_NewCGAAP_DepExp_2012'!O50+((C50*0.5)/D50)) -> 0 | G50: 0 | H50: 0 | I50: 0 | K50: =IF(ISERROR(+I50+'App.2-CB_NewCGAAP_DepExp_2012'!O50-J50), 0, +I50+'App.2-CB_NewCGAAP_DepExp_2012'!O50-J50) -> 0
A51: 1980 | B51: System Supervisor Equipment | C51: 16538 | D51: 20 | E51: 0.05 | F51: =IF(D51=0,+'App.2-CB_NewCGAAP_DepExp_2012'!O51,+'App.2-CB_NewCGAAP_DepExp_2012'!O51+((C51*0.5)/D51)) -> 5983.7 | G51: 47811 | H51: -41827.3 | I51: 826.9 | K51: =IF(ISERROR(+I51+'App.2-CB_NewCGAAP_DepExp_2012'!O51-J51), 0, +I51+'App.2-CB_NewCGAAP_DepExp_2012'!O51-J51) -> 6397.15
A52: 1985 | B52: Miscellaneous Fixed Assets | C52: 0 | E52: 0 | F52: =IF(D52=0,+'App.2-CB_NewCGAAP_DepExp_2012'!O52,+'App.2-CB_NewCGAAP_DepExp_2012'!O52+((C52*0.5)/D52)) -> 0 | G52: 0 | H52: 0 | I52: 0 | K52: =IF(ISERROR(+I52+'App.2-CB_NewCGAAP_DepExp_2012'!O52-J52), 0, +I52+'App.2-CB_NewCGAAP_DepExp_2012'!O52-J52) -> 0
A53: 1990 | B53: Other Tangible Property | C53: 0 | E53: 0 | F53: =IF(D53=0,+'App.2-CB_NewCGAAP_DepExp_2012'!O53,+'App.2-CB_NewCGAAP_DepExp_2012'!O53+((C53*0.5)/D53)) -> 0 | G53: 0 | H53: 0 | I53: 0 | K53: =IF(ISERROR(+I53+'App.2-CB_NewCGAAP_DepExp_2012'!O53-J53), 0, +I53+'App.2-CB_NewCGAAP_DepExp_2012'!O53-J53) -> 0
A54: 1995 | B54: Contributions & Grants | C54: -907623 | D54: 50 | E54: 0.02 | F54: =IF(D54=0,+'App.2-CB_NewCGAAP_DepExp_2012'!O54,+'App.2-CB_NewCGAAP_DepExp_2012'!O54+((C54*0.5)/D54)) -> -8293.17 | G54: -165680 | H54: 157386.83 | I54: -18152.46 | K54: =IF(ISERROR(+I54+'App.2-CB_NewCGAAP_DepExp_2012'!O54-J54), 0, +I54+'App.2-CB_NewCGAAP_DepExp_2012'!O54-J54) -> -17369.4
B55: Total | C55: =SUM(C17:C54) -> 5650216 | F55: =SUM(F17:F54) -> 1348743.618 | G55: 1722514 | H55: -373770.3824 | I55: 277849.101 | J55: 0 | K55: 1487667.488
A57: Notes:
A58: 1 | B58: Board policy of the "half-year" rule - the applicant must ensure that additions in the year attract a half-year depreciation expense in the first year. Deviations from this standard practice must be supported in the application.
A59: 2 | B59: The applicant must provide an explanation of material variances in evidence.
A60: 3 | B60: This column refers to the calculated full year depreciation but excludes the depreciation expense on assets fully depreciated during the year. This column is used for the purpose of calculating depreciation expense in the following year on the next worksheet.
A62: General: | B62: Applicants must provide a breakdown of depreciation and amortization expense in the above format for all relevant accounts. Asset Retirement Obligations (AROs), depreciation and accretion expense should be disclosed separately consistent with the Notes of historical Audited Financial Statements.

Sheet App.2-CD_MIFRS_DepExp_2014
J1: File Number: | K1: =EBNUMBER -> EB-2015-0074
J2: Exhibit:
J3: Tab:
J4: Schedule:
J5: Page:
J7: Date:
A9: Appendix 2-CD
A10: Depreciation and Amortization Expense
A11: Assumes the applicant made capitalization and depreciation expense accounting policy changes under CGAAP effective January 1, 2012 and has adopted IFRS for financial reporting purposes effective January 1, 2015.
E13: 2014 | F13: CGAAP
A15: Account | B15: Description | C15: Additions | D15: Years (new additions only) | E15: Depreciation Rate on New Additions | F15: 2014 Depreciation Expense 1 | G15: 2014 Depreciation Expense per Apppendix 2-BA Fixed Assets, Column J (l) | H15: Variance 2 | I15: Depreciation Expense on 2014 Full Year Additions | J15: Less Depreciation Expense on Assets Fully Depreciated during the year (o) | K15: 2014 Full Year Depreciation 3
C16: (d) | D16: (f) | E16: (g) = 1 / (f) | F16: (h)=2013 Full Year Deprecation + ((d)*0.5)/(f) | H16: (m) = (h) - (l) | I16: (n)=((d))/(f) | K16: (p) = 2013 Full Year Depreciation + (n) - (o)
A17: 1611 | B17: Computer Software (Formally known as Account 1925) | C17: 772756 | D17: 2 | E17: =IF(D17=0,0,1/D17) -> 0.5 | F17: =IF(D17=0,+'App.2-CC_NewCGAAP_DepExp_2013'!K17,+'App.2-CC_NewCGAAP_DepExp_2013'!K17+((C17*0.5)/D17)) -> 366619.5 | G17: 232948 | H17: =IF(ISERROR(+F17-G17), 0, +F17-G17) -> 133671.5 | I17: =IF(D17=0,0,+(C17)/D17) -> 386378 | K17: =IF(ISERROR(+I17+'App.2-CC_NewCGAAP_DepExp_2013'!K17-J17), 0, +I17+'App.2-CC_NewCGAAP_DepExp_2013'!K17-J17) -> 559808.5
A18: 1612 | B18: Land Rights (Formally known as Account 1906) | C18: 0 | E18: 0 | F18: =IF(D18=0,+'App.2-CC_NewCGAAP_DepExp_2013'!K18,+'App.2-CC_NewCGAAP_DepExp_2013'!K18+((C18*0.5)/D18)) -> 0 | G18: 0 | H18: 0 | I18: =IF(D18=0,0,+(C18)/D18) -> 0 | K18: =IF(ISERROR(+I18+'App.2-CC_NewCGAAP_DepExp_2013'!K18-J18), 0, +I18+'App.2-CC_NewCGAAP_DepExp_2013'!K18-J18) -> 0
A19: 1805 | B19: Land | C19: 0 | E19: 0 | F19: =IF(D19=0,+'App.2-CC_NewCGAAP_DepExp_2013'!K19,+'App.2-CC_NewCGAAP_DepExp_2013'!K19+((C19*0.5)/D19)) -> 0 | G19: 0 | H19: 0 | I19: 0 | K19: =IF(ISERROR(+I19+'App.2-CC_NewCGAAP_DepExp_2013'!K19-J19), 0, +I19+'App.2-CC_NewCGAAP_DepExp_2013'!K19-J19) -> 0
A20: 1808 | B20: Buildings | C20: 43442 | D20: 42 | E20: 0.02380952381 | F20: =IF(D20=0,+'App.2-CC_NewCGAAP_DepExp_2013'!K20,+'App.2-CC_NewCGAAP_DepExp_2013'!K20+((C20*0.5)/D20)) -> 9015.5 | G20: 80998 | H20: -71982.5 | I20: 1034.333333 | K20: =IF(ISERROR(+I20+'App.2-CC_NewCGAAP_DepExp_2013'!K20-J20), 0, +I20+'App.2-CC_NewCGAAP_DepExp_2013'!K20-J20) -> 9532.666667
A21: 1810 | B21: Leasehold Improvements | C21: 0 | E21: 0 | F21: =IF(D21=0,+'App.2-CC_NewCGAAP_DepExp_2013'!K21,+'App.2-CC_NewCGAAP_DepExp_2013'!K21+((C21*0.5)/D21)) -> 0 | G21: 0 | H21: 0 | I21: 0 | K21: =IF(ISERROR(+I21+'App.2-CC_NewCGAAP_DepExp_2013'!K21-J21), 0, +I21+'App.2-CC_NewCGAAP_DepExp_2013'!K21-J21) -> 0
A22: 1815 | B22: Transformer Station Equipment >50 kV | C22: 0 | E22: 0 | F22: =IF(D22=0,+'App.2-CC_NewCGAAP_DepExp_2013'!K22,+'App.2-CC_NewCGAAP_DepExp_2013'!K22+((C22*0.5)/D22)) -> 0 | G22: 0 | H22: 0 | I22: 0 | K22: =IF(ISERROR(+I22+'App.2-CC_NewCGAAP_DepExp_2013'!K22-J22), 0, +I22+'App.2-CC_NewCGAAP_DepExp_2013'!K22-J22) -> 0
A23: 1820 | B23: Distribution Station Equipment <50 kV | C23: 40422 | D23: 20 | E23: 0.05 | F23: =IF(D23=0,+'App.2-CC_NewCGAAP_DepExp_2013'!K23,+'App.2-CC_NewCGAAP_DepExp_2013'!K23+((C23*0.5)/D23)) -> 29408.95 | G23: 78714 | H23: -49305.05 | I23: 2021.1 | K23: =IF(ISERROR(+I23+'App.2-CC_NewCGAAP_DepExp_2013'!K23-J23), 0, +I23+'App.2-CC_NewCGAAP_DepExp_2013'!K23-J23) -> 30419.5
A24: 1825 | B24: Storage Battery Equipment | C24: 0 | E24: 0 | F24: =IF(D24=0,+'App.2-CC_NewCGAAP_DepExp_2013'!K24,+'App.2-CC_NewCGAAP_DepExp_2013'!K24+((C24*0.5)/D24)) -> 0 | G24: 0 | H24: 0 | I24: 0 | K24: =IF(ISERROR(+I24+'App.2-CC_NewCGAAP_DepExp_2013'!K24-J24), 0, +I24+'App.2-CC_NewCGAAP_DepExp_2013'!K24-J24) -> 0
A25: 1830 | B25: Poles, Towers & Fixtures | C25: 4605229 | D25: 50 | E25: 0.02 | F25: =IF(D25=0,+'App.2-CC_NewCGAAP_DepExp_2013'!K25,+'App.2-CC_NewCGAAP_DepExp_2013'!K25+((C25*0.5)/D25)) -> 720445.29 | G25: 370688 | H25: 349757.29 | I25: 92104.58 | K25: =IF(ISERROR(+I25+'App.2-CC_NewCGAAP_DepExp_2013'!K25-J25), 0, +I25+'App.2-CC_NewCGAAP_DepExp_2013'!K25-J25) -> 766497.58
A26: 1835 | B26: Overhead Conductors & Devices | C26: 688985 | D26: 50 | E26: 0.02 | F26: =IF(D26=0,+'App.2-CC_NewCGAAP_DepExp_2013'!K26,+'App.2-CC_NewCGAAP_DepExp_2013'!K26+((C26*0.5)/D26)) -> 42264.77 | G26: 200128 | H26: -157863.23 | I26: 13779.7 | K26: =IF(ISERROR(+I26+'App.2-CC_NewCGAAP_DepExp_2013'!K26-J26), 0, +I26+'App.2-CC_NewCGAAP_DepExp_2013'!K26-J26) -> 49154.62
A27: 1840 | B27: Underground Conduit | C27: 40463 | D27: 50 | E27: 0.02 | F27: =IF(D27=0,+'App.2-CC_NewCGAAP_DepExp_2013'!K27,+'App.2-CC_NewCGAAP_DepExp_2013'!K27+((C27*0.5)/D27)) -> 4009.43 | G27: 22918 | H27: -18908.57 | I27: 809.26 | K27: =IF(ISERROR(+I27+'App.2-CC_NewCGAAP_DepExp_2013'!K27-J27), 0, +I27+'App.2-CC_NewCGAAP_DepExp_2013'!K27-J27) -> 4414.06
A28: 1845 | B28: Underground Conductors & Devices | C28: 1048667 | D28: 35 | E28: 0.02857142857 | F28: =IF(D28=0,+'App.2-CC_NewCGAAP_DepExp_2013'!K28,+'App.2-CC_NewCGAAP_DepExp_2013'!K28+((C28*0.5)/D28)) -> 51201.52857 | G28: 266116 | H28: -214914.4714 | I28: 29961.91429 | K28: =IF(ISERROR(+I28+'App.2-CC_NewCGAAP_DepExp_2013'!K28-J28), 0, +I28+'App.2-CC_NewCGAAP_DepExp_2013'!K28-J28) -> 66182.48571
A29: 1850 | B29: Line Transformers | C29: 1703294 | D29: 35 | E29: 0.02857142857 | F29: =IF(D29=0,+'App.2-CC_NewCGAAP_DepExp_2013'!K29,+'App.2-CC_NewCGAAP_DepExp_2013'!K29+((C29*0.5)/D29)) -> 66997.17143 | G29: 238026 | H29: -171028.8286 | I29: 48665.54286 | K29: =IF(ISERROR(+I29+'App.2-CC_NewCGAAP_DepExp_2013'!K29-J29), 0, +I29+'App.2-CC_NewCGAAP_DepExp_2013'!K29-J29) -> 91329.94286
A30: 1855 | B30: Services (Overhead & Underground) | C30: 0 | D30: 50 | E30: 0.02 | F30: =IF(D30=0,+'App.2-CC_NewCGAAP_DepExp_2013'!K30,+'App.2-CC_NewCGAAP_DepExp_2013'!K30+((C30*0.5)/D30)) -> 6477.88 | G30: 0 | H30: 6477.88 | I30: 0 | K30: =IF(ISERROR(+I30+'App.2-CC_NewCGAAP_DepExp_2013'!K30-J30), 0, +I30+'App.2-CC_NewCGAAP_DepExp_2013'!K30-J30) -> 6477.88
A31: 1860 | B31: Meters | E31: 0 | F31: =IF(D31=0,+'App.2-CC_NewCGAAP_DepExp_2013'!K31,+'App.2-CC_NewCGAAP_DepExp_2013'!K31+((C31*0.5)/D31)) -> 0 | H31: 0 | I31: 0 | K31: =IF(ISERROR(+I31+'App.2-CC_NewCGAAP_DepExp_2013'!K31-J31), 0, +I31+'App.2-CC_NewCGAAP_DepExp_2013'!K31-J31) -> 0
A32: 1860 | B32: Meters (Smart Meters) | C32: 81419 | D32: 15 | E32: 0.06666666667 | F32: =IF(D32=0,+'App.2-CC_NewCGAAP_DepExp_2013'!K32,+'App.2-CC_NewCGAAP_DepExp_2013'!K32+((C32*0.5)/D32)) -> 278040.6333 | G32: 167243 | H32: 110797.6333 | I32: 5427.933333 | K32: =IF(ISERROR(+I32+'App.2-CC_NewCGAAP_DepExp_2013'!K32-J32), 0, +I32+'App.2-CC_NewCGAAP_DepExp_2013'!K32-J32) -> 280754.6
A33: 1905 | B33: Land | C33: 0 | E33: 0 | F33: =IF(D33=0,+'App.2-CC_NewCGAAP_DepExp_2013'!K33,+'App.2-CC_NewCGAAP_DepExp_2013'!K33+((C33*0.5)/D33)) -> 0 | G33: 0 | H33: 0 | I33: 0 | K33: =IF(ISERROR(+I33+'App.2-CC_NewCGAAP_DepExp_2013'!K33-J33), 0, +I33+'App.2-CC_NewCGAAP_DepExp_2013'!K33-J33) -> 0
A34: 1908 | B34: Buildings & Fixtures | C34: 0 | D34: 42 | E34: 0.02380952381 | F34: =IF(D34=0,+'App.2-CC_NewCGAAP_DepExp_2013'!K34,+'App.2-CC_NewCGAAP_DepExp_2013'!K34+((C34*0.5)/D34)) -> 0 | G34: 0 | H34: 0 | I34: 0 | K34: =IF(ISERROR(+I34+'App.2-CC_NewCGAAP_DepExp_2013'!K34-J34), 0, +I34+'App.2-CC_NewCGAAP_DepExp_2013'!K34-J34) -> 0
A35: 1910 | B35: Leasehold Improvements | C35: 0 | E35: 0 | F35: =IF(D35=0,+'App.2-CC_NewCGAAP_DepExp_2013'!K35,+'App.2-CC_NewCGAAP_DepExp_2013'!K35+((C35*0.5)/D35)) -> 0 | G35: 0 | H35: 0 | I35: 0 | K35: =IF(ISERROR(+I35+'App.2-CC_NewCGAAP_DepExp_2013'!K35-J35), 0, +I35+'App.2-CC_NewCGAAP_DepExp_2013'!K35-J35) -> 0
A36: 1915 | B36: Office Furniture & Equipment (10 years) | C36: 0 | E36: 0 | F36: =IF(D36=0,+'App.2-CC_NewCGAAP_DepExp_2013'!K36,+'App.2-CC_NewCGAAP_DepExp_2013'!K36+((C36*0.5)/D36)) -> 0 | G36: 0 | H36: 0 | I36: 0 | K36: =IF(ISERROR(+I36+'App.2-CC_NewCGAAP_DepExp_2013'!K36-J36), 0, +I36+'App.2-CC_NewCGAAP_DepExp_2013'!K36-J36) -> 0
A37: 1915 | B37: Office Furniture & Equipment (5 years) | C37: 1040 | D37: 5 | E37: 0.2 | F37: =IF(D37=0,+'App.2-CC_NewCGAAP_DepExp_2013'!K37,+'App.2-CC_NewCGAAP_DepExp_2013'!K37+((C37*0.5)/D37)) -> 9216.2 | G37: 40381 | H37: -31164.8 | I37: 208 | K37: =IF(ISERROR(+I37+'App.2-CC_NewCGAAP_DepExp_2013'!K37-J37), 0, +I37+'App.2-CC_NewCGAAP_DepExp_2013'!K37-J37) -> 9320.2
A38: 1920 | B38: Computer Equipment - Hardware | C38: 46162 | D38: 3 | E38: 0.3333333333 | F38: =IF(D38=0,+'App.2-CC_NewCGAAP_DepExp_2013'!K38,+'App.2-CC_NewCGAAP_DepExp_2013'!K38+((C38*0.5)/D38)) -> 144628.3333 | G38: 35621 | H38: 109007.3333 | I38: 15387.33333 | K38: =IF(ISERROR(+I38+'App.2-CC_NewCGAAP_DepExp_2013'!K38-J38), 0, +I38+'App.2-CC_NewCGAAP_DepExp_2013'!K38-J38) -> 152322
A39: 1920 | B39: Computer Equip.-Hardware(Post Mar. 22/04) | C39: 0 | E39: 0 | F39: =IF(D39=0,+'App.2-CC_NewCGAAP_DepExp_2013'!K39,+'App.2-CC_NewCGAAP_DepExp_2013'!K39+((C39*0.5)/D39)) -> 0 | G39: 0 | H39: 0 | I39: 0 | K39: =IF(ISERROR(+I39+'App.2-CC_NewCGAAP_DepExp_2013'!K39-J39), 0, +I39+'App.2-CC_NewCGAAP_DepExp_2013'!K39-J39) -> 0
A40: 1920 | B40: Computer Equip.-Hardware(Post Mar. 19/07) | C40: 0 | E40: 0 | F40: =IF(D40=0,+'App.2-CC_NewCGAAP_DepExp_2013'!K40,+'App.2-CC_NewCGAAP_DepExp_2013'!K40+((C40*0.5)/D40)) -> 0 | G40: 0 | H40: 0 | I40: 0 | K40: =IF(ISERROR(+I40+'App.2-CC_NewCGAAP_DepExp_2013'!K40-J40), 0, +I40+'App.2-CC_NewCGAAP_DepExp_2013'!K40-J40) -> 0
A41: 1930 | B41: Transportation Equipment | C41: 385211 | D41: 12 | E41: 0.08333333333 | F41: 58818 | G41: 131339 | H41: -72521 | I41: 32100.91667 | K41: 74868
A42: 1935 | B42: Stores Equipment | C42: 0 | D42: 10 | E42: 0.1 | F42: =IF(D42=0,+'App.2-CC_NewCGAAP_DepExp_2013'!K42,+'App.2-CC_NewCGAAP_DepExp_2013'!K42+((C42*0.5)/D42)) -> 586.7 | G42: 0 | H42: 586.7 | I42: 0 | K42: =IF(ISERROR(+I42+'App.2-CC_NewCGAAP_DepExp_2013'!K42-J42), 0, +I42+'App.2-CC_NewCGAAP_DepExp_2013'!K42-J42) -> 586.7
A43: 1940 | B43: Tools, Shop & Garage Equipment | C43: 23530 | D43: 10 | E43: 0.1 | F43: =IF(D43=0,+'App.2-CC_NewCGAAP_DepExp_2013'!K43,+'App.2-CC_NewCGAAP_DepExp_2013'!K43+((C43*0.5)/D43)) -> 12440.4 | G43: 37616 | H43: -25175.6 | I43: 2353 | K43: =IF(ISERROR(+I43+'App.2-CC_NewCGAAP_DepExp_2013'!K43-J43), 0, +I43+'App.2-CC_NewCGAAP_DepExp_2013'!K43-J43) -> 13616.9
A44: 1945 | B44: Measurement & Testing Equipment | C44: 0 | E44: 0 | F44: =IF(D44=0,+'App.2-CC_NewCGAAP_DepExp_2013'!K44,+'App.2-CC_NewCGAAP_DepExp_2013'!K44+((C44*0.5)/D44)) -> 0 | G44: 0 | H44: 0 | I44: 0 | K44: =IF(ISERROR(+I44+'App.2-CC_NewCGAAP_DepExp_2013'!K44-J44), 0, +I44+'App.2-CC_NewCGAAP_DepExp_2013'!K44-J44) -> 0
A45: 1950 | B45: Power Operated Equipment | C45: 0 | E45: 0 | F45: =IF(D45=0,+'App.2-CC_NewCGAAP_DepExp_2013'!K45,+'App.2-CC_NewCGAAP_DepExp_2013'!K45+((C45*0.5)/D45)) -> 0 | G45: 0 | H45: 0 | I45: 0 | K45: =IF(ISERROR(+I45+'App.2-CC_NewCGAAP_DepExp_2013'!K45-J45), 0, +I45+'App.2-CC_NewCGAAP_DepExp_2013'!K45-J45) -> 0
A46: 1955 | B46: Communications Equipment | C46: 2477 | D46: 10 | E46: 0.1 | F46: =IF(D46=0,+'App.2-CC_NewCGAAP_DepExp_2013'!K46,+'App.2-CC_NewCGAAP_DepExp_2013'!K46+((C46*0.5)/D46)) -> 123.85 | G46: 2576 | H46: -2452.15 | I46: 247.7 | K46: =IF(ISERROR(+I46+'App.2-CC_NewCGAAP_DepExp_2013'!K46-J46), 0, +I46+'App.2-CC_NewCGAAP_DepExp_2013'!K46-J46) -> 247.7
A47: 1955 | B47: Communication Equipment (Smart Meters) | C47: 0 | E47: 0 | F47: =IF(D47=0,+'App.2-CC_NewCGAAP_DepExp_2013'!K47,+'App.2-CC_NewCGAAP_DepExp_2013'!K47+((C47*0.5)/D47)) -> 0 | G47: $ - | H47: 0 | I47: 0 | K47: =IF(ISERROR(+I47+'App.2-CC_NewCGAAP_DepExp_2013'!K47-J47), 0, +I47+'App.2-CC_NewCGAAP_DepExp_2013'!K47-J47) -> 0
A48: 1960 | B48: Miscellaneous Equipment | C48: 0 | E48: 0 | F48: =IF(D48=0,+'App.2-CC_NewCGAAP_DepExp_2013'!K48,+'App.2-CC_NewCGAAP_DepExp_2013'!K48+((C48*0.5)/D48)) -> 0 | G48: 0 | H48: 0 | I48: 0 | K48: =IF(ISERROR(+I48+'App.2-CC_NewCGAAP_DepExp_2013'!K48-J48), 0, +I48+'App.2-CC_NewCGAAP_DepExp_2013'!K48-J48) -> 0
A49: 1970 | B49: Load Management Controls Customer Premises | C49: 0 | D49: 10 | E49: 0.1 | F49: =IF(D49=0,+'App.2-CC_NewCGAAP_DepExp_2013'!K49,+'App.2-CC_NewCGAAP_DepExp_2013'!K49+((C49*0.5)/D49)) -> 16408.8 | G49: 0 | H49: 16408.8 | I49: 0 | K49: =IF(ISERROR(+I49+'App.2-CC_NewCGAAP_DepExp_2013'!K49-J49), 0, +I49+'App.2-CC_NewCGAAP_DepExp_2013'!K49-J49) -> 16408.8
A50: 1975 | B50: Load Management Controls Utility Premises | C50: 0 | E50: 0 | F50: =IF(D50=0,+'App.2-CC_NewCGAAP_DepExp_2013'!K50,+'App.2-CC_NewCGAAP_DepExp_2013'!K50+((C50*0.5)/D50)) -> 0 | G50: 0 | H50: 0 | I50: 0 | K50: =IF(ISERROR(+I50+'App.2-CC_NewCGAAP_DepExp_2013'!K50-J50), 0, +I50+'App.2-CC_NewCGAAP_DepExp_2013'!K50-J50) -> 0
A51: 1980 | B51: System Supervisor Equipment | C51: 2806 | D51: 20 | E51: 0.05 | F51: =IF(D51=0,+'App.2-CC_NewCGAAP_DepExp_2013'!K51,+'App.2-CC_NewCGAAP_DepExp_2013'!K51+((C51*0.5)/D51)) -> 6467.3 | G51: 45158 | H51: -38690.7 | I51: 140.3 | K51: =IF(ISERROR(+I51+'App.2-CC_NewCGAAP_DepExp_2013'!K51-J51), 0, +I51+'App.2-CC_NewCGAAP_DepExp_2013'!K51-J51) -> 6537.45
A52: 1985 | B52: Miscellaneous Fixed Assets | C52: 0 | E52: 0 | F52: =IF(D52=0,+'App.2-CC_NewCGAAP_DepExp_2013'!K52,+'App.2-CC_NewCGAAP_DepExp_2013'!K52+((C52*0.5)/D52)) -> 0 | G52: 0 | H52: 0 | I52: 0 | K52: =IF(ISERROR(+I52+'App.2-CC_NewCGAAP_DepExp_2013'!K52-J52), 0, +I52+'App.2-CC_NewCGAAP_DepExp_2013'!K52-J52) -> 0
A53: 1990 | B53: Other Tangible Property | C53: 0 | E53: 0 | F53: =IF(D53=0,+'App.2-CC_NewCGAAP_DepExp_2013'!K53,+'App.2-CC_NewCGAAP_DepExp_2013'!K53+((C53*0.5)/D53)) -> 0 | G53: 0 | H53: 0 | I53: 0 | K53: =IF(ISERROR(+I53+'App.2-CC_NewCGAAP_DepExp_2013'!K53-J53), 0, +I53+'App.2-CC_NewCGAAP_DepExp_2013'!K53-J53) -> 0
A54: 1995 | B54: Contributions & Grants | C54: -1195066 | D54: 50 | E54: =IF(D54=0,0,1/D54) -> 0.02 | F54: =IF(D54=0,+'App.2-CC_NewCGAAP_DepExp_2013'!K54,+'App.2-CC_NewCGAAP_DepExp_2013'!K54+((C54*0.5)/D54)) -> -29320.06 | G54: -190487 | H54: 161166.94 | I54: -23901.32 | K54: =IF(ISERROR(+I54+'App.2-CC_NewCGAAP_DepExp_2013'!K54-J54), 0, +I54+'App.2-CC_NewCGAAP_DepExp_2013'!K54-J54) -> -41270.72
B55: Total | C55: =SUM(C17:C54) -> 8290837 | F55: =SUM(F17:F54) -> 1793850.177 | G55: 1759983 | H55: 33867.17667 | I55: 606718.2938 | J55: 0 | K55: 2097208.865
B56: Depreciation exp. adj. from gain or loss on the retirement of assets (pool of like assets)
B57: Total Depreciation Expense | F57: =+F56+F55 -> 1793850.177
A59: Notes:
A60: 1 | B60: Board policy of the "half-year" rule - the applicant must ensure that additions in the year attract a half-year depreciation expense in the first year. Deviations from this standard practice must be supported in the application.
A61: 2 | B61: The applicant must provide an explanation of material variances in evidence.
A62: 3 | B62: This column refers to the calculated full year depreciation but excludes the depreciation expense on assets fully depreciated during the year. This column is used for the purpose of calculating depreciation expense in the following year on the next worksheet.
A64: General: | B64: Applicants must provide a breakdown of depreciation and amortization expense in the above format for all relevant accounts. Asset Retirement Obligations (AROs), depreciation and accretion expense should be disclosed separately consistent with the Notes of historical Audited Financial Statements.

Sheet App.2-CE_MIFRS_DepExp_2015
G1: File Number: | H1: =EBNUMBER -> EB-2015-0074
G2: Exhibit:
G3: Tab:
G4: Schedule:
G5: Page:
G7: Date:
A9: Appendix 2-CE
A10: Depreciation and Amortization Expense
A11: Assumes the applicant made capitalization and depreciation expense accounting policy changes under CGAAP effective January 1, 2012 and has adopted IFRS for financial reporting purposes effective January 1, 2015.
C13: 2015 | D13: MIFRS
A15: Account | B15: Description | C15: Additions | D15: Years (new additions only) | E15: Depreciation Rate on New Additions | F15: 2015 Depreciation Expense 1 | G15: 2015 Depreciation Expense per Appendix 2-BA Fixed Assets, Column J | H15: Variance 2 | I15: Depreciation Expense on 2015 Full Year Additions | J15: Less Depreciation Expense on Assets Fully Depreciated during the year | K15: 2015 Full Year Depreciation 3
C16: (d) | D16: (f) | E16: (g) = 1 / (f) | F16: (h)=2014 Full Year Depreciation + ((d)*0.5)/(f) | G16: (l) | H16: (m) = (h) - (l) | I16: (n)=((d))/(f) | J16: (o) | K16: (p) = 2014 Full Year Depreciation + (n) - (o)
A17: 1611 | B17: Computer Software (Formally known as Account 1925) | C17: 85500 | D17: 2 | E17: =IF(D17=0,0,1/D17) -> 0.5 | F17: =IF(D17=0,'App.2-CD_MIFRS_DepExp_2014'!K17,+'App.2-CD_MIFRS_DepExp_2014'!K17+((C17*0.5)/D17)) -> 581183.5 | G17: 648404 | H17: =IF(ISERROR(+F17-G17), 0, +F17-G17) -> -67220.5 | I17: =IF(D17=0,0,+(C17)/D17) -> 42750 | K17: =IF(ISERROR(+I17+'App.2-CD_MIFRS_DepExp_2014'!K17-J17), 0, +I17+'App.2-CD_MIFRS_DepExp_2014'!K17-J17) -> 602558.5
A18: 1612 | B18: Land Rights (Formally known as Account 1906) | C18: 0 | E18: 0 | F18: =IF(D18=0,'App.2-CD_MIFRS_DepExp_2014'!K18,+'App.2-CD_MIFRS_DepExp_2014'!K18+((C18*0.5)/D18)) -> 0 | G18: $ - | H18: 0 | I18: =IF(D18=0,0,+(C18)/D18) -> 0 | K18: =IF(ISERROR(+I18+'App.2-CD_MIFRS_DepExp_2014'!K18-J18), 0, +I18+'App.2-CD_MIFRS_DepExp_2014'!K18-J18) -> 0
A19: 1805 | B19: Land | C19: 933000 | E19: 0 | F19: =IF(D19=0,'App.2-CD_MIFRS_DepExp_2014'!K19,+'App.2-CD_MIFRS_DepExp_2014'!K19+((C19*0.5)/D19)) -> 0 | G19: $ - | H19: 0 | I19: 0 | K19: =IF(ISERROR(+I19+'App.2-CD_MIFRS_DepExp_2014'!K19-J19), 0, +I19+'App.2-CD_MIFRS_DepExp_2014'!K19-J19) -> 0
A20: 1808 | B20: Buildings | C20: 150000 | D20: 42 | E20: 0.02380952381 | F20: =IF(D20=0,'App.2-CD_MIFRS_DepExp_2014'!K20,+'App.2-CD_MIFRS_DepExp_2014'!K20+((C20*0.5)/D20)) -> 11318.38095 | G20: 65813 | H20: -54494.61905 | I20: 3571.428571 | K20: =IF(ISERROR(+I20+'App.2-CD_MIFRS_DepExp_2014'!K20-J20), 0, +I20+'App.2-CD_MIFRS_DepExp_2014'!K20-J20) -> 13104.09524
A21: 1810 | B21: Leasehold Improvements | C21: 0 | E21: 0 | F21: =IF(D21=0,'App.2-CD_MIFRS_DepExp_2014'!K21,+'App.2-CD_MIFRS_DepExp_2014'!K21+((C21*0.5)/D21)) -> 0 | G21: 0 | H21: 0 | I21: 0 | K21: =IF(ISERROR(+I21+'App.2-CD_MIFRS_DepExp_2014'!K21-J21), 0, +I21+'App.2-CD_MIFRS_DepExp_2014'!K21-J21) -> 0
A22: 1815 | B22: Transformer Station Equipment >50 kV | C22: 0 | E22: 0 | F22: =IF(D22=0,'App.2-CD_MIFRS_DepExp_2014'!K22,+'App.2-CD_MIFRS_DepExp_2014'!K22+((C22*0.5)/D22)) -> 0 | G22: 0 | H22: 0 | I22: 0 | K22: =IF(ISERROR(+I22+'App.2-CD_MIFRS_DepExp_2014'!K22-J22), 0, +I22+'App.2-CD_MIFRS_DepExp_2014'!K22-J22) -> 0
A23: 1820 | B23: Distribution Station Equipment <50 kV | C23: 267445 | D23: 20 | E23: 0.05 | F23: =IF(D23=0,'App.2-CD_MIFRS_DepExp_2014'!K23,+'App.2-CD_MIFRS_DepExp_2014'!K23+((C23*0.5)/D23)) -> 37105.625 | G23: 61228 | H23: -24122.375 | I23: 13372.25 | K23: =IF(ISERROR(+I23+'App.2-CD_MIFRS_DepExp_2014'!K23-J23), 0, +I23+'App.2-CD_MIFRS_DepExp_2014'!K23-J23) -> 43791.75
A24: 1825 | B24: Storage Battery Equipment | C24: 0 | E24: 0 | F24: =IF(D24=0,'App.2-CD_MIFRS_DepExp_2014'!K24,+'App.2-CD_MIFRS_DepExp_2014'!K24+((C24*0.5)/D24)) -> 0 | G24: 0 | H24: 0 | I24: 0 | K24: =IF(ISERROR(+I24+'App.2-CD_MIFRS_DepExp_2014'!K24-J24), 0, +I24+'App.2-CD_MIFRS_DepExp_2014'!K24-J24) -> 0
A25: 1830 | B25: Poles, Towers & Fixtures | C25: 2877676 | D25: 50 | E25: 0.02 | F25: =IF(D25=0,'App.2-CD_MIFRS_DepExp_2014'!K25,+'App.2-CD_MIFRS_DepExp_2014'!K25+((C25*0.5)/D25)) -> 795274.34 | G25: 419333 | H25: 375941.34 | I25: 57553.52 | K25: =IF(ISERROR(+I25+'App.2-CD_MIFRS_DepExp_2014'!K25-J25), 0, +I25+'App.2-CD_MIFRS_DepExp_2014'!K25-J25) -> 824051.1
A26: 1835 | B26: Overhead Conductors & Devices | C26: 1223235 | D26: 50 | E26: 0.02 | F26: =IF(D26=0,'App.2-CD_MIFRS_DepExp_2014'!K26,+'App.2-CD_MIFRS_DepExp_2014'!K26+((C26*0.5)/D26)) -> 61386.97 | G26: 210006 | H26: -148619.03 | I26: 24464.7 | K26: =IF(ISERROR(+I26+'App.2-CD_MIFRS_DepExp_2014'!K26-J26), 0, +I26+'App.2-CD_MIFRS_DepExp_2014'!K26-J26) -> 73619.32
A27: 1840 | B27: Underground Conduit | C27: 364390 | D27: 50 | E27: 0.02 | F27: =IF(D27=0,'App.2-CD_MIFRS_DepExp_2014'!K27,+'App.2-CD_MIFRS_DepExp_2014'!K27+((C27*0.5)/D27)) -> 8057.96 | G27: 24714 | H27: -16656.04 | I27: 7287.8 | K27: =IF(ISERROR(+I27+'App.2-CD_MIFRS_DepExp_2014'!K27-J27), 0, +I27+'App.2-CD_MIFRS_DepExp_2014'!K27-J27) -> 11701.86
A28: 1845 | B28: Underground Conductors & Devices | C28: 498591 | D28: 35 | E28: 0.02857142857 | F28: =IF(D28=0,'App.2-CD_MIFRS_DepExp_2014'!K28,+'App.2-CD_MIFRS_DepExp_2014'!K28+((C28*0.5)/D28)) -> 73305.21429 | G28: 286513 | H28: -213207.7857 | I28: 14245.45714 | K28: =IF(ISERROR(+I28+'App.2-CD_MIFRS_DepExp_2014'!K28-J28), 0, +I28+'App.2-CD_MIFRS_DepExp_2014'!K28-J28) -> 80427.94286
A29: 1850 | B29: Line Transformers | C29: 0 | D29: 35 | E29: 0.02857142857 | F29: 0 | H29: 0 | I29: 0 | K29: 0
A30: 1855 | B30: Services (Overhead & Underground) | C30: 342263 | D30: 50 | E30: 0.02 | F30: =IF(D30=0,'App.2-CD_MIFRS_DepExp_2014'!K30,+'App.2-CD_MIFRS_DepExp_2014'!K30+((C30*0.5)/D30)) -> 9900.51 | G30: 4278 | H30: 5622.51 | I30: 6845.26 | K30: =IF(ISERROR(+I30+'App.2-CD_MIFRS_DepExp_2014'!K30-J30), 0, +I30+'App.2-CD_MIFRS_DepExp_2014'!K30-J30) -> 13323.14
A31: 1860 | B31: Meters | C31: 0 | E31: 0 | F31: =IF(D31=0,'App.2-CD_MIFRS_DepExp_2014'!K31,+'App.2-CD_MIFRS_DepExp_2014'!K31+((C31*0.5)/D31)) -> 0 | G31: 0 | H31: 0 | I31: 0 | K31: =IF(ISERROR(+I31+'App.2-CD_MIFRS_DepExp_2014'!K31-J31), 0, +I31+'App.2-CD_MIFRS_DepExp_2014'!K31-J31) -> 0
A32: 1860 | B32: Meters (Smart Meters) | C32: 343186 | D32: 15 | E32: 0.06666666667 | F32: =IF(D32=0,'App.2-CD_MIFRS_DepExp_2014'!K32,+'App.2-CD_MIFRS_DepExp_2014'!K32+((C32*0.5)/D32)) -> 292194.1333 | G32: 154835 | H32: 137359.1333 | I32: 22879.06667 | K32: =IF(ISERROR(+I32+'App.2-CD_MIFRS_DepExp_2014'!K32-J32), 0, +I32+'App.2-CD_MIFRS_DepExp_2014'!K32-J32) -> 303633.6667
A33: 1905 | B33: Land | C33: 0 | E33: 0 | F33: =IF(D33=0,'App.2-CD_MIFRS_DepExp_2014'!K33,+'App.2-CD_MIFRS_DepExp_2014'!K33+((C33*0.5)/D33)) -> 0 | G33: 0 | H33: 0 | I33: 0 | K33: =IF(ISERROR(+I33+'App.2-CD_MIFRS_DepExp_2014'!K33-J33), 0, +I33+'App.2-CD_MIFRS_DepExp_2014'!K33-J33) -> 0
A34: 1908 | B34: Buildings & Fixtures | C34: 0 | D34: 42 | E34: 0.02380952381 | F34: =IF(D34=0,'App.2-CD_MIFRS_DepExp_2014'!K34,+'App.2-CD_MIFRS_DepExp_2014'!K34+((C34*0.5)/D34)) -> 0 | G34: 0 | H34: 0 | I34: 0 | K34: =IF(ISERROR(+I34+'App.2-CD_MIFRS_DepExp_2014'!K34-J34), 0, +I34+'App.2-CD_MIFRS_DepExp_2014'!K34-J34) -> 0
A35: 1910 | B35: Leasehold Improvements | C35: 0 | E35: 0 | F35: =IF(D35=0,'App.2-CD_MIFRS_DepExp_2014'!K35,+'App.2-CD_MIFRS_DepExp_2014'!K35+((C35*0.5)/D35)) -> 0 | G35: 0 | H35: 0 | I35: 0 | K35: =IF(ISERROR(+I35+'App.2-CD_MIFRS_DepExp_2014'!K35-J35), 0, +I35+'App.2-CD_MIFRS_DepExp_2014'!K35-J35) -> 0
A36: 1915 | B36: Office Furniture & Equipment (10 years) | C36: 0 | E36: 0 | F36: =IF(D36=0,'App.2-CD_MIFRS_DepExp_2014'!K36,+'App.2-CD_MIFRS_DepExp_2014'!K36+((C36*0.5)/D36)) -> 0 | G36: 0 | H36: 0 | I36: 0 | K36: =IF(ISERROR(+I36+'App.2-CD_MIFRS_DepExp_2014'!K36-J36), 0, +I36+'App.2-CD_MIFRS_DepExp_2014'!K36-J36) -> 0
A37: 1915 | B37: Office Furniture & Equipment (5 years) | C37: 51136 | D37: 5 | E37: 0.2 | F37: =IF(D37=0,'App.2-CD_MIFRS_DepExp_2014'!K37,+'App.2-CD_MIFRS_DepExp_2014'!K37+((C37*0.5)/D37)) -> 14433.8 | G37: 30332 | H37: -15898.2 | I37: 10227.2 | K37: =IF(ISERROR(+I37+'App.2-CD_MIFRS_DepExp_2014'!K37-J37), 0, +I37+'App.2-CD_MIFRS_DepExp_2014'!K37-J37) -> 19547.4
A38: 1920 | B38: Computer Equipment - Hardware | C38: 121500 | D38: 3 | E38: 0.3333333333 | F38: =IF(D38=0,'App.2-CD_MIFRS_DepExp_2014'!K38,+'App.2-CD_MIFRS_DepExp_2014'!K38+((C38*0.5)/D38)) -> 172572 | G38: 178182 | H38: -5610 | I38: 40500 | K38: =IF(ISERROR(+I38+'App.2-CD_MIFRS_DepExp_2014'!K38-J38), 0, +I38+'App.2-CD_MIFRS_DepExp_2014'!K38-J38) -> 192822
A39: 1920 | B39: Computer Equip.-Hardware(Post Mar. 22/04) | C39: 0 | E39: 0 | F39: =IF(D39=0,'App.2-CD_MIFRS_DepExp_2014'!K39,+'App.2-CD_MIFRS_DepExp_2014'!K39+((C39*0.5)/D39)) -> 0 | G39: 0 | H39: 0 | I39: 0 | K39: =IF(ISERROR(+I39+'App.2-CD_MIFRS_DepExp_2014'!K39-J39), 0, +I39+'App.2-CD_MIFRS_DepExp_2014'!K39-J39) -> 0
A40: 1920 | B40: Computer Equip.-Hardware(Post Mar. 19/07) | C40: 0 | E40: 0 | F40: =IF(D40=0,'App.2-CD_MIFRS_DepExp_2014'!K40,+'App.2-CD_MIFRS_DepExp_2014'!K40+((C40*0.5)/D40)) -> 0 | G40: 0 | H40: 0 | I40: 0 | K40: =IF(ISERROR(+I40+'App.2-CD_MIFRS_DepExp_2014'!K40-J40), 0, +I40+'App.2-CD_MIFRS_DepExp_2014'!K40-J40) -> 0
A41: 1930 | B41: Transportation Equipment | C41: 329000 | D41: 12 | E41: 0.08333333333 | F41: 104627 | G41: 153830 | H41: -49203 | I41: 27416.66667 | K41: 118335
A42: 1935 | B42: Stores Equipment | C42: 0 | D42: 10 | E42: 0.1 | F42: =IF(D42=0,'App.2-CD_MIFRS_DepExp_2014'!K42,+'App.2-CD_MIFRS_DepExp_2014'!K42+((C42*0.5)/D42)) -> 586.7 | G42: 0 | H42: 586.7 | I42: 0 | K42: =IF(ISERROR(+I42+'App.2-CD_MIFRS_DepExp_2014'!K42-J42), 0, +I42+'App.2-CD_MIFRS_DepExp_2014'!K42-J42) -> 586.7
A43: 1940 | B43: Tools, Shop & Garage Equipment | C43: 30000 | D43: 10 | E43: 0.1 | F43: =IF(D43=0,'App.2-CD_MIFRS_DepExp_2014'!K43,+'App.2-CD_MIFRS_DepExp_2014'!K43+((C43*0.5)/D43)) -> 15116.9 | G43: 36802 | H43: -21685.1 | I43: 3000 | K43: =IF(ISERROR(+I43+'App.2-CD_MIFRS_DepExp_2014'!K43-J43), 0, +I43+'App.2-CD_MIFRS_DepExp_2014'!K43-J43) -> 16616.9
A44: 1945 | B44: Measurement & Testing Equipment | C44: 5000 | E44: 0 | F44: =IF(D44=0,'App.2-CD_MIFRS_DepExp_2014'!K44,+'App.2-CD_MIFRS_DepExp_2014'!K44+((C44*0.5)/D44)) -> 0 | G44: 0 | H44: 0 | I44: 0 | K44: =IF(ISERROR(+I44+'App.2-CD_MIFRS_DepExp_2014'!K44-J44), 0, +I44+'App.2-CD_MIFRS_DepExp_2014'!K44-J44) -> 0
A45: 1950 | B45: Power Operated Equipment | C45: 0 | E45: 0 | F45: =IF(D45=0,'App.2-CD_MIFRS_DepExp_2014'!K45,+'App.2-CD_MIFRS_DepExp_2014'!K45+((C45*0.5)/D45)) -> 0 | G45: 0 | H45: 0 | I45: 0 | K45: =IF(ISERROR(+I45+'App.2-CD_MIFRS_DepExp_2014'!K45-J45), 0, +I45+'App.2-CD_MIFRS_DepExp_2014'!K45-J45) -> 0
A46: 1955 | B46: Communications Equipment | C46: 7000 | D46: 10 | E46: 0.1 | F46: =IF(D46=0,'App.2-CD_MIFRS_DepExp_2014'!K46,+'App.2-CD_MIFRS_DepExp_2014'!K46+((C46*0.5)/D46)) -> 597.7 | G46: 4365 | H46: -3767.3 | I46: 700 | K46: =IF(ISERROR(+I46+'App.2-CD_MIFRS_DepExp_2014'!K46-J46), 0, +I46+'App.2-CD_MIFRS_DepExp_2014'!K46-J46) -> 947.7
A47: 1955 | B47: Communication Equipment (Smart Meters) | C47: 0 | E47: 0 | F47: =IF(D47=0,'App.2-CD_MIFRS_DepExp_2014'!K47,+'App.2-CD_MIFRS_DepExp_2014'!K47+((C47*0.5)/D47)) -> 0 | G47: 0 | H47: 0 | I47: 0 | K47: =IF(ISERROR(+I47+'App.2-CD_MIFRS_DepExp_2014'!K47-J47), 0, +I47+'App.2-CD_MIFRS_DepExp_2014'!K47-J47) -> 0
A48: 1960 | B48: Miscellaneous Equipment | C48: 0 | E48: 0 | F48: =IF(D48=0,'App.2-CD_MIFRS_DepExp_2014'!K48,+'App.2-CD_MIFRS_DepExp_2014'!K48+((C48*0.5)/D48)) -> 0 | G48: 0 | H48: 0 | I48: 0 | K48: =IF(ISERROR(+I48+'App.2-CD_MIFRS_DepExp_2014'!K48-J48), 0, +I48+'App.2-CD_MIFRS_DepExp_2014'!K48-J48) -> 0
A49: 1970 | B49: Load Management Controls Customer Premises | C49: 0 | D49: 10 | E49: 0.1 | F49: =IF(D49=0,'App.2-CD_MIFRS_DepExp_2014'!K49,+'App.2-CD_MIFRS_DepExp_2014'!K49+((C49*0.5)/D49)) -> 16408.8 | G49: 0 | H49: 16408.8 | I49: 0 | K49: =IF(ISERROR(+I49+'App.2-CD_MIFRS_DepExp_2014'!K49-J49), 0, +I49+'App.2-CD_MIFRS_DepExp_2014'!K49-J49) -> 16408.8
A50: 1975 | B50: Load Management Controls Utility Premises | C50: 0 | E50: 0 | F50: =IF(D50=0,'App.2-CD_MIFRS_DepExp_2014'!K50,+'App.2-CD_MIFRS_DepExp_2014'!K50+((C50*0.5)/D50)) -> 0 | G50: 0 | H50: 0 | I50: 0 | K50: =IF(ISERROR(+I50+'App.2-CD_MIFRS_DepExp_2014'!K50-J50), 0, +I50+'App.2-CD_MIFRS_DepExp_2014'!K50-J50) -> 0
A51: 1980 | B51: System Supervisor Equipment | C51: 292962 | D51: 20 | E51: 0.05 | F51: =IF(D51=0,'App.2-CD_MIFRS_DepExp_2014'!K51,+'App.2-CD_MIFRS_DepExp_2014'!K51+((C51*0.5)/D51)) -> 13861.5 | G51: 0 | H51: 13861.5 | I51: 14648.1 | K51: =IF(ISERROR(+I51+'App.2-CD_MIFRS_DepExp_2014'!K51-J51), 0, +I51+'App.2-CD_MIFRS_DepExp_2014'!K51-J51) -> 21185.55
A52: 1985 | B52: Miscellaneous Fixed Assets | C52: 0 | E52: 0 | F52: =IF(D52=0,'App.2-CD_MIFRS_DepExp_2014'!K52,+'App.2-CD_MIFRS_DepExp_2014'!K52+((C52*0.5)/D52)) -> 0 | G52: 0 | H52: 0 | I52: 0 | K52: =IF(ISERROR(+I52+'App.2-CD_MIFRS_DepExp_2014'!K52-J52), 0, +I52+'App.2-CD_MIFRS_DepExp_2014'!K52-J52) -> 0
A53: 1990 | B53: Other Tangible Property | C53: 0 | E53: 0 | F53: =IF(D53=0,'App.2-CD_MIFRS_DepExp_2014'!K53,+'App.2-CD_MIFRS_DepExp_2014'!K53+((C53*0.5)/D53)) -> 0 | G53: 0 | H53: 0 | I53: 0 | K53: =IF(ISERROR(+I53+'App.2-CD_MIFRS_DepExp_2014'!K53-J53), 0, +I53+'App.2-CD_MIFRS_DepExp_2014'!K53-J53) -> 0
A54: 1995 | B54: Contributions & Grants | C54: -1448137 | D54: 50 | E54: 0.02 | F54: =IF(D54=0,'App.2-CD_MIFRS_DepExp_2014'!K54,+'App.2-CD_MIFRS_DepExp_2014'!K54+((C54*0.5)/D54)) -> -55752.09 | G54: -262091 | H54: 206338.91 | I54: -28962.74 | K54: =IF(ISERROR(+I54+'App.2-CD_MIFRS_DepExp_2014'!K54-J54), 0, +I54+'App.2-CD_MIFRS_DepExp_2014'!K54-J54) -> -70233.46
B55: Total | C55: =SUM(C17:C54) -> 6473747 | F55: =SUM(F17:F54) -> 2152178.944 | G55: =SUM(G17:G54) -> 2016544 | H55: =SUM(H17:H54) -> 135634.9436 | I55: =SUM(I17:I54) -> 260498.709 | J55: 0 | K55: =SUM(K17:K54) -> 2282427.965
B56: Depreciation exp. adj. from gain or loss on the retirement of assets (pool of like assets)
B57: Total Depreciation expense to be included in the test year revenue requirement | F57: =SUM(F55:F56) -> 2152178.944
A58: Notes:
A59: 1 | B59: Board policy of the "half-year" rule - the applicant must ensure that additions in the year attract a half-year depreciation expense in the first year. Deviations from this standard practice must be supported in the application.
A60: 2 | B60: The applicant must provide an explanation of material variances in evidence.
A61: 3 | B61: This column refers to the calculated full year depreciation but excludes the depreciation expense on assets fully depreciated during the year. This column is used for the purpose of calculating depreciation expense in the following year on the next worksheet.
A63: General: | B63: Applicants must provide a breakdown of depreciation and amortization expense in the above format for all relevant accounts. Asset Retirement Obligations (AROs), depreciation and accretion expense should be disclosed separately consistent with the Notes of historical Audited Financial Statements.

Sheet App.2-CF_MIFRS_DepExp_2016
G1: File Number: | H1: =EBNUMBER -> EB-2015-0074
G2: Exhibit:
G3: Tab:
G4: Schedule:
G5: Page:
G7: Date:
A9: Appendix 2-CF
A10: Depreciation and Amortization Expense
A11: Assumes the applicant made capitalization and depreciation expense accounting policy changes under CGAAP effective January 1, 2012 and has adopted IFRS for financial reporting purposes effective January 1, 2015.
C13: 2016 | D13: MIFRS
A15: Account | B15: Description | C15: Additions | D15: Years (new additions only) | E15: Depreciation Rate on New Additions | F15: 2016 Depreciation Expense 1 | G15: 2016 Depreciation Expense per Appendix 2-BA Fixed Assets, Column J | H15: Variance 2
C16: (d) | D16: (f) | E16: (g) = 1 / (f) | F16: (h)=2015 Full Year Depreciation + ((d)*0.5)/(f) | G16: (l) | H16: (m) = (h) - (l)
A17: 1611 | B17: Computer Software (Formally known as Account 1925) | C17: 2800 | D17: 2 | E17: =IF(D17=0,0,1/D17) -> 0.5 | F17: =IF(D17=0,'App.2-CE_MIFRS_DepExp_2015'!K17,+'App.2-CE_MIFRS_DepExp_2015'!K17+((C17*0.5)/D17)) -> 603258.5 | G17: 670479 | H17: =IF(ISERROR(+F17-G17), 0, +F17-G17) -> -67220.5
A18: 1612 | B18: Land Rights (Formally known as Account 1906) | C18: 0 | E18: 0 | F18: =IF(D18=0,'App.2-CE_MIFRS_DepExp_2015'!K18,+'App.2-CE_MIFRS_DepExp_2015'!K18+((C18*0.5)/D18)) -> 0 | G18: 0 | H18: 0
A19: 1805 | B19: Land | C19: 0 | E19: 0 | F19: =IF(D19=0,'App.2-CE_MIFRS_DepExp_2015'!K19,+'App.2-CE_MIFRS_DepExp_2015'!K19+((C19*0.5)/D19)) -> 0 | G19: 0 | H19: 0
A20: 1808 | B20: Buildings | C20: 285000 | D20: 42 | E20: 0.02380952381 | F20: =IF(D20=0,'App.2-CE_MIFRS_DepExp_2015'!K20,+'App.2-CE_MIFRS_DepExp_2015'!K20+((C20*0.5)/D20)) -> 16496.95238 | G20: 70992 | H20: -54495.04762
A21: 1810 | B21: Leasehold Improvements | C21: 0 | E21: 0 | F21: =IF(D21=0,'App.2-CE_MIFRS_DepExp_2015'!K21,+'App.2-CE_MIFRS_DepExp_2015'!K21+((C21*0.5)/D21)) -> 0 | G21: 0 | H21: 0
A22: 1815 | B22: Transformer Station Equipment >50 kV | C22: 0 | E22: 0 | F22: =IF(D22=0,'App.2-CE_MIFRS_DepExp_2015'!K22,+'App.2-CE_MIFRS_DepExp_2015'!K22+((C22*0.5)/D22)) -> 0 | G22: 0 | H22: 0
A23: 1820 | B23: Distribution Station Equipment <50 kV | C23: 1008609 | D23: 20 | E23: 0.05 | F23: =IF(D23=0,'App.2-CE_MIFRS_DepExp_2015'!K23,+'App.2-CE_MIFRS_DepExp_2015'!K23+((C23*0.5)/D23)) -> 69006.975 | G23: 93129 | H23: -24122.025
A24: 1825 | B24: Storage Battery Equipment | C24: 0 | E24: 0 | F24: =IF(D24=0,'App.2-CE_MIFRS_DepExp_2015'!K24,+'App.2-CE_MIFRS_DepExp_2015'!K24+((C24*0.5)/D24)) -> 0 | G24: 0 | H24: 0
A25: 1830 | B25: Poles, Towers & Fixtures | C25: 3706539 | D25: 50 | E25: 0.02 | F25: =IF(D25=0,'App.2-CE_MIFRS_DepExp_2015'!K25,+'App.2-CE_MIFRS_DepExp_2015'!K25+((C25*0.5)/D25)) -> 861116.49 | G25: 485175 | H25: 375941.49
A26: 1835 | B26: Overhead Conductors & Devices | C26: 1501254 | D26: 50 | E26: 0.02 | F26: =IF(D26=0,'App.2-CE_MIFRS_DepExp_2015'!K26,+'App.2-CE_MIFRS_DepExp_2015'!K26+((C26*0.5)/D26)) -> 88631.86 | G26: 240278 | H26: -151646.14
A27: 1840 | B27: Underground Conduit | C27: 546812 | D27: 50 | E27: 0.02 | F27: =IF(D27=0,'App.2-CE_MIFRS_DepExp_2015'!K27,+'App.2-CE_MIFRS_DepExp_2015'!K27+((C27*0.5)/D27)) -> 17169.98 | G27: 33826 | H27: -16656.02
A28: 1845 | B28: Underground Conductors & Devices | C28: 208164 | D28: 35 | E28: 0.02857142857 | F28: =IF(D28=0,'App.2-CE_MIFRS_DepExp_2015'!K28,+'App.2-CE_MIFRS_DepExp_2015'!K28+((C28*0.5)/D28)) -> 83401.71429 | G28: 296064 | H28: -212662.2857
A29: 1850 | B29: Line Transformers | C29: 893285 | D29: 35 | E29: 0.02857142857 | F29: 126779 | G29: 278906 | H29: -152127
A30: 1855 | B30: Services (Overhead & Underground) | C30: 387911 | D30: 50 | E30: 0.02 | F30: =IF(D30=0,'App.2-CE_MIFRS_DepExp_2015'!K30,+'App.2-CE_MIFRS_DepExp_2015'!K30+((C30*0.5)/D30)) -> 17202.25 | G30: 13405 | H30: 3797.25
A31: 1860 | B31: Meters | E31: 0 | F31: =IF(D31=0,'App.2-CE_MIFRS_DepExp_2015'!K31,+'App.2-CE_MIFRS_DepExp_2015'!K31+((C31*0.5)/D31)) -> 0 | H31: 0
A32: 1860 | B32: Meters (Smart Meters) | C32: 294710 | D32: 15 | E32: 0.06666666667 | F32: =IF(D32=0,'App.2-CE_MIFRS_DepExp_2015'!K32,+'App.2-CE_MIFRS_DepExp_2015'!K32+((C32*0.5)/D32)) -> 313457.3333 | G32: 164802 | H32: 148655.3333
A33: 1905 | B33: Land | C33: 0 | E33: 0 | F33: =IF(D33=0,'App.2-CE_MIFRS_DepExp_2015'!K33,+'App.2-CE_MIFRS_DepExp_2015'!K33+((C33*0.5)/D33)) -> 0 | G33: 0 | H33: 0
A34: 1908 | B34: Buildings & Fixtures | C34: 0 | D34: 42 | E34: 0.02380952381 | F34: =IF(D34=0,'App.2-CE_MIFRS_DepExp_2015'!K34,+'App.2-CE_MIFRS_DepExp_2015'!K34+((C34*0.5)/D34)) -> 0 | G34: 0 | H34: 0
A35: 1910 | B35: Leasehold Improvements | C35: 0 | E35: 0 | F35: =IF(D35=0,'App.2-CE_MIFRS_DepExp_2015'!K35,+'App.2-CE_MIFRS_DepExp_2015'!K35+((C35*0.5)/D35)) -> 0 | G35: 0 | H35: 0
A36: 1915 | B36: Office Furniture & Equipment (10 years) | C36: 0 | E36: 0 | F36: =IF(D36=0,'App.2-CE_MIFRS_DepExp_2015'!K36,+'App.2-CE_MIFRS_DepExp_2015'!K36+((C36*0.5)/D36)) -> 0 | G36: 0 | H36: 0
A37: 1915 | B37: Office Furniture & Equipment (5 years) | C37: 70000 | D37: 5 | E37: 0.2 | F37: =IF(D37=0,'App.2-CE_MIFRS_DepExp_2015'!K37,+'App.2-CE_MIFRS_DepExp_2015'!K37+((C37*0.5)/D37)) -> 26547.4 | G37: 42445 | H37: -15897.6
A38: 1920 | B38: Computer Equipment - Hardware | C38: 75000 | D38: 3 | E38: 0.3333333333 | F38: =IF(D38=0,'App.2-CE_MIFRS_DepExp_2015'!K38,+'App.2-CE_MIFRS_DepExp_2015'!K38+((C38*0.5)/D38)) -> 205322 | G38: 210932 | H38: -5610
A39: 1920 | B39: Computer Equip.-Hardware(Post Mar. 22/04) | C39: 0 | E39: 0 | F39: =IF(D39=0,'App.2-CE_MIFRS_DepExp_2015'!K39,+'App.2-CE_MIFRS_DepExp_2015'!K39+((C39*0.5)/D39)) -> 0 | G39: 0 | H39: 0
A40: 1920 | B40: Computer Equip.-Hardware(Post Mar. 19/07) | C40: 0 | E40: 0 | F40: =IF(D40=0,'App.2-CE_MIFRS_DepExp_2015'!K40,+'App.2-CE_MIFRS_DepExp_2015'!K40+((C40*0.5)/D40)) -> 0 | G40: 0 | H40: 0
A41: 1930 | B41: Transportation Equipment | C41: 145000 | D41: 12 | E41: 0.08333333333 | F41: 138085 | G41: 173580 | H41: -35495
A42: 1935 | B42: Stores Equipment | C42: 0 | D42: 10 | E42: 0.1 | F42: =IF(D42=0,'App.2-CE_MIFRS_DepExp_2015'!K42,+'App.2-CE_MIFRS_DepExp_2015'!K42+((C42*0.5)/D42)) -> 586.7 | G42: 0 | H42: 586.7
A43: 1940 | B43: Tools, Shop & Garage Equipment | C43: 32000 | D43: 10 | E43: 0.1 | F43: =IF(D43=0,'App.2-CE_MIFRS_DepExp_2015'!K43,+'App.2-CE_MIFRS_DepExp_2015'!K43+((C43*0.5)/D43)) -> 18216.9 | G43: 39902 | H43: -21685.1
A44: 1945 | B44: Measurement & Testing Equipment | C44: 0 | E44: 0 | F44: =IF(D44=0,'App.2-CE_MIFRS_DepExp_2015'!K44,+'App.2-CE_MIFRS_DepExp_2015'!K44+((C44*0.5)/D44)) -> 0 | G44: 0 | H44: 0
A45: 1950 | B45: Power Operated Equipment | C45: 0 | E45: 0 | F45: =IF(D45=0,'App.2-CE_MIFRS_DepExp_2015'!K45,+'App.2-CE_MIFRS_DepExp_2015'!K45+((C45*0.5)/D45)) -> 0 | G45: 0 | H45: 0
A46: 1955 | B46: Communications Equipment | C46: 100000 | D46: 10 | E46: 0.1 | F46: =IF(D46=0,'App.2-CE_MIFRS_DepExp_2015'!K46,+'App.2-CE_MIFRS_DepExp_2015'!K46+((C46*0.5)/D46)) -> 5947.7 | G46: 15065 | H46: -9117.3
A47: 1955 | B47: Communication Equipment (Smart Meters) | C47: 0 | E47: 0 | F47: =IF(D47=0,'App.2-CE_MIFRS_DepExp_2015'!K47,+'App.2-CE_MIFRS_DepExp_2015'!K47+((C47*0.5)/D47)) -> 0 | G47: 0 | H47: 0
A48: 1960 | B48: Miscellaneous Equipment | C48: 0 | E48: 0 | F48: =IF(D48=0,'App.2-CE_MIFRS_DepExp_2015'!K48,+'App.2-CE_MIFRS_DepExp_2015'!K48+((C48*0.5)/D48)) -> 0 | G48: 0 | H48: 0
A49: 1970 | B49: Load Management Controls Customer Premises | C49: 0 | D49: 10 | E49: 0.1 | F49: =IF(D49=0,'App.2-CE_MIFRS_DepExp_2015'!K49,+'App.2-CE_MIFRS_DepExp_2015'!K49+((C49*0.5)/D49)) -> 16408.8 | G49: 0 | H49: 16408.8
A50: 1975 | B50: Load Management Controls Utility Premises | C50: 0 | E50: 0 | F50: =IF(D50=0,'App.2-CE_MIFRS_DepExp_2015'!K50,+'App.2-CE_MIFRS_DepExp_2015'!K50+((C50*0.5)/D50)) -> 0 | G50: 0 | H50: 0
A51: 1980 | B51: System Supervisor Equipment | C51: 86579 | D51: 20 | E51: 0.05 | F51: =IF(D51=0,'App.2-CE_MIFRS_DepExp_2015'!K51,+'App.2-CE_MIFRS_DepExp_2015'!K51+((C51*0.5)/D51)) -> 23350.025 | G51: 0 | H51: 23350.025
A52: 1985 | B52: Miscellaneous Fixed Assets | C52: 0 | E52: 0 | F52: =IF(D52=0,'App.2-CE_MIFRS_DepExp_2015'!K52,+'App.2-CE_MIFRS_DepExp_2015'!K52+((C52*0.5)/D52)) -> 0 | G52: 0 | H52: 0
A53: 1990 | B53: Other Tangible Property | C53: 0 | E53: 0 | F53: =IF(D53=0,'App.2-CE_MIFRS_DepExp_2015'!K53,+'App.2-CE_MIFRS_DepExp_2015'!K53+((C53*0.5)/D53)) -> 0 | G53: 0 | H53: 0
A54: 1995 | B54: Contributions & Grants | C54: -1132703 | D54: 50 | E54: 0.02 | F54: =IF(D54=0,'App.2-CE_MIFRS_DepExp_2015'!K54,+'App.2-CE_MIFRS_DepExp_2015'!K54+((C54*0.5)/D54)) -> -81560.49 | G54: -298960 | H54: 217399.51
B55: Total | C55: =SUM(C17:C54) -> 8210960 | F55: =SUM(F17:F54) -> 2549425.09 | G55: =SUM(G17:G54) -> 2530020 | H55: =SUM(H17:H54) -> 19405.09
B56: Depreciation exp. adj. from gain or loss on the retirement of assets (pool of like assets)
B57: Total Depreciation expense to be included in the test year revenue requirement | F57: =SUM(F55:F56) -> 2549425.09
A58: Notes:
A59: 1 | B59: Board policy of the "half-year" rule - the applicant must ensure that additions in the year attract a half-year depreciation expense in the first year. Deviations from this standard practice must be supported in the application.
A60: 2 | B60: The applicant must provide an explanation of material variances in evidence.
A63: General: | B63: Applicants must provide a breakdown of depreciation and amortization expense in the above format for all relevant accounts. Asset Retirement Obligations (AROs), depreciation and accretion expense should be disclosed separately consistent with the Notes of historical Audited Financial Statements.

Sheet App.2-CG_OldCGAAP_DepExp_2013
K1: File Number: | L1: =EBNUMBER -> EB-2015-0074
K2: Exhibit:
K3: Tab:
K4: Schedule:
K5: Page:
K7: Date:
A9: Appendix 2-CG
A10: Depreciation and Amortization Expense
B11: Assumes the applicant made capitalization and depreciation expense accounting policy changes under CGAAP effective January 1, 2013 and has adopted IFRS for financial reporting purposes effective January 1, 2015.
C13: Year | D13: 2013 | E13: Former CGAAP
A15: Account | B15: Description | C15: Opening Regulatory Gross PP&E as at Jan 1, 2013 | D15: Less Fully Depreciated | E15: Net for Depreciation | F15: Additions | G15: Total for Depreciation 1 | H15: Years | I15: Depreciation Rate | J15: Depreciation Expense | K15: 2013 Depreciation Expense per Appendix 2-BA Fixed Assets, Column J (l) | L15: Variance 2
C16: (a) | D16: (b) | E16: (c) | F16: (d) | G16: (e) = (c) + ½ x (d) | H16: (f) | I16: (g) = 1 / (f) | J16: (h) = (e) / (f) | L16: (m) = (h) - (l)
A17: 1611 | B17: Computer Software (Formally known as Account 1925) | E17: =C17-D17 -> 0 | G17: =E17+0.5*F17 -> 0 | I17: =IF(H17=0,0,1/H17) -> 0 | J17: =IF(H17=0,0,G17/H17) -> 0 | L17: =IF(ISERROR(+J17-K17), 0, +J17-K17) -> 0
A18: 1612 | B18: Land Rights (Formally known as Account 1906) | E18: =C18-D18 -> 0 | G18: =E18+0.5*F18 -> 0 | I18: 0 | J18: 0 | L18: 0
A19: 1805 | B19: Land | E19: 0 | G19: 0 | I19: 0 | J19: 0 | L19: 0
A20: 1808 | B20: Buildings | E20: 0 | G20: 0 | I20: 0 | J20: 0 | L20: 0
A21: 1810 | B21: Leasehold Improvements | E21: 0 | G21: 0 | I21: 0 | J21: 0 | L21: 0
A22: 1815 | B22: Transformer Station Equipment >50 kV | E22: 0 | G22: 0 | I22: 0 | J22: 0 | L22: 0
A23: 1820 | B23: Distribution Station Equipment <50 kV | E23: 0 | G23: 0 | I23: 0 | J23: 0 | L23: 0
A24: 1825 | B24: Storage Battery Equipment | E24: 0 | G24: 0 | I24: 0 | J24: 0 | L24: 0
A25: 1830 | B25: Poles, Towers & Fixtures | E25: 0 | G25: 0 | I25: 0 | J25: 0 | L25: 0
A26: 1835 | B26: Overhead Conductors & Devices | E26: 0 | G26: 0 | I26: 0 | J26: 0 | L26: 0
A27: 1840 | B27: Underground Conduit | E27: 0 | G27: 0 | I27: 0 | J27: 0 | L27: 0
A28: 1845 | B28: Underground Conductors & Devices | E28: 0 | G28: 0 | I28: 0 | J28: 0 | L28: 0
A29: 1850 | B29: Line Transformers | E29: 0 | G29: 0 | I29: 0 | J29: 0 | L29: 0
A30: 1855 | B30: Services (Overhead & Underground) | E30: 0 | G30: 0 | I30: 0 | J30: 0 | L30: 0
A31: 1860 | B31: Meters | E31: 0 | G31: 0 | I31: 0 | J31: 0 | L31: 0
A32: 1860 | B32: Meters (Smart Meters) | E32: 0 | G32: 0 | I32: 0 | J32: 0 | L32: 0
A33: 1905 | B33: Land | E33: 0 | G33: 0 | I33: 0 | J33: 0 | L33: 0
A34: 1908 | B34: Buildings & Fixtures | E34: 0 | G34: 0 | I34: 0 | J34: 0 | L34: 0
A35: 1910 | B35: Leasehold Improvements | E35: 0 | G35: 0 | I35: 0 | J35: 0 | L35: 0
A36: 1915 | B36: Office Furniture & Equipment (10 years) | E36: 0 | G36: 0 | I36: 0 | J36: 0 | L36: 0
A37: 1915 | B37: Office Furniture & Equipment (5 years) | E37: 0 | G37: 0 | I37: 0 | J37: 0 | L37: 0
A38: 1920 | B38: Computer Equipment - Hardware | E38: 0 | G38: 0 | I38: 0 | J38: 0 | L38: 0
A39: 1920 | B39: Computer Equip.-Hardware(Post Mar. 22/04) | E39: 0 | G39: 0 | I39: 0 | J39: 0 | L39: 0
A40: 1920 | B40: Computer Equip.-Hardware(Post Mar. 19/07) | E40: 0 | G40: 0 | I40: 0 | J40: 0 | L40: 0
A41: 1930 | B41: Transportation Equipment | E41: 0 | G41: 0 | I41: 0 | J41: 0 | L41: 0
A42: 1935 | B42: Stores Equipment | E42: 0 | G42: 0 | I42: 0 | J42: 0 | L42: 0
A43: 1940 | B43: Tools, Shop & Garage Equipment | E43: 0 | G43: 0 | I43: 0 | J43: 0 | L43: 0
A44: 1945 | B44: Measurement & Testing Equipment | E44: 0 | G44: 0 | I44: 0 | J44: 0 | L44: 0
A45: 1950 | B45: Power Operated Equipment | E45: 0 | G45: 0 | I45: 0 | J45: 0 | L45: 0
A46: 1955 | B46: Communications Equipment | E46: 0 | G46: 0 | I46: 0 | J46: 0 | L46: 0
A47: 1955 | B47: Communication Equipment (Smart Meters) | E47: 0 | G47: 0 | I47: 0 | J47: 0 | L47: 0
A48: 1960 | B48: Miscellaneous Equipment | E48: 0 | G48: 0 | I48: 0 | J48: 0 | L48: 0
A49: 1970 | B49: Load Management Controls - Customer Premises | E49: 0 | G49: 0 | I49: 0 | J49: 0 | L49: 0
A50: 1975 | B50: Load Management Controls Utility Premises | E50: 0 | G50: 0 | I50: 0 | J50: 0 | L50: 0
A51: 1980 | B51: System Supervisor Equipment | E51: 0 | G51: 0 | I51: 0 | J51: 0 | L51: 0
A52: 1985 | B52: Miscellaneous Fixed Assets | E52: 0 | G52: 0 | I52: 0 | J52: 0 | L52: 0
A53: 1990 | B53: Other Tangible Property | E53: 0 | G53: 0 | I53: 0 | J53: 0 | L53: 0
A54: 1995 | B54: Contributions & Grants | E54: 0 | G54: 0 | I54: 0 | J54: 0 | L54: 0
B55: Total | C55: =SUM(C17:C54) -> 0 | D55: =SUM(D17:D54) -> 0 | E55: =SUM(E17:E54) -> 0 | F55: =SUM(F17:F54) -> 0 | G55: =SUM(G17:G54) -> 0 | J55: =SUM(J17:J54) -> 0 | K55: =SUM(K17:K54) -> 0 | L55: =SUM(L17:L54) -> 0
A57: Notes:
A59: 1 | B59: Board policy of the "half-year" rule - the applicant must ensure that additions in the year attract a half-year depreciation expense in the first year. Deviations from this standard practice must be supported in the application.
A60: 2 | B60: The applicant must provide an explanation of material variances in evidence.
A62: General | B62: Applicants must provide a breakdown of depreciation and amortization expense in the above format for all relevant accounts. Asset Retirement Obligations (AROs), depreciation and accretion expense should be disclosed separately consistent with the Notes of historical Audited Financial Statements.

Sheet App.2-CH_NewCGAAP_DepExp_2013
N1: File Number: | O1: =EBNUMBER -> EB-2015-0074
N2: Exhibit:
N3: Tab:
N4: Schedule:
N5: Page:
N7: Date:
A9: Appendix 2-CH
A10: Depreciation and Amortization Expense
A11: Assumes the applicant made capitalization and depreciation expense accounting policy changes under CGAAP effective January 1, 2013 and has adopted IFRS for financial reporting purposes effective January 1, 2015.
C13: Year | D13: 2013 | E13: Revised CGAAP
A15: Account | B15: Description | C15: Opening NBV as at Jan 1, 2013 5 | D15: Additions | E15: Average Remaining Life of Opening NBV 4 | F15: Years (new additions only) 3 | G15: Depreciation Rate on New Additions | H15: Depreciation Expense on Opening NBV | I15: Depreciation Expense on Additions 1 | J15: 2013 Depreciation Expense | K15: 2013 Depreciation Expense per Appendix 2-BA Fixed Assets, Column J (l) | L15: Variance 2 | M15: Depreciation Expense on 2013 Full Year Additions | N15: Less Depreciation Expense on Assets Fully Depreciated during the year (o) | O15: 2013 Full Year Depreciation 6
C16: (a) | D16: (d) | E16: (i) | F16: (f) | G16: (g) = 1 / (f) | H16: (j) = (a) / (i) | I16: (h)=((d)*0.5)/(f) | J16: (k) = (j) + (h) | L16: (m) = (k) - (l) | M16: (n) = (d)/(f) | O16: (p) = (j) + (n) - (o)
A17: 1611 | B17: Computer Software (Formally known as Account 1925) | G17: =IF(F17=0,0,1/F17) -> 0 | H17: =IF(E17=0,0,+C17/E17) -> 0 | I17: =IF(F17=0,0,+(D17*0.5)/F17) -> 0 | J17: =IF(ISERROR(+H17+I17), 0, +H17+I17) -> 0 | L17: =IF(ISERROR(+J17-K17), 0, +J17-K17) -> 0 | M17: =IF(F17=0,0,+(D17)/F17) -> 0 | O17: =IF(ISERROR(+M17+H17-N17), 0, +M17+H17-N17) -> 0
A18: 1612 | B18: Land Rights (Formally known as Account 1906) | G18: 0 | H18: 0 | I18: 0 | J18: 0 | L18: 0 | M18: 0 | O18: =IF(ISERROR(+M18+H18-N18), 0, +M18+H18-N18) -> 0
A19: 1805 | B19: Land | G19: 0 | H19: 0 | I19: 0 | J19: 0 | L19: 0 | M19: 0 | O19: 0
A20: 1808 | B20: Buildings | G20: 0 | H20: 0 | I20: 0 | J20: 0 | L20: 0 | M20: 0 | O20: 0
A21: 1810 | B21: Leasehold Improvements | G21: 0 | H21: 0 | I21: 0 | J21: 0 | L21: 0 | M21: 0 | O21: 0
A22: 1815 | B22: Transformer Station Equipment >50 kV | G22: 0 | H22: 0 | I22: 0 | J22: 0 | L22: 0 | M22: 0 | O22: 0
A23: 1820 | B23: Distribution Station Equipment <50 kV | G23: 0 | H23: 0 | I23: 0 | J23: 0 | L23: 0 | M23: 0 | O23: 0
A24: 1825 | B24: Storage Battery Equipment | G24: 0 | H24: 0 | I24: 0 | J24: 0 | L24: 0 | M24: 0 | O24: 0
A25: 1830 | B25: Poles, Towers & Fixtures | G25: 0 | H25: 0 | I25: 0 | J25: 0 | L25: 0 | M25: 0 | O25: 0
A26: 1835 | B26: Overhead Conductors & Devices | G26: 0 | H26: 0 | I26: 0 | J26: 0 | L26: 0 | M26: 0 | O26: 0
A27: 1840 | B27: Underground Conduit | G27: 0 | H27: 0 | I27: 0 | J27: 0 | L27: 0 | M27: 0 | O27: 0
A28: 1845 | B28: Underground Conductors & Devices | G28: 0 | H28: 0 | I28: 0 | J28: 0 | L28: 0 | M28: 0 | O28: 0
A29: 1850 | B29: Line Transformers | G29: 0 | H29: 0 | I29: 0 | J29: 0 | L29: 0 | M29: 0 | O29: 0
A30: 1855 | B30: Services (Overhead & Underground) | G30: 0 | H30: 0 | I30: 0 | J30: 0 | L30: 0 | M30: 0 | O30: 0
A31: 1860 | B31: Meters | G31: 0 | H31: 0 | I31: 0 | J31: 0 | L31: 0 | M31: 0 | O31: 0
A32: 1860 | B32: Meters (Smart Meters) | G32: 0 | H32: 0 | I32: 0 | J32: 0 | L32: 0 | M32: 0 | O32: 0
A33: 1905 | B33: Land | G33: 0 | H33: 0 | I33: 0 | J33: 0 | L33: 0 | M33: 0 | O33: 0
A34: 1908 | B34: Buildings & Fixtures | G34: 0 | H34: 0 | I34: 0 | J34: 0 | L34: 0 | M34: 0 | O34: 0
A35: 1910 | B35: Leasehold Improvements | G35: 0 | H35: 0 | I35: 0 | J35: 0 | L35: 0 | M35: 0 | O35: 0
A36: 1915 | B36: Office Furniture & Equipment (10 years) | G36: 0 | H36: 0 | I36: 0 | J36: 0 | L36: 0 | M36: 0 | O36: 0
A37: 1915 | B37: Office Furniture & Equipment (5 years) | G37: 0 | H37: 0 | I37: 0 | J37: 0 | L37: 0 | M37: 0 | O37: 0
A38: 1920 | B38: Computer Equipment - Hardware | G38: 0 | H38: 0 | I38: 0 | J38: 0 | L38: 0 | M38: 0 | O38: 0
A39: 1920 | B39: Computer Equip.-Hardware(Post Mar. 22/04) | G39: 0 | H39: 0 | I39: 0 | J39: 0 | L39: 0 | M39: 0 | O39: 0
A40: 1920 | B40: Computer Equip.-Hardware(Post Mar. 19/07) | G40: 0 | H40: 0 | I40: 0 | J40: 0 | L40: 0 | M40: 0 | O40: 0
A41: 1930 | B41: Transportation Equipment | G41: 0 | H41: 0 | I41: 0 | J41: 0 | L41: 0 | M41: 0 | O41: 0
A42: 1935 | B42: Stores Equipment | G42: 0 | H42: 0 | I42: 0 | J42: 0 | L42: 0 | M42: 0 | O42: 0
A43: 1940 | B43: Tools, Shop & Garage Equipment | G43: 0 | H43: 0 | I43: 0 | J43: 0 | L43: 0 | M43: 0 | O43: 0
A44: 1945 | B44: Measurement & Testing Equipment | G44: 0 | H44: 0 | I44: 0 | J44: 0 | L44: 0 | M44: 0 | O44: 0
A45: 1950 | B45: Power Operated Equipment | G45: 0 | H45: 0 | I45: 0 | J45: 0 | L45: 0 | M45: 0 | O45: 0
A46: 1955 | B46: Communications Equipment | G46: 0 | H46: 0 | I46: 0 | J46: 0 | L46: 0 | M46: 0 | O46: 0
A47: 1955 | B47: Communication Equipment (Smart Meters) | G47: 0 | H47: 0 | I47: 0 | J47: 0 | L47: 0 | M47: 0 | O47: 0
A48: 1960 | B48: Miscellaneous Equipment | G48: 0 | H48: 0 | I48: 0 | J48: 0 | L48: 0 | M48: 0 | O48: 0
A49: 1970 | B49: Load Management Controls - Customer Premises | G49: 0 | H49: 0 | I49: 0 | J49: 0 | L49: 0 | M49: 0 | O49: 0
A50: 1975 | B50: Load Management Controls Utility Premises | G50: 0 | H50: 0 | I50: 0 | J50: 0 | L50: 0 | M50: 0 | O50: 0
A51: 1980 | B51: System Supervisor Equipment | G51: 0 | H51: 0 | I51: 0 | J51: 0 | L51: 0 | M51: 0 | O51: 0
A52: 1985 | B52: Miscellaneous Fixed Assets | G52: 0 | H52: 0 | I52: 0 | J52: 0 | L52: 0 | M52: 0 | O52: 0
A53: 1990 | B53: Other Tangible Property | G53: 0 | H53: 0 | I53: 0 | J53: 0 | L53: 0 | M53: 0 | O53: 0
A54: 1995 | B54: Contributions & Grants | G54: 0 | H54: 0 | I54: 0 | J54: 0 | L54: 0 | M54: 0 | O54: 0
B55: Total | C55: =SUM(C17:C54) -> 0 | D55: =SUM(D17:D54) -> 0 | H55: =SUM(H17:H54) -> 0 | I55: 0 | J55: 0 | K55: 0 | L55: 0 | M55: 0 | N55: 0 | O55: 0
A57: Notes:
A59: 1 | B59: Board policy of the "half-year" rule - the applicant must ensure that additions in the year attract a half-year depreciation expense in the first year. Deviations from this standard practice must be supported in the application.
A60: 2 | B60: The applicant must provide an explanation of material variances in evidence.
A61: 3 | B61: The applicant should ensure that the years for new additions of assets are the asset useful lives determined by management in accordance with the Board's regulatory accounting policies. The capitalization and depreciation expense accounting changes should be implemented consistent with the Board’s regulatory accounting policies as set out for MIFRS as contained in the Report of the Board, Transition to International Financial Reporting Standards, EB-2008-0408, the Kinectrics Report, and the Revised 2012 Accounting Procedures Handbook for Electricity Distributors.
A62: 4 | B62: A recalculation should be performed to determine the average remaining life of opening balance of assets (i.e. excluding 2013 additions) under the change in policies under CGAAP. For example, Asset A had a useful life of 20 years under CGAAP without the change in policies. On January 1, 2013, the effective date of the changes in policies, Asset A was 3 years depreciated. As a result, Asset A would have a remaining service life of 17 years (20 years less 3 years) as of January 1, 2013. Due to making the change in policies under CGAAP, management re-assessed the asset useful lives and concluded that the revised useful life of Asset A is now 30 years. Therefore, the average remaining useful life of the opening balance of Asset A is determined to be 27 years (30 years less 3 years) under the revised CGAAP as of January 1, 2013.
A63: 5 | B63: NBV must exclude assets still on the books but which have been fully amortized or depreciated.
A64: 6 | B64: This column refers to the calculated full year depreciation but excludes the depreciation expense on assets fully depreciated during the year. This column is used for the purpose of calculating depreciation expense in the following year on the next worksheet.
A66: General: | B66: Applicants must provide a breakdown of depreciation and amortization expense in the above format for all relevant accounts. Asset Retirement Obligations (AROs), depreciation and accretion expense should be disclosed separately consistent with the Notes of historical Audited Financial Statements.

Sheet App.2-CI_MIFRS_DepExp_2014
J1: File Number: | K1: =EBNUMBER -> EB-2015-0074
J2: Exhibit:
J3: Tab:
J4: Schedule:
J5: Page:
J7: Date:
A9: Appendix 2-CI
A10: Depreciation and Amortization Expense
A11: Assumes the applicant made capitalization and depreciation expense accounting policy changes under CGAAP effective January 1, 2013 and has adopted IFRS for financial reporting purposes effective January 1, 2015.
E13: 2014 | F13: CGAAP
A15: Account | B15: Description | C15: Additions | D15: Years (new additions only) | E15: Depreciation Rate on New Additions | F15: 2014 Depreciation Expense 1 | G15: 2014 Depreciation Expense per Apppendix 2-BA Fixed Assets, Column J | H15: Variance 2 | I15: Depreciation Expense on 2014 Full Year Additions | J15: Less Depreciation Expense on Assets Fully Depreciated during the year | K15: 2014 Full Year Depreciation 3
C16: (d) | D16: (f) | E16: (g) = 1 / (f) | F16: (h)=2013 Full Year Deprecation + ((d)*0.5)/(f) | G16: (l) | H16: (m) = (h) - (l) | I16: (n)=((d))/(f) | J16: (o) | K16: (p) = 2013 Full Year Depreciation + (n) - (o)
A17: 1611 | B17: Computer Software (Formally known as Account 1925) | E17: =IF(D17=0,0,1/D17) -> 0 | F17: =IF(D17=0,+'App.2-CH_NewCGAAP_DepExp_2013'!O17,+'App.2-CH_NewCGAAP_DepExp_2013'!O17+((C17*0.5)/D17)) -> 0 | H17: =IF(ISERROR(+F17-G17), 0, +F17-G17) -> 0 | I17: =IF(D17=0,0,+(C17)/D17) -> 0 | K17: =IF(ISERROR(+I17+'App.2-CH_NewCGAAP_DepExp_2013'!O17-J17), 0, +I17+'App.2-CH_NewCGAAP_DepExp_2013'!O17-J17) -> 0
A18: 1612 | B18: Land Rights (Formally known as Account 1906) | E18: 0 | F18: =IF(D18=0,+'App.2-CH_NewCGAAP_DepExp_2013'!O18,+'App.2-CH_NewCGAAP_DepExp_2013'!O18+((C18*0.5)/D18)) -> 0 | H18: 0 | I18: 0 | K18: =IF(ISERROR(+I18+'App.2-CH_NewCGAAP_DepExp_2013'!O18-J18), 0, +I18+'App.2-CH_NewCGAAP_DepExp_2013'!O18-J18) -> 0
A19: 1805 | B19: Land | E19: 0 | F19: =IF(D19=0,+'App.2-CH_NewCGAAP_DepExp_2013'!O19,+'App.2-CH_NewCGAAP_DepExp_2013'!O19+((C19*0.5)/D19)) -> 0 | H19: 0 | I19: 0 | K19: =IF(ISERROR(+I19+'App.2-CH_NewCGAAP_DepExp_2013'!O19-J19), 0, +I19+'App.2-CH_NewCGAAP_DepExp_2013'!O19-J19) -> 0
A20: 1808 | B20: Buildings | E20: 0 | F20: =IF(D20=0,+'App.2-CH_NewCGAAP_DepExp_2013'!O20,+'App.2-CH_NewCGAAP_DepExp_2013'!O20+((C20*0.5)/D20)) -> 0 | H20: 0 | I20: 0 | K20: =IF(ISERROR(+I20+'App.2-CH_NewCGAAP_DepExp_2013'!O20-J20), 0, +I20+'App.2-CH_NewCGAAP_DepExp_2013'!O20-J20) -> 0
A21: 1810 | B21: Leasehold Improvements | E21: 0 | F21: =IF(D21=0,+'App.2-CH_NewCGAAP_DepExp_2013'!O21,+'App.2-CH_NewCGAAP_DepExp_2013'!O21+((C21*0.5)/D21)) -> 0 | H21: 0 | I21: 0 | K21: =IF(ISERROR(+I21+'App.2-CH_NewCGAAP_DepExp_2013'!O21-J21), 0, +I21+'App.2-CH_NewCGAAP_DepExp_2013'!O21-J21) -> 0
A22: 1815 | B22: Transformer Station Equipment >50 kV | E22: 0 | F22: =IF(D22=0,+'App.2-CH_NewCGAAP_DepExp_2013'!O22,+'App.2-CH_NewCGAAP_DepExp_2013'!O22+((C22*0.5)/D22)) -> 0 | H22: 0 | I22: 0 | K22: =IF(ISERROR(+I22+'App.2-CH_NewCGAAP_DepExp_2013'!O22-J22), 0, +I22+'App.2-CH_NewCGAAP_DepExp_2013'!O22-J22) -> 0
A23: 1820 | B23: Distribution Station Equipment <50 kV | E23: 0 | F23: =IF(D23=0,+'App.2-CH_NewCGAAP_DepExp_2013'!O23,+'App.2-CH_NewCGAAP_DepExp_2013'!O23+((C23*0.5)/D23)) -> 0 | H23: 0 | I23: 0 | K23: =IF(ISERROR(+I23+'App.2-CH_NewCGAAP_DepExp_2013'!O23-J23), 0, +I23+'App.2-CH_NewCGAAP_DepExp_2013'!O23-J23) -> 0
A24: 1825 | B24: Storage Battery Equipment | E24: 0 | F24: =IF(D24=0,+'App.2-CH_NewCGAAP_DepExp_2013'!O24,+'App.2-CH_NewCGAAP_DepExp_2013'!O24+((C24*0.5)/D24)) -> 0 | H24: 0 | I24: 0 | K24: =IF(ISERROR(+I24+'App.2-CH_NewCGAAP_DepExp_2013'!O24-J24), 0, +I24+'App.2-CH_NewCGAAP_DepExp_2013'!O24-J24) -> 0
A25: 1830 | B25: Poles, Towers & Fixtures | E25: 0 | F25: =IF(D25=0,+'App.2-CH_NewCGAAP_DepExp_2013'!O25,+'App.2-CH_NewCGAAP_DepExp_2013'!O25+((C25*0.5)/D25)) -> 0 | H25: 0 | I25: 0 | K25: =IF(ISERROR(+I25+'App.2-CH_NewCGAAP_DepExp_2013'!O25-J25), 0, +I25+'App.2-CH_NewCGAAP_DepExp_2013'!O25-J25) -> 0
A26: 1835 | B26: Overhead Conductors & Devices | E26: 0 | F26: =IF(D26=0,+'App.2-CH_NewCGAAP_DepExp_2013'!O26,+'App.2-CH_NewCGAAP_DepExp_2013'!O26+((C26*0.5)/D26)) -> 0 | H26: 0 | I26: 0 | K26: =IF(ISERROR(+I26+'App.2-CH_NewCGAAP_DepExp_2013'!O26-J26), 0, +I26+'App.2-CH_NewCGAAP_DepExp_2013'!O26-J26) -> 0
A27: 1840 | B27: Underground Conduit | E27: 0 | F27: =IF(D27=0,+'App.2-CH_NewCGAAP_DepExp_2013'!O27,+'App.2-CH_NewCGAAP_DepExp_2013'!O27+((C27*0.5)/D27)) -> 0 | H27: 0 | I27: 0 | K27: =IF(ISERROR(+I27+'App.2-CH_NewCGAAP_DepExp_2013'!O27-J27), 0, +I27+'App.2-CH_NewCGAAP_DepExp_2013'!O27-J27) -> 0
A28: 1845 | B28: Underground Conductors & Devices | E28: 0 | F28: =IF(D28=0,+'App.2-CH_NewCGAAP_DepExp_2013'!O28,+'App.2-CH_NewCGAAP_DepExp_2013'!O28+((C28*0.5)/D28)) -> 0 | H28: 0 | I28: 0 | K28: =IF(ISERROR(+I28+'App.2-CH_NewCGAAP_DepExp_2013'!O28-J28), 0, +I28+'App.2-CH_NewCGAAP_DepExp_2013'!O28-J28) -> 0
A29: 1850 | B29: Line Transformers | E29: 0 | F29: =IF(D29=0,+'App.2-CH_NewCGAAP_DepExp_2013'!O29,+'App.2-CH_NewCGAAP_DepExp_2013'!O29+((C29*0.5)/D29)) -> 0 | H29: 0 | I29: 0 | K29: =IF(ISERROR(+I29+'App.2-CH_NewCGAAP_DepExp_2013'!O29-J29), 0, +I29+'App.2-CH_NewCGAAP_DepExp_2013'!O29-J29) -> 0
A30: 1855 | B30: Services (Overhead & Underground) | E30: 0 | F30: =IF(D30=0,+'App.2-CH_NewCGAAP_DepExp_2013'!O30,+'App.2-CH_NewCGAAP_DepExp_2013'!O30+((C30*0.5)/D30)) -> 0 | H30: 0 | I30: 0 | K30: =IF(ISERROR(+I30+'App.2-CH_NewCGAAP_DepExp_2013'!O30-J30), 0, +I30+'App.2-CH_NewCGAAP_DepExp_2013'!O30-J30) -> 0
A31: 1860 | B31: Meters | E31: 0 | F31: =IF(D31=0,+'App.2-CH_NewCGAAP_DepExp_2013'!O31,+'App.2-CH_NewCGAAP_DepExp_2013'!O31+((C31*0.5)/D31)) -> 0 | H31: 0 | I31: 0 | K31: =IF(ISERROR(+I31+'App.2-CH_NewCGAAP_DepExp_2013'!O31-J31), 0, +I31+'App.2-CH_NewCGAAP_DepExp_2013'!O31-J31) -> 0
A32: 1860 | B32: Meters (Smart Meters) | E32: 0 | F32: =IF(D32=0,+'App.2-CH_NewCGAAP_DepExp_2013'!O32,+'App.2-CH_NewCGAAP_DepExp_2013'!O32+((C32*0.5)/D32)) -> 0 | H32: 0 | I32: 0 | K32: =IF(ISERROR(+I32+'App.2-CH_NewCGAAP_DepExp_2013'!O32-J32), 0, +I32+'App.2-CH_NewCGAAP_DepExp_2013'!O32-J32) -> 0
A33: 1905 | B33: Land | E33: 0 | F33: =IF(D33=0,+'App.2-CH_NewCGAAP_DepExp_2013'!O33,+'App.2-CH_NewCGAAP_DepExp_2013'!O33+((C33*0.5)/D33)) -> 0 | H33: 0 | I33: 0 | K33: =IF(ISERROR(+I33+'App.2-CH_NewCGAAP_DepExp_2013'!O33-J33), 0, +I33+'App.2-CH_NewCGAAP_DepExp_2013'!O33-J33) -> 0
A34: 1908 | B34: Buildings & Fixtures | E34: 0 | F34: =IF(D34=0,+'App.2-CH_NewCGAAP_DepExp_2013'!O34,+'App.2-CH_NewCGAAP_DepExp_2013'!O34+((C34*0.5)/D34)) -> 0 | H34: 0 | I34: 0 | K34: =IF(ISERROR(+I34+'App.2-CH_NewCGAAP_DepExp_2013'!O34-J34), 0, +I34+'App.2-CH_NewCGAAP_DepExp_2013'!O34-J34) -> 0
A35: 1910 | B35: Leasehold Improvements | E35: 0 | F35: =IF(D35=0,+'App.2-CH_NewCGAAP_DepExp_2013'!O35,+'App.2-CH_NewCGAAP_DepExp_2013'!O35+((C35*0.5)/D35)) -> 0 | H35: 0 | I35: 0 | K35: =IF(ISERROR(+I35+'App.2-CH_NewCGAAP_DepExp_2013'!O35-J35), 0, +I35+'App.2-CH_NewCGAAP_DepExp_2013'!O35-J35) -> 0
A36: 1915 | B36: Office Furniture & Equipment (10 years) | E36: 0 | F36: =IF(D36=0,+'App.2-CH_NewCGAAP_DepExp_2013'!O36,+'App.2-CH_NewCGAAP_DepExp_2013'!O36+((C36*0.5)/D36)) -> 0 | H36: 0 | I36: 0 | K36: =IF(ISERROR(+I36+'App.2-CH_NewCGAAP_DepExp_2013'!O36-J36), 0, +I36+'App.2-CH_NewCGAAP_DepExp_2013'!O36-J36) -> 0
A37: 1915 | B37: Office Furniture & Equipment (5 years) | E37: 0 | F37: =IF(D37=0,+'App.2-CH_NewCGAAP_DepExp_2013'!O37,+'App.2-CH_NewCGAAP_DepExp_2013'!O37+((C37*0.5)/D37)) -> 0 | H37: 0 | I37: 0 | K37: =IF(ISERROR(+I37+'App.2-CH_NewCGAAP_DepExp_2013'!O37-J37), 0, +I37+'App.2-CH_NewCGAAP_DepExp_2013'!O37-J37) -> 0
A38: 1920 | B38: Computer Equipment - Hardware | E38: 0 | F38: =IF(D38=0,+'App.2-CH_NewCGAAP_DepExp_2013'!O38,+'App.2-CH_NewCGAAP_DepExp_2013'!O38+((C38*0.5)/D38)) -> 0 | H38: 0 | I38: 0 | K38: =IF(ISERROR(+I38+'App.2-CH_NewCGAAP_DepExp_2013'!O38-J38), 0, +I38+'App.2-CH_NewCGAAP_DepExp_2013'!O38-J38) -> 0
A39: 1920 | B39: Computer Equip.-Hardware(Post Mar. 22/04) | E39: 0 | F39: =IF(D39=0,+'App.2-CH_NewCGAAP_DepExp_2013'!O39,+'App.2-CH_NewCGAAP_DepExp_2013'!O39+((C39*0.5)/D39)) -> 0 | H39: 0 | I39: 0 | K39: =IF(ISERROR(+I39+'App.2-CH_NewCGAAP_DepExp_2013'!O39-J39), 0, +I39+'App.2-CH_NewCGAAP_DepExp_2013'!O39-J39) -> 0
A40: 1920 | B40: Computer Equip.-Hardware(Post Mar. 19/07) | E40: 0 | F40: =IF(D40=0,+'App.2-CH_NewCGAAP_DepExp_2013'!O40,+'App.2-CH_NewCGAAP_DepExp_2013'!O40+((C40*0.5)/D40)) -> 0 | H40: 0 | I40: 0 | K40: =IF(ISERROR(+I40+'App.2-CH_NewCGAAP_DepExp_2013'!O40-J40), 0, +I40+'App.2-CH_NewCGAAP_DepExp_2013'!O40-J40) -> 0
A41: 1930 | B41: Transportation Equipment | E41: 0 | F41: =IF(D41=0,+'App.2-CH_NewCGAAP_DepExp_2013'!O41,+'App.2-CH_NewCGAAP_DepExp_2013'!O41+((C41*0.5)/D41)) -> 0 | H41: 0 | I41: 0 | K41: =IF(ISERROR(+I41+'App.2-CH_NewCGAAP_DepExp_2013'!O41-J41), 0, +I41+'App.2-CH_NewCGAAP_DepExp_2013'!O41-J41) -> 0
A42: 1935 | B42: Stores Equipment | E42: 0 | F42: =IF(D42=0,+'App.2-CH_NewCGAAP_DepExp_2013'!O42,+'App.2-CH_NewCGAAP_DepExp_2013'!O42+((C42*0.5)/D42)) -> 0 | H42: 0 | I42: 0 | K42: =IF(ISERROR(+I42+'App.2-CH_NewCGAAP_DepExp_2013'!O42-J42), 0, +I42+'App.2-CH_NewCGAAP_DepExp_2013'!O42-J42) -> 0
A43: 1940 | B43: Tools, Shop & Garage Equipment | E43: 0 | F43: =IF(D43=0,+'App.2-CH_NewCGAAP_DepExp_2013'!O43,+'App.2-CH_NewCGAAP_DepExp_2013'!O43+((C43*0.5)/D43)) -> 0 | H43: 0 | I43: 0 | K43: =IF(ISERROR(+I43+'App.2-CH_NewCGAAP_DepExp_2013'!O43-J43), 0, +I43+'App.2-CH_NewCGAAP_DepExp_2013'!O43-J43) -> 0
A44: 1945 | B44: Measurement & Testing Equipment | E44: 0 | F44: =IF(D44=0,+'App.2-CH_NewCGAAP_DepExp_2013'!O44,+'App.2-CH_NewCGAAP_DepExp_2013'!O44+((C44*0.5)/D44)) -> 0 | H44: 0 | I44: 0 | K44: =IF(ISERROR(+I44+'App.2-CH_NewCGAAP_DepExp_2013'!O44-J44), 0, +I44+'App.2-CH_NewCGAAP_DepExp_2013'!O44-J44) -> 0
A45: 1950 | B45: Power Operated Equipment | E45: 0 | F45: =IF(D45=0,+'App.2-CH_NewCGAAP_DepExp_2013'!O45,+'App.2-CH_NewCGAAP_DepExp_2013'!O45+((C45*0.5)/D45)) -> 0 | H45: 0 | I45: 0 | K45: =IF(ISERROR(+I45+'App.2-CH_NewCGAAP_DepExp_2013'!O45-J45), 0, +I45+'App.2-CH_NewCGAAP_DepExp_2013'!O45-J45) -> 0
A46: 1955 | B46: Communications Equipment | E46: 0 | F46: =IF(D46=0,+'App.2-CH_NewCGAAP_DepExp_2013'!O46,+'App.2-CH_NewCGAAP_DepExp_2013'!O46+((C46*0.5)/D46)) -> 0 | H46: 0 | I46: 0 | K46: =IF(ISERROR(+I46+'App.2-CH_NewCGAAP_DepExp_2013'!O46-J46), 0, +I46+'App.2-CH_NewCGAAP_DepExp_2013'!O46-J46) -> 0
A47: 1955 | B47: Communication Equipment (Smart Meters) | E47: 0 | F47: =IF(D47=0,+'App.2-CH_NewCGAAP_DepExp_2013'!O47,+'App.2-CH_NewCGAAP_DepExp_2013'!O47+((C47*0.5)/D47)) -> 0 | H47: 0 | I47: 0 | K47: =IF(ISERROR(+I47+'App.2-CH_NewCGAAP_DepExp_2013'!O47-J47), 0, +I47+'App.2-CH_NewCGAAP_DepExp_2013'!O47-J47) -> 0
A48: 1960 | B48: Miscellaneous Equipment | E48: 0 | F48: =IF(D48=0,+'App.2-CH_NewCGAAP_DepExp_2013'!O48,+'App.2-CH_NewCGAAP_DepExp_2013'!O48+((C48*0.5)/D48)) -> 0 | H48: 0 | I48: 0 | K48: =IF(ISERROR(+I48+'App.2-CH_NewCGAAP_DepExp_2013'!O48-J48), 0, +I48+'App.2-CH_NewCGAAP_DepExp_2013'!O48-J48) -> 0
A49: 1970 | B49: Load Management Controls - Customer Premises | E49: 0 | F49: =IF(D49=0,+'App.2-CH_NewCGAAP_DepExp_2013'!O49,+'App.2-CH_NewCGAAP_DepExp_2013'!O49+((C49*0.5)/D49)) -> 0 | H49: 0 | I49: 0 | K49: =IF(ISERROR(+I49+'App.2-CH_NewCGAAP_DepExp_2013'!O49-J49), 0, +I49+'App.2-CH_NewCGAAP_DepExp_2013'!O49-J49) -> 0
A50: 1975 | B50: Load Management Controls Utility Premises | E50: 0 | F50: =IF(D50=0,+'App.2-CH_NewCGAAP_DepExp_2013'!O50,+'App.2-CH_NewCGAAP_DepExp_2013'!O50+((C50*0.5)/D50)) -> 0 | H50: 0 | I50: 0 | K50: =IF(ISERROR(+I50+'App.2-CH_NewCGAAP_DepExp_2013'!O50-J50), 0, +I50+'App.2-CH_NewCGAAP_DepExp_2013'!O50-J50) -> 0
A51: 1980 | B51: System Supervisor Equipment | E51: 0 | F51: =IF(D51=0,+'App.2-CH_NewCGAAP_DepExp_2013'!O51,+'App.2-CH_NewCGAAP_DepExp_2013'!O51+((C51*0.5)/D51)) -> 0 | H51: 0 | I51: 0 | K51: =IF(ISERROR(+I51+'App.2-CH_NewCGAAP_DepExp_2013'!O51-J51), 0, +I51+'App.2-CH_NewCGAAP_DepExp_2013'!O51-J51) -> 0
A52: 1985 | B52: Miscellaneous Fixed Assets | E52: 0 | F52: =IF(D52=0,+'App.2-CH_NewCGAAP_DepExp_2013'!O52,+'App.2-CH_NewCGAAP_DepExp_2013'!O52+((C52*0.5)/D52)) -> 0 | H52: 0 | I52: 0 | K52: =IF(ISERROR(+I52+'App.2-CH_NewCGAAP_DepExp_2013'!O52-J52), 0, +I52+'App.2-CH_NewCGAAP_DepExp_2013'!O52-J52) -> 0
A53: 1990 | B53: Other Tangible Property | E53: 0 | F53: =IF(D53=0,+'App.2-CH_NewCGAAP_DepExp_2013'!O53,+'App.2-CH_NewCGAAP_DepExp_2013'!O53+((C53*0.5)/D53)) -> 0 | H53: 0 | I53: 0 | K53: =IF(ISERROR(+I53+'App.2-CH_NewCGAAP_DepExp_2013'!O53-J53), 0, +I53+'App.2-CH_NewCGAAP_DepExp_2013'!O53-J53) -> 0
A54: 1995 | B54: Contributions & Grants | E54: =IF(D54=0,0,1/D54) -> 0 | F54: =IF(D54=0,+'App.2-CH_NewCGAAP_DepExp_2013'!O54,+'App.2-CH_NewCGAAP_DepExp_2013'!O54+((C54*0.5)/D54)) -> 0 | H54: 0 | I54: 0 | K54: =IF(ISERROR(+I54+'App.2-CH_NewCGAAP_DepExp_2013'!O54-J54), 0, +I54+'App.2-CH_NewCGAAP_DepExp_2013'!O54-J54) -> 0
B55: Total | C55: =SUM(C17:C54) -> 0 | F55: =SUM(F17:F54) -> 0 | G55: 0 | H55: 0 | I55: 0 | J55: 0 | K55: 0
B56: Depreciation exp. adj. from gain or loss on the retirement of assets (pool of like assets)
B57: Total Depreciation Expense | F57: =SUM(F55:F56) -> 0
A59: Notes:
A60: 1 | B60: Board policy of the "half-year" rule - the applicant must ensure that additions in the year attract a half-year depreciation expense in the first year. Deviations from this standard practice must be supported in the application.
A61: 2 | B61: The applicant must provide an explanation of material variances in evidence.
A62: 3 | B62: This column refers to the calculated full year depreciation but excludes the depreciation expense on assets fully depreciated during the year. This column is used for the purpose of calculating depreciation expense in the following year on the next worksheet.
A64: General: | B64: Applicants must provide a breakdown of depreciation and amortization expense in the above format for all relevant accounts. Asset Retirement Obligations (AROs), depreciation and accretion expense should be disclosed separately consistent with the Notes of historical Audited Financial Statements.

Sheet App.2-CJ MIFRS_DepExp_2015
G1: File Number: | H1: =EBNUMBER -> EB-2015-0074
G2: Exhibit:
G3: Tab:
G4: Schedule:
G5: Page:
G7: Date:
A9: Appendix 2-CJ
A10: Depreciation and Amortization Expense
A11: Assumes the applicant made capitalization and depreciation expense accounting policy changes under CGAAP effective January 1, 2013 and has adopted IFRS for financial reporting purposes effective January 1, 2015.
D13: 2015 | E13: MIFRS
A15: Account | B15: Description | C15: Additions | D15: Years (new additions only) | E15: Depreciation Rate on New Additions | F15: 2015 Depreciation Expense 1 | G15: 2015 Depreciation Expense per Appendix 2-BA Fixed Assets, Column J | H15: Variance 2 | I15: Depreciation Expense on 2015 Full Year Additions | J15: Less Depreciation Expense on Assets Fully Depreciated during the year | K15: 2015 Full Year Depreciation 3
C16: (d) | D16: (f) | E16: (g) = 1 / (f) | F16: (h)=2014 Full Year Depreciation + ((d)*0.5)/(f) | G16: (l) | H16: (m) = (h) - (l) | I16: (n)=((d))/(f) | J16: (o) | K16: (p) = 2014 Full Year Depreciation + (n) - (o)
A17: 1611 | B17: Computer Software (Formally known as Account 1925) | E17: =IF(D17=0,0,1/D17) -> 0 | F17: =IF(D17=0,'App.2-CI_MIFRS_DepExp_2014'!K17,+'App.2-CI_MIFRS_DepExp_2014'!K17+((C17*0.5)/D17)) -> 0 | H17: =IF(ISERROR(+F17-G17), 0, +F17-G17) -> 0 | I17: =IF(D17=0,0,+(C17)/D17) -> 0 | K17: =IF(ISERROR(+I17+'App.2-CI_MIFRS_DepExp_2014'!K17-J17), 0, +I17+'App.2-CI_MIFRS_DepExp_2014'!K17-J17) -> 0
A18: 1612 | B18: Land Rights (Formally known as Account 1906) | E18: 0 | F18: =IF(D18=0,'App.2-CI_MIFRS_DepExp_2014'!K18,+'App.2-CI_MIFRS_DepExp_2014'!K18+((C18*0.5)/D18)) -> 0 | H18: 0 | I18: =IF(D18=0,0,+(C18)/D18) -> 0 | K18: =IF(ISERROR(+I18+'App.2-CI_MIFRS_DepExp_2014'!K18-J18), 0, +I18+'App.2-CI_MIFRS_DepExp_2014'!K18-J18) -> 0
A19: 1805 | B19: Land | E19: 0 | F19: =IF(D19=0,'App.2-CI_MIFRS_DepExp_2014'!K19,+'App.2-CI_MIFRS_DepExp_2014'!K19+((C19*0.5)/D19)) -> 0 | H19: 0 | I19: 0 | K19: =IF(ISERROR(+I19+'App.2-CI_MIFRS_DepExp_2014'!K19-J19), 0, +I19+'App.2-CI_MIFRS_DepExp_2014'!K19-J19) -> 0
A20: 1808 | B20: Buildings | E20: 0 | F20: =IF(D20=0,'App.2-CI_MIFRS_DepExp_2014'!K20,+'App.2-CI_MIFRS_DepExp_2014'!K20+((C20*0.5)/D20)) -> 0 | H20: 0 | I20: 0 | K20: =IF(ISERROR(+I20+'App.2-CI_MIFRS_DepExp_2014'!K20-J20), 0, +I20+'App.2-CI_MIFRS_DepExp_2014'!K20-J20) -> 0
A21: 1810 | B21: Leasehold Improvements | E21: 0 | F21: =IF(D21=0,'App.2-CI_MIFRS_DepExp_2014'!K21,+'App.2-CI_MIFRS_DepExp_2014'!K21+((C21*0.5)/D21)) -> 0 | H21: 0 | I21: 0 | K21: =IF(ISERROR(+I21+'App.2-CI_MIFRS_DepExp_2014'!K21-J21), 0, +I21+'App.2-CI_MIFRS_DepExp_2014'!K21-J21) -> 0
A22: 1815 | B22: Transformer Station Equipment >50 kV | E22: 0 | F22: =IF(D22=0,'App.2-CI_MIFRS_DepExp_2014'!K22,+'App.2-CI_MIFRS_DepExp_2014'!K22+((C22*0.5)/D22)) -> 0 | H22: 0 | I22: 0 | K22: =IF(ISERROR(+I22+'App.2-CI_MIFRS_DepExp_2014'!K22-J22), 0, +I22+'App.2-CI_MIFRS_DepExp_2014'!K22-J22) -> 0
A23: 1820 | B23: Distribution Station Equipment <50 kV | E23: 0 | F23: =IF(D23=0,'App.2-CI_MIFRS_DepExp_2014'!K23,+'App.2-CI_MIFRS_DepExp_2014'!K23+((C23*0.5)/D23)) -> 0 | H23: 0 | I23: 0 | K23: =IF(ISERROR(+I23+'App.2-CI_MIFRS_DepExp_2014'!K23-J23), 0, +I23+'App.2-CI_MIFRS_DepExp_2014'!K23-J23) -> 0
A24: 1825 | B24: Storage Battery Equipment | E24: 0 | F24: =IF(D24=0,'App.2-CI_MIFRS_DepExp_2014'!K24,+'App.2-CI_MIFRS_DepExp_2014'!K24+((C24*0.5)/D24)) -> 0 | H24: 0 | I24: 0 | K24: =IF(ISERROR(+I24+'App.2-CI_MIFRS_DepExp_2014'!K24-J24), 0, +I24+'App.2-CI_MIFRS_DepExp_2014'!K24-J24) -> 0
A25: 1830 | B25: Poles, Towers & Fixtures | E25: 0 | F25: =IF(D25=0,'App.2-CI_MIFRS_DepExp_2014'!K25,+'App.2-CI_MIFRS_DepExp_2014'!K25+((C25*0.5)/D25)) -> 0 | H25: 0 | I25: 0 | K25: =IF(ISERROR(+I25+'App.2-CI_MIFRS_DepExp_2014'!K25-J25), 0, +I25+'App.2-CI_MIFRS_DepExp_2014'!K25-J25) -> 0
A26: 1835 | B26: Overhead Conductors & Devices | E26: 0 | F26: =IF(D26=0,'App.2-CI_MIFRS_DepExp_2014'!K26,+'App.2-CI_MIFRS_DepExp_2014'!K26+((C26*0.5)/D26)) -> 0 | H26: 0 | I26: 0 | K26: =IF(ISERROR(+I26+'App.2-CI_MIFRS_DepExp_2014'!K26-J26), 0, +I26+'App.2-CI_MIFRS_DepExp_2014'!K26-J26) -> 0
A27: 1840 | B27: Underground Conduit | E27: 0 | F27: =IF(D27=0,'App.2-CI_MIFRS_DepExp_2014'!K27,+'App.2-CI_MIFRS_DepExp_2014'!K27+((C27*0.5)/D27)) -> 0 | H27: 0 | I27: 0 | K27: =IF(ISERROR(+I27+'App.2-CI_MIFRS_DepExp_2014'!K27-J27), 0, +I27+'App.2-CI_MIFRS_DepExp_2014'!K27-J27) -> 0
A28: 1845 | B28: Underground Conductors & Devices | E28: 0 | F28: =IF(D28=0,'App.2-CI_MIFRS_DepExp_2014'!K28,+'App.2-CI_MIFRS_DepExp_2014'!K28+((C28*0.5)/D28)) -> 0 | H28: 0 | I28: 0 | K28: =IF(ISERROR(+I28+'App.2-CI_MIFRS_DepExp_2014'!K28-J28), 0, +I28+'App.2-CI_MIFRS_DepExp_2014'!K28-J28) -> 0
A29: 1850 | B29: Line Transformers | E29: 0 | F29: =IF(D29=0,'App.2-CI_MIFRS_DepExp_2014'!K29,+'App.2-CI_MIFRS_DepExp_2014'!K29+((C29*0.5)/D29)) -> 0 | H29: 0 | I29: 0 | K29: =IF(ISERROR(+I29+'App.2-CI_MIFRS_DepExp_2014'!K29-J29), 0, +I29+'App.2-CI_MIFRS_DepExp_2014'!K29-J29) -> 0
A30: 1855 | B30: Services (Overhead & Underground) | E30: 0 | F30: =IF(D30=0,'App.2-CI_MIFRS_DepExp_2014'!K30,+'App.2-CI_MIFRS_DepExp_2014'!K30+((C30*0.5)/D30)) -> 0 | H30: 0 | I30: 0 | K30: =IF(ISERROR(+I30+'App.2-CI_MIFRS_DepExp_2014'!K30-J30), 0, +I30+'App.2-CI_MIFRS_DepExp_2014'!K30-J30) -> 0
A31: 1860 | B31: Meters | E31: 0 | F31: =IF(D31=0,'App.2-CI_MIFRS_DepExp_2014'!K31,+'App.2-CI_MIFRS_DepExp_2014'!K31+((C31*0.5)/D31)) -> 0 | H31: 0 | I31: 0 | K31: =IF(ISERROR(+I31+'App.2-CI_MIFRS_DepExp_2014'!K31-J31), 0, +I31+'App.2-CI_MIFRS_DepExp_2014'!K31-J31) -> 0
A32: 1860 | B32: Meters (Smart Meters) | E32: 0 | F32: =IF(D32=0,'App.2-CI_MIFRS_DepExp_2014'!K32,+'App.2-CI_MIFRS_DepExp_2014'!K32+((C32*0.5)/D32)) -> 0 | H32: 0 | I32: 0 | K32: =IF(ISERROR(+I32+'App.2-CI_MIFRS_DepExp_2014'!K32-J32), 0, +I32+'App.2-CI_MIFRS_DepExp_2014'!K32-J32) -> 0
A33: 1905 | B33: Land | E33: 0 | F33: =IF(D33=0,'App.2-CI_MIFRS_DepExp_2014'!K33,+'App.2-CI_MIFRS_DepExp_2014'!K33+((C33*0.5)/D33)) -> 0 | H33: 0 | I33: 0 | K33: =IF(ISERROR(+I33+'App.2-CI_MIFRS_DepExp_2014'!K33-J33), 0, +I33+'App.2-CI_MIFRS_DepExp_2014'!K33-J33) -> 0
A34: 1908 | B34: Buildings & Fixtures | E34: 0 | F34: =IF(D34=0,'App.2-CI_MIFRS_DepExp_2014'!K34,+'App.2-CI_MIFRS_DepExp_2014'!K34+((C34*0.5)/D34)) -> 0 | H34: 0 | I34: 0 | K34: =IF(ISERROR(+I34+'App.2-CI_MIFRS_DepExp_2014'!K34-J34), 0, +I34+'App.2-CI_MIFRS_DepExp_2014'!K34-J34) -> 0
A35: 1910 | B35: Leasehold Improvements | E35: 0 | F35: =IF(D35=0,'App.2-CI_MIFRS_DepExp_2014'!K35,+'App.2-CI_MIFRS_DepExp_2014'!K35+((C35*0.5)/D35)) -> 0 | H35: 0 | I35: 0 | K35: =IF(ISERROR(+I35+'App.2-CI_MIFRS_DepExp_2014'!K35-J35), 0, +I35+'App.2-CI_MIFRS_DepExp_2014'!K35-J35) -> 0
A36: 1915 | B36: Office Furniture & Equipment (10 years) | E36: 0 | F36: =IF(D36=0,'App.2-CI_MIFRS_DepExp_2014'!K36,+'App.2-CI_MIFRS_DepExp_2014'!K36+((C36*0.5)/D36)) -> 0 | H36: 0 | I36: 0 | K36: =IF(ISERROR(+I36+'App.2-CI_MIFRS_DepExp_2014'!K36-J36), 0, +I36+'App.2-CI_MIFRS_DepExp_2014'!K36-J36) -> 0
A37: 1915 | B37: Office Furniture & Equipment (5 years) | E37: 0 | F37: =IF(D37=0,'App.2-CI_MIFRS_DepExp_2014'!K37,+'App.2-CI_MIFRS_DepExp_2014'!K37+((C37*0.5)/D37)) -> 0 | H37: 0 | I37: 0 | K37: =IF(ISERROR(+I37+'App.2-CI_MIFRS_DepExp_2014'!K37-J37), 0, +I37+'App.2-CI_MIFRS_DepExp_2014'!K37-J37) -> 0
A38: 1920 | B38: Computer Equipment - Hardware | E38: 0 | F38: =IF(D38=0,'App.2-CI_MIFRS_DepExp_2014'!K38,+'App.2-CI_MIFRS_DepExp_2014'!K38+((C38*0.5)/D38)) -> 0 | H38: 0 | I38: 0 | K38: =IF(ISERROR(+I38+'App.2-CI_MIFRS_DepExp_2014'!K38-J38), 0, +I38+'App.2-CI_MIFRS_DepExp_2014'!K38-J38) -> 0
A39: 1920 | B39: Computer Equip.-Hardware(Post Mar. 22/04) | E39: 0 | F39: =IF(D39=0,'App.2-CI_MIFRS_DepExp_2014'!K39,+'App.2-CI_MIFRS_DepExp_2014'!K39+((C39*0.5)/D39)) -> 0 | H39: 0 | I39: 0 | K39: =IF(ISERROR(+I39+'App.2-CI_MIFRS_DepExp_2014'!K39-J39), 0, +I39+'App.2-CI_MIFRS_DepExp_2014'!K39-J39) -> 0
A40: 1920 | B40: Computer Equip.-Hardware(Post Mar. 19/07) | E40: 0 | F40: =IF(D40=0,'App.2-CI_MIFRS_DepExp_2014'!K40,+'App.2-CI_MIFRS_DepExp_2014'!K40+((C40*0.5)/D40)) -> 0 | H40: 0 | I40: 0 | K40: =IF(ISERROR(+I40+'App.2-CI_MIFRS_DepExp_2014'!K40-J40), 0, +I40+'App.2-CI_MIFRS_DepExp_2014'!K40-J40) -> 0
A41: 1930 | B41: Transportation Equipment | E41: 0 | F41: =IF(D41=0,'App.2-CI_MIFRS_DepExp_2014'!K41,+'App.2-CI_MIFRS_DepExp_2014'!K41+((C41*0.5)/D41)) -> 0 | H41: 0 | I41: 0 | K41: =IF(ISERROR(+I41+'App.2-CI_MIFRS_DepExp_2014'!K41-J41), 0, +I41+'App.2-CI_MIFRS_DepExp_2014'!K41-J41) -> 0
A42: 1935 | B42: Stores Equipment | E42: 0 | F42: =IF(D42=0,'App.2-CI_MIFRS_DepExp_2014'!K42,+'App.2-CI_MIFRS_DepExp_2014'!K42+((C42*0.5)/D42)) -> 0 | H42: 0 | I42: 0 | K42: =IF(ISERROR(+I42+'App.2-CI_MIFRS_DepExp_2014'!K42-J42), 0, +I42+'App.2-CI_MIFRS_DepExp_2014'!K42-J42) -> 0
A43: 1940 | B43: Tools, Shop & Garage Equipment | E43: 0 | F43: =IF(D43=0,'App.2-CI_MIFRS_DepExp_2014'!K43,+'App.2-CI_MIFRS_DepExp_2014'!K43+((C43*0.5)/D43)) -> 0 | H43: 0 | I43: 0 | K43: =IF(ISERROR(+I43+'App.2-CI_MIFRS_DepExp_2014'!K43-J43), 0, +I43+'App.2-CI_MIFRS_DepExp_2014'!K43-J43) -> 0
A44: 1945 | B44: Measurement & Testing Equipment | E44: 0 | F44: =IF(D44=0,'App.2-CI_MIFRS_DepExp_2014'!K44,+'App.2-CI_MIFRS_DepExp_2014'!K44+((C44*0.5)/D44)) -> 0 | H44: 0 | I44: 0 | K44: =IF(ISERROR(+I44+'App.2-CI_MIFRS_DepExp_2014'!K44-J44), 0, +I44+'App.2-CI_MIFRS_DepExp_2014'!K44-J44) -> 0
A45: 1950 | B45: Power Operated Equipment | E45: 0 | F45: =IF(D45=0,'App.2-CI_MIFRS_DepExp_2014'!K45,+'App.2-CI_MIFRS_DepExp_2014'!K45+((C45*0.5)/D45)) -> 0 | H45: 0 | I45: 0 | K45: =IF(ISERROR(+I45+'App.2-CI_MIFRS_DepExp_2014'!K45-J45), 0, +I45+'App.2-CI_MIFRS_DepExp_2014'!K45-J45) -> 0
A46: 1955 | B46: Communications Equipment | E46: 0 | F46: =IF(D46=0,'App.2-CI_MIFRS_DepExp_2014'!K46,+'App.2-CI_MIFRS_DepExp_2014'!K46+((C46*0.5)/D46)) -> 0 | H46: 0 | I46: 0 | K46: =IF(ISERROR(+I46+'App.2-CI_MIFRS_DepExp_2014'!K46-J46), 0, +I46+'App.2-CI_MIFRS_DepExp_2014'!K46-J46) -> 0
A47: 1955 | B47: Communication Equipment (Smart Meters) | E47: 0 | F47: =IF(D47=0,'App.2-CI_MIFRS_DepExp_2014'!K47,+'App.2-CI_MIFRS_DepExp_2014'!K47+((C47*0.5)/D47)) -> 0 | H47: 0 | I47: 0 | K47: =IF(ISERROR(+I47+'App.2-CI_MIFRS_DepExp_2014'!K47-J47), 0, +I47+'App.2-CI_MIFRS_DepExp_2014'!K47-J47) -> 0
A48: 1960 | B48: Miscellaneous Equipment | E48: 0 | F48: =IF(D48=0,'App.2-CI_MIFRS_DepExp_2014'!K48,+'App.2-CI_MIFRS_DepExp_2014'!K48+((C48*0.5)/D48)) -> 0 | H48: 0 | I48: 0 | K48: =IF(ISERROR(+I48+'App.2-CI_MIFRS_DepExp_2014'!K48-J48), 0, +I48+'App.2-CI_MIFRS_DepExp_2014'!K48-J48) -> 0
A49: 1970 | B49: Load Management Controls - Customer Premises | E49: 0 | F49: =IF(D49=0,'App.2-CI_MIFRS_DepExp_2014'!K49,+'App.2-CI_MIFRS_DepExp_2014'!K49+((C49*0.5)/D49)) -> 0 | H49: 0 | I49: 0 | K49: =IF(ISERROR(+I49+'App.2-CI_MIFRS_DepExp_2014'!K49-J49), 0, +I49+'App.2-CI_MIFRS_DepExp_2014'!K49-J49) -> 0
A50: 1975 | B50: Load Management Controls Utility Premises | E50: 0 | F50: =IF(D50=0,'App.2-CI_MIFRS_DepExp_2014'!K50,+'App.2-CI_MIFRS_DepExp_2014'!K50+((C50*0.5)/D50)) -> 0 | H50: 0 | I50: 0 | K50: =IF(ISERROR(+I50+'App.2-CI_MIFRS_DepExp_2014'!K50-J50), 0, +I50+'App.2-CI_MIFRS_DepExp_2014'!K50-J50) -> 0
A51: 1980 | B51: System Supervisor Equipment | E51: 0 | F51: =IF(D51=0,'App.2-CI_MIFRS_DepExp_2014'!K51,+'App.2-CI_MIFRS_DepExp_2014'!K51+((C51*0.5)/D51)) -> 0 | H51: 0 | I51: 0 | K51: =IF(ISERROR(+I51+'App.2-CI_MIFRS_DepExp_2014'!K51-J51), 0, +I51+'App.2-CI_MIFRS_DepExp_2014'!K51-J51) -> 0
A52: 1985 | B52: Miscellaneous Fixed Assets | E52: 0 | F52: =IF(D52=0,'App.2-CI_MIFRS_DepExp_2014'!K52,+'App.2-CI_MIFRS_DepExp_2014'!K52+((C52*0.5)/D52)) -> 0 | H52: 0 | I52: 0 | K52: =IF(ISERROR(+I52+'App.2-CI_MIFRS_DepExp_2014'!K52-J52), 0, +I52+'App.2-CI_MIFRS_DepExp_2014'!K52-J52) -> 0
A53: 1990 | B53: Other Tangible Property | E53: 0 | F53: =IF(D53=0,'App.2-CI_MIFRS_DepExp_2014'!K53,+'App.2-CI_MIFRS_DepExp_2014'!K53+((C53*0.5)/D53)) -> 0 | H53: 0 | I53: 0 | K53: =IF(ISERROR(+I53+'App.2-CI_MIFRS_DepExp_2014'!K53-J53), 0, +I53+'App.2-CI_MIFRS_DepExp_2014'!K53-J53) -> 0
A54: 1995 | B54: Contributions & Grants | E54: 0 | F54: =IF(D54=0,'App.2-CI_MIFRS_DepExp_2014'!K54,+'App.2-CI_MIFRS_DepExp_2014'!K54+((C54*0.5)/D54)) -> 0 | H54: 0 | I54: 0 | K54: =IF(ISERROR(+I54+'App.2-CI_MIFRS_DepExp_2014'!K54-J54), 0, +I54+'App.2-CI_MIFRS_DepExp_2014'!K54-J54) -> 0
B55: Total | C55: =SUM(C17:C54) -> 0 | F55: =SUM(F17:F54) -> 0 | G55: =SUM(G17:G54) -> 0 | H55: =SUM(H17:H54) -> 0 | I55: =SUM(I17:I54) -> 0 | J55: 0 | K55: =SUM(K17:K54) -> 0
B56: Depreciation exp. adj. from gain or loss on the retirement of assets (pool of like assets)
B57: Total Depreciation expense to be included in the test year revenue requirement | F57: =SUM(F55:F56) -> 0
A58: Notes:
A59: 1 | B59: Board policy of the "half-year" rule - the applicant must ensure that additions in the year attract a half-year depreciation expense in the first year. Deviations from this standard practice must be supported in the application.
A60: 2 | B60: The applicant must provide an explanation of material variances in evidence.
A61: 3 | B61: This column refers to the calculated full year depreciation but excludes the depreciation expense on assets fully depreciated during the year. This column is used for the purpose of calculating depreciation expense in the following year on the next worksheet.
A64: General: | B64: Applicants must provide a breakdown of depreciation and amortization expense in the above format for all relevant accounts. Asset Retirement Obligations (AROs), depreciation and accretion expense should be disclosed separately consistent with the Notes of historical Audited Financial Statements.

Sheet App.2-CK MIFRS_DepExp_2016
G1: File Number: | H1: =EBNUMBER -> EB-2015-0074
G2: Exhibit:
G3: Tab:
G4: Schedule:
G5: Page:
G7: Date:
A9: Appendix 2-CK
A10: Depreciation and Amortization Expense
A11: Assumes the applicant made capitalization and depreciation expense accounting policy changes under CGAAP effective January 1, 2013 and has adopted IFRS for financial reporting purposes effective January 1, 2015.
D13: 2016 | E13: MIFRS
A15: Account | B15: Description | C15: Additions | D15: Years (new additions only) | E15: Depreciation Rate on New Additions | F15: 2016 Depreciation Expense 1 | G15: 2016 Depreciation Expense per Appendix 2-BA Fixed Assets, Column J | H15: Variance 2
C16: (d) | D16: (f) | E16: (g) = 1 / (f) | F16: (h)=2015 Full Year Depreciation + ((d)*0.5)/(f) | G16: (l) | H16: (m) = (h) - (l)
A17: 1611 | B17: Computer Software (Formally known as Account 1925) | E17: =IF(D17=0,0,1/D17) -> 0 | F17: =IF(D17=0,'App.2-CJ MIFRS_DepExp_2015'!K17,+'App.2-CJ MIFRS_DepExp_2015'!K17+((C17*0.5)/D17)) -> 0 | H17: =IF(ISERROR(+F17-G17), 0, +F17-G17) -> 0
A18: 1612 | B18: Land Rights (Formally known as Account 1906) | E18: 0 | F18: =IF(D18=0,'App.2-CJ MIFRS_DepExp_2015'!K18,+'App.2-CJ MIFRS_DepExp_2015'!K18+((C18*0.5)/D18)) -> 0 | H18: 0
A19: 1805 | B19: Land | E19: 0 | F19: =IF(D19=0,'App.2-CJ MIFRS_DepExp_2015'!K19,+'App.2-CJ MIFRS_DepExp_2015'!K19+((C19*0.5)/D19)) -> 0 | H19: 0
A20: 1808 | B20: Buildings | E20: 0 | F20: =IF(D20=0,'App.2-CJ MIFRS_DepExp_2015'!K20,+'App.2-CJ MIFRS_DepExp_2015'!K20+((C20*0.5)/D20)) -> 0 | H20: 0
A21: 1810 | B21: Leasehold Improvements | E21: 0 | F21: =IF(D21=0,'App.2-CJ MIFRS_DepExp_2015'!K21,+'App.2-CJ MIFRS_DepExp_2015'!K21+((C21*0.5)/D21)) -> 0 | H21: 0
A22: 1815 | B22: Transformer Station Equipment >50 kV | E22: 0 | F22: =IF(D22=0,'App.2-CJ MIFRS_DepExp_2015'!K22,+'App.2-CJ MIFRS_DepExp_2015'!K22+((C22*0.5)/D22)) -> 0 | H22: 0
A23: 1820 | B23: Distribution Station Equipment <50 kV | E23: 0 | F23: =IF(D23=0,'App.2-CJ MIFRS_DepExp_2015'!K23,+'App.2-CJ MIFRS_DepExp_2015'!K23+((C23*0.5)/D23)) -> 0 | H23: 0
A24: 1825 | B24: Storage Battery Equipment | E24: 0 | F24: =IF(D24=0,'App.2-CJ MIFRS_DepExp_2015'!K24,+'App.2-CJ MIFRS_DepExp_2015'!K24+((C24*0.5)/D24)) -> 0 | H24: 0
A25: 1830 | B25: Poles, Towers & Fixtures | E25: 0 | F25: =IF(D25=0,'App.2-CJ MIFRS_DepExp_2015'!K25,+'App.2-CJ MIFRS_DepExp_2015'!K25+((C25*0.5)/D25)) -> 0 | H25: 0
A26: 1835 | B26: Overhead Conductors & Devices | E26: 0 | F26: =IF(D26=0,'App.2-CJ MIFRS_DepExp_2015'!K26,+'App.2-CJ MIFRS_DepExp_2015'!K26+((C26*0.5)/D26)) -> 0 | H26: 0
A27: 1840 | B27: Underground Conduit | E27: 0 | F27: =IF(D27=0,'App.2-CJ MIFRS_DepExp_2015'!K27,+'App.2-CJ MIFRS_DepExp_2015'!K27+((C27*0.5)/D27)) -> 0 | H27: 0
A28: 1845 | B28: Underground Conductors & Devices | E28: 0 | F28: =IF(D28=0,'App.2-CJ MIFRS_DepExp_2015'!K28,+'App.2-CJ MIFRS_DepExp_2015'!K28+((C28*0.5)/D28)) -> 0 | H28: 0
A29: 1850 | B29: Line Transformers | E29: 0 | F29: =IF(D29=0,'App.2-CJ MIFRS_DepExp_2015'!K29,+'App.2-CJ MIFRS_DepExp_2015'!K29+((C29*0.5)/D29)) -> 0 | H29: 0
A30: 1855 | B30: Services (Overhead & Underground) | E30: 0 | F30: =IF(D30=0,'App.2-CJ MIFRS_DepExp_2015'!K30,+'App.2-CJ MIFRS_DepExp_2015'!K30+((C30*0.5)/D30)) -> 0 | H30: 0
A31: 1860 | B31: Meters | E31: 0 | F31: =IF(D31=0,'App.2-CJ MIFRS_DepExp_2015'!K31,+'App.2-CJ MIFRS_DepExp_2015'!K31+((C31*0.5)/D31)) -> 0 | H31: 0
A32: 1860 | B32: Meters (Smart Meters) | E32: 0 | F32: =IF(D32=0,'App.2-CJ MIFRS_DepExp_2015'!K32,+'App.2-CJ MIFRS_DepExp_2015'!K32+((C32*0.5)/D32)) -> 0 | H32: 0
A33: 1905 | B33: Land | E33: 0 | F33: =IF(D33=0,'App.2-CJ MIFRS_DepExp_2015'!K33,+'App.2-CJ MIFRS_DepExp_2015'!K33+((C33*0.5)/D33)) -> 0 | H33: 0
A34: 1908 | B34: Buildings & Fixtures | E34: 0 | F34: =IF(D34=0,'App.2-CJ MIFRS_DepExp_2015'!K34,+'App.2-CJ MIFRS_DepExp_2015'!K34+((C34*0.5)/D34)) -> 0 | H34: 0
A35: 1910 | B35: Leasehold Improvements | E35: 0 | F35: =IF(D35=0,'App.2-CJ MIFRS_DepExp_2015'!K35,+'App.2-CJ MIFRS_DepExp_2015'!K35+((C35*0.5)/D35)) -> 0 | H35: 0
A36: 1915 | B36: Office Furniture & Equipment (10 years) | E36: 0 | F36: =IF(D36=0,'App.2-CJ MIFRS_DepExp_2015'!K36,+'App.2-CJ MIFRS_DepExp_2015'!K36+((C36*0.5)/D36)) -> 0 | H36: 0
A37: 1915 | B37: Office Furniture & Equipment (5 years) | E37: 0 | F37: =IF(D37=0,'App.2-CJ MIFRS_DepExp_2015'!K37,+'App.2-CJ MIFRS_DepExp_2015'!K37+((C37*0.5)/D37)) -> 0 | H37: 0
A38: 1920 | B38: Computer Equipment - Hardware | E38: 0 | F38: =IF(D38=0,'App.2-CJ MIFRS_DepExp_2015'!K38,+'App.2-CJ MIFRS_DepExp_2015'!K38+((C38*0.5)/D38)) -> 0 | H38: 0
A39: 1920 | B39: Computer Equip.-Hardware(Post Mar. 22/04) | E39: 0 | F39: =IF(D39=0,'App.2-CJ MIFRS_DepExp_2015'!K39,+'App.2-CJ MIFRS_DepExp_2015'!K39+((C39*0.5)/D39)) -> 0 | H39: 0
A40: 1920 | B40: Computer Equip.-Hardware(Post Mar. 19/07) | E40: 0 | F40: =IF(D40=0,'App.2-CJ MIFRS_DepExp_2015'!K40,+'App.2-CJ MIFRS_DepExp_2015'!K40+((C40*0.5)/D40)) -> 0 | H40: 0
A41: 1930 | B41: Transportation Equipment | E41: 0 | F41: =IF(D41=0,'App.2-CJ MIFRS_DepExp_2015'!K41,+'App.2-CJ MIFRS_DepExp_2015'!K41+((C41*0.5)/D41)) -> 0 | H41: 0
A42: 1935 | B42: Stores Equipment | E42: 0 | F42: =IF(D42=0,'App.2-CJ MIFRS_DepExp_2015'!K42,+'App.2-CJ MIFRS_DepExp_2015'!K42+((C42*0.5)/D42)) -> 0 | H42: 0
A43: 1940 | B43: Tools, Shop & Garage Equipment | E43: 0 | F43: =IF(D43=0,'App.2-CJ MIFRS_DepExp_2015'!K43,+'App.2-CJ MIFRS_DepExp_2015'!K43+((C43*0.5)/D43)) -> 0 | H43: 0
A44: 1945 | B44: Measurement & Testing Equipment | E44: 0 | F44: =IF(D44=0,'App.2-CJ MIFRS_DepExp_2015'!K44,+'App.2-CJ MIFRS_DepExp_2015'!K44+((C44*0.5)/D44)) -> 0 | H44: 0
A45: 1950 | B45: Power Operated Equipment | E45: 0 | F45: =IF(D45=0,'App.2-CJ MIFRS_DepExp_2015'!K45,+'App.2-CJ MIFRS_DepExp_2015'!K45+((C45*0.5)/D45)) -> 0 | H45: 0
A46: 1955 | B46: Communications Equipment | E46: 0 | F46: =IF(D46=0,'App.2-CJ MIFRS_DepExp_2015'!K46,+'App.2-CJ MIFRS_DepExp_2015'!K46+((C46*0.5)/D46)) -> 0 | H46: 0
A47: 1955 | B47: Communication Equipment (Smart Meters) | E47: 0 | F47: =IF(D47=0,'App.2-CJ MIFRS_DepExp_2015'!K47,+'App.2-CJ MIFRS_DepExp_2015'!K47+((C47*0.5)/D47)) -> 0 | H47: 0
A48: 1960 | B48: Miscellaneous Equipment | E48: 0 | F48: =IF(D48=0,'App.2-CJ MIFRS_DepExp_2015'!K48,+'App.2-CJ MIFRS_DepExp_2015'!K48+((C48*0.5)/D48)) -> 0 | H48: 0
A49: 1970 | B49: Load Management Controls - Customer Premises | E49: 0 | F49: =IF(D49=0,'App.2-CJ MIFRS_DepExp_2015'!K49,+'App.2-CJ MIFRS_DepExp_2015'!K49+((C49*0.5)/D49)) -> 0 | H49: 0
A50: 1975 | B50: Load Management Controls Utility Premises | E50: 0 | F50: =IF(D50=0,'App.2-CJ MIFRS_DepExp_2015'!K50,+'App.2-CJ MIFRS_DepExp_2015'!K50+((C50*0.5)/D50)) -> 0 | H50: 0
A51: 1980 | B51: System Supervisor Equipment | E51: 0 | F51: =IF(D51=0,'App.2-CJ MIFRS_DepExp_2015'!K51,+'App.2-CJ MIFRS_DepExp_2015'!K51+((C51*0.5)/D51)) -> 0 | H51: 0
A52: 1985 | B52: Miscellaneous Fixed Assets | E52: 0 | F52: =IF(D52=0,'App.2-CJ MIFRS_DepExp_2015'!K52,+'App.2-CJ MIFRS_DepExp_2015'!K52+((C52*0.5)/D52)) -> 0 | H52: 0
A53: 1990 | B53: Other Tangible Property | E53: 0 | F53: =IF(D53=0,'App.2-CJ MIFRS_DepExp_2015'!K53,+'App.2-CJ MIFRS_DepExp_2015'!K53+((C53*0.5)/D53)) -> 0 | H53: 0
A54: 1995 | B54: Contributions & Grants | E54: 0 | F54: =IF(D54=0,'App.2-CJ MIFRS_DepExp_2015'!K54,+'App.2-CJ MIFRS_DepExp_2015'!K54+((C54*0.5)/D54)) -> 0 | H54: 0
B55: Total | C55: =SUM(C17:C54) -> 0 | F55: =SUM(F17:F54) -> 0 | G55: =SUM(G17:G54) -> 0 | H55: =SUM(H17:H54) -> 0
B56: Depreciation exp. adj. from gain or loss on the retirement of assets (pool of like assets)
B57: Total Depreciation expense to be included in the test year revenue requirement | F57: =SUM(F55:F56) -> 0
A58: Notes:
A59: 1 | B59: Board policy of the "half-year" rule - the applicant must ensure that additions in the year attract a half-year depreciation expense in the first year. Deviations from this standard practice must be supported in the application.
A60: 2 | B60: The applicant must provide an explanation of material variances in evidence.
A62: General: | B62: Applicants must provide a breakdown of depreciation and amortization expense in the above format for all relevant accounts. Asset Retirement Obligations (AROs), depreciation and accretion expense should be disclosed separately consistent with the Notes of historical Audited Financial Statements.

Sheet App.2-D_Overhead
F1: File Number: | G1: =EBNUMBER -> EB-2015-0074
F2: Exhibit:
F3: Tab:
F4: Schedule:
F5: Page:
F7: Date:
A9: Appendix 2-D
A10: Overhead Expense
A12: Applicants are to provide a breakdown of OM&A before capitalization in the below table. OM&A before capitalization may be broken down by cost center, program, drivers or another format best suited to focus on capitalized vs. uncapitalized OM&A.
A14: OM&A Before Capitalization | B14: 2012 | C14: 2013 | D14: 2014 | E14: 2015 | F14: 2016
B15: Historical Year | C15: Historical Year | D15: Historical Year | E15: Bridge Year | F15: Test Year
A16: Salaries and Benefits | B16: 4759645 | C16: 5307544 | D16: 5267310 | E16: 4502418 | F16: 4856870
A17: Material Costs | B17: 2747932 | C17: 2663788 | D17: 2232236 | E17: 2481862 | F17: 3178960
A18: Contract Services | B18: 3137463 | C18: 3107635 | D18: 3904777 | E18: 3582314 | F18: 3430852
A19: Property Costs | B19: 1473618 | C19: 701458 | D19: 632355 | E19: 1451935 | F19: 1443483
A20: Other Costs | B20: 894224 | C20: 744461 | D20: 588618 | E20: 1399836 | F20: 1438041
A21: Communication Costs | B21: 313648 | C21: 450064 | D21: 590096 | E21: 509620 | F21: 722050
A26: Total OM&A Before Capitalization (B) | B26: =SUM(B16:B25) -> 13326530 | C26: =SUM(C16:C25) -> 12974950 | D26: 13215392 | E26: 13927985 | F26: 15070256
A28: Applicants are to provide a breakdown of capitalized OM&A in the below table. Capitalized OM&A may be broken down using the categories listed in the table below if possible. Otherwise, applicants are to provide its own break down of capitalized OM&A.
A30: Capitalized OM&A | B30: 2012 | C30: 2013 | D30: 2014 | E30: 2015 | F30: 2016 | G30: Directly Attributable? | H30: Explanation for Change in Overhead Capitalized
B31: Historical Year | C31: Historical Year | D31: Historical Year | E31: Bridge Year | F31: Test Year | G31: (Y/N)
A32: Salaries and Benefits | B32: 1774884 | C32: 2630660 | D32: 2470908 | E32: 1002728 | F32: 1089616 | G32: Y
A33: Material Costs | B33: 2242902 | C33: 2583930 | D33: 1361167 | E33: 2374998 | F33: 3129333 | G33: Y
A34: Contract Services | B34: 2968635 | C34: 2482747 | D34: 3863544 | E34: 2652024 | F34: 2462509 | G34: Y
A35: Property Costs | B35: 414527 | C35: 100000 | D35: 231490 | E35: 755065 | F35: 598442 | G35: Y
A36: Other Costs | C36: $ - | D36: $ - | E36: 933000 | F36: 931060 | G36: Y
A37: Communication Costs | C37: $ - | D37: $ - | E37: $ -
A45: Total Capitalized OM&A (A) | B45: =SUM(B32:B44) -> 7400948 | C45: =SUM(C32:C44) -> 7797337 | D45: =SUM(D32:D44) -> 7927109 | E45: =SUM(E32:E44) -> 7717815 | F45: =SUM(F32:F44) -> 8210960
A47: % of Capitalized OM&A (=A/B) | B47: =IF(ISERROR(B45/B26),"0%",B45/B26) -> 0.5553544696 | C47: =IF(ISERROR(C45/C26),"0%",C45/C26) -> 0.6009531443 | D47: =IF(ISERROR(D45/D26),"0%",D45/D26) -> 0.5998391118 | E47: =IF(ISERROR(E45/E26),"0%",E45/E26) -> 0.5541228685 | F47: =IF(ISERROR(F45/F26),"0%",F45/F26) -> 0.5448454227

Sheet App.2-EA_Account 1575 (2015)
I1: File Number: | J1: =EBNUMBER -> EB-2015-0074
I2: Exhibit:
I3: Tab:
I4: Schedule:
I5: Page:
I7: Date:
A9: Appendix 2-EA
A10: Account 1575 - IFRS-CGAAP Transitional PP&E Amounts
A11: 2015 Adopters of IFRS for Financial Reporting Purposes
A13: For applicants that adopted IFRS on January 1, 2015 for financial reporting purposes
B17: =RebaseYear &" Rebasing Year" -> 2012 Rebasing Year | C17: 2012 | D17: 2013 | E17: 2014 | F17: 2015 | G17: 2016 Rebasing Year
A18: Reporting Basis | B18: CGAAP | C18: CGAAP | D18: CGAAP | E18: CGAAP | F18: MIFRS | G18: MIFRS
B19: Forecast | C19: Actual | D19: Actual | E19: Actual | F19: Forecast | G19: Forecast
E20: $ | F20: $
A21: PP&E Values under CGAAP
A22: Opening net PP&E - Note 1 | E22: 42325080 | F22: 52375899
A23: Net Additions - Note 4 | E23: 8290836 | F23: 7267811
A24: Net Depreciation (amounts should be negative) - Note 4 | E24: 1759983 | F24: 2273249
A25: Closing net PP&E (1) | E25: =E22+E23+E24 -> 52375899 | F25: =SUM(F22:F24) -> 61916959
A27: PP&E Values under MIFRS (Starts from 2014, the transition year)
A28: Opening net PP&E - Note 1 | E28: 42325080 | F28: 52375899
A29: Net Additions - Note 4 | E29: 8290836 | F29: 7267811
A30: Net Depreciation (amounts should be negative) - Note 4 | E30: 1759983 | F30: 2273249
A31: Closing net PP&E (2) | E31: =SUM(E28:E30) -> 52375899 | F31: =SUM(F28:F30) -> 61916959
A33: Difference in Closing net PP&E, former CGAAP vs. revised CGAAP | E33: =E25-E31 -> 0 | F33: =F25-F31 -> 0
A36: Effect on Deferral and Variance Account Rate Riders
A37: Closing balance in Account 1576 | G37: =IF(ISERROR(F33), 0, F33) -> 0 | I37: WACC | J37: 0.056
A38: Return on Rate Base Associated with Account 1576 balance at WACC - Note 2 | G38: =F33*J37*J38 -> 0 | H38: # of years of rate rider disposition period
A39: Amount included in Deferral and Variance Account Rate Rider Calculation | G39: =G37+G38 -> 0
A41: Notes:
A42: 1 For an applicant that adopted IFRS on January 1, 2015, the PP&E values as of January 1, 2014 under both CGAAP and MIFRS should be the same.
A43: 2 Return on rate base associated with deferred balance is calculated as:
A44: the deferral account closing balance as of 2015 rebasing year x WACC X # of years of rate rider disposition period
A45: * Please note that the calculation should be adjusted once WACC is updated and finalized in the rate application.
A46: 3 The PP&E deferral account is cleared by including the total balance in the deferral and variance account rate rider calculation.
A47: 4 Net additions are additions net of disposals; Net depreciation is additions to depreciation net of disposals.

Sheet App.2-EB_Account 1576 (2012)
I1: File Number: | J1: =EBNUMBER -> EB-2015-0074
I2: Exhibit:
I3: Tab:
I4: Schedule:
I5: Page:
I7: Date:
A9: Appendix 2-EB
A10: Account 1576 - Accounting Changes under CGAAP
A11: 2012 Changes in Accounting Policies under CGAAP
A13: For applicants that made capitalization and depreciation expense accounting policy changes under CGAAP effective January 1, 2012
B17: =RebaseYear &" Rebasing Year" -> 2012 Rebasing Year | C17: 2012 | D17: 2013 | E17: 2014 | F17: 2015 | G17: 2016 Rebasing Year
A18: Reporting Basis | B18: CGAAP | C18: CGAAP | D18: CGAAP | E18: CGAAP | F18: MIFRS | G18: MIFRS
B19: Forecast | C19: Actual | D19: Actual | E19: Actual | F19: Forecast | G19: Forecast
C20: $ | D20: $ | E20: $ | F20: $
A21: PP&E Values under former CGAAP
A22: Opening net PP&E - Note 1 | C22: 30254919.32 | D22: 38397376.84 | E22: 42325080.22 | F22: 48855932.68
A23: Net Additions - Note 4 | C23: 10213759.46 | D23: 5650216.94 | E23: 8290835.77 | F23: 7267811.35
A24: Net Depreciation (amounts should be negative) - Note 4 | C24: -2071301.94 | D24: -1722513.56 | E24: -1759983.31 | F24: -2273249.07
A25: Closing net PP&E (1) | C25: =C22+C23+C24 -> 38397376.84 | D25: =D22+D23+D24 -> 42325080.22 | E25: =E22+E23+E24 -> 48855932.68 | F25: =F22+F23+F24 -> 53850494.96
A27: PP&E Values under revised CGAAP (Starts from 2012)
A28: Opening net PP&E - Note 1 | C28: 30254919.32 | D28: 38397376.84 | E28: 42325080.22 | F28: 48855932.68
A29: Net Additions - Note 4 | C29: 10213759.46 | D29: 5650216.94 | E29: 8290835.77 | F29: 7267811.35
A30: Net Depreciation (amounts should be negative) - Note 4 | C30: -2071301.94 | D30: -1722513.56 | E30: -1759983.31 | F30: -2273249.07
A31: Closing net PP&E (2) | C31: =SUM(C28:C30) -> 38397376.84 | D31: =SUM(D28:D30) -> 42325080.22 | E31: =SUM(E28:E30) -> 48855932.68 | F31: =SUM(F28:F30) -> 53850494.96
A33: Difference in Closing net PP&E, former CGAAP vs. revised CGAAP | C33: =C25-C31 -> 0 | D33: =D25-D31 -> 0 | E33: =E25-E31 -> 0 | F33: =F25-F31 -> 0
A36: Effect on Deferral and Variance Account Rate Riders
A37: Closing balance in Account 1576 | G37: =IF(ISERROR(F33), 0, F33) -> 0 | I37: WACC
A38: Return on Rate Base Associated with Account 1576 balance at WACC - Note 2 | G38: =F33*J37*J38 -> 0 | H38: # of years of rate rider disposition period
A39: Amount included in Deferral and Variance Account Rate Rider Calculation | G39: =G37+G38 -> 0
A41: Notes:
A42: 1 For an applicant that made the capitalization and depreciation expense accounting policy changes on January 1, 2012, the PP&E values as of January 1, 2012 under both former CGAAP and revised CGAAP should be the same.
A43: 2 Return on rate base associated with Account 1576 balance is calculated as:
A44: the variance account ending balance as of 2015 rebasing year x WACC X # of years of rate rider disposition period
A45: * Please note that the calculation should be adjusted once WACC is updated and finalized in the rate application.
A46: 3 Account 1576 is cleared by including the total balance in the deferral and variance account rate rider calculation.
A47: 4 Net additions are additions net of disposals; Net depreciation is additions to depreciation net of disposals.

Sheet App.2-EC_Account 1576 (2013)
I1: File Number: | J1: =EBNUMBER -> EB-2015-0074
I2: Exhibit:
I3: Tab:
I4: Schedule:
I5: Page:
I7: Date:
A9: Appendix 2-EC
A10: Account 1576 - Accounting Changes under CGAAP
A11: 2013 Changes in Accounting Policies under CGAAP
A13: For applicants that made capitalization and depreciation expense accounting policy changes under CGAAP effective January 1, 2013
B17: =RebaseYear &" Rebasing Year" -> 2012 Rebasing Year | C17: 2012 | D17: 2013 | E17: 2014 | F17: 2015 | G17: 2016 Rebasing Year
A18: Reporting Basis | B18: CGAAP | C18: CGAAP | D18: CGAAP | E18: CGAAP | F18: MIFRS | G18: MIFRS
B19: Forecast | C19: Actual | D19: Actual | E19: Actual | F19: Forecast | G19: Forecast
D20: $ | E20: $ | F20: $
A21: PP&E Values under former CGAAP
A22: Opening net PP&E - Note 1 | E22: =+D25 -> 0 | F22: =+E25 -> 0
A23: Net Additions - Note 4
A24: Net Depreciation (amounts should be negative) - Note 4
A25: Closing net PP&E (1) | D25: =D22+D23+D24 -> 0 | E25: =E22+E23+E24 -> 0 | F25: =F22+F23+F24 -> 0
A27: PP&E Values under revised CGAAP (Starts from 2012)
A28: Opening net PP&E - Note 1 | E28: =+D31 -> 0 | F28: =+E31 -> 0
A29: Net Additions - Note 4
A30: Net Depreciation (amounts should be negative) - Note 4
A31: Closing net PP&E (2) | D31: =SUM(D28:D30) -> 0 | E31: =SUM(E28:E30) -> 0 | F31: =SUM(F28:F30) -> 0
A33: Difference in Closing net PP&E, former CGAAP vs. revised CGAAP | D33: =D25-D31 -> 0 | E33: =E25-E31 -> 0 | F33: =F25-F31 -> 0
A36: Effect on Deferral and Variance Account Rate Riders
A37: Closing balance in Account 1576 | G37: =IF(ISERROR(F33), 0, F33) -> 0 | I37: WACC
A38: Return on Rate Base Associated with Account 1576 balance at WACC - Note 2 | G38: =F33*J37*J38 -> 0 | H38: # of years of rate rider disposition period
A39: Amount included in Deferral and Variance Account Rate Rider Calculation | G39: =G37+G38 -> 0
A41: Notes:
A42: 1 For an applicant that made the capitalization and depreciation expense accounting policy changes on January 1, 2013, the PP&E values as of January 1, 2013 under both former CGAAP and revised CGAAP should be the same.
A43: 2 Return on rate base associated with Account 1576 balance is calculated as:
A44: the variance account ending balance as of 2015 rebasing year x WACC X # of years of rate rider disposition period
A45: * Please note that the calculation should be adjusted once WACC is updated and finalized in the rate application.
A46: 3 Account 1576 is cleared by including the total balance in the deferral and variance account rate rider calculation.
A47: 4 Net additions are additions net of disposals; Net depreciation is additions to depreciation net of disposals.

Sheet App.2-FA Proposed REG Invest.
J1: File Number: | K1: =EBNUMBER -> EB-2015-0074
J2: Exhibit:
J3: Tab:
J4: Schedule:
J5: Page:
J7: Date:
A9: Appendix 2-FA
A10: Renewable Generation Connection Investment Summary (past investments or over the future rate setting period)
A12: Enter the details of the Renewable Generation Connection projects as described in the appropriate section of the Filing Requirements.
A13: All costs entered on this page will be transferred to the appropriate cells in the appendices that follow.
A14: For Part A, Renewable Enabling Improvements (REI), these amounts will be transferred to Appendix 2 - FB
A15: For Part B, Expansions, these amounts will be transferred to Appendix 2 - FC
A17: If there are more than five projects proposed to be in-service in a certain year, please amend the tables below and ensure that the formulae for the Total Amounts in any given rate year are updated.
A18: Based on the current methodology and allocation, amounts allocated represent 6% for REI Connection Investments and 17% for Expansion Investments. (EB-2009-0349, 6-10-2010, p. 15, note 9)
A20: There are two scenarios described below. Separate sets of spreadsheets (2-FA, 2-FB, 2-FC) should be submited for each scenario as required.
A21: Scenario 1: Past Investments with No Recovery. The distributor has made investments in the past (during the IRM Years), but has not received approval for these projects and therefore did not receive
A22: revenue from the IESO under Regulation 330/09 and did not receive ratepayer revenue for the direct benefit portion of the investment.
A23: The WCA percentage, debt percentages, interest rates, kWh, tax rates, amortization period, CCA Class and percentage should correspond to the distributor's last Cost of Service approval.
A24: The Direct Benefit portion of the calculated Revenue Requirement for each year should be summed and can be applied for recovery from the distributor's ratepayers through a rate rider.
A25: The Provincial Recovery portion of the calculated Revenue Requirement for each year should be summed and can be applied for recovery from the IESO through a separate order.
A27: Scenario 2: Investments in the Test Year and Beyond. Distributor plans to make investments in 2016 and/or beyond. These investments should be added to 2-FA in the appropriate year.
A28: The WCA percentage, debt percentages, interest rates, kWh, tax rates, amortization period, CCA Class and percentage should correspond to the distributor's current application.
A30: Part A | G30: Test Year
A31: REI Investments (Direct Benefit at 6%) | C31: 2012 | D31: 2013 | E31: 2014 | F31: 2015 | G31: 2016 | H31: =G31+1 -> 2017 | I31: =H31+1 -> 2018 | J31: 2019 | K31: 2020
A32: Project 1
A33: Name: REI Connection Project
A34: Capital Costs | C34: 0 | D34: 0 | E34: 0 | F34: 0 | G34: 0 | H34: 0 | I34: 0 | J34: 0 | K34: 0
A35: OM&A (Start-Up) | C35: 0 | D35: 0 | E35: 0 | F35: 0 | G35: 0 | H35: 0 | I35: 0 | J35: 0 | K35: 0
A36: OM&A (Ongoing) | C36: 0 | D36: 0 | E36: 0 | F36: 0 | G36: 0 | H36: 0 | I36: 0 | J36: 0 | K36: 0
A38: Project 2
A39: Name: REI Connection Project
A40: Capital Costs | C40: 0 | D40: 0 | E40: 0 | F40: 0 | G40: 0 | H40: 0 | I40: 0 | J40: 0 | K40: 0
A41: OM&A (Start-Up) | C41: 0 | D41: 0 | E41: 0 | F41: 0 | G41: 0 | H41: 0 | I41: 0 | J41: 0 | K41: 0
A42: OM&A (Ongoing) | C42: 0 | D42: 0 | E42: 0 | F42: 0 | G42: 0 | H42: 0 | I42: 0 | J42: 0 | K42: 0
A44: Project 3
A45: Name: REI Connection Project
A46: Capital Costs | C46: 0 | D46: 0 | E46: 0 | F46: 0 | G46: 0 | H46: 0 | I46: 0 | J46: 0 | K46: 0
A47: OM&A (Start-Up) | C47: 0 | D47: 0 | E47: 0 | F47: 0 | G47: 0 | H47: 0 | I47: 0 | J47: 0 | K47: 0
A48: OM&A (Ongoing) | C48: 0 | D48: 0 | E48: 0 | F48: 0 | G48: 0 | H48: 0 | I48: 0 | J48: 0 | K48: 0
A50: Project 4
A51: Name: REI Connection Project
A52: Capital Costs | C52: 0 | D52: 0 | E52: 0 | F52: 0 | G52: 0 | H52: 0 | I52: 0 | J52: 0 | K52: 0
A53: OM&A (Start-Up) | C53: 0 | D53: 0 | E53: 0 | F53: 0 | G53: 0 | H53: 0 | I53: 0 | J53: 0 | K53: 0
A54: OM&A (Ongoing) | C54: 0 | D54: 0 | E54: 0 | F54: 0 | G54: 0 | H54: 0 | I54: 0 | J54: 0 | K54: 0
A56: Project 5
A57: Name: REI Connection Project
A58: Capital Costs | C58: 0 | D58: 0 | E58: 0 | F58: 0 | G58: 0 | H58: 0 | I58: 0 | J58: 0 | K58: 0
A59: OM&A (Start-Up) | C59: 0 | D59: 0 | E59: 0 | F59: 0 | G59: 0 | H59: 0 | I59: 0 | J59: 0 | K59: 0
A60: OM&A (Ongoing) | C60: 0 | D60: 0 | E60: 0 | F60: 0 | G60: 0 | H60: 0 | I60: 0 | J60: 0 | K60: 0
A62: Total Capital Costs | C62: =SUM(C58,C52,C46,C40,C34) -> 0 | D62: 0 | E62: 0 | F62: 0 | G62: =SUM(G58,G52,G46,G40,G34) -> 0 | H62: =SUM(H58,H52,H46,H40,H34) -> 0 | I62: 0 | J62: 0 | K62: 0
A63: Total OM&A (Start-Up) | C63: 0 | D63: 0 | E63: 0 | F63: 0 | G63: =SUM(G59,G53,G47,G41,G35) -> 0 | H63: 0 | I63: 0 | J63: 0 | K63: 0
A64: Total OM&A (Ongoing) | C64: 0 | D64: 0 | E64: 0 | F64: 0 | G64: =SUM(G60,G54,G48,G42,G36) -> 0 | H64: 0 | I64: 0 | J64: 0 | K64: 0
A67: Part B | G67: Test Year
A68: Expansion Investments (Direct Benefit at 17%) | C68: 2012 | D68: 2013 | E68: 2014 | F68: 2015 | G68: 2016 | H68: =G68+1 -> 2017 | I68: =H68+1 -> 2018 | J68: 2019 | K68: 2020
A69: Project 1
A70: Name: Expansion Connection Project
A71: Capital Costs | C71: 0 | D71: 0 | E71: 0 | F71: 0 | G71: 0 | H71: 0 | I71: 0 | J71: 0 | K71: 0
A72: OM&A (Start-Up) | C72: 0 | D72: 0 | E72: 0 | F72: 0 | G72: 0 | H72: 0 | I72: 0 | J72: 0 | K72: 0
A73: OM&A (Ongoing) | C73: 0 | D73: 0 | E73: 0 | F73: 0 | G73: 0 | H73: 0 | I73: 0 | J73: 0 | K73: 0
A75: Project 2
A76: Name: Expansion Connection Project
A77: Capital Costs | C77: 0 | D77: 0 | E77: 0 | F77: 0 | G77: 0 | H77: 0 | I77: 0 | J77: 0 | K77: 0
A78: OM&A (Start-Up) | C78: 0 | D78: 0 | E78: 0 | F78: 0 | G78: 0 | H78: 0 | I78: 0 | J78: 0 | K78: 0
A79: OM&A (Ongoing) | C79: 0 | D79: 0 | E79: 0 | F79: 0 | G79: 0 | H79: 0 | I79: 0 | J79: 0 | K79: 0
A81: Project 3
A82: Name: Expansion Connection Project
A83: Capital Costs | C83: 0 | D83: 0 | E83: 0 | F83: 0 | G83: 0 | H83: 0 | I83: 0 | J83: 0 | K83: 0
A84: OM&A (Start-Up) | C84: 0 | D84: 0 | E84: 0 | F84: 0 | G84: 0 | H84: 0 | I84: 0 | J84: 0 | K84: 0
A85: OM&A (Ongoing) | C85: 0 | D85: 0 | E85: 0 | F85: 0 | G85: 0 | H85: 0 | I85: 0 | J85: 0 | K85: 0
A87: Project 4
A88: Name: Expansion Connection Project
A89: Capital Costs | C89: 0 | D89: 0 | E89: 0 | F89: 0 | G89: 0 | H89: 0 | I89: 0 | J89: 0 | K89: 0
A90: OM&A (Start-Up) | C90: 0 | D90: 0 | E90: 0 | F90: 0 | G90: 0 | H90: 0 | I90: 0 | J90: 0 | K90: 0
A91: OM&A (Ongoing) | C91: 0 | D91: 0 | E91: 0 | F91: 0 | G91: 0 | H91: 0 | I91: 0 | J91: 0 | K91: 0
A93: Project 5
A94: Name: Expansion Connection Project
A95: Capital Costs | C95: 0 | D95: 0 | E95: 0 | F95: 0 | G95: 0 | H95: 0 | I95: 0 | J95: 0 | K95: 0
A96: OM&A (Start-Up) | C96: 0 | D96: 0 | E96: 0 | F96: 0 | G96: 0 | H96: 0 | I96: 0 | J96: 0 | K96: 0
A97: OM&A (Ongoing) | C97: 0 | D97: 0 | E97: 0 | F97: 0 | G97: 0 | H97: 0 | I97: 0 | J97: 0 | K97: 0
A99: Total Capital Costs | C99: =SUM(C95,C89,C83,C77,C71) -> 0 | D99: 0 | E99: 0 | F99: 0 | G99: =SUM(G95,G89,G83,G77,G71) -> 0 | H99: =SUM(H95,H89,H83,H77,H71) -> 0 | I99: 0 | J99: 0 | K99: 0
A100: Total OM&A (Start-Up) | C100: 0 | D100: 0 | E100: 0 | F100: 0 | G100: =SUM(G96,G90,G84,G78,G72) -> 0 | H100: 0 | I100: 0 | J100: 0 | K100: 0
A101: Total OM&A (Ongoing) | C101: 0 | D101: 0 | E101: 0 | F101: 0 | G101: =SUM(G97,G91,G85,G79,G73) -> 0 | H101: 0 | I101: 0 | J101: 0 | K101: 0

Sheet App.2-FB Calc of REG Improvemnt
N1: File Number: | O1: =EBNUMBER -> EB-2015-0074
N2: Exhibit:
N3: Tab:
N4: Schedule:
N5: Page:
N7: Date:
A9: Appendix 2-FB
A10: Calculation of Renewable Generation Connection Direct Benefits/Provincial Amount: Renewable Enabling Improvement Investments
A12: This table will calculate the distributor/provincial shares of the investments entered in Part A of Appendix 2-FA.
A13: Enter values in green shaded cells: WCA percentage, debt percentages, interest rates, kWh, tax rates, amortization period, CCA Class and percentage.
A14: For historical investments, enter these variables for your last cost of service test year. For 2016 and beyond, enter variables as in the application.
A15: Rate Riders are not calculated for Test Year as these assets and costs are already in the distributor's rate base/revenue requirement.
C17: 2012 | F17: 2013 | I17: 2014 | L17: 2015 | O17: 2016 Test Year | R17: 2017 | U17: 2018 | V17: 2016 | X17: 2019 | AA17: 2020
D18: Direct Benefit | E18: Provincial | G18: Direct Benefit | H18: Provincial | J18: Direct Benefit | K18: Provincial | M18: Direct Benefit | N18: Provincial | P18: Direct Benefit | Q18: Provincial | S18: Direct Benefit | T18: Provincial | V18: Direct Benefit | W18: Provincial | Y18: Direct Benefit | Z18: Provincial | AB18: Direct Benefit | AC18: Provincial
C19: Total | D19: 0.06 | E19: 0.94 | F19: Total | G19: 0.06 | H19: 0.94 | I19: Total | J19: 0.06 | K19: 0.94 | L19: Total | M19: 0.06 | N19: 0.94 | O19: Total | P19: 0.06 | Q19: 0.94 | R19: Total | S19: 0.06 | T19: 0.94 | U19: Total | V19: 0.06 | W19: 0.94 | X19: Total | Y19: 0.06 | Z19: 0.94 | AA19: Total | AB19: 0.06 | AC19: 0.94
A20: Net Fixed Assets (average) | C20: =D82 -> 0 | D20: =C20*D19 -> 0 | E20: =C20*E19 -> 0 | F20: =E82 -> 0 | G20: =F20*G19 -> 0 | H20: =F20*H19 -> 0 | I20: =F82 -> 0 | J20: =I20*J19 -> 0 | K20: =I20*K19 -> 0 | L20: =G82 -> 0 | M20: =L20*M19 -> 0 | N20: =L20*N19 -> 0 | O20: =H82 -> 0 | P20: =O20*P19 -> 0 | Q20: =O20*Q19 -> 0 | R20: =I82 -> 0 | S20: =R20*S19 -> 0 | T20: =R20*T19 -> 0 | U20: =J82 -> 0 | V20: =U20*V19 -> 0 | W20: =U20*W19 -> 0 | X20: =K82 -> 0 | Y20: =X20*Y19 -> 0 | Z20: =X20*Z19 -> 0 | AA20: =L82 -> 0 | AB20: =AA20*AB19 -> 0 | AC20: =AA20*AC19 -> 0
A21: Incremental OM&A (on-going, N/A for Provincial Recovery) | C21: ='App.2-FA Proposed REG Invest.'!C64 -> 0 | D21: =C21 -> 0 | F21: ='App.2-FA Proposed REG Invest.'!D64 -> 0 | G21: =F21 -> 0 | I21: ='App.2-FA Proposed REG Invest.'!E64 -> 0 | J21: =I21 -> 0 | L21: ='App.2-FA Proposed REG Invest.'!F64 -> 0 | M21: =L21 -> 0 | O21: ='App.2-FA Proposed REG Invest.'!G64 -> 0 | P21: =O21 -> 0 | R21: ='App.2-FA Proposed REG Invest.'!H64 -> 0 | S21: =R21 -> 0 | U21: ='App.2-FA Proposed REG Invest.'!I64 -> 0 | V21: =U21 -> 0 | X21: ='App.2-FA Proposed REG Invest.'!J64 -> 0 | Y21: =X21 -> 0 | AA21: ='App.2-FA Proposed REG Invest.'!K64 -> 0 | AB21: =AA21 -> 0
A22: Incremental OM&A (start-up, applicable for Provincial Recovery) | C22: ='App.2-FA Proposed REG Invest.'!C63 -> 0 | D22: =C22*D19 -> 0 | E22: =C22*E19 -> 0 | F22: ='App.2-FA Proposed REG Invest.'!D63 -> 0 | G22: =F22*G19 -> 0 | H22: =F22*H19 -> 0 | I22: ='App.2-FA Proposed REG Invest.'!E63 -> 0 | J22: =I22*J19 -> 0 | K22: =I22*K19 -> 0 | L22: ='App.2-FA Proposed REG Invest.'!F63 -> 0 | M22: =L22*M19 -> 0 | N22: =L22*N19 -> 0 | O22: ='App.2-FA Proposed REG Invest.'!G63 -> 0 | P22: =O22*P19 -> 0 | Q22: =O22*Q19 -> 0 | R22: ='App.2-FA Proposed REG Invest.'!H63 -> 0 | S22: =R22*S19 -> 0 | T22: =R22*T19 -> 0 | U22: ='App.2-FA Proposed REG Invest.'!I63 -> 0 | V22: =U22*V19 -> 0 | W22: =U22*W19 -> 0 | X22: ='App.2-FA Proposed REG Invest.'!J63 -> 0 | Y22: =X22*Y19 -> 0 | Z22: =X22*Z19 -> 0 | AA22: ='App.2-FA Proposed REG Invest.'!K63 -> 0 | AB22: =AA22*AB19 -> 0 | AC22: =AA22*AC19 -> 0
A23: WCA | D23: =(D21+D22)*$B$23 -> 0 | E23: =E22*$B$23 -> 0 | G23: =(G21+G22)*$B$23 -> 0 | H23: =H22*$B$23 -> 0 | J23: =(J21+J22)*$B$23 -> 0 | K23: =K22*$B$23 -> 0 | M23: =(M21+M22)*$B$23 -> 0 | N23: =N22*$B$23 -> 0 | P23: =(P21+P22)*$B$23 -> 0 | Q23: =Q22*$B$23 -> 0 | S23: =(S21+S22)*$B$23 -> 0 | T23: =T22*$B$23 -> 0 | V23: =(V21+V22)*$B$23 -> 0 | W23: =W22*$B$23 -> 0 | Y23: =(Y21+Y22)*$B$23 -> 0 | Z23: =Z22*$B$23 -> 0 | AB23: =(AB21+AB22)*$B$23 -> 0 | AC23: =AC22*$B$23 -> 0
A24: Rate Base | D24: =SUM(D20+D23) -> 0 | E24: =SUM(E20+E23) -> 0 | G24: =SUM(G20+G23) -> 0 | H24: =SUM(H20+H23) -> 0 | J24: =SUM(J20+J23) -> 0 | K24: =SUM(K20+K23) -> 0 | M24: =SUM(M20+M23) -> 0 | N24: =SUM(N20+N23) -> 0 | P24: =SUM(P20+P23) -> 0 | Q24: =SUM(Q20+Q23) -> 0 | S24: =SUM(S20+S23) -> 0 | T24: =SUM(T20+T23) -> 0 | V24: =SUM(V20+V23) -> 0 | W24: =SUM(W20+W23) -> 0 | Y24: =SUM(Y20+Y23) -> 0 | Z24: =SUM(Z20+Z23) -> 0 | AB24: =SUM(AB20+AB23) -> 0 | AC24: =SUM(AC20+AC23) -> 0
A27: Deemed ST Debt | D27: =D24*$B$27 -> 0 | E27: =E24*$B$27 -> 0 | G27: =G24*$B$27 -> 0 | H27: =H24*$B$27 -> 0 | J27: =J24*$B$27 -> 0 | K27: =K24*$B$27 -> 0 | M27: =M24*$B$27 -> 0 | N27: =N24*$B$27 -> 0 | P27: =P24*$B$27 -> 0 | Q27: =Q24*$B$27 -> 0 | S27: =S24*$B$27 -> 0 | T27: =T24*$B$27 -> 0 | V27: =V24*$B$27 -> 0 | W27: =W24*$B$27 -> 0 | Y27: =Y24*$B$27 -> 0 | Z27: =Z24*$B$27 -> 0 | AB27: =AB24*$B$27 -> 0 | AC27: =AC24*$B$27 -> 0
A28: Deemed LT Debt | D28: =D24*$B$28 -> 0 | E28: =E24*$B$28 -> 0 | G28: =G24*$B$28 -> 0 | H28: =H24*$B$28 -> 0 | J28: =J24*$B$28 -> 0 | K28: =K24*$B$28 -> 0 | M28: =M24*$B$28 -> 0 | N28: =N24*$B$28 -> 0 | P28: =P24*$B$28 -> 0 | Q28: =Q24*$B$28 -> 0 | S28: =S24*$B$28 -> 0 | T28: =T24*$B$28 -> 0 | V28: =V24*$B$28 -> 0 | W28: =W24*$B$28 -> 0 | Y28: =Y24*$B$28 -> 0 | Z28: =Z24*$B$28 -> 0 | AB28: =AB24*$B$28 -> 0 | AC28: =AC24*$B$28 -> 0
A29: Deemed Equity | D29: =D24*$B$29 -> 0 | E29: =E24*$B$29 -> 0 | G29: =G24*$B$29 -> 0 | H29: =H24*$B$29 -> 0 | J29: =J24*$B$29 -> 0 | K29: =K24*$B$29 -> 0 | M29: =M24*$B$29 -> 0 | N29: =N24*$B$29 -> 0 | P29: =P24*$B$29 -> 0 | Q29: =Q24*$B$29 -> 0 | S29: =S24*$B$29 -> 0 | T29: =T24*$B$29 -> 0 | V29: =V24*$B$29 -> 0 | W29: =W24*$B$29 -> 0 | Y29: =Y24*$B$29 -> 0 | Z29: =Z24*$B$29 -> 0 | AB29: =AB24*$B$29 -> 0 | AC29: =AC24*$B$29 -> 0
A31: ST Interest | D31: =D27*$B31 -> 0 | E31: =E27*$B31 -> 0 | G31: =G27*$B31 -> 0 | H31: =H27*$B31 -> 0 | J31: =J27*$B31 -> 0 | K31: =K27*$B31 -> 0 | M31: =M27*$B31 -> 0 | N31: =N27*$B31 -> 0 | P31: =P27*$B31 -> 0 | Q31: =Q27*$B31 -> 0 | S31: =S27*$B31 -> 0 | T31: =T27*$B31 -> 0 | V31: =V27*$B31 -> 0 | W31: =W27*$B31 -> 0 | Y31: =Y27*$B31 -> 0 | Z31: =Z27*$B31 -> 0 | AB31: =AB27*$B31 -> 0 | AC31: =AC27*$B31 -> 0
A32: LT Interest | D32: =D28*$B32 -> 0 | E32: 0 | G32: =G28*$B32 -> 0 | H32: 0 | J32: =J28*$B32 -> 0 | K32: 0 | M32: =M28*$B32 -> 0 | N32: 0 | P32: =P28*$B32 -> 0 | Q32: 0 | S32: =S28*$B32 -> 0 | T32: 0 | V32: =V28*$B32 -> 0 | W32: 0 | Y32: =Y28*$B32 -> 0 | Z32: 0 | AB32: =AB28*$B32 -> 0 | AC32: 0
A33: ROE | D33: 0 | E33: 0 | G33: 0 | H33: 0 | J33: 0 | K33: 0 | M33: 0 | N33: 0 | P33: 0 | Q33: 0 | S33: 0 | T33: 0 | V33: 0 | W33: 0 | Y33: 0 | Z33: 0 | AB33: 0 | AC33: 0
A34: Cost of Capital Total | D34: =SUM(D31:D33) -> 0 | E34: =SUM(E31:E33) -> 0 | G34: =SUM(G31:G33) -> 0 | H34: =SUM(H31:H33) -> 0 | J34: =SUM(J31:J33) -> 0 | K34: =SUM(K31:K33) -> 0 | M34: =SUM(M31:M33) -> 0 | N34: =SUM(N31:N33) -> 0 | P34: =SUM(P31:P33) -> 0 | Q34: =SUM(Q31:Q33) -> 0 | S34: =SUM(S31:S33) -> 0 | T34: =SUM(T31:T33) -> 0 | V34: =SUM(V31:V33) -> 0 | W34: =SUM(W31:W33) -> 0 | Y34: =SUM(Y31:Y33) -> 0 | Z34: =SUM(Z31:Z33) -> 0 | AB34: =SUM(AB31:AB33) -> 0 | AC34: =SUM(AC31:AC33) -> 0
A36: OM&A | D36: =D21+D22 -> 0 | E36: =E22 -> 0 | G36: =G21+G22 -> 0 | H36: =H22 -> 0 | J36: =J21+J22 -> 0 | K36: =K22 -> 0 | M36: =M21+M22 -> 0 | N36: =N22 -> 0 | P36: =P21+P22 -> 0 | Q36: =Q22 -> 0 | S36: =S21+S22 -> 0 | T36: =T22 -> 0 | V36: =V21+V22 -> 0 | W36: =W22 -> 0 | Y36: =Y21+Y22 -> 0 | Z36: =Z22 -> 0 | AB36: =AB21+AB22 -> 0 | AC36: =AC22 -> 0
A37: Amortization | C37: =D77 -> 0 | D37: =C37*D$19 -> 0 | E37: =C37*E$19 -> 0 | F37: =E77 -> 0 | G37: =F37*G$19 -> 0 | H37: =F37*H$19 -> 0 | I37: =F77 -> 0 | J37: =I37*J$19 -> 0 | K37: =I37*K$19 -> 0 | L37: =G77 -> 0 | M37: =L37*M$19 -> 0 | N37: =L37*N$19 -> 0 | O37: =H77 -> 0 | P37: =O37*P$19 -> 0 | Q37: =O37*Q$19 -> 0 | R37: =I76+I77 -> 0 | S37: =R37*S$19 -> 0 | T37: =R37*T$19 -> 0 | U37: =J76+J77 -> 0 | V37: =U37*V$19 -> 0 | W37: =U37*W$19 -> 0 | X37: =K76+K77 -> 0 | Y37: =X37*Y$19 -> 0 | Z37: =X37*Z$19 -> 0 | AA37: =L76+L77 -> 0 | AB37: =AA37*AB$19 -> 0 | AC37: =AA37*AC$19 -> 0
A38: Grossed-up PILs | D38: =D65 -> 0 | E38: =E65 -> 0 | G38: =G65 -> 0 | H38: =H65 -> 0 | J38: =J65 -> 0 | K38: =K65 -> 0 | M38: =M65 -> 0 | N38: =N65 -> 0 | P38: =P65 -> 0 | Q38: =Q65 -> 0 | S38: =S65 -> 0 | T38: =T65 -> 0 | V38: =V65 -> 0 | W38: =W65 -> 0 | Y38: =Y65 -> 0 | Z38: =Z65 -> 0 | AB38: =AB65 -> 0 | AC38: =AC65 -> 0
A40: Revenue Requirement | D40: =SUM(D34:D38) -> 0 | E40: =SUM(E34:E38) -> 0 | G40: =SUM(G34:G38) -> 0 | H40: =SUM(H34:H38) -> 0 | J40: =SUM(J34:J38) -> 0 | K40: =SUM(K34:K38) -> 0 | M40: =SUM(M34:M38) -> 0 | N40: =SUM(N34:N38) -> 0 | P40: =SUM(P34:P38) -> 0 | Q40: =SUM(Q34:Q38) -> 0 | S40: =SUM(S34:S38) -> 0 | T40: =SUM(T34:T38) -> 0 | V40: =SUM(V34:V38) -> 0 | W40: =SUM(W34:W38) -> 0 | Y40: =SUM(Y34:Y38) -> 0 | Z40: =SUM(Z34:Z38) -> 0 | AB40: =SUM(AB34:AB38) -> 0 | AC40: =SUM(AC34:AC38) -> 0
A43: Provincial Rate Protection | E43: =E40 -> 0 | H43: =H40 -> 0 | K43: =K40 -> 0 | N43: =N40 -> 0 | Q43: =Q40 -> 0 | T43: =T40 -> 0 | W43: =W40 -> 0 | Z43: =Z40 -> 0 | AC43: =AC40 -> 0
A45: Monthly Amount Paid by IESO | E45: =E43/12 -> 0 | H45: =H43/12 -> 0 | K45: =K43/12 -> 0 | N45: =N43/12 -> 0 | Q45: =Q43/12 -> 0 | T45: =T43/12 -> 0 | W45: =W43/12 -> 0 | Z45: =Z43/12 -> 0 | AC45: =AC43/12 -> 0
A47: Note 1: The difference between the actual costs of approved eligible investments and revenue received from the IESO should be recorded in a variance account. The Board may provide
A48: regulatory accounting guidance regarding a variance account either in an individual proceeding or on a generic basis.
A49: Note 2: For the 2016 Test Year, Costs and Revenues of the Direct Benefit are to be included in the test year applicant Rate Base and Revenues.
A51: PILs Calculation
D52: 2012 | G52: 2013 | J52: 2014 | M52: 2015 | P52: 2016 | S52: =P52+1 -> 2017 | V52: =S52+1 -> 2018 | Y52: =V52+1 -> 2019 | AB52: =Y52+1 -> 2020
A53: Income Tax | D53: Direct Benefit | E53: Provincial | G53: Direct Benefit | H53: Provincial | J53: Direct Benefit | K53: Provincial | M53: Direct Benefit | N53: Provincial | P53: Direct Benefit | Q53: Provincial | S53: Direct Benefit | T53: Provincial | V53: Direct Benefit | W53: Provincial | Y53: Direct Benefit | Z53: Provincial | AB53: Direct Benefit | AC53: Provincial
X54: Total | AA54: Total
A55: Net Income - ROE on Rate Base | D55: =D33 -> 0 | E55: =E33 -> 0 | G55: =G33 -> 0 | H55: =H33 -> 0 | J55: =J33 -> 0 | K55: =K33 -> 0 | M55: =M33 -> 0 | N55: =N33 -> 0 | P55: =P33 -> 0 | Q55: =Q33 -> 0 | S55: =S33 -> 0 | T55: =T33 -> 0 | V55: =V33 -> 0 | W55: =W33 -> 0 | Y55: =Y33 -> 0 | Z55: =Z33 -> 0 | AB55: =AB33 -> 0 | AC55: =AC33 -> 0
A56: Amortization (6% DB and 94% P) | D56: =D37 -> 0 | E56: =E37 -> 0 | G56: =G37 -> 0 | H56: =H37 -> 0 | J56: =J37 -> 0 | K56: =K37 -> 0 | M56: =M37 -> 0 | N56: =N37 -> 0 | P56: =P37 -> 0 | Q56: =Q37 -> 0 | S56: =S37 -> 0 | T56: =T37 -> 0 | V56: =V37 -> 0 | W56: =W37 -> 0 | Y56: =Y37 -> 0 | Z56: =Z37 -> 0 | AB56: =AB37 -> 0 | AC56: =AC37 -> 0
A57: CCA (6% DB and 94% P) | D57: =-D94*D$19 -> 0 | E57: =-D94*E$19 -> 0 | G57: =-E94*G19 -> 0 | H57: =-E94*H$19 -> 0 | J57: =-F94*J$19 -> 0 | K57: =-F94*K$19 -> 0 | M57: =-G94*M$19 -> 0 | N57: =-G94*N$19 -> 0 | P57: =-H94*P$19 -> 0 | Q57: =-H94*Q$19 -> 0 | S57: =-I94*S$19 -> 0 | T57: =-I94*T$19 -> 0 | V57: =-J94*V$19 -> 0 | W57: =-J94*W$19 -> 0 | Y57: =-K94*Y$19 -> 0 | Z57: =-K94*Z$19 -> 0 | AB57: =-L94*AB$19 -> 0 | AC57: =-L94*AC$19 -> 0
A58: Taxable income | D58: =SUM(D55:D57) -> 0 | E58: =SUM(E55:E57) -> 0 | G58: =SUM(G55:G57) -> 0 | H58: =SUM(H55:H57) -> 0 | J58: =SUM(J55:J57) -> 0 | K58: =SUM(K55:K57) -> 0 | M58: =SUM(M55:M57) -> 0 | N58: =SUM(N55:N57) -> 0 | P58: =SUM(P55:P57) -> 0 | Q58: =SUM(Q55:Q57) -> 0 | S58: =SUM(S55:S57) -> 0 | T58: =SUM(T55:T57) -> 0 | V58: =SUM(V55:V57) -> 0 | W58: =SUM(W55:W57) -> 0 | Y58: =SUM(Y55:Y57) -> 0 | Z58: =SUM(Z55:Z57) -> 0 | AB58: =SUM(AB55:AB57) -> 0 | AC58: =SUM(AC55:AC57) -> 0
A60: Tax Rate (to be entered)
A62: Income Taxes Payable | D62: =D58*D60 -> 0 | E62: =E58*E60 -> 0 | G62: =G58*G60 -> 0 | H62: =H58*H60 -> 0 | J62: =J58*J60 -> 0 | K62: =K58*K60 -> 0 | M62: =M58*M60 -> 0 | N62: =N58*N60 -> 0 | P62: =P58*P60 -> 0 | Q62: =Q58*Q60 -> 0 | S62: =S58*S60 -> 0 | T62: =T58*T60 -> 0 | V62: =V58*V60 -> 0 | W62: =W58*W60 -> 0 | Y62: =Y58*Y60 -> 0 | Z62: =Z58*Z60 -> 0 | AB62: =AB58*AB60 -> 0 | AC62: =AC58*AC60 -> 0
A63: Gross Up
A64: Income Taxes Payable | D64: =D62/(1-D60) -> 0 | E64: =E62/(1-E60) -> 0 | G64: =G62/(1-G60) -> 0 | H64: =H62/(1-H60) -> 0 | J64: =J62/(1-J60) -> 0 | K64: =K62/(1-K60) -> 0 | M64: =M62/(1-M60) -> 0 | N64: =N62/(1-N60) -> 0 | P64: =P62/(1-P60) -> 0 | Q64: =Q62/(1-Q60) -> 0 | S64: =S62/(1-S60) -> 0 | T64: =T62/(1-T60) -> 0 | V64: =V62/(1-V60) -> 0 | W64: =W62/(1-W60) -> 0 | Y64: =Y62/(1-Y60) -> 0 | Z64: =Z62/(1-Z60) -> 0 | AB64: =AB62/(1-AB60) -> 0 | AC64: =AC62/(1-AC60) -> 0
A65: Grossed Up PILs | D65: =SUM(D64:D64) -> 0 | E65: =SUM(E64:E64) -> 0 | G65: =SUM(G64:G64) -> 0 | H65: =SUM(H64:H64) -> 0 | J65: =SUM(J64:J64) -> 0 | K65: =SUM(K64:K64) -> 0 | M65: =SUM(M64:M64) -> 0 | N65: =SUM(N64:N64) -> 0 | P65: =SUM(P64:P64) -> 0 | Q65: =SUM(Q64:Q64) -> 0 | S65: =SUM(S64:S64) -> 0 | T65: =SUM(T64:T64) -> 0 | V65: =SUM(V64:V64) -> 0 | W65: =SUM(W64:W64) -> 0 | Y65: =SUM(Y64:Y64) -> 0 | Z65: =SUM(Z64:Z64) -> 0 | AB65: =SUM(AB64:AB64) -> 0 | AC65: =SUM(AC64:AC64) -> 0
D68: 2012 | E68: 2013 | F68: 2014 | G68: 2015 | H68: 2016 | I68: =H68+1 -> 2017 | J68: =I68+1 -> 2018 | K68: 2019 | L68: 2020
A69: Net Fixed Assets
B70: Enter applicable amortization in years: | C70: 25
A71: Opening Gross Fixed Assets | E71: =D73 -> 0 | F71: 0 | G71: 0 | H71: 0 | I71: =H73 -> 0 | J71: =I73 -> 0 | K71: =J73 -> 0 | L71: =K73 -> 0
A72: Gross Capital Additions | D72: ='App.2-FA Proposed REG Invest.'!C62 -> 0 | E72: ='App.2-FA Proposed REG Invest.'!D62 -> 0 | F72: ='App.2-FA Proposed REG Invest.'!E62 -> 0 | G72: ='App.2-FA Proposed REG Invest.'!F62 -> 0 | H72: ='App.2-FA Proposed REG Invest.'!G62 -> 0 | I72: ='App.2-FA Proposed REG Invest.'!H62 -> 0 | J72: ='App.2-FA Proposed REG Invest.'!I62 -> 0 | K72: ='App.2-FA Proposed REG Invest.'!J62 -> 0 | L72: ='App.2-FA Proposed REG Invest.'!K62 -> 0
A73: Closing Gross Fixed Assets | D73: =SUM(D71:D72) -> 0 | E73: 0 | F73: 0 | G73: 0 | H73: =SUM(H71:H72) -> 0 | I73: =SUM(I71:I72) -> 0 | J73: 0 | K73: 0 | L73: 0
A75: Opening Accumulated Amortization | E75: =+D78 -> 0 | F75: =E78 -> 0 | G75: 0 | H75: 0 | I75: 0 | J75: 0 | K75: 0 | L75: 0
A76: Current Year Amortization (before additions) | D76: =IF(ISERROR(D71/$C$70), 0, D71/$C$70) -> 0 | E76: 0 | F76: 0 | G76: 0 | H76: 0 | I76: =IF(ISERROR(I71/$C$70), 0, I71/$C$70) -> 0 | J76: =IF(ISERROR(J71/$C$70), 0, J71/$C$70) -> 0 | K76: =IF(ISERROR(K71/$C$70), 0, K71/$C$70) -> 0 | L76: =IF(ISERROR(L71/$C$70), 0, L71/$C$70) -> 0
A77: Additions (half year) | D77: =D72/$C$70/2 -> 0 | E77: =E72/$C$70/2 -> 0 | F77: =F72/$C$70/2 -> 0 | G77: 0 | H77: =H72/$C$70/2 -> 0 | I77: =I72/C70/2 -> 0 | J77: =J72/C70/2 -> 0 | K77: =K72/C70/2 -> 0 | L77: =L72/C70/2 -> 0
A78: Closing Accumulated Amortization | D78: =SUM(D75+D76+D77) -> 0 | E78: =SUM(E75+E76+E77) -> 0 | F78: =SUM(F75+F76+F77) -> 0 | G78: =SUM(G75+G76+G77) -> 0 | H78: =SUM(H75+H76+H77) -> 0 | I78: =SUM(I75:I77) -> 0 | J78: =SUM(J75:J77) -> 0 | K78: =SUM(K75:K77) -> 0 | L78: =SUM(L75:L77) -> 0
A80: Opening Net Fixed Assets | D80: =D71-D75 -> 0 | E80: 0 | F80: =F71-F75 -> 0 | G80: 0 | H80: =H71-H75 -> 0 | I80: =H81 -> 0 | J80: =I81 -> 0 | K80: =J81 -> 0 | L80: =K81 -> 0
A81: Closing Net Fixed Assets | D81: =D73-D78 -> 0 | E81: =E73-E78 -> 0 | F81: 0 | G81: 0 | H81: =H73-H78 -> 0 | I81: =I73-I78 -> 0 | J81: =J73-J78 -> 0 | K81: =K73-K78 -> 0 | L81: =L73-L78 -> 0
A82: Average Net Fixed Assets | D82: =SUM(D80:D81)/2 -> 0 | E82: 0 | F82: 0 | G82: 0 | H82: =SUM(H80:H81)/2 -> 0 | I82: =SUM(I80:I81)/2 -> 0 | J82: =SUM(J80:J81)/2 -> 0 | K82: =SUM(K80:K81)/2 -> 0 | L82: =SUM(L80:L81)/2 -> 0
A84: UCC for PILs Calculation
D85: 2012 | E85: 2013 | F85: 2014 | G85: 2015 | H85: 2016 | I85: =H85+1 -> 2017 | J85: =I85+1 -> 2018 | K85: 2019 | L85: 2020
A87: Opening UCC | E87: =D95 -> 0 | F87: 0 | G87: 0 | H87: 0 | I87: 0 | J87: 0 | K87: 0 | L87: 0
A88: Capital Additions (from Appendix 2-FA) | D88: =D72 -> 0 | E88: 0 | F88: 0 | G88: 0 | H88: =H72 -> 0 | I88: =I72 -> 0 | J88: 0 | K88: 0 | L88: 0
A89: UCC Before Half Year Rule | D89: =SUM(D87:D88) -> 0 | E89: 0 | F89: 0 | G89: 0 | H89: =SUM(H87:H88) -> 0 | I89: =SUM(I87:I88) -> 0 | J89: =SUM(J87:J88) -> 0 | K89: =SUM(K87:K88) -> 0 | L89: =SUM(L87:L88) -> 0
A90: Half Year Rule (1/2 Additions - Disposals) | D90: =D88/2 -> 0 | E90: 0 | F90: 0 | G90: 0 | H90: =H88/2 -> 0 | I90: =I88/2 -> 0 | J90: =J88/2 -> 0 | K90: =K88/2 -> 0 | L90: =L88/2 -> 0
A91: Reduced UCC | D91: =D89-D90 -> 0 | E91: 0 | F91: 0 | G91: 0 | H91: =H89-H90 -> 0 | I91: =I89-I90 -> 0 | J91: =J89-J90 -> 0 | K91: =K89-K90 -> 0 | L91: =L89-L90 -> 0
A92: CCA Rate Class (to be entered) | C92: 47 | D92: =C92 -> 47 | E92: =D92 -> 47 | F92: 47 | G92: 47 | H92: 47 | I92: 47 | J92: 47 | K92: 47 | L92: 47
A93: CCA Rate (to be entered) | C93: 0.08 | D93: =C93 -> 0.08 | E93: 0.08 | F93: 0.08 | G93: 0.08 | H93: 0.08 | I93: 0.08 | J93: 0.08 | K93: 0.08 | L93: 0.08
A94: CCA | D94: =D91*D93 -> 0 | E94: 0 | F94: 0 | G94: 0 | H94: =H91*H93 -> 0 | I94: =I91*I93 -> 0 | J94: 0 | K94: 0 | L94: =L91*L93 -> 0
A95: Closing UCC | D95: =D89-D94 -> 0 | E95: 0 | F95: 0 | G95: 0 | H95: =H89-H94 -> 0 | I95: =I89-I94 -> 0 | J95: =J89-J94 -> 0 | K95: =K89-K94 -> 0 | L95: =L89-L94 -> 0

Sheet App.2-FC Calc of REG Expansion
N1: File Number: | O1: =EBNUMBER -> EB-2015-0074
N2: Exhibit:
N3: Tab:
N4: Schedule:
N5: Page:
N7: Date:
A9: Appendix 2-FC
A10: Calculation of Renewable Generation Connection Direct Benefits/Provincial Amount: Renewable Expansion Investments
A12: This table will calculate the distributor/provincial shares of the investments entered in Part B of Appendix 2-FA.
A13: Enter values in green shaded cells: WCA percentage, debt percentages, interest rates, kWh, tax rates, amortization period, CCA Class and percentage.
A14: For historical investments, enter these variables for your last cost of service test year. For 2016 and beyond, enter variables as in the application.
A15: Rate Riders are not calculated for Test Year as these assets and costs are already in the distributor's rate base.
D18: 2012 | G18: 2013 | J18: 2014 | M18: 2015 | P18: 2016 TEST YEAR | S18: 2017 | T18: 2016 | V18: 2018 | Y18: 2019 | AB18: 2020
E19: Direct Benefit | F19: Provincial | H19: Direct Benefit | I19: Provincial | K19: Direct Benefit | L19: Provincial | N19: Direct Benefit | O19: Provincial | Q19: Direct Benefit | R19: Provincial | T19: Direct Benefit | U19: Provincial | W19: Direct Benefit | X19: Provincial | Z19: Direct Benefit | AA19: Provincial | AC19: Direct Benefit | AD19: Provincial
D20: Total | E20: 0.17 | F20: 0.83 | G20: Total | H20: 0.17 | I20: 0.83 | J20: Total | K20: 0.17 | L20: 0.83 | M20: Total | N20: 0.17 | O20: 0.83 | P20: Total | Q20: 0.17 | R20: 0.83 | S20: Total | T20: 0.17 | U20: 0.83 | V20: Total | W20: 0.17 | X20: 0.83 | Y20: Total | Z20: 0.17 | AA20: 0.83 | AB20: Total | AC20: 0.17 | AD20: 0.83
A21: Net Fixed Assets (average) | D21: =D82 -> 0 | E21: =D21*E20 -> 0 | F21: =D21*F20 -> 0 | G21: =E82 -> 0 | H21: =G21*H20 -> 0 | I21: =G21*I20 -> 0 | J21: =F82 -> 0 | K21: =J21*K20 -> 0 | L21: =J21*L20 -> 0 | M21: =G82 -> 0 | N21: =M21*N20 -> 0 | O21: =M21*O20 -> 0 | P21: =H82 -> 0 | Q21: =P21*Q20 -> 0 | R21: =P21*R20 -> 0 | S21: =I82 -> 0 | T21: =S21*T20 -> 0 | U21: =S21*U20 -> 0 | V21: =J82 -> 0 | W21: =V21*W20 -> 0 | X21: =V21*X20 -> 0 | Y21: =K82 -> 0 | Z21: =Y21*Z20 -> 0 | AA21: =Y21*AA20 -> 0 | AB21: =L82 -> 0 | AC21: =AB21*AC20 -> 0 | AD21: =AB21*AD20 -> 0
A22: Incremental OM&A (on-going, N/A for Provincial Recovery) | D22: ='App.2-FA Proposed REG Invest.'!C101 -> 0 | E22: =D22 -> 0 | G22: ='App.2-FA Proposed REG Invest.'!D$101 -> 0 | H22: =G22 -> 0 | J22: ='App.2-FA Proposed REG Invest.'!E$101 -> 0 | K22: =J22 -> 0 | M22: ='App.2-FA Proposed REG Invest.'!F$101 -> 0 | N22: =M22 -> 0 | P22: ='App.2-FA Proposed REG Invest.'!G$101 -> 0 | Q22: =P22 -> 0 | S22: ='App.2-FA Proposed REG Invest.'!H$101 -> 0 | T22: =S22 -> 0 | V22: ='App.2-FA Proposed REG Invest.'!I$101 -> 0 | W22: =V22 -> 0 | Y22: ='App.2-FA Proposed REG Invest.'!J$101 -> 0 | Z22: =Y22 -> 0 | AB22: ='App.2-FA Proposed REG Invest.'!K$101 -> 0 | AC22: =AB22 -> 0
A23: Incremental OM&A (start-up, applicable for Provincial Recovery) | D23: ='App.2-FA Proposed REG Invest.'!C100 -> 0 | E23: =D23*E20 -> 0 | F23: =D23*F20 -> 0 | G23: ='App.2-FA Proposed REG Invest.'!D$100 -> 0 | H23: =G23*H20 -> 0 | I23: =G23*I20 -> 0 | J23: ='App.2-FA Proposed REG Invest.'!E$100 -> 0 | K23: =J23*K20 -> 0 | L23: =J23*L20 -> 0 | M23: ='App.2-FA Proposed REG Invest.'!F$100 -> 0 | N23: =M23*N20 -> 0 | O23: =M23*O20 -> 0 | P23: ='App.2-FA Proposed REG Invest.'!G$100 -> 0 | Q23: =P23*Q20 -> 0 | R23: =P23*R20 -> 0 | S23: ='App.2-FA Proposed REG Invest.'!H$100 -> 0 | T23: =S23*T20 -> 0 | U23: =S23*U20 -> 0 | V23: ='App.2-FA Proposed REG Invest.'!I$100 -> 0 | W23: =V23*W20 -> 0 | X23: =V23*X20 -> 0 | Y23: ='App.2-FA Proposed REG Invest.'!J$100 -> 0 | Z23: =Y23*Z20 -> 0 | AA23: =Y23*AA20 -> 0 | AB23: ='App.2-FA Proposed REG Invest.'!K$100 -> 0 | AC23: =AB23*AC20 -> 0 | AD23: =AB23*AD20 -> 0
A24: WCA | E24: =(E22+E23)*$B$24 -> 0 | F24: =F23*$B$24 -> 0 | H24: =(H22+H23)*$B$24 -> 0 | I24: =I23*$B$24 -> 0 | K24: =(K22+K23)*$B$24 -> 0 | L24: =L23*$B$24 -> 0 | N24: =(N22+N23)*$B$24 -> 0 | O24: =O23*$B$24 -> 0 | Q24: =(Q22+Q23)*$B$24 -> 0 | R24: =R23*$B$24 -> 0 | T24: =(T22+T23)*$B$24 -> 0 | U24: =U23*$B$24 -> 0 | W24: =(W22+W23)*$B$24 -> 0 | X24: =X23*$B$24 -> 0 | Z24: =(Z22+Z23)*$B$24 -> 0 | AA24: =AA23*$B$24 -> 0 | AC24: =(AC22+AC23)*$B$24 -> 0 | AD24: =AD23*$B$24 -> 0
A25: Rate Base | E25: =SUM(E21+E24) -> 0 | F25: =SUM(F21+F24) -> 0 | H25: =SUM(H21+H24) -> 0 | I25: =SUM(I21+I24) -> 0 | K25: =SUM(K21+K24) -> 0 | L25: =SUM(L21+L24) -> 0 | N25: =SUM(N21+N24) -> 0 | O25: =SUM(O21+O24) -> 0 | Q25: =SUM(Q21+Q24) -> 0 | R25: =SUM(R21+R24) -> 0 | T25: =SUM(T21+T24) -> 0 | U25: =SUM(U21+U24) -> 0 | W25: =SUM(W21+W24) -> 0 | X25: =SUM(X21+X24) -> 0 | Z25: =SUM(Z21+Z24) -> 0 | AA25: =SUM(AA21+AA24) -> 0 | AC25: =SUM(AC21+AC24) -> 0 | AD25: =SUM(AD21+AD24) -> 0
A28: Deemed ST Debt | E28: =E25*$B$28 -> 0 | F28: =F25*$B$28 -> 0 | H28: =H25*$B$28 -> 0 | I28: =I25*$B$28 -> 0 | K28: =K25*$B$28 -> 0 | L28: =L25*$B$28 -> 0 | N28: =N25*$B$28 -> 0 | O28: =O25*$B$28 -> 0 | Q28: =Q25*$B$28 -> 0 | R28: =R25*$B$28 -> 0 | T28: =T25*$B$28 -> 0 | U28: =U25*$B$28 -> 0 | W28: =W25*$B$28 -> 0 | X28: =X25*$B$28 -> 0 | Z28: =Z25*$B$28 -> 0 | AA28: =AA25*$B$28 -> 0 | AC28: =AC25*$B$28 -> 0 | AD28: =AD25*$B$28 -> 0
A29: Deemed LT Debt | E29: =E25*$B$29 -> 0 | F29: =F25*$B$29 -> 0 | H29: =H25*$B$29 -> 0 | I29: =I25*$B$29 -> 0 | K29: =K25*$B$29 -> 0 | L29: =L25*$B$29 -> 0 | N29: =N25*$B$29 -> 0 | O29: =O25*$B$29 -> 0 | Q29: =Q25*$B$29 -> 0 | R29: =R25*$B$29 -> 0 | T29: =T25*$B$29 -> 0 | U29: =U25*$B$29 -> 0 | W29: =W25*$B$29 -> 0 | X29: =X25*$B$29 -> 0 | Z29: =Z25*$B$29 -> 0 | AA29: =AA25*$B$29 -> 0 | AC29: =AC25*$B$29 -> 0 | AD29: =AD25*$B$29 -> 0
A30: Deemed Equity | E30: =E25*$B$30 -> 0 | F30: =F25*$B$30 -> 0 | H30: =H25*$B$30 -> 0 | I30: =I25*$B$30 -> 0 | K30: =K25*$B$30 -> 0 | L30: =L25*$B$30 -> 0 | N30: =N25*$B$30 -> 0 | O30: =O25*$B$30 -> 0 | Q30: =Q25*$B$30 -> 0 | R30: =R25*$B$30 -> 0 | T30: =T25*$B$30 -> 0 | U30: =U25*$B$30 -> 0 | W30: =W25*$B$30 -> 0 | X30: =X25*$B$30 -> 0 | Z30: =Z25*$B$30 -> 0 | AA30: =AA25*$B$30 -> 0 | AC30: =AC25*$B$30 -> 0 | AD30: =AD25*$B$30 -> 0
A32: ST Interest | E32: =E28*$B$32 -> 0 | F32: =F28*$B$32 -> 0 | H32: =H28*$B$32 -> 0 | I32: =I28*$B$32 -> 0 | K32: =K28*$B$32 -> 0 | L32: =L28*$B$32 -> 0 | N32: =N28*$B$32 -> 0 | O32: =O28*$B$32 -> 0 | Q32: =Q28*$B$32 -> 0 | R32: =R28*$B$32 -> 0 | T32: =T28*$B$32 -> 0 | U32: =U28*$B$32 -> 0 | W32: =W28*$B$32 -> 0 | X32: =X28*$B$32 -> 0 | Z32: =Z28*$B$32 -> 0 | AA32: =AA28*$B$32 -> 0 | AC32: =AC28*$B$32 -> 0 | AD32: =AD28*$B$32 -> 0
A33: LT Interest | E33: =E29*$B$33 -> 0 | F33: =F29*$B$33 -> 0 | H33: =H29*$B$33 -> 0 | I33: =I29*$B$33 -> 0 | K33: =K29*$B$33 -> 0 | L33: =L29*$B$33 -> 0 | N33: =N29*$B$33 -> 0 | O33: =O29*$B$33 -> 0 | Q33: =Q29*$B$33 -> 0 | R33: =R29*$B$33 -> 0 | T33: =T29*$B$33 -> 0 | U33: =U29*$B$33 -> 0 | W33: =W29*$B$33 -> 0 | X33: =X29*$B$33 -> 0 | Z33: =Z29*$B$33 -> 0 | AA33: =AA29*$B$33 -> 0 | AC33: =AC29*$B$33 -> 0 | AD33: =AD29*$B$33 -> 0
A34: ROE | E34: =E30*$B$34 -> 0 | F34: =F30*$B$34 -> 0 | H34: =H30*$B$34 -> 0 | I34: =I30*$B$34 -> 0 | K34: =K30*$B$34 -> 0 | L34: =L30*$B$34 -> 0 | N34: =N30*$B$34 -> 0 | O34: =O30*$B$34 -> 0 | Q34: =Q30*$B$34 -> 0 | R34: =R30*$B$34 -> 0 | T34: =T30*$B$34 -> 0 | U34: =U30*$B$34 -> 0 | W34: =W30*$B$34 -> 0 | X34: =X30*$B$34 -> 0 | Z34: =Z30*$B$34 -> 0 | AA34: =AA30*$B$34 -> 0 | AC34: =AC30*$B$34 -> 0 | AD34: =AD30*$B$34 -> 0
A35: Cost of Capital Total | E35: =SUM(E32:E34) -> 0 | F35: =SUM(F32:F34) -> 0 | H35: =SUM(H32:H34) -> 0 | I35: =SUM(I32:I34) -> 0 | K35: =SUM(K32:K34) -> 0 | L35: =SUM(L32:L34) -> 0 | N35: =SUM(N32:N34) -> 0 | O35: =SUM(O32:O34) -> 0 | Q35: =SUM(Q32:Q34) -> 0 | R35: =SUM(R32:R34) -> 0 | T35: =SUM(T32:T34) -> 0 | U35: =SUM(U32:U34) -> 0 | W35: =SUM(W32:W34) -> 0 | X35: =SUM(X32:X34) -> 0 | Z35: =SUM(Z32:Z34) -> 0 | AA35: =SUM(AA32:AA34) -> 0 | AC35: =SUM(AC32:AC34) -> 0 | AD35: =SUM(AD32:AD34) -> 0
A37: OM&A | E37: =E22+E23 -> 0 | F37: =F23 -> 0 | H37: =H22+H23 -> 0 | I37: =I23 -> 0 | K37: =K22+K23 -> 0 | L37: =L23 -> 0 | N37: =N22+N23 -> 0 | O37: =O23 -> 0 | Q37: =Q22+Q23 -> 0 | R37: =R23 -> 0 | T37: =T22+T23 -> 0 | U37: =U23 -> 0 | W37: =W22+W23 -> 0 | X37: =X23 -> 0 | Z37: =Z22+Z23 -> 0 | AA37: =AA23 -> 0 | AC37: =AC22+AC23 -> 0 | AD37: =AD23 -> 0
A38: Amortization | D38: =D78 -> 0 | E38: =D38*E$20 -> 0 | F38: =D38*F$20 -> 0 | G38: =E78 -> 0 | H38: =G38*H$20 -> 0 | I38: =G38*I$20 -> 0 | J38: =F78 -> 0 | K38: =J38*K$20 -> 0 | L38: =J38*L$20 -> 0 | M38: =G78 -> 0 | N38: =M38*N$20 -> 0 | O38: =M38*O$20 -> 0 | P38: =H76+H77 -> 0 | Q38: =P38*Q$20 -> 0 | R38: =P38*R$20 -> 0 | S38: =I76+I77 -> 0 | T38: =S38*T$20 -> 0 | U38: =S38*U$20 -> 0 | V38: =J76+J77 -> 0 | W38: =V38*W$20 -> 0 | X38: =V38*X$20 -> 0 | Y38: =K76+K77 -> 0 | Z38: =Y38*Z$20 -> 0 | AA38: =Y38*AA$20 -> 0 | AB38: =L76+L77 -> 0 | AC38: =AB38*AC$20 -> 0 | AD38: =AB38*AD$20 -> 0
A39: Grossed-up PILs | E39: =E66 -> 0 | F39: =F66 -> 0 | H39: =H66 -> 0 | I39: =I66 -> 0 | K39: =K66 -> 0 | L39: =L66 -> 0 | N39: =N66 -> 0 | O39: =O66 -> 0 | Q39: =Q66 -> 0 | R39: =R66 -> 0 | T39: =T66 -> 0 | U39: =U66 -> 0 | W39: =W66 -> 0 | X39: =X66 -> 0 | Z39: =Z66 -> 0 | AA39: =AA66 -> 0 | AC39: =AC66 -> 0 | AD39: =AD66 -> 0
A41: Revenue Requirement | E41: =SUM(E35:E39) -> 0 | F41: =SUM(F35:F39) -> 0 | H41: =SUM(H35:H39) -> 0 | I41: =SUM(I35:I39) -> 0 | K41: =SUM(K35:K39) -> 0 | L41: =SUM(L35:L39) -> 0 | N41: =SUM(N35:N39) -> 0 | O41: =SUM(O35:O39) -> 0 | Q41: =SUM(Q35:Q39) -> 0 | R41: =SUM(R35:R39) -> 0 | T41: =SUM(T35:T39) -> 0 | U41: =SUM(U35:U39) -> 0 | W41: =SUM(W35:W39) -> 0 | X41: =SUM(X35:X39) -> 0 | Z41: =SUM(Z35:Z39) -> 0 | AA41: =SUM(AA35:AA39) -> 0 | AC41: =SUM(AC35:AC39) -> 0 | AD41: =SUM(AD35:AD39) -> 0
A44: Provincial Rate Protection | F44: =F41 -> 0 | I44: =I41 -> 0 | L44: =L41 -> 0 | O44: =O41 -> 0 | R44: =R41 -> 0 | U44: =U41 -> 0 | X44: =X41 -> 0 | AA44: =AA41 -> 0 | AD44: =AD41 -> 0
A46: Monthly Amount Paid by IESO | F46: =F44/12 -> 0 | I46: =I44/12 -> 0 | L46: =L44/12 -> 0 | O46: =O44/12 -> 0 | R46: =R44/12 -> 0 | U46: =U44/12 -> 0 | X46: =X44/12 -> 0 | AA46: =AA44/12 -> 0 | AD46: =AD44/12 -> 0
A48: Note 1: The difference between the actual costs of approved eligible investments and revenue received from the IESO should be recorded in a variance account. The Board may provide
A49: regulatory accounting guidance regarding a variance account either in an individual proceeding or on a generic basis.
A50: Note 2: For the 2016 Test Year, Costs and Revenues of the Direct Benefit are to be included in the test year applicant Rate Base and Revenues.
A52: PILs Calculation
E53: 2012 | H53: 2013 | K53: 2014 | N53: 2015 | Q53: 2016 TEST YEAR | T53: 2017 | W53: 2018 | Z53: 2019 | AC53: 2020
A54: Income Tax | E54: Direct Benefit | F54: Provincial | H54: Direct Benefit | I54: Provincial | K54: Direct Benefit | L54: Provincial | N54: Direct Benefit | O54: Provincial | Q54: Direct Benefit | R54: Provincial | T54: Direct Benefit | U54: Provincial | W54: Direct Benefit | X54: Provincial | Z54: Direct Benefit | AA54: Provincial | AC54: Direct Benefit | AD54: Provincial
V55: Total | Y55: Total | AB55: Total
A56: Net Income - ROE on Rate Base | E56: =E34 -> 0 | F56: =F34 -> 0 | H56: =H34 -> 0 | I56: =I34 -> 0 | K56: =K34 -> 0 | L56: =L34 -> 0 | N56: =N34 -> 0 | O56: =O34 -> 0 | Q56: =Q34 -> 0 | R56: =R34 -> 0 | T56: =T34 -> 0 | U56: =U34 -> 0 | W56: =W34 -> 0 | X56: =X34 -> 0 | Z56: =Z34 -> 0 | AA56: =AA34 -> 0 | AC56: =AC34 -> 0 | AD56: =AD34 -> 0
A57: Amortization (17% DB and 83% P) | E57: =E38 -> 0 | F57: =F38 -> 0 | H57: =H38 -> 0 | I57: =I38 -> 0 | K57: =K38 -> 0 | L57: =L38 -> 0 | N57: =N38 -> 0 | O57: =O38 -> 0 | Q57: =Q38 -> 0 | R57: =R38 -> 0 | T57: =T38 -> 0 | U57: =U38 -> 0 | W57: =W38 -> 0 | X57: =X38 -> 0 | Z57: =Z38 -> 0 | AA57: =AA38 -> 0 | AC57: =AC38 -> 0 | AD57: =AD38 -> 0
A58: CCA (17% DB and 83% P) | E58: =-D94*E$20 -> 0 | F58: =-D94*F$20 -> 0 | H58: =-E94*H$20 -> 0 | I58: =-E94*I$20 -> 0 | K58: =-F94*K$20 -> 0 | L58: =-F94*L$20 -> 0 | N58: =-G94*N$20 -> 0 | O58: =-G94*O$20 -> 0 | Q58: =-H94*Q$20 -> 0 | R58: =-H94*R$20 -> 0 | T58: =-I94*T$20 -> 0 | U58: =-I94*U$20 -> 0 | W58: =-J94*W$20 -> 0 | X58: =-J94*X$20 -> 0 | Z58: =-K94*Z$20 -> 0 | AA58: =-K94*AA$20 -> 0 | AC58: =-L94*AC$20 -> 0 | AD58: =-L94*AD$20 -> 0
A59: Taxable income | E59: =SUM(E56:E58) -> 0 | F59: =SUM(F56:F58) -> 0 | H59: =SUM(H56:H58) -> 0 | I59: =SUM(I56:I58) -> 0 | K59: =SUM(K56:K58) -> 0 | L59: =SUM(L56:L58) -> 0 | N59: =SUM(N56:N58) -> 0 | O59: =SUM(O56:O58) -> 0 | Q59: =SUM(Q56:Q58) -> 0 | R59: =SUM(R56:R58) -> 0 | T59: =SUM(T56:T58) -> 0 | U59: =SUM(U56:U58) -> 0 | W59: =SUM(W56:W58) -> 0 | X59: =SUM(X56:X58) -> 0 | Z59: =SUM(Z56:Z58) -> 0 | AA59: =SUM(AA56:AA58) -> 0 | AC59: =SUM(AC56:AC58) -> 0 | AD59: =SUM(AD56:AD58) -> 0
A61: Tax Rate (to be entered)
A63: Income Taxes Payable | E63: =E59*E61 -> 0 | F63: =F59*F61 -> 0 | H63: =H59*H61 -> 0 | I63: =I59*I61 -> 0 | K63: =K59*K61 -> 0 | L63: =L59*L61 -> 0 | N63: =N59*N61 -> 0 | O63: =O59*O61 -> 0 | Q63: =Q59*Q61 -> 0 | R63: =R59*R61 -> 0 | T63: =T59*T61 -> 0 | U63: =U59*U61 -> 0 | W63: =W59*W61 -> 0 | X63: =X59*X61 -> 0 | Z63: =Z59*Z61 -> 0 | AA63: =AA59*AA61 -> 0 | AC63: =AC59*AC61 -> 0 | AD63: =AD59*AD61 -> 0
A64: Gross Up
A65: Income Taxes Payable | E65: =E63/(1-E61) -> 0 | F65: =F63/(1-F61) -> 0 | H65: =H63/(1-H61) -> 0 | I65: =I63/(1-I61) -> 0 | K65: =K63/(1-K61) -> 0 | L65: =L63/(1-L61) -> 0 | N65: =N63/(1-N61) -> 0 | O65: =O63/(1-O61) -> 0 | Q65: =Q63/(1-Q61) -> 0 | R65: =R63/(1-R61) -> 0 | T65: =T63/(1-T61) -> 0 | U65: =U63/(1-U61) -> 0 | W65: =W63/(1-W61) -> 0 | X65: =X63/(1-X61) -> 0 | Z65: =Z63/(1-Z61) -> 0 | AA65: =AA63/(1-AA61) -> 0 | AC65: =AC63/(1-AC61) -> 0 | AD65: =AD63/(1-AD61) -> 0
A66: Grossed Up PILs | E66: =SUM(E65:E65) -> 0 | F66: =SUM(F65:F65) -> 0 | H66: =SUM(H65:H65) -> 0 | I66: =SUM(I65:I65) -> 0 | K66: =SUM(K65:K65) -> 0 | L66: =SUM(L65:L65) -> 0 | N66: =SUM(N65:N65) -> 0 | O66: =SUM(O65:O65) -> 0 | Q66: =SUM(Q65:Q65) -> 0 | R66: =SUM(R65:R65) -> 0 | T66: =SUM(T65:T65) -> 0 | U66: =SUM(U65:U65) -> 0 | W66: =SUM(W65:W65) -> 0 | X66: =SUM(X65:X65) -> 0 | Z66: =SUM(Z65:Z65) -> 0 | AA66: =SUM(AA65:AA65) -> 0 | AC66: =SUM(AC65:AC65) -> 0 | AD66: =SUM(AD65:AD65) -> 0
A69: Net Fixed Assets | D69: 2011 | E69: 2012 | F69: 2013 | G69: 2014 | H69: 2015 | I69: 2016 | J69: 2017 | K69: 2018 | L69: 2019
B70: Enter applicable amortization in years: | C70: 25
A71: Opening Gross Fixed Assets | E71: =D73 -> 0 | F71: 0 | G71: 0 | H71: 0 | I71: 0 | J71: 0 | K71: 0 | L71: 0
A72: Gross Capital Additions | D72: ='App.2-FA Proposed REG Invest.'!C99 -> 0 | E72: ='App.2-FA Proposed REG Invest.'!D99 -> 0 | F72: ='App.2-FA Proposed REG Invest.'!E99 -> 0 | G72: ='App.2-FA Proposed REG Invest.'!F99 -> 0 | H72: ='App.2-FA Proposed REG Invest.'!G99 -> 0 | I72: ='App.2-FA Proposed REG Invest.'!H99 -> 0 | J72: ='App.2-FA Proposed REG Invest.'!I99 -> 0 | K72: ='App.2-FA Proposed REG Invest.'!J99 -> 0 | L72: ='App.2-FA Proposed REG Invest.'!K99 -> 0
A73: Closing Gross Fixed Assets | D73: =SUM(D71:D72) -> 0 | E73: 0 | F73: 0 | G73: 0 | H73: 0 | I73: 0 | J73: 0 | K73: 0 | L73: 0
A75: Opening Accumulated Amortization | E75: =+D78 -> 0 | F75: =E78 -> 0 | G75: 0 | H75: =G78 -> 0 | I75: =H78 -> 0 | J75: =I78 -> 0 | K75: =J78 -> 0 | L75: =K78 -> 0
A76: Current Year Amortization (before additions) | E76: =IF(ISERROR(E71/$C$70), 0, E71/$C$70) -> 0 | F76: 0 | G76: 0 | H76: =H71/$C$70 -> 0 | I76: =I71/$C$70 -> 0 | J76: =J71/$C$70 -> 0 | K76: =K71/$C$70 -> 0 | L76: =L71/$C$70 -> 0
A77: Additions (half year) | D77: =D72/C70/2 -> 0 | E77: =E72/C70/2 -> 0 | F77: =F72/C70/2 -> 0 | G77: =G72/C70/2 -> 0 | H77: =H72/C70/2 -> 0 | I77: =I72/C70/2 -> 0 | J77: =J72/C70/2 -> 0 | K77: =K72/C70/2 -> 0 | L77: =L72/C70/2 -> 0
A78: Closing Accumulated Amortization | D78: =SUM(D75+D77) -> 0 | E78: =SUM(E75:E77) -> 0 | F78: 0 | G78: 0 | H78: 0 | I78: 0 | J78: 0 | K78: 0 | L78: 0
A80: Opening Net Fixed Assets | D80: =D71-D75 -> 0 | E80: =E71-E75 -> 0 | F80: =F71-F75 -> 0 | G80: =G71-G75 -> 0 | H80: =G81 -> 0 | I80: =H81 -> 0 | J80: =I81 -> 0 | K80: =J81 -> 0 | L80: =K81 -> 0
A81: Closing Net Fixed Assets | D81: =D73-D78 -> 0 | E81: 0 | F81: 0 | G81: 0 | H81: 0 | I81: 0 | J81: 0 | K81: 0 | L81: 0
A82: Average Net Fixed Assets | D82: =SUM(D80:D81)/2 -> 0 | E82: 0 | F82: 0 | G82: 0 | H82: 0 | I82: 0 | J82: 0 | K82: 0 | L82: 0
A84: UCC for PILs Calculation
D85: 2014 | E85: 2014 | F85: 2014 | G85: 2014 | H85: 2015 | I85: 2016 | J85: 2017 | K85: 2018 | L85: 2019
A87: Opening UCC | E87: =D95 -> 0 | F87: 0 | G87: 0 | H87: 0 | I87: 0 | J87: 0 | K87: 0 | L87: 0
A88: Capital Additions (from Appendix 2-FA) | D88: =D72 -> 0 | E88: 0 | F88: 0 | G88: 0 | H88: 0 | I88: 0 | J88: 0 | K88: 0 | L88: 0
A89: UCC Before Half Year Rule | D89: =SUM(D87:D88) -> 0 | E89: 0 | F89: 0 | G89: 0 | H89: 0 | I89: 0 | J89: 0 | K89: 0 | L89: 0
A90: Half Year Rule (1/2 Additions - Disposals) | D90: =D88/2 -> 0 | E90: 0 | F90: 0 | G90: 0 | H90: 0 | I90: 0 | J90: 0 | K90: 0 | L90: 0
A91: Reduced UCC | D91: =D89-D90 -> 0 | E91: 0 | F91: 0 | G91: 0 | H91: 0 | I91: 0 | J91: 0 | K91: 0 | L91: 0
A92: CCA Rate Class (to be entered) | C92: 47 | D92: =$C$92 -> 47 | E92: =$C$92 -> 47 | F92: 47 | G92: 47 | H92: 47 | I92: 47 | J92: 47 | K92: 47 | L92: 47
A93: CCA Rate (to be entered) | C93: 0.08 | D93: =$C$93 -> 0.08 | E93: =$C$93 -> 0.08 | F93: 0.08 | G93: 0.08 | H93: 0.08 | I93: 0.08 | J93: 0.08 | K93: 0.08 | L93: 0.08
A94: CCA | D94: =D91*D$93 -> 0 | E94: =E91*E$93 -> 0 | F94: =F91*F$93 -> 0 | G94: =G91*G$93 -> 0 | H94: =H91*H$93 -> 0 | I94: 0 | J94: 0 | K94: 0 | L94: 0
A95: Closing UCC | D95: =D89-D94 -> 0 | E95: 0 | F95: 0 | G95: 0 | H95: 0 | I95: 0 | J95: 0 | K95: 0 | L95: 0

Sheet App.2-G SQI
I1: File Number: | K1: =EBNUMBER -> EB-2015-0074
I2: Exhibit:
I3: Tab:
I4: Schedule:
I5: Page:
I7: Date:
A9: Appendix 2-G
A10: Service Reliability Indicators
A11: 2010 - 2014
A13: Index | B13: Including outages caused by loss of supply | G13: Excluding outages caused by loss of supply
B14: 2010 | C14: 2011 | D14: 2012 | E14: 2013 | F14: 2014 | G14: 2010 | H14: 2011 | I14: 2012 | J14: 2013 | K14: 2014
A15: SAIDI | B15: 1.78 | C15: 1.55 | D15: 1.53 | E15: 2.51 | F15: 1.25 | G15: 1.78 | H15: 1.38 | I15: 1.23 | J15: 2.08 | K15: 1.21
A16: SAIFI | B16: 2.75 | C16: 1.67 | D16: 1.9 | E16: 1.99 | F16: 1.61 | G16: 2.75 | H16: 1.49 | I16: 1.34 | J16: 1.48 | K16: 1.47
A18: 5 Year Historical Average
A19: SAIDI | F19: =IF(ISERROR(AVERAGE(B15:F15)), "", AVERAGE(B15:F15)) -> 1.724 | K19: =IF(ISERROR(AVERAGE(G15:K15)), "", AVERAGE(G15:K15)) -> 1.536
A20: SAIFI | F20: =IF(ISERROR(AVERAGE(B16:F16)), "", AVERAGE(B16:F16)) -> 1.984 | K20: =IF(ISERROR(AVERAGE(G16:K16)), "", AVERAGE(G16:K16)) -> 1.706
A22: SAIDI = System Average Interruption Duration Index
A23: SAIFI = System Average Interruption Frequency Index
A26: Indicator | C26: OEB Minimum Standard | D26: 2010 | E26: 2011 | F26: 2012 | G26: 2013 | H26: 2014
A27: Low Voltage Connections | C27: 0.9 | D27: 1 | E27: 1 | F27: 1 | G27: 1 | H27: 1
A28: High Voltage Connections | C28: 0.9 | D28: Not applicable | E28: Not applicable | F28: Not applicable | G28: Not applicable | H28: Not applicable
A29: Telephone Accessibility | C29: 0.65 | D29: 0.862 | E29: 0.855 | F29: 0.877 | G29: 0.832 | H29: 0.897
A30: Appointments Met | C30: 0.9 | D30: 0.992 | E30: 0.96 | F30: 1 | G30: 1 | H30: 1
A31: Written Response to Enquires | C31: 0.8 | D31: 1 | E31: 1 | F31: 1 | G31: 0.999 | H31: 1
A32: Emergency Urban Response | C32: 0.8 | D32: 1 | E32: 1 | F32: 0.9881 | G32: 1 | H32: 1
A33: Emergency Rural Response | C33: 0.8 | D33: 1 | E33: 1 | F33: 0.896 | G33: 1 | H33: 1
A34: Telephone Call Abandon Rate | C34: 0.1 | D34: 0.02 | E34: 0.031 | F34: 0.014 | G34: 0.017 | H34: 0.01
A35: Appointment Scheduling | C35: 0.9 | D35: 1 | E35: 1 | F35: 1 | G35: 1 | H35: 1
A36: Rescheduling a Missed Appointment | C36: 1 | D36: 1 | E36: 1 | F36: 1 | G36: 1 | H36: 1
A37: Reconnection Performance Standard | C37: 0.85 | D37: 1 | E37: 1 | F37: 1 | G37: Not applicable | H37: Not applicable

Sheet App.2-H_Other_Oper_Rev
G1: File Number: | H1: =EBNUMBER -> EB-2015-0074
G2: Exhibit:
G3: Tab:
G4: Schedule:
G5: Page:
G7: Date:
A9: Appendix 2-H
A10: Other Operating Revenue
A12: USoA # | B12: USoA Description | C12: 2012 OEB Approved | D12: =F13-2 & " Actual" -> 2012 Actual | E12: =F13-1 & " Actual" & CHAR(178) -> 2013 Actual² | F12: ="Actual Year" & CHAR(178) -> Actual Year² | G12: ="Bridge Year" & CHAR(178) -> Bridge Year² | H12: Test Year
C13: 2012 | D13: =E13-2 -> 2012 | E13: =F13 -> 2014 | F13: =G13-1 -> 2014 | G13: =BridgeYear -> 2015 | H13: =TestYear -> 2016
A14: Reporting Basis | C14: CGAAP | D14: CGAAP | E14: CGAAP | F14: CGAAP | G14: MIFRS | H14: MIFRS
A15: 4235 | B15: Specific Service Charges | C15: 172792 | D15: 395740 | E15: 343977 | F15: 336651 | G15: 375470 | H15: 375470
A16: 4225 | B16: Late Payment Charges | C16: 271607 | D16: 98211 | E16: 107188 | F16: 107919 | G16: 120000 | H16: 120000
A17: 4080 | B17: Distribution Services Revenue (4080) | C17: 57853 | D17: 0 | E17: 0 | F17: 25764 | G17: 0 | H17: 0
A18: 4210 | B18: Rent from Electric Property (4210) | C18: 191493 | D18: 170039 | E18: 164833 | F18: 166859 | G18: 171914 | H18: 171914
B19: MicroFit Revenue | C19: 4300 | D19: 0 | E19: 0 | F19: 0 | G19: 0 | H19: 0
A20: 4325 | B20: Revenues from Merchandising Jobbing, etc. (4325) | C20: 25000 | D20: 31444 | E20: 47108 | F20: 30329 | G20: 50000 | H20: 50000
A21: 4355 | B21: Gain on Disposition og Utility Property (4355) | C21: 12500 | D21: 12690 | E21: 0 | F21: 0 | G21: 40000 | H21: 40000
A22: 4375 | B22: Revenues from Non-Utility Operations (4375) | C22: 396000 | D22: 306450 | E22: 299687 | F22: 323026 | G22: 331697 | H22: 331697
A23: 4375 | B23: Revenues from Non-Utility Operations (4375) | C23: 0 | D23: 0 | E23: 0 | F23: 125431 | G23: 0 | H23: 0
A24: 4385 | B24: Non-Utility Rental Income (4385) | C24: 15000 | D24: 38865 | E24: 33685 | F24: 28931 | G24: 21600 | H24: 21600
B25: Sale of Vehicle | C25: 12500 | D25: 0 | E25: 0 | F25: 0 | G25: 0 | H25: 0
A26: 4405 | B26: Interst and dividend income (4405) | C26: 0 | D26: 133150 | E26: 74610 | F26: 87678 | G26: 100000 | H26: 100000
A29: Specific Service Charges | C29: =C15 -> 172792 | D29: 395740 | E29: 343977 | F29: 336651 | G29: 375470 | H29: 375470
A30: Late Payment Charges | C30: 271607 | D30: 98211 | E30: 107188 | F30: 107919 | G30: 120000 | H30: 120000
A31: Other Operating Revenues | C31: 253646 | D31: 170039 | E31: 164833 | F31: 192623 | G31: 171914 | H31: 171914
A32: Other Income or Deductions | C32: 461000 | D32: 522599 | E32: 455090 | F32: 595395 | G32: 543297 | H32: 543297
A33: Total | C33: =SUM(C29:C32) -> 1159045 | D33: 1186589 | E33: 1071088 | F33: 1232588 | G33: 1210681 | H33: 1210681
A35: Description | C35: Account(s)
A36: Specific Service Charges: | C36: 4235
A37: Late Payment Charges: | C37: 4225
A38: Other Distribution Revenues: | C38: 4080, 4082, 4084, 4090, 4205, 4210, 4215, 4220, 4240, 4245
A39: Other Income and Expenses: | C39: 4305, 4310, 4315, 4320, 4325, 4330, 4335, 4340, 4345, 4350, 4355, 4360, 4365, 4370, 4375, 4380, 4385, 4390, 4395, 4398, 4405, 4415
A42: Note: Add all applicable accounts listed above to the table and include all relevant information.
A44: Account Breakdown Details
A46: For each "Other Operating Revenue" and "Other Income or Deductions" Account, a detailed breakdown of the account components is required. See the example below for Account 4405, Interest and Dividend Income.
A49: Account 4405 - Interest and Dividend Income
A50: Description | C50: =C12 -> 2012 OEB Approved | D50: 2012 Actual | E50: 2013 Actual² | F50: Actual Year² | G50: Bridge Year² | H50: Test Year
F51: =F13 -> 2014 | G51: =G13 -> 2015 | H51: =H13 -> 2016
A52: Reporting Basis | C52: =IF(C14=0, "", C14) -> CGAAP | D52: CGAAP | E52: CGAAP | F52: CGAAP | G52: MIFRS | H52: MIFRS
A53: Short-term Investment Interest
A54: Bank Deposit Interest
A55: Miscellaneous Interest Revenue
A56: etc.1
A58: Total | C58: =SUM(C53:C57) -> 0 | D58: 0 | E58: 0 | F58: 0 | G58: 0 | H58: 0
A61: Account 4235 - Specific Service Charges Interest and Dividend Income
A62: Description | C62: 2012 OEB Approved | D62: Actual | E62: Actual² | F62: Actual Year² | G62: Bridge Year² | H62: Test Year
C63: 2012 | D63: 2012 | E63: 2013 | F63: 2014 | G63: 2015 | H63: 2016
A64: Reporting Basis | C64: CGAAP | D64: CGAAP | E64: CGAAP | F64: CGAAP | G64: MIFRS | H64: MIFRS
A65: NSF | C65: 6000 | D65: 7790 | E65: 7729 | F65: 7285 | G65: 10000 | H65: 10000
A66: Application Fee - Subdivision | C66: 27000 | D66: 19912 | E66: 26549 | F66: 6637 | G66: 22500 | H66: 22500
A67: Service layouts | C67: 32000 | D67: 36950 | E67: 37448 | F67: 45038 | G67: 40000 | H67: 40000
A68: Sale of Scrap Materials | C68: 17000 | D68: 87547 | E68: 39707 | F68: =36608-7504 -> 29104 | G68: 65000 | H68: 65000
A69: Account set-up | C69: 55000 | D69: 56460 | E69: 59092 | F69: 60330 | G69: 65000 | H69: 65000
A70: Miscellaneous | C70: 35142 | D70: 30861 | E70: 21760 | F70: 43814 | G70: 15970 | H70: 15970
A71: Premium locate fee | C71: 650 | D71: 0 | E71: 0 | F71: 0
A72: Collection | C72: 0 | D72: 139890 | E72: 142800 | F72: =132069+1609 -> 133678 | G72: 137000 | H72: 137000
A73: Reconnection | C73: 0 | D73: 16330 | E73: 8892 | F73: 10765 | G73: 20000 | H73: 20000
A75: Total | C75: =SUM(C65:C74) -> 172792 | D75: 395740 | E75: 343977 | F75: 336651 | G75: 375470 | H75: 375470
A78: Other Operating Revenues | C78: 4080, 4082, 4084, 4086, 4090, 4205, 4210, 4215, 4220, 4240, 4245
A79: Description | C79: 2012 OEB Approved | D79: Actual | E79: Actual² | F79: Actual Year² | G79: Bridge Year² | H79: Test Year
C80: 2012 | D80: 2012 | E80: 2013 | F80: 2014 | G80: 2015 | H80: 2016
A81: Reporting Basis | C81: CGAAP | D81: CGAAP | E81: CGAAP | F81: CGAAP | G81: MIFRS | H81: MIFRS
A82: Distribution Services Revenue (4080) | C82: 57853 | D82: 0 | E82: 0
A83: Rent from Electric Property (4210) | C83: 191493 | D83: 170039 | E83: 164833 | F83: 166859 | G83: 171914 | H83: 171914
A84: MicroFit Revenue | C84: 4300 | D84: 0 | E84: 0
A85: Retail Service Revenue (4082) | F85: 15206
A86: Service Transaction Requests - STR (4084) | F86: 308
A87: SSS Admin Revenue (4086) | F87: 10250
A89: Total | C89: =SUM(C82:C88) -> 253646 | D89: 170039 | E89: 164833 | F89: 192623 | G89: 171914 | H89: 171914
A92: Other Income and Expenses: | C92: 4305, 4310, 4315, 4320, 4325, 4330, 4335, 4340, 4345, 4350, 4355, 4360, 4365, 4370, 4375, 4380, 4385, 4390, 4395, 4398, 4405, 4415
A94: Description | C94: 2012 OEB Approved | D94: Actual | E94: Actual² | F94: Actual Year² | G94: Bridge Year² | H94: Test Year
C95: 2012 | D95: 2012 | E95: 2013 | F95: 2014 | G95: 2015 | H95: 2016
A96: Reporting Basis | C96: CGAAP | D96: CGAAP | E96: CGAAP | F96: CGAAP | G96: MIFRS | H96: MIFRS
A97: Revenues from Merchandising Jobbing, etc. (4325) | C97: 25000 | D97: 31444 | E97: 47108 | F97: 30329 | G97: 50000 | H97: 50000
A98: Gain on Disposition of Utility Property (4355) | C98: 12500 | D98: 12690 | E98: 0 | G98: 40000 | H98: 40000
A99: Revenues from Non-Utility Operations (4375) | C99: 396000 | D99: =940788-634338 -> 306450 | E99: =804580-504893 -> 299687 | F99: =323026 -> 323026 | G99: 331697 | H99: 331697
A100: Revenues from Non-Utility Operations (4375) | F100: 125431
A101: Non-Utility Rental Income (4385) | C101: 15000 | D101: =12965+15100+10800 -> 38865 | E101: 33685 | F101: 28931 | G101: 21600 | H101: 21600
A102: Sale of Vehicle | C102: 12500 | D102: 0 | E102: 0 | G102: 0 | H102: 0
A103: Interst and dividend income (4405) | C103: 0 | D103: 133150 | E103: 74610 | F103: =86292+1386 -> 87678 | G103: 100000 | H103: 100000
A106: Total | C106: =SUM(C97:C105) -> 461000 | D106: 522599 | E106: 455090 | F106: 595395 | G106: 543297 | H106: 543297
A109: Notes:
A110: 1 | B110: List and specify any other interest revenue.
A111: 2 | B111: In the transition year to IFRS, the applicant is to present information in both MIFRS and CGAAP. For the typical applicant that adopted IFRS on January 1, 2015, 2014 must be presented in both a CGAAP and MIFRS basis.

Sheet App_2-I LF_CDM
G1: File Number: | H1: =EBNUMBER -> EB-2015-0074
G2: Exhibit:
G3: Tab:
G4: Schedule:
G5: Page:
G7: Date:
A9: Appendix 2-I
A10: Load Forecast CDM Adjustment Work Form (2016)
A12: 2014 is the last year of the current four year (2011-2014) CDM program, and 2015 is the first year of a new six year (2015-2020) CDM program, per the Ministerial directives of March 31, 2014. With 2016, there is a need to recognize the full year impact of the current 2011-2014 CDM program, as well as to estimate reasonable impacts for each year for the new 2015-2020 CDM program. These are combined to estimate the adjustment for CDM program impacts on the 2016 load forecast.
A14: Appendix 2-I was developed to help determine what would be the amount of CDM savings needed in each year to cumulatively achieve the four year 2011-2014 CDM target. This then determined the amount of kWh (and with translation, kW of demand) savings that were converted in dollars balances for the LRAMVA, and also to determine the related adjustment to the load forecast to account for OPA-reported savings. Beginning for the 2015 year, it has been adjusted because of the persistence of 2011-2014 CDM programs will be an adjustment to the load forecast in addition to the estimated savings for the first year (2015) for the new 2015-2020 CDM plan.
A16: It is assumed that the new six year (2015-2020) CDM program will work similar to the existing 2011-2014 CDM program, meaning that distributors will offer programs each year that, cumulatively over the six years (from January 1, 2015 to December 31, 2020) will cumulatively achieve the new six year CDM target. This is the approach contemplated in the Ministerial directive letters of March 31, 2014 to the Board and to the OPA. Thus, distributors will be able to offer programs on a basis so that cumulatively over the period, the impacts, including persistence, of the CDM programs will accumulate towards achieving each distributor's 2015-2020 CDM target.
A18: With this approach, it is necessary to account for estimated savings for the last year of the current program, particularly the estimated savings for new CDM programs offered in 2014, as well as the estimated savings for new CDM programs that the distributor will offer in 2015 towards achievement of the new six year (2015-2020) CDM program. This necessitates expansion of this Appendix 2-I to deal with both the 2011-2014 and 2015-2020 CDM plans. It is expected that this approach will be updated each year.
A20: 2011-2014 CDM Program - 2014, last year of the current CDM plan
A22: Input the 2011-2014 CDM target in Cell B21.
A24: Input the measured results for 2011 CDM programs for each of the years 2011 and persistence into 2012, 2013 and 2014 into cells B31 to E31. These results are taken from the final 2011 CDM Report issued by the OPA for that distributor in the fall of 2012.
A26: Measured results for 2012 CDM programs for each of the years 2012 and persistence into 2013 and 2014 are input into cells C32 to E32. These results are taken from the final 2012 CDM Report issued by the OPA for that distributor in the fall of 2013.
A28: Measured results for 2013 CDM programs for each of the years 2013 and persistence into 2014 are input into cells C33 to E33. These results are taken from the final 2013 CDM Report issued by the OPA for that distributor in the fall of 2014. Until that report is issued, the distributor should use the results from the preliminary 2013 CDM Report issued in the spring of 2014.
A30: Measured results for 2014 CDM programs for each of the years 2013 and persistence into 2014 are input into cells C33 to E33. These results are taken from the final 2013 CDM Report issued by the OPA for that distributor in the fall of 2014. Until that report is issued, the distributor should use the results from the preliminary 2013 CDM Report issued in the spring of 2014. The distributor also needs to input the persistence of 2014 CDM programs into 2015 and 2016 in cells G45 and G46.
A33: 4 Year (2011-2014) kWh Target: | G33: Persistence of 2014 CDM Program into 2015 and 2016
A34: 22480000
B35: 2011 | C35: 2012 | D35: 2013 | E35: 2014 | F35: Total | G35: 2015 | H35: 2016 | K35: =B35 -> 2011 | L35: =C35 -> 2012 | M35: =D35 -> 2013 | N35: =E35 -> 2014
A36: 2011 CDM Programs | B36: 0.09130984508 | C36: 0.09123633544 | D36: 0.09119147053 | E36: 0.09008292631 | F36: =SUM(B36:E36) -> 0.3638205773 | J36: =A36 -> 2011 CDM Programs | K36: =50% -> 0.5 | L36: 1 | M36: 1 | N36: 1
A37: 2012 CDM Programs | C37: =(100%-F36)/6 -> 0.1060299038 | D37: =C37 -> 0.1060299038 | E37: =D37 -> 0.1060299038 | F37: =SUM(B37:E37) -> 0.3180897113 | J37: =A37 -> 2012 CDM Programs | L37: 0.5 | M37: 1 | N37: 1
A38: 2013 CDM Programs | D38: =(100%-SUM(B36:E37))/3 -> 0.1060299038 | E38: =+D38 -> 0.1060299038 | F38: 0.2120598076 | J38: =A38 -> 2013 CDM Programs | M38: 0.5 | N38: 1
A39: 2014 CDM Programs | E39: =+E38 -> 0.1060299038 | F39: 0.1060299038 | J39: =A39 -> 2014 CDM Programs | N39: 0.5
A40: Total in Year | B40: =SUM(B36:B39) -> 0.09130984508 | C40: =SUM(C36:C39) -> 0.1972662392 | D40: 0.3032512781 | E40: 0.4081726376 | F40: =SUM(B40:E40) -> 1
A41: kWh
A42: 2011 CDM Programs | B42: 1893374 | C42: 1893374 | D42: 1893374 | E42: 1800000 | F42: =SUM(B42:E42) -> 7480122
A43: 2012 CDM Programs | C43: 2111280 | D43: 2111280 | E43: 2111280 | F43: =SUM(B43:E43) -> 6333840
A44: 2013 CDM Programs | D44: 1235579 | E44: 1184710 | F44: 2420289
A45: 2014 CDM Programs | E45: 2247532 | F45: 2247532
A46: Total in Year | B46: =SUM(B42:B45) -> 1893374 | C46: =SUM(C42:C45) -> 4004654 | D46: 5240233 | E46: 7343522 | F46: =SUM(F42:F45) -> 18481783
A49: 2015-2020 CDM Program - 2016, second year of the current CDM plan
A51: For the first year of the new 2015-2020 CDM plan, it is assumed that each year's program will achieve an equal amount of new CDM savings. The new targets for 2015-2020 do not take into account persistence beyond the first year, but the IESO will encourage distributors to promote and implement CDM plans that will have longer term persistence of savings. This results in each year's program being about 1/6 (18.67%) of the cumulative 2015-2020 CDM target for kWh savings. A distributor may propose an alternative approach but would be expected to document in its application why it believes that its proposal is more reasonable. In its proposal, the distributor should ensure that the sum of the results for each year's CDM program from 2015 to 2020 add up to its 2015-2020 CDM target as established by the IESO.
A53: 6 Year (2015-2020) kWh Target:
A54: 30940000
B55: 2015 | C55: 2016 | D55: 2017 | E55: 2018 | F55: 2019 | G55: 2020 | H55: Total
A56: %
A57: 2015 CDM Programs | B57: 0.04761903685 | C57: 0.0476 | H57: =SUM(B57:G57) -> 0.09521903685
A58: 2016 CDM Programs | C58: 0.09523810601 | H58: =SUM(B58:G58) -> 0.09523810601
A59: 2017 CDM Programs | D59: 0.1349206332 | H59: =SUM(B59:G59) -> 0.1349206332
A60: 2018 CDM Programs | E60: 0.1798941774 | H60: =SUM(E60:G60) -> 0.1798941774
A61: 2019 CDM Programs | F61: 0.2248677217 | H61: =SUM(F61:G61) -> 0.2248677217
A62: 2020 CDM Programs | G62: 0.2698412663 | H62: =SUM(B62:G62) -> 0.2698412663
A63: Total in Year | B63: =SUM(B57:B62) -> 0.04761903685 | C63: =SUM(C57:C62) -> 0.142838106 | D63: =SUM(D57:D62) -> 0.1349206332 | E63: =SUM(E57:E60) -> 0.1798941774 | F63: =SUM(F57:F61) -> 0.2248677217 | G63: =SUM(G57:G62) -> 0.2698412663 | H63: =SUM(B63:G63) -> 0.9999809415
A64: kWh
A65: =A57 -> 2015 CDM Programs | B65: 1473333 | C65: 1473333 | H65: =SUM(B65:G65) -> 2946666
A66: 2016 CDM Programs | C66: 2946667 | H66: =SUM(B66:G66) -> 2946667
A67: 2017 CDM Programs | D67: 4174444.39 | H67: =SUM(B67:G67) -> 4174444.39
A68: 2018 CDM Programs | E68: 5565925.85 | H68: =SUM(E68:G68) -> 5565925.85
A69: 2019 CDM Programs | F69: 6957407.31 | H69: =SUM(F69:G69) -> 6957407.31
A70: 2020 CDM Programs | G70: 8348888.78 | H70: =SUM(B70:G70) -> 8348888.78
A71: Total in Year | B71: =SUM(B65:B70) -> 1473333 | C71: =SUM(C65:C70) -> 4420000 | D71: 4174444.39 | E71: =SUM(E65:E68) -> 5565925.85 | F71: =SUM(F65:F69) -> 6957407.31 | G71: =SUM(G65:G70) -> 8348888.78 | H71: =A54 -> 30940000
A73: Determination of 2016 Load Forecast Adjustment
A75: The Board has determined that the "net" number should be used in its Decision and Order with respect to Centre Wellington Hydro Ltd.'s 2013 Cost of Service rates (EB-2012-0113). This approach has also been used in Settlement Agreements accepted by the Board in other 2013 and 2-14 applications. The distributor should select whether the adjustment is done on a "net" or "gross" basis, but must support a proposal for the adjustment being done on a "gross" basis. Sheet 2-I defaults to the adjustment being done on a "net" basis consistent with Board policy and practice.
A77: From each of the 2006-2010 CDM Final Report, and the 2011, 2012, 2013 and 2014 CDM Final Reports, issued by the OPA (now IESO) for the distributor, the distributor should input the "gross" and "net" results of the cumulative CDM savings for 2014 into cells D84 to E88. The model will calculate the cumulative savings for all programs from 2006 to 2012 and determine the "net" to "gross" factor "g".
A79: Net-to-Gross Conversion
A81: Is CDM adjustment being done on a "net" or "gross" basis? | F81: net
C83: "Gross" | D83: "Net" | E83: Difference | F83: "Net-to-Gross" Conversion Factor
A84: Persistence of Historical CDM programs to 2014 | C84: kWh | D84: kWh | E84: kWh | F84: ('g')
A85: 2006-2010 CDM programs | D85: 5181446
A86: 2011 CDM program | D86: 1800000
A87: 2012 CDM program | D87: 2111280
A88: 2013 CDM program | D88: 1184670
A89: 2014 CDM program | D89: 2247532
A90: 2006 to 2014 OPA CDM programs: Persistence to 2016 | C90: =SUM(C85:C89) -> 0 | D90: =SUM(D85:D89) -> 12524928 | E90: =C90-D90 -> -12524928 | F90: =IF(D90=0,0,IF(F81="net",0,E90/D90)) -> 0
A92: The default values represent the factor that each year's CDM program is factored into the manual CDM adjustment. Distributors can choose alternative weights of "0", "0.5" or "1" from the drop-down menu for each cell, but must support its alternatives.
A94: These factors do not mean that CDM programs are excluded, but the assumption that impacts of previous year CDM programs are already implicitly reflected in the actual data for the historical years that are the basis for the load forecast prior to any manual CDM adjustment for the 2016 test year.
A96: Weight Factor for Inclusion in CDM Adjustment to 2014 Load Forecast
B98: 2011 | C98: 2012 | D98: 2013 | E98: 2014 | F98: 2015 | G98: 2015
A99: Weight Factor for each year's CDM program impact on 2014 load forecast | B99: 0 | C99: 0 | D99: 0 | E99: 0 | F99: 1 | G99: 0.5 | H99: Distributor can select "0", "0.5", or "1" from drop-down list
A100: Default Value selection rationale. | B100: Full year persistence of 2011 CDM programs on 2015 load forecast. Full impact assumed because of 50% impact in 2011 (first year) but full year persistence impact on 2012 and 2013, and thus reflected in base forecast before the CDM adjustment. | C100: Full year persistence of 2012 CDM programs on 2015 load forecast. Full impact assumed because of 50% impact in 2012 (first year) but full year persistence impact on 2013, and thus reflected in base forecast before the CDM adjustment. | D100: Default is 0, but one option is for full year impact of persistence of 2013 CDM programs on 2015 load forecast, but 50% impact in base forecast (first year impact of 2013 CDM programs on 2013 load forecast, which is part of the data for the load forecast. | E100: Default is 0, but one option is for full year impact of persistence of 2014 CDM programs on 2014 load forecast, but 50% impact in base forecast (first year impact of 2014 CDM programs on 2014 actuals, which is part of the data for the load forecast. | F100: Full year impact of persistence of 2015 programs on 2015 load forecast. 2015 CDM program impacts are not in the base forecast. | G100: Only 50% of 2016 CDM programs are assumed to impact the 2016 load forecast based on the "half-year" rule.
A102: 2011-2014 and 2015-2020 LRAMVA and 2015 CDM adjustment to Load Forecast
A104: One manual adjustment for CDM impacts to the 2015 load forecast is made. However, the distributor will have two associated annualized CDM impacts, one for the 2011-2014 CDM program and the second for the 2015-2020 CDM plan. In addition, the distributor needs to reflect the CDM adjustment that was explicitly factored into its 2011 load forecast in its 2011 cost of service application (assuming that it rebased in that year). this amount, and equal persistence for 2012, 2013 and 2014 is used as an offset to determine what the net balance of the 2011-2014 LRAMVA balance should be for disposition.
A106: The Amount used for the CDM threshold of the LRAMVA is the kWh that will be used to determine the base amount for the LRAMVA balance for 2014, for assessing performance against the four-year target. The base amount for 2011-2013 is 0 (zero) for 2014 Cost of Service applications, as the utility rebased prior to the 2011-2014 CDM programs, and there was no adjustment to reflect the impacts of the 2011-2014 programs on the load forecast used to determine their last cost of service-based rates.
A108: The proposed loss factor should correspond with the loss factor calculated in Appendix 2-R
A110: The Manual Adjustment for the 2016 Load Forecast is the amount manually subtracted from the load forecast derived from the base forecast from historical data.
A112: If the distributor has developed their load forecast on a system purchased basis, then the manual adjustment should be on system purchased basis, including the adjustment for losses. If the load forecast has been developed on a billed basis, either on a system basis or on a class-specific basis, the manual adjustment should be on a billed basis, excluding losses.
A114: The distributor should determine the allocation of the savings to all customer classes in a reasonable manner (e.g. taking into account what programs and what OPA-measured impacts were directed at specific customer classes), for both the LRAMVA and for the load forecast adjustment.
B116: 2011 | C116: 2012 | D116: 2013 | E116: 2014 | F116: 2015 | G116: 2016 | H116: Total for 2016
B117: kWh
A118: Amount used for CDM threshold for LRAMVA (2014) | B118: 1800000 | C118: 2111280 | D118: 1184710 | E118: 2247532
A120: CDM adjustment for test year forecast (per Board Decision in distributor's most recent Cost of Service Application) (enter as negative) | B120: 0 | C120: -4229656 | D120: -4229656 | E120: -4229656
A122: Amount used for CDM threshold for LRAMVA (2016) | E122: =H45 -> 0 | F122: =C65 -> 1473333 | G122: =C66 -> 2946667 | H122: =SUM(B122:G122) -> 4420000
A124: Manual Adjustment for 2016 Load Forecast (billed basis) | B124: =B118*(1+F90)*B99 -> 0 | C124: =C118*(1+F90)*C99 -> 0 | D124: =D118*(1+F90)*D99 -> 0 | E124: =E118*(1+F90)*E99 -> 0 | F124: =F122*(1+F90)*F99 -> 1473333 | G124: =G122*(1+F90)*G99 -> 1473333.5 | H124: =SUM(B124:G124) -> 2946666.5
A126: Proposed Loss Factor (TLF) | B126: 0.0603 | C126: Format: X.XX%
A127: Manual Adjustment for 2016 Load Forecast (system purchased basis) | B127: =B124*(1+$B126) -> 0 | C127: =C124*(1+$B126) -> 0 | D127: 0 | E127: 0 | F127: 1562174.98 | G127: 1562175.51 | H127: =SUM(B127:G127) -> 3124350.49
A129: Manual adjustment uses "gross" versus "net" (i.e. numbers multiplied by (1 + g). The Weight factor is also used calculate the impact of each year's program on the CDM adjustment to the 2016 load forecast.

Sheet App.2-IA_Act_Frcst_Data
F1: File Number: | G1: =EBNUMBER -> EB-2015-0074
F2: Exhibit:
F3: Tab:
F4: Schedule:
F5: Page:
F7: Date:
A9: Appendix 2-IA
A10: Summary and Variances of Actual and Forecast Data
A12: Replace "Rate Class #" with the appropriate rate classification.
B14: =RebaseYear & " Board Approved" -> 2012 Board Approved | C14: =TestYear - 4 -> 2012 | D14: =TestYear - 3 -> 2013 | E14: =TestYear - 2 -> 2014 | F14: =TestYear -1 &" Bridge" -> 2015 Bridge | G14: =TestYear&" Test" -> 2016 Test
A15: Residential - Time of Use
A16: # of Customers | B16: 19530 | C16: 19194 | D16: 19511 | E16: 19623 | F16: 19788 | G16: 19955
A17: kWh | B17: 210212474 | C17: 213770412 | D17: 207797230 | E17: 203392794 | F17: 199038633 | G17: 195183798
A18: kW
A19: Variance Analysis
A20: =A16 -> # of Customers | C20: =IF(ISERROR((C16-$B16)/$B16), 0, (C16-$B16)/$B16) -> -0.01720430108 | D20: =IF(ISERROR((D16-$B16)/$B16), 0, (D16-$B16)/$B16) -> -0.0009728622632 | E20: 0.004761904762 | F20: 0.01321044547 | G20: 0.02176139273
A21: kWh | C21: =IF(ISERROR((C17-$B17)/$B17), 0, (C17-$B17)/$B17) -> 0.01692543707 | D21: -0.01148953701 | E21: -0.03244184263 | F21: -0.05315498546 | G21: -0.07149278877
A22: kW | C22: =IF(ISERROR((C18-$B18)/$B18), 0, (C18-$B18)/$B18) -> 0 | D22: 0 | E22: 0 | F22: 0 | G22: 0
A24: General Service less than 50 kW
A25: # of Customers | B25: 1694 | C25: 1710 | D25: 1710 | E25: 1701 | F25: 1699 | G25: 1696
A26: kWh | B26: 54285767 | C26: 56941928 | D26: 56899095 | E26: 51541092 | F26: 49624609 | G26: 48032166
A27: kW
A28: Variance Analysis
A29: =A25 -> # of Customers | C29: =IF(ISERROR((C25-$B25)/$B25), 0, (C25-$B25)/$B25) -> 0.009445100354 | D29: =IF(ISERROR((D25-$B25)/$B25), 0, (D25-$B25)/$B25) -> 0.009445100354 | E29: 0.004132231405 | F29: 0.002951593861 | G29: 0.001180637544
A30: kWh | C30: =IF(ISERROR((C26-$B26)/$B26), 0, (C26-$B26)/$B26) -> 0.04892923407 | D30: 0.04814020588 | E30: -0.05055975354 | F30: -0.08586335346 | G30: -0.1151978013
A31: kW | C31: =IF(ISERROR((C27-$B27)/$B27), 0, (C27-$B27)/$B27) -> 0 | D31: 0 | E31: 0 | F31: 0 | G31: 0
A33: General Service 50 to 999 kW
A34: # of Customers | B34: 176 | C34: 200 | D34: 207 | E34: 198 | F34: 214 | G34: 232
A35: kWh | B35: 117338024 | C35: 112013765 | D35: 115098501 | E35: 126051551 | F35: 133477008 | G35: 141977508
A36: kW | B36: 328299 | C36: 313360 | D36: 321135 | E36: 362946 | F36: 373234 | G36: 397003
A37: Variance Analysis
A38: =A34 -> # of Customers | C38: =IF(ISERROR((C34-$B34)/$B34), 0, (C34-$B34)/$B34) -> 0.1363636364 | D38: =IF(ISERROR((D34-$B34)/$B34), 0, (D34-$B34)/$B34) -> 0.1761363636 | E38: 0.125 | F38: 0.2159090909 | G38: 0.3181818182
A39: kWh | C39: =IF(ISERROR((C35-$B35)/$B35), 0, (C35-$B35)/$B35) -> -0.0453753934 | D39: -0.01908608074 | E39: 0.07426004549 | F39: 0.1375426605 | G39: 0.2099872076
A40: kW | C40: =IF(ISERROR((C36-$B36)/$B36), 0, (C36-$B36)/$B36) -> -0.0455042507 | D40: -0.02182157119 | E40: 0.1055348935 | F40: 0.1368721805 | G40: 0.2092726448
A42: General Service 1,000 to 4,999 kW
A43: # of Customers | B43: 13 | C43: 12 | D43: 13 | E43: 13 | F43: 14 | G43: 14
A44: kWh | B44: 108192394 | C44: 106258036 | D44: 116217792 | E44: 121143599 | F44: 121405249 | G44: 121808474
A45: kW | B45: 293909 | C45: 289209 | D45: 296492 | E45: 307815 | F45: 327314 | G45: 328402
A46: Variance Analysis
A47: =A43 -> # of Customers | C47: =IF(ISERROR((C43-$B43)/$B43), 0, (C43-$B43)/$B43) -> -0.07692307692 | D47: =IF(ISERROR((D43-$B43)/$B43), 0, (D43-$B43)/$B43) -> 0 | E47: 0 | F47: 0.07692307692 | G47: 0.07692307692
A48: kWh | C48: =IF(ISERROR((C44-$B44)/$B44), 0, (C44-$B44)/$B44) -> -0.01787887234 | D48: 0.07417709973 | E48: 0.1197053187 | F48: 0.1221236957 | G48: 0.1258506213
A49: kW | C49: =IF(ISERROR((C45-$B45)/$B45), 0, (C45-$B45)/$B45) -> -0.01599134426 | D49: 0.008788434515 | E49: 0.04731396453 | F49: 0.1136576287 | G49: 0.1173594548
A51: Sentinel Lighting
A52: # of Connections | B52: 175 | C52: 153 | D52: 177 | E52: 170 | F52: 173 | G52: 176
A53: kWh | B53: 380342 | C53: 439446 | D53: 443840 | E53: 448279 | F53: 456481 | G53: 464833
A54: kW | B54: 810 | C54: 650 | D54: 676 | E54: 703 | F54: 972 | G54: 989
A55: Variance Analysis
A56: =A52 -> # of Connections | C56: =IF(ISERROR((C52-$B52)/$B52), 0, (C52-$B52)/$B52) -> -0.1257142857 | D56: =IF(ISERROR((D52-$B52)/$B52), 0, (D52-$B52)/$B52) -> 0.01142857143 | E56: -0.02857142857 | F56: -0.01142857143 | G56: 0.005714285714
A57: kWh | C57: =IF(ISERROR((C53-$B53)/$B53), 0, (C53-$B53)/$B53) -> 0.1553969848 | D57: 0.1669497452 | E57: 0.1786208202 | F57: 0.2001856224 | G57: 0.2221448065
A58: kW | C58: =IF(ISERROR((C54-$B54)/$B54), 0, (C54-$B54)/$B54) -> -0.1975308642 | D58: -0.1654320988 | E58: -0.1320987654 | F58: 0.2 | G58: 0.2209876543
A60: Street Lighting
A61: # of Connections | B61: 4474 | C61: 4417 | D61: 4477 | E61: 4477 | F61: 4507 | G61: 4538
A62: kWh | B62: 2778881 | C62: 2762363 | D62: 2769251 | E62: 2782603 | F62: 2127971 | G62: 1466975
A63: kW | B63: 7820 | C63: 7681 | D63: 7731 | E63: 7764 | F63: 5988 | G63: 4128
A64: Variance Analysis
A65: =A61 -> # of Connections | C65: =IF(ISERROR((C61-$B61)/$B61), 0, (C61-$B61)/$B61) -> -0.01274027716 | D65: =IF(ISERROR((D61-$B61)/$B61), 0, (D61-$B61)/$B61) -> 0.000670540903 | E65: 0.000670540903 | F65: 0.007375949933 | G65: 0.0143048726
A66: kWh | C66: =IF(ISERROR((C62-$B62)/$B62), 0, (C62-$B62)/$B62) -> -0.005944119234 | D66: -0.003465423672 | E66: 0.001339388049 | F66: -0.2342345714 | G66: -0.4720986613
A67: kW | C67: =IF(ISERROR((C63-$B63)/$B63), 0, (C63-$B63)/$B63) -> -0.01777493606 | D67: -0.01138107417 | E67: -0.00716112532 | F67: -0.2342710997 | G67: -0.4721227621
A69: Unmetered Scattered Load
A70: # of Connections | B70: 175 | C70: 151 | D70: 146 | E70: 147 | F70: 149 | G70: 150
A71: kWh | B71: 838540 | C71: 892750 | D71: 900265 | E71: 923011 | F71: 927563 | G71: 932138
A72: kW
A73: Variance Analysis
A74: =A70 -> # of Connections | C74: =IF(ISERROR((C70-$B70)/$B70), 0, (C70-$B70)/$B70) -> -0.1371428571 | D74: =IF(ISERROR((D70-$B70)/$B70), 0, (D70-$B70)/$B70) -> -0.1657142857 | E74: -0.16 | F74: -0.1485714286 | G74: -0.1428571429
A75: kWh | C75: =IF(ISERROR((C71-$B71)/$B71), 0, (C71-$B71)/$B71) -> 0.0646480788 | D75: 0.07361008419 | E75: 0.1007358027 | F75: 0.1061642855 | G75: 0.111620197
A76: kW | C76: =IF(ISERROR((C72-$B72)/$B72), 0, (C72-$B72)/$B72) -> 0 | D76: 0 | E76: 0 | F76: 0 | G76: 0
A78: Totals
A79: Customers / Connections | B79: =SUM(B16,B25,B34,B43,B52,B61,B70) -> 26237 | C79: =SUM(C16,C25,C34,C43,C52,C61,C70) -> 25837 | D79: 26241 | E79: 26329 | F79: 26544 | G79: 26761
A80: kWh | B80: =SUM(B17,B26,B35,B44,B53,B62,B71) -> 494026422 | C80: 493078700 | D80: 500125974 | E80: 506282929 | F80: 507057514 | G80: 509865892
A81: kW from applicable classes | B81: =SUM(B18,B27,B36,B45,B54,B63,B72) -> 630838 | C81: 610900 | D81: 626034 | E81: 679228 | F81: 707508 | G81: 730522
A83: Totals - Variance
A84: Customers / Connections | C84: =IF(ISERROR((C79-$B79)/$B79), 0, (C79-$B79)/$B79) -> -0.01524564546 | D84: 0.0001524564546 | E84: 0.003506498456 | F84: 0.01170103289 | G84: 0.01997179556
A85: kWh | C85: -0.001918362982 | D85: 0.01234661089 | E85: 0.02480941596 | F85: 0.02637731793 | G85: 0.03206198959
A86: kW from applicable classes | C86: -0.03160557861 | D86: -0.007615267311 | E86: 0.07670749067 | F86: 0.1215367495 | G86: 0.1580183819

Sheet App.2-JA_OM&A_Summary_Analys
J1: File Number: | L1: =EBNUMBER -> EB-2015-0074
J2: Exhibit:
J3: Tab:
J4: Schedule:
J5: Page:
J7: Date:
A9: Appendix 2-JA
A10: Summary of Recoverable OM&A Expenses
B13: ="Last Rebasing Year (" & RebaseYear & " Board-Approved)" -> Last Rebasing Year (2012 Board-Approved) | C13: ="Last Rebasing Year (" & RebaseYear & " Actuals)" -> Last Rebasing Year (2012 Actuals) | D13: =BridgeYear -2 & " Actuals" -> 2013 Actuals | E13: =BridgeYear -1 & " Actuals" -> 2014 Actuals | F13: =BridgeYear & " Bridge Year" -> 2015 Bridge Year | G13: =TestYear & " Test Year" -> 2016 Test Year
A14: Reporting Basis | B14: CGAAP | C14: CGAAP | D14: CGAAP | E14: CGAAP | F14: MIFRS | G14: MIFRS
A15: Operations | B15: 1049101 | C15: 797619 | D15: 800456 | E15: 791622 | F15: 1265363 | G15: 1355647
A16: Maintenance | B16: 933985 | C16: 1905957 | D16: 742555 | E16: 615219 | F16: 341000 | G16: 374125
A17: SubTotal | B17: =SUM(B15:B16) -> 1983086 | C17: =SUM(C15:C16) -> 2703576 | D17: 1543011 | E17: 1406841 | F17: 1606363 | G17: 1729772
A18: %Change (year over year) | D18: =IF(ISERROR((D17-C17)/C17), "", (D17-C17)/C17) -> -0.4292703442 | E18: =IF(ISERROR((E17-D17)/D17), "", (E17-D17)/D17) -> -0.08824953289 | F18: 0.1418227078 | G18: 0.07682510118
A19: %Change (Test Year vs Last Rebasing Year - Actual) | G19: =IF(ISERROR((G17-C17)/C17), "", (G17-C17)/C17) -> -0.3601910951
A20: Billing and Collecting | B20: 1226281 | C20: 1072259 | D20: 1210087 | E20: 1203346 | F20: 1584893 | G20: 1890937
A21: Community Relations | B21: 0 | C21: 0 | D21: 0 | E21: 0 | F21: 0 | G21: 0
A22: Administrative and General | B22: 2584033 | C22: 2036642 | D22: 2331334 | E22: 2568754 | F22: 2929017 | G22: 3134097
A23: SubTotal | B23: =SUM(B20:B22) -> 3810314 | C23: =SUM(C20:C22) -> 3108901 | D23: 3541421 | E23: 3772100 | F23: 4513910 | G23: 5025034
A24: %Change (year over year) | D24: =IF(ISERROR((D23-C23)/C23), "", (D23-C23)/C23) -> 0.1391231178 | E24: =IF(ISERROR((E23-D23)/D23), "", (E23-D23)/D23) -> 0.06513741236 | F24: =IF(ISERROR((F23-E23)/E23), "", (F23-E23)/E23) -> 0.1966570345 | G24: =IF(ISERROR((G23-F23)/F23), "", (G23-F23)/F23) -> 0.113233095
A25: %Change (Test Year vs Last Rebasing Year - Actual) | G25: =IF(ISERROR((G23-C23)/C23), "", (G23-C23)/C23) -> 0.6163377348
A26: Total | B26: =SUM(B23,B17) -> 5793400 | C26: =SUM(C23,C17) -> 5812477 | D26: 5084432 | E26: 5178941 | F26: 6120273 | G26: 6754806
A27: %Change (year over year) | D27: =IF(ISERROR((D26-C26)/C26), "", (D26-C26)/C26) -> -0.1252555494 | E27: =IF(ISERROR((E26-D26)/D26), "", (E26-D26)/D26) -> 0.018587917 | F27: =IF(ISERROR((F26-E26)/E26), "", (F26-E26)/E26) -> 0.1817614837 | G27: =IF(ISERROR((G26-F26)/F26), "", (G26-F26)/F26) -> 0.1036772379
B30: =B13 -> Last Rebasing Year (2012 Board-Approved) | C30: =C13 -> Last Rebasing Year (2012 Actuals) | D30: 2013 Actuals | E30: 2014 Actuals | F30: 2015 Bridge Year | G30: 2016 Test Year
A31: Operations | B31: =B15 -> 1049101 | C31: =C15 -> 797619 | D31: 800456 | E31: 791622 | F31: 1265363 | G31: 1355647
A32: Maintenance | B32: =B16 -> 933985 | C32: =C16 -> 1905957 | D32: 742555 | E32: 615219 | F32: 341000 | G32: 374125
A33: Billing and Collecting | B33: =B20 -> 1226281 | C33: =C20 -> 1072259 | D33: 1210087 | E33: 1203346 | F33: 1584893 | G33: 1890937
A34: Community Relations | B34: =B21 -> 0 | C34: =C21 -> 0 | D34: 0 | E34: 0 | F34: 0 | G34: 0
A35: Administrative and General | B35: =B22 -> 2584033 | C35: =C22 -> 2036642 | D35: 2331334 | E35: 2568754 | F35: 2929017 | G35: 3134097
A36: Total | B36: =SUM(B31:B35) -> 5793400 | C36: =SUM(C31:C35) -> 5812477 | D36: 5084432 | E36: 5178941 | F36: 6120273 | G36: 6754806
A37: %Change (year over year) | D37: =IF(ISERROR((D36-C36)/C36), "", (D36-C36)/C36) -> -0.1252555494 | E37: =IF(ISERROR((E36-D36)/D36), "", (E36-D36)/D36) -> 0.018587917 | F37: =IF(ISERROR((F36-E36)/E36), "", (F36-E36)/E36) -> 0.1817614837 | G37: =IF(ISERROR((G36-F36)/F36), "", (G36-F36)/F36) -> 0.1036772379
B40: =B13 -> Last Rebasing Year (2012 Board-Approved) | C40: =C13 -> Last Rebasing Year (2012 Actuals) | D40: ="Variance " & 'LDC Info'!E28 & " BA – " & 'LDC Info'!E28 & " Actuals" -> Variance 2012 BA – 2012 Actuals | E40: =D13 -> 2013 Actuals | F40: ="Variance " & 'LDC Info'!E26 -2 & " Actuals vs. " & 'LDC Info'!E28 & " Actuals" -> Variance 2013 Actuals vs. 2012 Actuals | G40: =E13 -> 2014 Actuals | H40: ="Variance " & 'LDC Info'!E26 -1 & " Actuals vs. " & 'LDC Info'!E26-2 & " Actuals" -> Variance 2014 Actuals vs. 2013 Actuals | I40: =F13 -> 2015 Bridge Year | J40: ="Variance " & 'LDC Info'!E26 & " Bridge vs. " & 'LDC Info'!E26 -1 & " Actuals" -> Variance 2015 Bridge vs. 2014 Actuals | K40: =G13 -> 2016 Test Year | L40: ="Variance " & TestYear & " Test vs. " & BridgeYear & " Bridge" -> Variance 2016 Test vs. 2015 Bridge
A41: Operations | B41: =B15 -> 1049101 | C41: 797619 | D41: =B41-C41 -> 251482 | E41: =D15 -> 800456 | F41: =E41-C41 -> 2837 | G41: =E15 -> 791622 | H41: =G41-E41 -> -8834 | I41: =F15 -> 1265363 | J41: =I41-G41 -> 473741 | K41: =G15 -> 1355647 | L41: =K41-I41 -> 90284
A42: Maintenance | B42: 933985 | C42: 1905957 | D42: =B42-C42 -> -971972 | E42: =D16 -> 742555 | F42: =E42-C42 -> -1163402 | G42: =E16 -> 615219 | H42: =G42-E42 -> -127336 | I42: =F16 -> 341000 | J42: -274219 | K42: =G16 -> 374125 | L42: 33125
A43: Billing and Collecting | B43: =B20 -> 1226281 | C43: 1072259 | D43: 154022 | E43: =D20 -> 1210087 | F43: 137828 | G43: =E20 -> 1203346 | H43: -6741 | I43: =F20 -> 1584893 | J43: 381547 | K43: =G20 -> 1890937 | L43: 306044
A44: Community Relations | B44: 0 | C44: 0 | D44: 0 | E44: =D21 -> 0 | F44: 0 | G44: =E21 -> 0 | H44: 0 | I44: =F21 -> 0 | J44: 0 | K44: =G21 -> 0 | L44: 0
A45: Administrative and General | B45: 2584033 | C45: 2036642 | D45: 547391 | E45: 2331334 | F45: 294692 | G45: 2568754 | H45: 237420 | I45: 2929017 | J45: 360263 | K45: 3134097 | L45: 205080
A46: Total OM&A Expenses | B46: =SUM(B41:B45) -> 5793400 | C46: =SUM(C41:C45) -> 5812477 | D46: -19077 | E46: 5084432 | F46: -728045 | G46: 5178941 | H46: 94509 | I46: 6120273 | J46: 941332 | K46: 6754806 | L46: 634533
A47: Adjustments for Total non-recoverable items (from Appendices 2-JA and 2-JB)
A48: Total Recoverable OM&A Expenses | B48: =B46-B47 -> 5793400 | C48: =C46-C47 -> 5812477 | D48: -19077 | E48: 5084432 | F48: -728045 | G48: 5178941 | H48: 94509 | I48: 6120273 | J48: 941332 | K48: 6754806 | L48: 634533
A49: Variance from previous year | E49: =E48-C48 -> -728045 | G49: =G48-E48 -> 94509 | I49: =I48-G48 -> 941332 | K49: =K48-I48 -> 634533
A50: Percent change (year over year) | E50: =IF(ISERROR(E49/C48), "", E49/C48) -> -0.1252555494 | G50: =IF(ISERROR(G49/E48), "", G49/E48) -> 0.018587917 | I50: =IF(ISERROR(I49/G48), "", I49/G48) -> 0.1817614837 | K50: =IF(ISERROR(K49/I48), "", K49/I48) -> 0.1036772379
A51: Percent Change: Test year vs. Most Current Actual | G51: =IF(ISERROR((K48-G48)/G48), "", (K48-G48)/G48) -> 0.3042832502
A52: Simple average of % variance for all years | G52: =IF(ISERROR((K46-C46)/C46), "", (K46-C46)/C46) -> 0.1621217598 | L52: =IF(ISERROR(AVERAGE(E50,G50,I50,K50)), "", AVERAGE(E50,G50,I50,K50)) -> 0.0446927723
A53: Compound Annual Growth Rate for all years | G53: =IF(ISERROR((K49-C49)/C49), "", (K49-C49)/C49) ->  | L53: =IF((K48-C48)=0, "", (K48/C48)^(1/5)-1) -> 0.03050552986
A54: ="Compound Growth Rate (" & E13 & " vs. " & 'LDC Info'!E28 & " Actuals)" -> Compound Growth Rate (2014 Actuals vs. 2012 Actuals) | G54: =IF(ISERROR((G48/C48)^(1/(3)) - 1), "", (G48/C48)^(1/(3)) - 1) -> -0.03773821501
A56: Note:
A58: 1 "BA" = Board-Approved
A59: 2 If it has been more than three years since the applicant last filed a cost of service application, additional years of historical actuals should be incorporated into the table, as necessary, to go back to the last cost of service application. If the applicant last filed a cost of service application less than three years ago, a minimum of three years of actual information is required.
A61: 3 Recoverable OM&A that is included on these tables should be identical to the recoverable OM&A that is shown for the corresponding periods on Appendix 2-JB.

Sheet App.2-JB_OM&A_Cost _Drivers
E1: File Number: | F1: =EBNUMBER -> EB-2015-0074
E2: Exhibit:
E3: Tab:
E4: Schedule:
E5: Page:
E7: Date:
A10: Appendix 2-JB
A11: Recoverable OM&A Cost Driver Table
A13: OM&A | B13: ="Last Rebasing Year (" & RebaseYear & " Actuals)" -> Last Rebasing Year (2012 Actuals) | C13: =BridgeYear -2 & " Actuals" -> 2013 Actuals | D13: =BridgeYear -1 & " Actuals" -> 2014 Actuals | E13: =BridgeYear & " Bridge Year" -> 2015 Bridge Year | F13: =TestYear & " Test Year" -> 2016 Test Year
A14: Reporting Basis | B14: CGAAP | C14: CGAAP | D14: CGAAP | E14: MIFRS | F14: MIFRS
A15: Opening Balance | B15: 5793399 | C15: =B45 -> 5812477 | D15: =C45 -> 5084431 | E15: 5178941 | F15: 6120273
A16: One-time recognition of Smart Meter OM&A from EB-2011-0271 | B16: - | C16: -951608 | D16: - | E16: - | F16: -
A17: Deferred hiring of 2 FTEs | B17: -150500 | C17: - | D17: - | E17: - | F17: -
A18: New FTEs (GIS Tech, Billing Clerk, Business Analyst, Line Apprentice) | B18: - | C18: - | D18: - | E18: 74000 | F18: 157918
A19: Change in Salaries and Wages | B19: - | C19: 252071 | D19: 280451 | E19: 154003 | F19: 157712
A20: Change in Benefit Costs including OMERS | B20: 81883 | C20: 70402 | D20: 6147 | E20: 23063 | F20: 35684
A21: Benefit increase 2016 Renewal | B21: - | C21: - | D21: - | E21: - | F21: 60480
A22: Tree trimming | B22: - | C22: - | D22: - | E22: 15000 | F22: 30000
A23: Bad debt expense | B23: -13898 | C23: 3898 | D23: -13582 | E23: 13582 | F23: -
A24: Implementation of monthly billing (excluding FTE billing clerk-included above) | B24: - | C24: - | D24: - | E24: - | F24: 173195
A25: One-time Direct Labour capitalized for ERP Implementation | B25: - | C25: - | D25: -428934 | E25: 428934 | F25: -
A26: Contract Labour - (customer communications, Meter Service Provider, Programming support-OESP changes) | B26: - | C26: - | D26: - | E26: 72400 | F26: -
A27: Customer Survey and communications | B27: - | C27: - | D27: 21000 | E27: 28262 | F27: -
A28: Hardware software maintenace increase (ESRI and SCADA Software costs) | B28: - | C28: - | D28: 12139 | E28: 36000 | F28: -
A29: Hardware software maintenace increase (New ERP Software costs) | B29: - | C29: - | D29: - | E29: 75000 | F29: -
A30: IT Security assessment & review | B30: - | C30: - | D30: 41000
A31: Smart meter communications costs(portal mtce, data collection costs) | B31: - | C31: - | D31: 14000 | E31: 19991
A32: Vehicle costs increase | B32: 112321 | C32: -112321
A33: Creative & Critical Thinking initiative (Efficiency savings)
A34: Benefit savings- 3 year rate freeze (Health & Dental) | B34: - | C34: -60316 | D34: - | E34: - | F34: -
A35: Control Room | B35: - | C35: 34500 | D35: 103500 | E35: - | F35: 17000
A36: Health and Safety | B36: - | C36: 15000 | D36: 49500 | E36: - | F36: -
A37: Property Taxes | B37: -10728 | C37: 2289 | D37: 2638 | E37: 1097 | F37: 2544
A38: Other OM&A costs | B38: - | C38: 18039 | D38: 6651 | E38: - | F38: -
A45: Closing Balance | B45: =SUM(B15:B44) -> 5812477 | C45: =SUM(C15:C44) -> 5084431 | D45: =SUM(D15:D44) -> 5178941 | E45: =SUM(E15:E44) -> 6120273 | F45: 6754806
A47: Notes:
A49: 1 | B49: For each year, a detailed explanation for each cost driver and associated amount is requied in Exhibit 4.
A50: 2 | B50: For purposes of assessing incremental cost drivers, the closing balance for each year becomes the opening balance for the next year.
A51: 3 | B51: If it has been more than three years since the applicant last filed a cost of service application, additional years of historical actuals should be incorporated into the table, as necessary, to go back to the last cost of service application. If the applicant last filed a cost of service application less than three years ago, a minimum of three years of actual information is required.
A54: 4 | B54: Opening Balance for "Last Rebasing Year" (cell B15) should be equal to the Board-Approved amount.

Sheet App.2-JC_OMA Programs
H1: File Number: | I1: =EBNUMBER -> EB-2015-0074
H2: Exhibit:
H3: Tab:
H4: Schedule:
H5: Page:
H7: Date:
A9: Appendix 2-JC
A10: OM&A Programs Table
A13: Programs | B13: ="Last Rebasing Year (" & RebaseYear & " Board-Approved)" -> Last Rebasing Year (2012 Board-Approved) | C13: ="Last Rebasing Year (" & RebaseYear & " Actuals)" -> Last Rebasing Year (2012 Actuals) | D13: =BridgeYear -2 & " Actuals" -> 2013 Actuals | E13: =BridgeYear -1 & " Actuals" -> 2014 Actuals | F13: =BridgeYear & " Bridge Year" -> 2015 Bridge Year | G13: =TestYear & " Test Year" -> 2016 Test Year | H13: ="Variance (Test Year vs. " & E13 &")" -> Variance (Test Year vs. 2014 Actuals) | I13: ="Variance (Test Year vs. " & B13 -> Variance (Test Year vs. Last Rebasing Year (2012 Board-Approved)
A14: Reporting Basis | B14: CGAAP | C14: CGAAP | D14: CGAAP | E14: CGAAP | F14: MIFRS | G14: MIFRS | H14: MIFRS | I14: MIFRS
A15: Program Name #1
H16: =G16-E16 -> 0 | I16: =G16-B16 -> 0
H17: =G17-E17 -> 0 | I17: =G17-B17 -> 0
H18: 0 | I18: 0
H19: 0 | I19: 0
H20: 0 | I20: 0
A21: Sub-Total | B21: =SUM(B16:B20) -> 0 | C21: =SUM(C16:C20) -> 0 | D21: 0 | E21: 0 | F21: 0 | G21: 0 | H21: 0 | I21: 0
A22: Program Name #2
H23: 0 | I23: =G23-B23 -> 0
H24: 0 | I24: =G24-B24 -> 0
H25: 0 | I25: 0
H26: 0 | I26: 0
H27: 0 | I27: 0
A28: Sub-Total | B28: =SUM(B23:B27) -> 0 | C28: 0 | D28: 0 | E28: 0 | F28: 0 | G28: 0 | H28: 0 | I28: 0
A29: Program Name #3
H30: 0 | I30: =G30-B30 -> 0
H31: 0 | I31: =G31-B31 -> 0
H32: 0 | I32: 0
H33: 0 | I33: 0
H34: 0 | I34: 0
A35: Sub-Total | B35: =SUM(B30:B34) -> 0 | C35: 0 | D35: 0 | E35: 0 | F35: 0 | G35: 0 | H35: 0 | I35: 0
A36: Program Name #4
H37: 0 | I37: =G37-B37 -> 0
H38: 0 | I38: =G38-B38 -> 0
H39: 0 | I39: 0
H40: 0 | I40: 0
H41: 0 | I41: 0
A42: Sub-Total | B42: =SUM(B37:B41) -> 0 | C42: 0 | D42: 0 | E42: 0 | F42: 0 | G42: 0 | H42: 0 | I42: 0
A43: Program Name #5
H44: =G44-E44 -> 0 | I44: =G44-B44 -> 0
H45: 0 | I45: =G45-B45 -> 0
H46: 0 | I46: 0
H47: 0 | I47: 0
H48: 0 | I48: 0
A49: Sub-Total | B49: =SUM(B44:B48) -> 0 | C49: 0 | D49: 0 | E49: 0 | F49: 0 | G49: 0 | H49: 0 | I49: 0
A50: Miscellaneous | H50: 0 | I50: =G50-B50 -> 0
A51: Total | B51: =SUMPRODUCT(--($A15:$A50="Sub-Total"), B$15:B$50)+B50 -> 0 | C51: =SUMPRODUCT(--($A15:$A50="Sub-Total"), C$15:C$50)+C50 -> 0 | D51: 0 | E51: 0 | F51: 0 | G51: 0 | H51: =G51-E51 -> 0 | I51: =G51-B51 -> 0
A53: Notes:
A55: 1 Please provide a breakdown of the major components of each OM&A Program undertaken in each year. Please ensure that all Programs below the materiality threshold are included in the miscellaneous line. Add more Programs as required.
A56: 2 The applicant should group projects appropriately and avoid presentations that result in classification of significant components of the OM&A budget in the miscellaneous category

Sheet App.2-K_Employee Costs
F1: File Number: | G1: =EBNUMBER -> EB-2015-0074
F2: Exhibit:
F3: Tab:
F4: Schedule:
F5: Page:
F7: Date:
A9: Appendix 2-K
A10: Employee Costs
B12: ="Last Rebasing Year - "&RebaseYear&"- Board Approved" -> Last Rebasing Year - 2012- Board Approved | C12: ="Last Rebasing Year - "&RebaseYear&"- Actual" -> Last Rebasing Year - 2012- Actual | D12: =BridgeYear -2 & " Actuals" -> 2013 Actuals | E12: =BridgeYear -1 & " Actuals" -> 2014 Actuals | F12: =BridgeYear & " Bridge Year" -> 2015 Bridge Year | G12: =TestYear & " Test Year" -> 2016 Test Year
A13: Number of Employees (FTEs including Part-Time)1
A14: Management (including executive) | B14: 11 | C14: 11 | D14: 11 | E14: 11 | F14: 11 | G14: 12
A15: Non-Management (union and non-union) | B15: 40 | C15: 38 | D15: 38 | E15: 39 | F15: 40 | G15: 41
A16: Total | B16: =SUM(B14:B15) -> 51 | C16: 49 | D16: 49 | E16: 50 | F16: 51 | G16: 53
A17: Total Salary and Wages including ovetime and incentive pay
A18: Management (including executive) | B18: 1110359 | C18: 1208951 | D18: 1252806 | E18: 1284965.78 | F18: 1262030.062 | G18: 1376395
A19: Non-Management (union and non-union) | B19: 2893134 | C19: 2644037 | D19: 2852253 | E19: 2751808 | F19: 3067967.089 | G19: 3244901
A20: Total | B20: =SUM(B18:B19) -> 4003493 | C20: 3852988 | D20: 4105059 | E20: 4036773.78 | F20: 4329997.15 | G20: 4621296
A21: Total Benefits (Current + Accrued)
A22: Management (including executive) | B22: 274705 | C22: 330397 | D22: 323748 | E22: 342367 | F22: 320413.0325 | G22: 349719
A23: Non-Management (union and non-union) | B23: 827630 | C23: 853821 | D23: 812210 | E23: 830121 | F23: 815785.6006 | G23: 863244
A24: Total | B24: =SUM(B22:B23) -> 1102335 | C24: =SUM(C22:C23) -> 1184218 | D24: 1135958 | E24: 1172488 | F24: 1136198.633 | G24: 1212963
A25: Total Compensation (Salary, Wages, & Benefits)
A26: Management (including executive) | B26: =B18+B22 -> 1385064 | C26: 1539348 | D26: 1576554 | E26: 1627332.78 | F26: 1582443.094 | G26: 1726114
A27: Non-Management (union and non-union) | B27: 3720764 | C27: 3497858 | D27: 3664463 | E27: 3581929 | F27: 3883752.689 | G27: 4108145
A28: Total | B28: 5105828 | C28: 5037206 | D28: 5241017 | E28: 5209261.78 | F28: 5466195.783 | G28: 5834259
A30: Note:
A31: 1 If an applicant wishes to use headcount, it must also file the same schedule on an FTE basis.

Sheet App.2-L_OM&A_per_Cust_FTEE
G1: File Number: | H1: =EBNUMBER -> EB-2015-0074
G2: Exhibit:
G3: Tab:
G4: Schedule:
G5: Page:
G7: Date:
A9: Appendix 2-L
A10: Recoverable OM&A Cost per Customer and per FTE 1
C12: ="Last Rebasing Year - "&RebaseYear&"- Board Approved" -> Last Rebasing Year - 2012- Board Approved | D12: ="Last Rebasing Year - "&RebaseYear&"- Actual" -> Last Rebasing Year - 2012- Actual | E12: =BridgeYear -2 & " Actuals" -> 2013 Actuals | F12: =BridgeYear -1 & " Actuals" -> 2014 Actuals | G12: =BridgeYear & " Bridge Year" -> 2015 Bridge Year | H12: =TestYear & " Test Year" -> 2016 Test Year
A13: Reporting Basis | C13: CGAAP | D13: CGAAP | E13: CGAAP | F13: CGAAP | G13: MIFRS | H13: MIFRS
A14: Number of Customers 2,4 | C14: 25676 | D14: 25757 | E14: 26039 | F14: 26285 | G14: 26437 | H14: 26652
A15: Total Recoverable OM&A from Appendix 2-JB | C15: 5793400 | D15: 5812477 | E15: 5084432 | F15: 5178941 | G15: 6120273 | H15: 6754806
A16: OM&A cost per customer | C16: =IF(C14=0,"",C15/C14) -> 225.6348341 | D16: 225.6659161 | E16: 195.2621836 | F16: 197.0302834 | G16: 231.5040663 | H16: 253.4446195
A17: Number of FTEs 3,4 | C17: 51 | D17: 50 | E17: 49 | F17: 50 | G17: 51 | H17: 53
A18: Customers/FTEs | C18: =IF(C17=0,"",C14/C17) -> 503.4509804 | D18: 515.14 | E18: 531.4081633 | F18: 525.7 | G18: 518.372549 | H18: 502.8679245
A19: OM&A Cost per FTE | C19: =IF(C17=0,"",C15/C17) -> 113596.0784 | D19: 116249.54 | E19: 103763.9184 | F19: 103578.82 | G19: 120005.3529 | H19: 127449.1698
A21: Notes:
A23: 1 | B23: If it has been more than three years since the applicant last filed a cost of service application, additional years of historical actuals should be incorporated into the table, as necessary, to go back to the last cost of service application. If the applicant last filed a cost of service application less than three years ago, a minimum of three years of actual information is required.
A26: 2 | B26: The method of calculating the number of customers must be identified.
A27: 3 | B27: The method of calculating the number of FTEs must be identified. See also Appendix 2-K
A28: 4 | B28: The number of customers and the number of FTEs should correspond to mid-year or average of January 1 and December 31 figures.

Sheet App.2-M_Regulatory_Costs
J1: File Number: | K1: =EBNUMBER -> EB-2015-0074
J2: Exhibit:
J3: Tab:
J4: Schedule:
J5: Page:
J7: Date:
A9: Appendix 2-M
A10: Regulatory Cost Schedule
E11: On-Going
E12: One-Time
A13: Regulatory Cost Category | C13: USoA Account | D13: USoA Account Balance | E13: Ongoing or One-time Cost? 2 | F13: ="Last Rebasing Year (" & RebaseYear & " Board Approved)" -> Last Rebasing Year (2012 Board Approved) | G13: ="Most Current Actuals Year " & TestYear - 2 -> Most Current Actuals Year 2014 | H13: =TestYear -1 & " Bridge Year" -> 2015 Bridge Year | I13: Annual % Change | J13: =TestYear & " Test Year" -> 2016 Test Year | K13: Annual % Change
A14: (A) | C14: (B) | D14: (C ) | E14: (D) | F14: (E) | G14: (F) | H14: (G) | I14: (H) = [(G)-(F)]/(F) | J14: (I) | K14: (J) = [(I)-(G)]/(G)
A15: 1 | B15: OEB Annual Assessment | C15: 5665 | E15: On-Going | F15: 62000 | G15: 61864 | H15: 43058 | I15: =IF(G15=0,"",(H15-G15)/G15) -> -0.3039893961 | J15: 58686 | K15: =IF(H15=0,"",(J15-H15)/H15) -> 0.3629522969
A16: 2 | B16: OEB Section 30 Costs (Applicant-originated) | C16: 5665 | E16: One-Time | G16: 4864.9875 | H16: 4864.9875 | I16: =IF(G16=0,"",(H16-G16)/G16) -> 0 | J16: 7266.666667 | K16: =IF(H16=0,"",(J16-H16)/H16) -> 0.4936660509
A17: 3 | B17: OEB Section 30 Costs (OEB-initiated) | C17: 5665 | E17: On-Going | F17: 6000 | G17: 649.74 | H17: 4667.18 | I17: 6.183150183 | J17: 4667.18 | K17: 0
A18: 4 | B18: Expert Witness costs for regulatory matters | C18: 5665 | E18: One-Time | G18: 0 | J18: 2795.466667
A19: 5 | B19: Legal costs for regulatory matters | C19: 5665 | E19: On-Going | F19: 22500 | G19: 28940.4525 | H19: 27442.0725 | I19: -0.05177458784 | J19: =17347.1415-J20 -> 5047.4655 | K19: -0.8160683564
B20: Legal costs for regulatory matters-2016 COS | C20: 5665 | E20: One-Time | J20: 12299.676
A21: 6 | B21: Consultants' costs for regulatory matters | C21: 5665 | E21: On-Going | F21: 10000 | G21: 3245.04 | H21: 3245.04 | I21: 2.802722622e-16 | J21: 5128.604 | K21: 0.5804440007
A22: 7 | B22: Operating expenses associated with staff resources allocated to regulatory matters | C22: 5665 | E22: On-Going | F22: 102866 | G22: 9732.9 | H22: 9732.9 | I22: 0 | J22: 3270.033333 | K22: -0.6640227133
A23: 8 | B23: Operating expenses associated with other resources allocated to regulatory matters 1 | C23: 5665 | E23: On-Going | G23: 272.07 | H23: 272.6 | I23: 0.001948028081 | J23: 7350.777333 | K23: 25.96543409
